Workbook

Sheet Gráfico B1 (2)
D4: =D5/$J$5 -> 0.1841672238 | E4: =E5/$J$5 -> 0.3417061807 | F4: =F5/$J$5 -> 0.1715662619 | G4: =G5/$J$5 -> 0.06769336798 | H4: =H5/$J$5 -> 0.2348669657
D5: 249586 | E5: 463085 | F5: 232509 | G5: 91739 | H5: 318295 | J5: =SUM(D5:H5) -> 1355214
B6: Data | C6: Processo | D6: Bragantina | E6: Caiua | F6: Nacional | G6: Oeste | H6: Vale | I6: ESS | J6: IGP-M | K6: IPCA
B7: 2012-04-01 | C7: Revisão 2012 | D7: 382.81 | E7: 326.98 | F7: 338.46 | G7: 333.56 | H7: 319.8 | J7: =AVERAGE(D7:H7) -> 340.322 | K7: =AVERAGE(D7:H7) -> 340.322
B8: 2012-12-01 | C8: RTE 2013 | D8: =AVERAGE($E$8*D7/$E$7,$E$8*D9/$E$9) -> 306.67723 | E8: 267.86 | F8: =AVERAGE($E$8*F7/$E$7,$E$8*F9/$E$9) -> 266.3724348 | G8: =AVERAGE($E$8*G7/$E$7,$E$8*G9/$E$9) -> 271.7768065 | H8: =AVERAGE($E$8*H7/$E$7,$E$8*H9/$E$9) -> 266.3217394 | J8: =J7*VLOOKUP(B8,Índices!$B$159:$F$500,2,0)/VLOOKUP(B7,Índices!$B$159:$F$500,2,0) -> 361.5982815 | K8: =K7*VLOOKUP(B8,Índices!$B$159:$F$500,3,0)/VLOOKUP(B7,Índices!$B$159:$F$500,3,0) -> 353.5718919
B9: 2013-04-01 | C9: Reajuste 2013 | D9: 331.25 | E9: 296 | F9: 282.32 | G9: 298.7 | H9: 299.1 | J9: =J8*VLOOKUP(B9,Índices!$B$159:$F$500,2,0)/VLOOKUP(B8,Índices!$B$159:$F$500,2,0) -> 365.1586199 | K9: =K8*VLOOKUP(B9,Índices!$B$159:$F$500,3,0)/VLOOKUP(B8,Índices!$B$159:$F$500,3,0) -> 362.4208567
B10: 2014-04-01 | C10: Reajuste 2014 | D10: 378.43 | E10: 338.04 | F10: 328.86 | G10: 380.18 | H10: 355.34 | J10: =J9*VLOOKUP(B10,Índices!$B$159:$F$500,2,0)/VLOOKUP(B9,Índices!$B$159:$F$500,2,0) -> 394.3159768 | K10: =K9*VLOOKUP(B10,Índices!$B$159:$F$500,3,0)/VLOOKUP(B9,Índices!$B$159:$F$500,3,0) -> 385.1792635
B11: 2015-04-01 | C11: RTE 2015 | D11: 492.72 | E11: 441.1 | F11: 441.72 | G11: 484.53 | H11: 453.79 | J11: =J10*VLOOKUP(B11,Índices!$B$159:$F$500,2,0)/VLOOKUP(B10,Índices!$B$159:$F$500,2,0) -> 408.3156751 | K11: =K10*VLOOKUP(B11,Índices!$B$159:$F$500,3,0)/VLOOKUP(B10,Índices!$B$159:$F$500,3,0) -> 416.6541362
B12: 2015-04-01 | C12: Reajuste 2015 | D12: 484.37 | E12: 447.36 | F12: 424.02 | G12: 553.35 | H12: 451.6 | J12: =J11*VLOOKUP(B12,Índices!$B$159:$F$500,2,0)/VLOOKUP(B11,Índices!$B$159:$F$500,2,0) -> 408.3156751 | K12: =K11*VLOOKUP(B12,Índices!$B$159:$F$500,3,0)/VLOOKUP(B11,Índices!$B$159:$F$500,3,0) -> 416.6541362
B13: 2016-04-01 | C13: Revisão 2016 | D13: 492.5585847 | E13: 436.6494479 | F13: 418.8667197 | G13: 475.3937075 | H13: 450.2246988 | J13: =J12*VLOOKUP(B13,Índices!$B$159:$F$500,2,0)/VLOOKUP(B12,Índices!$B$159:$F$500,2,0) -> 451.7278501 | K13: =K12*VLOOKUP(B13,Índices!$B$159:$F$500,3,0)/VLOOKUP(B12,Índices!$B$159:$F$500,3,0) -> 455.3104503
B14: 2017-07-01 | C14: Reajuste 2017 | D14: 432.96 | E14: 432.96 | F14: 432.96 | G14: 432.96 | H14: 432.96 | J14: =J13*VLOOKUP(B14,Índices!$B$159:$F$500,2,0)/VLOOKUP(B13,Índices!$B$159:$F$500,2,0) -> 456.2151237 | K14: =K13*VLOOKUP(B14,Índices!$B$159:$F$500,3,0)/VLOOKUP(B13,Índices!$B$159:$F$500,3,0) -> 475.41299
B15: 2018-07-01 | C15: Reajuste 2018 | D15: 498.8444607 | E15: 498.8444607 | F15: 498.8444607 | G15: 498.8444607 | H15: 498.8444607 | J15: =J14*VLOOKUP(B15,Índices!$B$159:$F$500,2,0)/VLOOKUP(B14,Índices!$B$159:$F$500,2,0) -> 493.7985203 | K15: =K14*VLOOKUP(B15,Índices!$B$159:$F$500,3,0)/VLOOKUP(B14,Índices!$B$159:$F$500,3,0) -> 496.7345196
B16: 2019-07-01 | C16: Reajuste 2019 | D16: 497.351539 | E16: 497.351539 | F16: 497.351539 | G16: 497.351539 | H16: 497.351539 | J16: =J15*VLOOKUP(B16,Índices!$B$159:$F$500,2,0)/VLOOKUP(B15,Índices!$B$159:$F$500,2,0) -> 525.3667592 | K16: =K15*VLOOKUP(B16,Índices!$B$159:$F$500,3,0)/VLOOKUP(B15,Índices!$B$159:$F$500,3,0) -> 512.7394075
B17: 2020-07-01 | C17: Reajuste 2020 | D17: =E17 -> 513.8869931 | E17: =F17 -> 513.8869931 | F17: =[14]Resultado!L11 -> 513.8869931 | G17: =F17 -> 513.8869931 | H17: =G17 -> 513.8869931 | J17: =J16*VLOOKUP(B17,Índices!$B$159:$F$500,2,0)/VLOOKUP(B16,Índices!$B$159:$F$500,2,0) -> 574.0783391 | K17: =K16*VLOOKUP(B17,Índices!$B$159:$F$500,3,0)/VLOOKUP(B16,Índices!$B$159:$F$500,3,0) -> 524.5612555
B18: 2021-07-01 | C18: Revisão 2021 | D18: =E18 -> 572.4603864 | E18: =F18 -> 572.4603864 | F18: =Resultado!L11 -> 572.4603864 | G18: =F18 -> 572.4603864 | H18: =G18 -> 572.4603864 | J18: =J17*VLOOKUP(B18,Índices!$B$159:$F$500,2,0)/VLOOKUP(B17,Índices!$B$159:$F$500,2,0) -> 767.2144288 | K18: =K17*VLOOKUP(B18,Índices!$B$159:$F$500,3,0)/VLOOKUP(B17,Índices!$B$159:$F$500,3,0) -> 569.0828536
D19: =$D$18/D7 -1 -> 0.4954164895 | E19: =$D$18/E7 -1 -> 0.7507504629 | F19: =$D$18/F7 -1 -> 0.6913679204 | G19: =$D$18/G7 -1 -> 0.7162141334 | H19: =$D$18/H7 -1 -> 0.7900574933 | J19: =$J$18/J7 -1 -> 1.254377997 | K19: =$K$18/K7 -1 -> 0.6721894371
B20: variação nos ultimos 4 anos | E20: =D17/D14-1 -> 0.1869156345 | H20: =H18/H17-1 -> 0.1139810776 | J20: =J17/J14-1 -> 0.2583500837 | K20: =K17/K14-1 -> 0.1033801485
C21: B1 | D21: =(#REF!*D5+#REF!*E5+#REF!*F5+#REF!*G5+#REF!*H5)/J5 ->  | E21: =D17/D21-1 ->  | F21: =F18/J7-1 -> 0.6821139578 | J21: =J17/$D$21-1 ->  | K21: =K17/$D$21-1 -> 
F23: 44300
F24: =F23+45 -> 44345

Sheet Entrada
B1: Entrada de parâmetros para cálculo tarifário
B4: Energia | D4: Últ. Atualização | F4: Parâmetros para Revisão | P4: ="Caso de OR para a empresa é: " &IF(BD!C53=4,"caso 1","caso 3") -> Caso de OR para a empresa é: caso 3
D6: 44328 | F6: CAPEX - Ativos de Distribuição | J6: Custo Operacional Real do(s) último(s) ano(s) | P6: Outras Receitas - Caso 1 e 2
B7: Montante de Geração Própria | D7: 44328 | F7: (1) Ativo Imobilizado em Serviço (Valor Novo de Reposição) | G7: =G71*VLOOKUP(DATE(YEAR(CAPA!$C$10),MONTH(CAPA!$C$10)-1,1),Índices!$B$135:$D$638,3,0)/VLOOKUP(DATE(YEAR($G$70),MONTH($G$70)-1,1),Índices!$B$135:$D$638,3,0) -> 2817542701 | J7: Ano do Custo Operacional | L7: 2019 | M7: 2020 | P7: Tipo de Receita | Q7: =UDEROR!G12 -> 2021-06-01 | R7: =UDEROR!H12 -> 2021-05-01 | S7: =UDEROR!I12 -> 2021-04-01 | T7: =UDEROR!J12 -> 2021-03-01 | U7: =UDEROR!K12 -> 2021-02-01 | V7: =UDEROR!L12 -> 2021-01-01 | W7: =UDEROR!M12 -> 2020-12-01 | X7: =UDEROR!N12 -> 2020-11-01 | Y7: =UDEROR!O12 -> 2020-10-01 | Z7: =UDEROR!P12 -> 2020-09-01 | AA7: =UDEROR!Q12 -> 2020-08-01 | AB7: =UDEROR!R12 -> 2020-07-01 | AC7: =UDEROR!S12 -> 00:00:00 | AD7: 2020-07-01 | AE7: 2020-08-01 | AF7: 2020-09-01 | AG7: 2020-10-01 | AH7: 2020-11-01 | AI7: 2020-12-01 | AJ7: 2021-01-01 | AK7: 2021-02-01 | AL7: 2021-03-01 | AM7: 2021-04-01 | AN7: 2021-05-01 | AO7: =UDEROR!AE12 -> 00:00:00 | AP7: =UDEROR!AF12 -> 00:00:00 | AQ7: =UDEROR!AG12 -> 00:00:00 | AR7: =UDEROR!AH12 -> 00:00:00 | AS7: =UDEROR!AI12 -> 00:00:00 | AT7: =UDEROR!AJ12 -> 00:00:00 | AU7: =UDEROR!AK12 -> 00:00:00 | AV7: =UDEROR!AL12 -> 00:00:00 | AW7: =UDEROR!AM12 -> 00:00:00 | AX7: =UDEROR!AN12 -> 00:00:00 | AY7: =UDEROR!AO12 -> 00:00:00 | AZ7: =UDEROR!AP12 -> 00:00:00 | BA7: =UDEROR!AQ12 -> 00:00:00 | BB7: =UDEROR!AR12 -> 00:00:00 | BC7: =UDEROR!AS12 -> 00:00:00 | BD7: =UDEROR!AT12 -> 00:00:00
B8: Custo médio da Geração Própria | D8: 44328 | F8: (2) Índice de Aproveitamento Integral | G8: =G72*VLOOKUP(DATE(YEAR(CAPA!$C$10),MONTH(CAPA!$C$10)-1,1),Índices!$B$135:$D$638,3,0)/VLOOKUP(DATE(YEAR($G$70),MONTH($G$70)-1,1),Índices!$B$135:$D$638,3,0) -> 7750849.735 | J8: CONTA PESSOAL | P8: Serviços Cobráveis | Q8: =R8 -> 148175.48 | R8: =HLOOKUP(R$7,$AD$7:$AN$31,$AC8,FALSE) -> 148175.48 | S8: =HLOOKUP(S$7,$AD$7:$AN$31,$AC8,FALSE) -> 144786.01 | T8: 142781.93 | U8: 124291.66 | V8: 132991.61 | W8: 170177.22 | X8: 157563.61 | Y8: 167459.82 | Z8: 182515.16 | AA8: 61458.25 | AB8: 70191.21 | AC8: 2 | AD8: 70191.21 | AE8: 61458.25 | AF8: 182515.16 | AG8: 167459.82 | AH8: 157563.61 | AI8: 170177.22 | AJ8: 132991.61 | AK8: 124291.66 | AL8: 142781.93 | AM8: 144786.01 | AN8: 148175.48
D9: 44363 | F9: (3) Obrigações Especiais Bruta | G9: =G73*VLOOKUP(DATE(YEAR(CAPA!$C$10),MONTH(CAPA!$C$10)-1,1),Índices!$B$135:$D$638,3,0)/VLOOKUP(DATE(YEAR($G$70),MONTH($G$70)-1,1),Índices!$B$135:$D$638,3,0) -> 606560829.9 | J9: BMP - 610530501; 610550501; 610532501; 610552501 | K9: Remuneração | L9: 43402084.13 | M9: 34749296.58 | P9: Arrecadação de convênios ou valores pela fatura | Q9: =R9 -> 493910.39 | R9: =HLOOKUP(R$7,$AD$7:$AN$31,$AC9,FALSE) -> 493910.39 | S9: 298907.43 | T9: 383087.04 | U9: 511526.85 | V9: 511418.91 | W9: 533298.57 | X9: 491774.01 | Y9: 491885.97 | Z9: 500648.41 | AA9: 515470.46 | AB9: 559467.62 | AC9: 3 | AD9: 559467.62 | AE9: 515470.46 | AF9: 500648.41 | AG9: 491885.97 | AH9: 491774.01 | AI9: 533298.57 | AJ9: 511418.91 | AK9: 511526.85 | AL9: 383087.04 | AM9: 298907.43 | AN9: 493910.39
D10: 44363 | F10: (4) Bens Totalmente Depreciados | G10: =G74*VLOOKUP(DATE(YEAR(CAPA!$C$10),MONTH(CAPA!$C$10)-1,1),Índices!$B$135:$D$638,3,0)/VLOOKUP(DATE(YEAR($G$70),MONTH($G$70)-1,1),Índices!$B$135:$D$638,3,0) -> 620783048.7 | J10: BMP - 610530502; 610550502; 610532502; 610552502 | K10: Encargos | L10: 19153847.92 | M10: 16830080.77 | P10: Arrecadação de faturas de terceiros por estrutura própria | Q10: 0 | R10: 0 | S10: 0 | T10: 0 | U10: 0 | V10: 0 | W10: 0 | X10: 0 | Y10: 0 | Z10: 0 | AA10: 0 | AB10: 0 | AC10: 4
F11: (5) Base de Remuneração Bruta = (1)-(2)-(3)-(4) | G11: =G7-G8-G9-G10 -> 1582447973 | J11: BMP - 610530503; 610550503; 610532503; 610552503 | K11: Previdência Privada - Corrente | L11: 1809269.72 | M11: 1346690.31 | P11: Veiculação de publicidade | Q11: 0 | R11: 0 | S11: 0 | T11: 0 | U11: 0 | V11: 0 | W11: 0 | X11: 0 | Y11: 0 | Z11: 0 | AA11: 0 | AB11: 0 | AC11: 5
F12: (6) Depreciação Acumulada | G12: =G76*VLOOKUP(DATE(YEAR(CAPA!$C$10),MONTH(CAPA!$C$10)-1,1),Índices!$B$135:$D$638,3,0)/VLOOKUP(DATE(YEAR($G$70),MONTH($G$70)-1,1),Índices!$B$135:$D$638,3,0) -> 1449457030 | J12: BMP - 610530508; 610550508; 610532508; 610552508 | K12: Outros Benefícios | L12: 23806912.65 | M12: 21464127.19 | P12: Aluguel ou cessão onerosa de imóveis e espaços físicos | Q12: 0 | R12: 0 | S12: 0 | T12: 0 | U12: 0 | V12: 0 | W12: 0 | X12: 0 | Y12: 0 | Z12: 0 | AA12: 0 | AB12: 0 | AC12: 6
F13: (7) AIS Líquido (Valor de Mercado em Uso) | G13: =G7-G12 -> 1368085671 | J13: BMP - 610530506; 610550506; 610532506; 610552506 | K13: Despesas Rescisórias | L13: 0 | M13: 0 | P13: Compartilhamento de infraestrutura | Q13: 3349318.22 | R13: 3349318.22 | S13: 3118727.79 | T13: 3253226.07 | U13: 3426365.16 | V13: 2974801.51 | W13: 1930093.34 | X13: 3098989.18 | Y13: 2837358.21 | Z13: 2600041.98 | AA13: 2321891.44 | AB13: 2365042.3 | AC13: 7 | AD13: 2365042.3 | AE13: 2321891.44 | AF13: 2600041.98 | AG13: 2837358.21 | AH13: 3098989.18 | AI13: 1930093.34 | AJ13: 2974801.51 | AK13: 3426365.16 | AL13: 3253226.07 | AM13: 3118727.79 | AN13: 3349318.22
F14: (8) Índice de Aproveitamento Depreciado | G14: =G78*VLOOKUP(DATE(YEAR(CAPA!$C$10),MONTH(CAPA!$C$10)-1,1),Índices!$B$135:$D$638,3,0)/VLOOKUP(DATE(YEAR($G$70),MONTH($G$70)-1,1),Índices!$B$135:$D$638,3,0) -> 4233502.831 | J14: BMP - 610530507; 610550507; 610532507; 610552507 | K14: Participação nos Lucros e Resultados - PLR | L14: 9114141.8 | M14: 10474625.73 | P14: Serviços de avaliação técnica e aferição de medidores. | Q14: 0 | R14: 0 | S14: 0 | T14: 0 | U14: 0 | V14: 0 | W14: 0 | X14: 0 | Y14: 0 | Z14: 0 | AA14: 0 | AB14: 0 | AC14: 8
F15: (9) Valor da Base de Remuneração (VBR) | G15: =G13-G14 -> 1363852168 | J15: BMP - 610530599; 610550599; 610532599; 610552599 | K15: Outros | L15: 2581861.71 | M15: 3105141.99 | P15: Operacionalização de serviço de créditos tributários | Q15: 0 | R15: 0 | S15: 0 | T15: 0 | U15: 0 | V15: 0 | W15: 0 | X15: 0 | Y15: 0 | Z15: 0 | AA15: 0 | AB15: 0 | AC15: 9
F16: (10) Almoxarifado em Operação | G16: =G80*VLOOKUP(DATE(YEAR(CAPA!$C$10),MONTH(CAPA!$C$10)-1,1),Índices!$B$135:$D$638,3,0)/VLOOKUP(DATE(YEAR($G$70),MONTH($G$70)-1,1),Índices!$B$135:$D$638,3,0) -> 7530266.603 | J16: BMP - 610530510; 610550510; 610532510; 610552510 | K16: (-) Créditos de Tributos Recuperáveis | L16: 0 | M16: 0 | P16: Elaboração de projeto, construção, operação, manutenção ou reforma de: | Q16: 0 | R16: 0 | S16: 0 | T16: 0 | U16: 0 | V16: 0 | W16: 0 | X16: 0 | Y16: 0 | Z16: 0 | AA16: 0 | AB16: 0 | AC16: 10
F17: (11) Ativo Diferido | G17: =G81*VLOOKUP(DATE(YEAR(CAPA!$C$10),MONTH(CAPA!$C$10)-1,1),Índices!$B$135:$D$638,3,0)/VLOOKUP(DATE(YEAR($G$70),MONTH($G$70)-1,1),Índices!$B$135:$D$638,3,0) -> 0 | J17: BMP - 6105306; 6105506; 6105326; 6105526 | K17: Administradores | L17: 2245442.84 | M17: 3004557.93 | P17: (1) redes de distribuição de energia elétrica destinadas à regularização fundiária de interesse específico e ao atendimento dos empreendimentos de múltiplas unidades consumidoras; | Q17: 0 | R17: 0 | S17: 0 | T17: 0 | U17: 0 | V17: 0 | W17: 0 | X17: 0 | Y17: 0 | Z17: 0 | AA17: 0 | AB17: 0 | AC17: 11
F18: (12) Obrigações Especiais Líquida | G18: =G82*VLOOKUP(DATE(YEAR(CAPA!$C$10),MONTH(CAPA!$C$10)-1,1),Índices!$B$135:$D$638,3,0)/VLOOKUP(DATE(YEAR($G$70),MONTH($G$70)-1,1),Índices!$B$135:$D$638,3,0) -> 302901959.2 | K18: Subtotal | L18: 102113560.8 | M18: =SUM(M9:M17) -> 90974520.5 | P18: (2) redes de energia elétrica destinadas ao acesso dos sistemas de distribuição ou transmissão; | Q18: 0 | R18: 0 | S18: 0 | T18: 0 | U18: 0 | V18: 0 | W18: 0 | X18: 0 | Y18: 0 | Z18: 0 | AA18: 0 | AB18: 0 | AC18: 12
F19: (13) Terrenos e Servidões | G19: =G83*VLOOKUP(DATE(YEAR(CAPA!$C$10),MONTH(CAPA!$C$10)-1,1),Índices!$B$135:$D$638,3,0)/VLOOKUP(DATE(YEAR($G$70),MONTH($G$70)-1,1),Índices!$B$135:$D$638,3,0) -> 34086398.27 | J19: CONTA MATERIAIS | P19: (3) subestações de energia; | Q19: 0 | R19: 0 | S19: 0 | T19: 0 | U19: 0 | V19: 0 | W19: 0 | X19: 0 | Y19: 0 | Z19: 0 | AA19: 0 | AB19: 0 | AC19: 13
F20: (14) Base de Rem. Líquida Total = (1)-(6)-(8)+(10)+(11)-(12)+(13) | G20: =G15+G16+G17-G18+G19 -> 1102566874 | J20: BMP - 610530701; 610550701; 610532701; 610552701 | K20: Materiais | L20: 16179614.92 | M20: 14868682.48 | P20: (4) instalações elétricas internas de unidades consumidoras; | Q20: 0 | R20: 0 | S20: 0 | T20: 0 | U20: 0 | V20: 0 | W20: 0 | X20: 0 | Y20: 0 | Z20: 0 | AA20: 0 | AB20: 0 | AC20: 14
F21: (15) Saldo RGR PLPT | G21: =G85*VLOOKUP(DATE(YEAR(CAPA!$C$10),MONTH(CAPA!$C$10)-1,1),Índices!$B$135:$D$638,3,0)/VLOOKUP(DATE(YEAR($G$70),MONTH($G$70)-1,1),Índices!$B$135:$D$638,3,0) -> 0 | J21: BMP - 610530799; 610550799; 610532799; 610552799 | K21: Outros | L21: 4930147.69 | M21: 1790477.62 | P21: (5) banco de capacitores: | Q21: 0 | R21: 0 | S21: 0 | T21: 0 | U21: 0 | V21: 0 | W21: 0 | X21: 0 | Y21: 0 | Z21: 0 | AA21: 0 | AB21: 0 | AC21: 15
F22: (16) Saldo RGR Demais Investimentos | G22: =G86*VLOOKUP(DATE(YEAR(CAPA!$C$10),MONTH(CAPA!$C$10)-1,1),Índices!$B$135:$D$638,3,0)/VLOOKUP(DATE(YEAR($G$70),MONTH($G$70)-1,1),Índices!$B$135:$D$638,3,0) -> 0 | J22: BMP - 610530710; 610550710; 610532710; 610552710 | K22: (-) Créditos de Tributos Recuperáveis | L22: -223908.57 | M22: -178555.25 | P22: (6) padrões de entrada de unidades consumidoras atendidas em baixa tensão; | Q22: 0 | R22: 0 | S22: 0 | T22: 0 | U22: 0 | V22: 0 | W22: 0 | X22: 0 | Y22: 0 | Z22: 0 | AA22: 0 | AB22: 0 | AC22: 16
F23: (17) Taxa de Depreciação | G23: =G87 -> 0.0394 | K23: Subtotal | L23: 20885854.04 | M23: =SUM(M20:M22) -> 16480604.85 | P23: (7) sistemas de medição de energia elétrica; | Q23: 0 | R23: 0 | S23: 0 | T23: 0 | U23: 0 | V23: 0 | W23: 0 | X23: 0 | Y23: 0 | Z23: 0 | AA23: 0 | AB23: 0 | AC23: 17
F24: (18) Quota de Reintegração Regulatória = (5) * (17) | G24: =G23*G11 -> 62348450.12 | J24: CONTA TERCEIROS | P24: (8) geradores, incluindo-se unidades de microgeração e minigeração distribuída; | Q24: 0 | R24: 0 | S24: 0 | T24: 0 | U24: 0 | V24: 0 | W24: 0 | X24: 0 | Y24: 0 | Z24: 0 | AA24: 0 | AB24: 0 | AC24: 18
J25: RIT - RP 800 - Célula F20 | K25: Manut. e Conserv. Bens e Instalações vinculadas ao Serviço Concedido | L25: 23080667.39 | M25: 20058474.27 | P25: (9) sistemas de iluminação pública. | Q25: 0 | R25: 0 | S25: 0 | T25: 0 | U25: 0 | V25: 0 | W25: 0 | X25: 0 | Y25: 0 | Z25: 0 | AA25: 0 | AB25: 0 | AC25: 19
F26: Gasto do Conselho de Consumidores | J26: RIT - RP 800 - Célula F21 | K26: Auditoria e Consultoria | L26: 8456600.34 | M26: 9455320.27 | P26: Eficientização do consumo de energia elétrica e instalação de cogeração qualificada, desde que não enquadráveis nos projetos de Pesquisa e Desenvolvimento (P&D) ou de Eficiência Energética estabelecidos em lei | Q26: 0 | R26: 0 | S26: 0 | T26: 0 | U26: 0 | V26: 0 | W26: 0 | X26: 0 | Y26: 0 | Z26: 0 | AA26: 0 | AB26: 0 | AC26: 20
F27: =Indexador!D132 -> Despesa 2020 | G27: 116267.5 | H27: 44363 | J27: RIT - RP 800 - Célula F22 | K27: Serviços Jurídicos | L27: 5513889 | M27: 0 | P27: Serviços de comunicação de dados | Q27: 0 | R27: 0 | S27: 0 | T27: 0 | U27: 0 | V27: 0 | W27: 0 | X27: 0 | Y27: 0 | Z27: 0 | AA27: 0 | AB27: 0 | AC27: 21
F28: =Indexador!E132 -> Despesa 2019 | G28: 116267.5 | H28: 44363 | J28: RIT - RP 800 - Célula F23 | K28: Serviços de Informática | L28: 4873308.75 | M28: =4121479.53+N28 -> 5177298.94 | N28: 1055819.41 | P28: Serviços de consultoria | Q28: 0 | R28: 0 | S28: 0 | T28: 0 | U28: 0 | V28: 0 | W28: 0 | X28: 0 | Y28: 0 | Z28: 0 | AA28: 0 | AB28: 0 | AC28: 22
D29: 44363 | F29: =Indexador!F132 -> Despesa 2018 | G29: 116267.5 | H29: 44363 | J29: RIT - RP 800 - Célula F26 | K29: Viagens (Passagens Aéreas, etc) | L29: 3064484.99 | M29: 1741525.16 | P29: Receita proveniente da comercialização de resultados de projetos de P&D | Q29: 0 | R29: 0 | S29: 0 | T29: 0 | U29: 0 | V29: 0 | W29: 0 | X29: 0 | Y29: 0 | Z29: 0 | AA29: 0 | AB29: 0 | AC29: 23
F30: =Indexador!G132 -> Despesa 2017 | G30: 127316.73 | H30: 44363 | J30: RIT - RP 800 - Célula F27 | K30: Transportes (inclui Fretes) | L30: 2200362.97 | M30: 1778281.85 | AC30: 24 | AD30: 722913.06 | AE30: 991793.84 | AF30: 950764.3 | AG30: 1101974.18 | AH30: 1065848.71 | AI30: 1320754.12 | AJ30: 763215.95 | AK30: 1065802.69 | AL30: 1059532.28 | AM30: 1202207.704 | AN30: 1955216.85
F31: =Indexador!H132 -> Despesa 2016 | G31: 127316.73 | H31: 44363 | J31: RIT - RP 800 - Célula F28 | K31: Propaganda e Publicidade (exceto Publicações Oficiais) | L31: 393645.87 | M31: 368923.16 | P31: Outras Receitas - Caso 3 | AC31: 25 | AD31: 1163522.1 | AE31: 1164629.94 | AF31: 1360400.08 | AG31: 1221997.79 | AH31: 1381768.67 | AI31: 1271706.1 | AJ31: 1432860.03 | AK31: 1192114.22 | AL31: 1570725.03 | AM31: 1651941.976 | AN31: 1432911.16
F32: Perdas Regulatórias | H32: 44287 | J32: RIT - RP 800 - Célula F29 | K32: Publicações Oficiais | L32: 342219.5 | M32: 261433.28 | P32: Alíquota ISS
F33: Perdas Não Técnicas | G33: 0.003651260973 | H33: 44368 | J33: RIT - RP 800 - Célula F30 | K33: Serviço de Engenharia e Supervisão de Obras | L33: 380 | M33: 48789.59
F34: Perdas Técnicas | G34: 0.06631 | H34: 44368 | J34: RIT - RP 800 - Célula F31 | K34: Gestão Comercial | L34: 386971.73 | M34: 428143.16 | P34: Tipo de Receita | Q34: =Q7 -> 2021-06-01 | R34: 2021-05-01 | S34: 2021-04-01 | T34: 2021-03-01 | U34: 2021-02-01 | V34: 2021-01-01 | W34: 2020-12-01 | X34: 2020-11-01 | Y34: 2020-10-01 | Z34: 2020-09-01 | AA34: 2020-08-01 | AB34: 2020-07-01
H35: 44287 | J35: RIT - RP 800 - Célula F32 | K35: Outros Serviços Terceirizados | L35: 55680319.23 | M35: 50206650.38 | P35: Serviços Cobráveis
F36: Dados da Revisão Anterior - Componente Pd | H36: 44287 | J36: RIT - RP 800 - Célula F33 | K36: (-) Créditos de Tributos Recuperáveis | P36: Encargos de Conexão
F37: Data Base Ativos e Consumidores | G37: 42370 | H37: 44363 | J37: RIT - RP 800 - Célula F34 | K37: Transferências da Administração Central | P37: Compartilhamento de Infraestrutura
F38: Mercado AT (MWh) | G38: 314956.908 | H38: 44363 | K38: Subtotal | L38: 103992849.8 | M38: =SUM(M25:M37) -> 89524840.06 | P38: Sistemas de Comunicação (PLC)
F39: Mercado MT (MWh) | G39: 1375927.959 | H39: 44363 | J39: CONTA SEGUROS | P39: Serviços de Consultoria
F40: Mercado BT (MWh) | G40: 2346998.428 | H40: 44363 | J40: BMP - 610531001; 610551001; 610533001; 610553001 | K40: Seguros | L40: 702285.23 | M40: 708486.03 | P40: Serviços de O&M
F41: Número de unidades consumidoras | G41: 740219 | H41: 44363 | J41: BMP - 610531099; 610551099; 610533099; 610553099 | K41: Outros | L41: 0 | P41: Serviços de Comunicação
H42: 44287 | J42: BMP - 610531010; 610551010; 610533010; 610553010 | K42: (-) Créditos de Tributos Recuperáveis | L42: 0 | P42: Serviços de Engenharia
F43: OPEX | K43: Subtotal | L43: 702285.23 | M43: =SUM(M40:M42) -> 708486.03 | P43: Convênios
F44: Extensão de redes subterrâneas (Km) | G44: 0 | H44: 44363 | J44: CONTA TRIBUTOS
F45: Extensão de rede de distribuição aérea (Km) | G45: 44522.31409 | H45: 44363 | J45: BMP - 6105316; 6105516; 6105336; 6105536 | K45: Tributos | L45: 471776.23 | M45: 448212 | Q45: =Q34 -> 2021-06-01 | R45: =R34 -> 2021-05-01 | S45: 2021-04-01 | T45: 2021-03-01 | U45: 2021-02-01 | V45: 2021-01-01 | W45: 2020-12-01 | X45: 2020-11-01 | Y45: 2020-10-01 | Z45: 2020-09-01 | AA45: 2020-08-01 | AB45: 2020-07-01
F46: Extensão de rede de alta tensão (Km) | G46: 587.860915 | H46: 44363 | K46: (+) Créditos de Tributos Recuperáveis | L46: 471776.23 | M46: =M45 -> 448212 | P46: Ultrapassagem de Demanda | Q46: =R46 -> 1955216.85 | R46: =HLOOKUP(R$7,$AD$7:$AN$31,$AC30,FALSE) -> 1955216.85 | S46: =HLOOKUP(S$7,$AD$7:$AN$31,$AC30,FALSE) -> 1202207.704 | T46: 1059532.28 | U46: 1065802.69 | V46: 763215.95 | W46: 1320754.12 | X46: 1065848.71 | Y46: 1101974.18 | Z46: 950764.3 | AA46: 991793.84 | AB46: 722913.06 | AC46: =SUM(Q46:AB46) -> 14155240.53
F47: ="% PNT / BT Real de "&IF(MONTH(LnkTxtDRPData)>6,YEAR(LnkTxtDRPData)-1,YEAR(LnkTxtDRPData)-2) & " (Medido)" -> % PNT / BT Real de 2020 (Medido) | G47: 0.0091606115 | H47: 44363 | J47: CONTA OUTROS | P47: Excedente Reativo | Q47: =R47 -> 1432911.16 | R47: =HLOOKUP(R$7,$AD$7:$AN$31,$AC31,FALSE) -> 1432911.16 | S47: =HLOOKUP(S$7,$AD$7:$AN$31,$AC31,FALSE) -> 1651941.976 | T47: 1570725.03 | U47: 1192114.22 | V47: 1432860.03 | W47: 1271706.1 | X47: 1381768.67 | Y47: 1221997.79 | Z47: 1360400.08 | AA47: 1164629.94 | AB47: =HLOOKUP(AB$7,$AD$7:$AN$31,$AC31,FALSE) -> 1163522.1 | AC47: =SUM(Q47:AB47) -> 16277488.26
F48: ="% PNT / BT Real de "&IF(MONTH(LnkTxtDRPData)>6,YEAR(LnkTxtDRPData)-1,YEAR(LnkTxtDRPData)-2)-1 & " (Medido)" -> % PNT / BT Real de 2019 (Medido) | G48: 0.01149581577 | H48: 44363 | J48: BMP - 610531901; 610551901; 610533901; 610553901 | K48: Indenização por Perdas e Danos | L48: 5285187.36 | M48: 4533575.73
F49: ="% PNT / BT Real de "&IF(MONTH(LnkTxtDRPData)>6,YEAR(LnkTxtDRPData)-1,YEAR(LnkTxtDRPData)-2)-2 & " (Medido)" -> % PNT / BT Real de 2018 (Medido) | G49: 0.008154558407 | H49: 44363 | J49: BMP - 610531902; 610551902; 610533902; 610553902 | K49: Consumo Próprio de Energia | L49: 3315388.61 | M49: 2902597.25
F50: ="DEC Apurado "&IF(MONTH(LnkTxtDRPData)>3,YEAR(LnkTxtDRPData)-1,YEAR(LnkTxtDRPData)-2) -> DEC Apurado 2020 | G50: 4.94 | H50: 44363 | J50: BMP - 610531905 | K50: Despesas com Conselho de Consumidores | L50: 0
F51: ="DEC Apurado "&IF(MONTH(LnkTxtDRPData)>3,YEAR(LnkTxtDRPData)-1,YEAR(LnkTxtDRPData)-2)-1 -> DEC Apurado 2019 | G51: 5.77 | H51: 44363 | J51: BMP - 610531903; 610551903; 610533903; 610553903 | K51: Taxa de Arrecadação | L51: 0
F52: ="DEC Apurado "&IF(MONTH(LnkTxtDRPData)>3,YEAR(LnkTxtDRPData)-1,YEAR(LnkTxtDRPData)-2)-2 -> DEC Apurado 2018 | G52: 6.06 | H52: 44363 | J52: BMP - 610531904; 610551904; 610533904; 610553904 | K52: Taxas Bancárias | L52: 0
F53: Meta de % PNT / BT (Medido) | G53: 0.009398959073 | H53: 44363 | J53: BMP - 610531910; 610551910; 610533910; 610553910 | K53: (-) Créditos de Tributos Recuperáveis | L53: 0
F54: DEC 8 anos (Limite V8) | G54: 6.04 | H54: 44363 | K54: Subtotal | L54: 8600575.97 | M54: =SUM(M48:M53) -> 7436172.98
J55: Demais
K56: Condenações Trabalhistas
F57: Dados da última Revisão Tarifária | K57: Gastos com CCEE | L57: 378849.7721 | M57: 381795.4736
F58: Custos Operacionais (CO3) | G58: 231656075.2 | H58: 44363 | J58: BMP - 611511401 | K58: Perdas na Alienação e Desativação | L58: 4476829.72 | M58: 3413994.7
F59: Receitas Irrecuperáveis - Encargos Setoriais (Vi) | G59: 380526.8247 | H59: 44363 | J59: BMP - 611112103 | K59: Ganhos na Alienação de Materiais | L59: -7772808.37 | M59: -1402838.41
F60: Demais Receitas Irrecuperáveis (Vse) | G60: 630589.4182 | H60: 44363
F61: Remuneração do Capital (RC) | G61: 67534078.79 | H61: 44363
F62: Quota de Reintegração Regulatória (QRR) | G62: 36117119.99 | H62: 44363
F63: Custo anual das instalações móveis e imóveis (CAIMI) | G63: 30567994.85 | H63: 44363
F64: Ajuste em função dos investimentos realizados (valor negativo) | G64: 0 | H64: 44363
F65: Índice de Produtividade + Mecanismo de Qualidade | G65: 0.01753432717 | H65: 44363
F66: Outras Receitas (OR) (inserir o valor positivo) | G66: 10556964.37 | H66: 44363
F67: Componente T - Última Revisão | G67: 0.0089 | H67: 44363
F70: Base de Ativios - SFF | G70: 44228
F71: (1) Ativo Imobilizado em Serviço (Valor Novo de Reposição) | G71: 2720729815
F72: (2) Índice de Aproveitamento Integral | G72: 7484524.71
F73: (3) Obrigações Especiais Bruta | G73: 585718943.7
F74: (4) Bens Totalmente Depreciados | G74: 599452476.4
F75: (5) Base de Remuneração Bruta = (1)-(2)-(3)-(4) | G75: =G71-G72-G73-G74 -> 1528073870
F76: (6) Depreciação Acumulada | G76: 1399652596
F77: (7) AIS Líquido (Valor de Mercado em Uso) | G77: =G71-G76 -> 1321077219
F78: (8) Índice de Aproveitamento Depreciado | G78: 4088036.49
F79: (9) Valor da Base de Remuneração (VBR) | G79: =G77-G78 -> 1316989182
F80: (10) Almoxarifado em Operação | G80: 7271520.98
F81: (11) Ativo Diferido | G81: 0
F82: (12) Obrigações Especiais Líquida | G82: 292494020.1
F83: (13) Terrenos e Servidões | G83: 32915163.99
F84: (14) Base de Rem. Líquida Total = (9)+(10)+(11)-(12)+(13) | G84: =G79+G80+G81-G82+G83 -> 1064681847
F85: (15) Saldo RGR PLPT | G85: 0
F86: (16) Saldo RGR Demais Investimentos
F87: (17) Taxa de Depreciação | G87: 0.0394
F88: (18) Quota de Reintegração Regulatória = (5) * (17) | G88: =G87*G75 -> 60206110.49
F91: Base de Ativios - Ciclo anterior
F92: (1) Ativo Imobilizado em Serviço (Valor Novo de Reposição) | G92: 1627253616
F93: (2) Índice de Aproveitamento Integral | G93: 7533050.452
F94: (3) Obrigações Especiais Bruta | G94: 364439335.1
F95: (4) Bens Totalmente Depreciados | G95: 334109326.3
F96: (5) Base de Remuneração Bruta = (1)-(2)-(3)-(4) | G96: 921171903.8 | H96: =G11/G96-1 -> 0.7178639144
F97: (6) Depreciação Acumulada | G97: 888066925.1
F98: (7) AIS Líquido (Valor de Mercado em Uso) | G98: 739186690.5
F99: (8) Índice de Aproveitamento Depreciado | G99: 5089301.243
F100: (9) Valor da Base de Remuneração (VBR) | G100: 734097389.3
F101: (10) Almoxarifado em Operação | G101: 2315369.75
F102: (11) Ativo Diferido | G102: 0
F103: (12) Obrigações Especiais Líquida | G103: 264219102.3
F104: (13) Terrenos e Servidões | G104: 19406239.79
F105: (14) Base de Rem. Líquida Total = (1)-(6)-(8)+(10)+(11)-(12)+(13) | G105: 491599896.5 | H105: =G20/G105-1 -> 1.242813479
F106: (15) Saldo RGR PLPT | G106: 0
F107: (16) Saldo RGR Demais Investimentos | G107: 0
F109: (17) Taxa de Depreciação | G109: 0.03920903344
F110: (18) Quota de Reintegração Regulatória = (5) * (17) | G110: 36118259.98

Sheet CAPA
B1: SPARTA | C1: Ver. | R1: DF | S1: Sudeste/Centro Oeste
B2: Helenístico | C2: 0.93 | M2: =C23 -> 165 | N2: =C22 -> 1000040
C3: Macro Ver.
C4: 3.94
B6: ENERGISA Sul Sudeste | L6: CodigoSamp | M6: Empresa | N6: Nome Completo | O6: IdSgtAg | P6: CodigoSamp | Q6: Supridora/suprida | R6: Financeiro 243 (TUSD) | S6: Databse Fin. 243
B7: =VLOOKUP(B6,TabEmpresas[],2,FALSE) -> ENERGISA SUL SUDESTE | C7: Revisão | G7: Últ. Atualização | L7: 396 | M7: AES SUL | N7: AES-SUL - AES SUL Distribuidora Gaúcha de Energia S/A. | O7: 101 | P7: 396 | Q7: NÃO SUPRIDA
B8: CÓDIGO DA EMPRESA | C8: ="D" & TEXT(C23-100,"00") -> D65 | F8: Info iniciais | G8: 2021-07-01T15:10:54 | L8: 7019 | M8: AME | N8: Amazonas Distribuidora de Energia S/A | O8: 102 | P8: 7019 | Q8: NÃO SUPRIDA
B9: Data do Reajuste/Revisão Anterior | C9: 44024 | F9: Energia do ano anterior (CM compra, MWh Mercado, R$ Mercado) | L9: 383 | M9: AMPLA | N9: AMPLA - Ampla Energia e Serviços S/A | O9: 103 | P9: 383 | Q9: NÃO SUPRIDA
B10: Data de Reajuste/Revisão em Processamento | C10: 44389 | F10: Perda de RB /Perdas Regulatórias /TUSDgONS-RB | L10: 391 | M10: BANDEIRANTE | N10: BANDEIRANTE - Bandeirante Energia S/A. | O10: 104 | P10: 391 | Q10: NÃO SUPRIDA
F11: Financeiros ano anterior (CVA 5º dia útil, RTE restante) | L11: 370 | M11: BOAVISTA | N11: Boa Vista - Boa Vista Energia S/A | O11: 105 | P11: 370 | Q11: NÃO SUPRIDA
F12: Encargos ano anterior (não RTE) | L12: 386 | M12: BRAGANTINA | N12: BRAGANTINA- Empresa Elétrica Bragantina S/A. | O12: 142 | P12: 386 | Q12: NÃO SUPRIDA
F13: Dados da Revisão, Fator X e DecFec | L13: 5216 | M13: CAIUA | N13: CAIUÁ-D - Caiuá Distribuição de Energia S/A | O13: 106 | P13: 5216 | Q13: NÃO SUPRIDA
F14: Previsão de Subsidios dos Processos Anteriores | L14: 31 | M14: CEA | N14: CEA - Companhia de Eletricidade do Amapá | O14: 107 | P14: 31 | Q14: NÃO SUPRIDA
B15: Período de Referencia final | C15: =DATE(YEAR($C$10),MONTH($C$10)-1,1) -> 44348 | F15: Conexão ano anterior | L15: 44 | M15: CEAL | N15: CEAL - Companhia Energética de Alagoas | O15: 108 | P15: 44 | Q15: NÃO SUPRIDA
B16: Período de Referencia inicial | C16: =DATE(YEAR($C$10)-1,MONTH($C$10),1) -> 44013 | F16: Energia (CCEAR, Bil., Itaipu) | G16: 2021-07-01T15:08:27 | L16: 5160 | M16: CEB | N16: CEB-DIS - CEB Distribuição S/A | O16: 109 | P16: 5160 | Q16: NÃO SUPRIDA
B17: Índice IGPM na data Revisão/Reajuste | C17: =VLOOKUP(C15,Índices!$B$7:$F$500,2,FALSE) -> 1075.733 | F17: CCEAR | L17: 5707 | M17: CEEE | N17: CEEE-D - Companhia Estadual de Distribuição de Energia Elétrica | O17: 110 | P17: 5707 | Q17: NÃO SUPRIDA
B18: Índice IPCA na data Revisão/Reajuste | C18: =VLOOKUP(C15,Índices!$B$7:$F$500,3,FALSE) -> 5772.849448 | L18: 5697 | M18: CELESC | N18: CELESC-DIS - Celesc Distribuição S.A. | O18: 111 | P18: 5697 | Q18: NÃO SUPRIDA
B19: IGPM para o período de Referência | C19: =VLOOKUP(DATE(YEAR($C$10),MONTH($C$10)-1,1),Índices!$B$7:$F$500,2,FALSE)/VLOOKUP(DATE(YEAR($C$9),MONTH($C$9)-1,1),Índices!$B$7:$F$500,2,FALSE)-1 -> 0.3575134176 | F19: Itaipu (Energia, Transporte, MUST) | L19: 6072 | M19: CELG | N19: CELG-D - Celg Distribuição S.A. | O19: 112 | P19: 6072 | Q19: NÃO SUPRIDA
B20: IPCA para o período de Referência | C20: =VLOOKUP(DATE(YEAR(C10),MONTH(C10)-1,1),Índices!$B$7:$F$500,3,FALSE)/VLOOKUP(DATE(YEAR($C$9),MONTH($C$9)-1,1),Índices!$B$7:$F$500,3,FALSE)-1 -> 0.08400954058 | F20: Cotas Lei/Angra | L20: 371 | M20: CELPA | N20: CELPA - Centrais Elétricas do Pará S/A. | O20: 113 | P20: 371 | Q20: NÃO SUPRIDA
B21: Dados Gerenciais | F21: Encargos DRP | G21: 2021-07-02T19:34:07 | L21: 43 | M21: CELPE | N21: CELPE - Companhia Energética de Pernambuco | O21: 114 | P21: 43 | Q21: NÃO SUPRIDA
B22: IdAgente | C22: =VLOOKUP(B6,TabEmpresas[],4,FALSE) -> 1000040 | F22: Indicadores Econômicos / Dólar | G22: 2021-07-01T09:47:39 | L22: 32 | M22: CELTINS | N22: CELTINS - Companhia de Energia Elétrica do Estado do Tocantins | O22: 115 | P22: 32 | Q22: NÃO SUPRIDA
B23: ID Concessão | C23: =VLOOKUP(B6,TabEmpresas[],3,FALSE) -> 165 | F23: Tudo de Mercado | G23: 2021-07-01T10:16:06 | L23: 37 | M23: CEMAR | N23: CEMAR - Companhia Energética do Maranhão | O23: 116 | P23: 37 | Q23: NÃO SUPRIDA
F24: Rede Básica e Conexão | G24: 2021-07-01T15:03:11 | L24: 405 | M24: CEMAT | N24: CEMAT - Centrais Elétricas Matogrossenses S/A. | O24: 117 | P24: 405 | Q24: NÃO SUPRIDA
B25: Quadro para vínculos | F25: Histórico de Tarifas B1 Residencial | G25: 2021-06-22T14:13:39 | L25: 4950 | M25: CEMIG | N25: CEMIG-D - CEMIG Distribuição S/A | O25: 118 | P25: 4950 | Q25: NÃO SUPRIDA
B26: Descrição | C26: valor | F26: CVA | G26: 2021-06-29T17:19:35 | L26: 38 | M26: CEPISA | N26: CEPISA - Companhia Energética do Piauí | O26: 119 | P26: 38 | Q26: NÃO SUPRIDA
B27: (Exemplo) Efeito Consumidor Geral | C27: =LnkTxtEfeito -> 0.09838856497 | F27: CUSD | G27: 2021-06-16T14:24:01 | L27: 369 | M27: CERON | N27: CERON - Centrais Elétricas de Rondônia S/A. | O27: 120 | P27: 369 | Q27: NÃO SUPRIDA
B28: Contrato de concessão | C28: 13/1999 | L28: 28 | M28: CERR | N28: CERR - Companhia Energética de Roraima | O28: 121 | P28: 28 | Q28: NÃO SUPRIDA
C29: 48500.004627/2020-87 | L29: 103 | M29: CHESP | N29: CHESP - Companhia Hidroelétrica São Patrício | O29: 123 | P29: 103 | Q29: SUPRIDA
B30: Período de Referencia | C30: =TEXT(C16,"mmmm/aaaa")& " a "&TEXT(C15,"mmmm/aaaa") -> julho/2020 a junho/2021 | L30: 75 | M30: CNEE | N30: CNEE - Companhia Nacional de Energia Elétrica | O30: 127 | P30: 75 | Q30: NÃO SUPRIDA
B31: Neutralidade Total | L31: 82 | M31: COCEL | N31: COCEL - Companhia Campolarguense de Energia | O31: 128 | P31: 82 | Q31: SUPRIDA
B32: CVA Saldo a Compensar | C32: =SUM(Financeiros!D27:D43) -> -1362887.52 | L32: 47 | M32: COELBA | N32: COELBA - Companhia de Eletricidade do Estado da Bahia | O32: 129 | P32: 47 | Q32: NÃO SUPRIDA
B33: Reversão CDE | L33: 39 | M33: COELCE | N33: COELCE - Companhia Energética do Ceará | O33: 130 | P33: 39 | Q33: NÃO SUPRIDA
B34: Diretor Relator Sorteado | L34: 2904 | M34: COOPERALIANÇA | N34: COOPERALIANÇA - Cooperativa Aliança | O34: 131 | P34: 2904 | Q34: SUPRIDA
L35: 2866 | M35: COPEL | N35: COPEL-DIS - Copel Distribuição S/A | O35: 132 | P35: 2866 | Q35: NÃO SUPRIDA
L36: 40 | M36: COSERN | N36: COSERN - Companhia Energética do Rio Grande do Norte | O36: 133 | P36: 40 | Q36: NÃO SUPRIDA
L37: 69 | M37: CPFL Jaguari | N37: CPFL Jaguari - Companhia Jaguari de Energia | O37: 124 | P37: 69 | Q37: NÃO SUPRIDA
L38: 71 | M38: CPFL Leste Paulista | N38: =TabEmpresas[[#This Row],[Empresa]]&" - Companhia Leste Paulista de Energia " -> CPFL Leste Paulista - Companhia Leste Paulista de Energia | O38: 134 | P38: 71 | Q38: NÃO SUPRIDA
L39: 70 | M39: CPFL Mococa | N39: =TabEmpresas[[#This Row],[Empresa]]&" - Companhia Luz e Força de Mococa " -> CPFL Mococa - Companhia Luz e Força de Mococa | O39: 125 | P39: 70 | Q39: NÃO SUPRIDA
L40: 72 | M40: CPFL Santa Cruz | N40: =TabEmpresas[[#This Row],[Empresa]]&" - Companhia Luz e Força Santa Cruz " -> CPFL Santa Cruz - Companhia Luz e Força Santa Cruz | O40: 126 | P40: 72 | Q40: NÃO SUPRIDA
L41: 73 | M41: CPFL Sul Paulista | N41: =TabEmpresas[[#This Row],[Empresa]]&" - Companhia Sul Paulista de Energia " -> CPFL Sul Paulista - Companhia Sul Paulista de Energia | O41: 137 | P41: 73 | Q41: NÃO SUPRIDA
L42: 63 | M42: CPFL Paulista | N42: CPFL-Paulista - Companhia Paulista de Força e Luz | O42: 136 | P42: 63 | Q42: NÃO SUPRIDA
L43: 2937 | M43: CPFL Piratininga | N43: CPFL- Piratininga - Companhia Piratininga de Força e Luz | O43: 135 | P43: 2937 | Q43: NÃO SUPRIDA
L44: 95 | M44: DEMEI | N44: DEMEI - Departamento Municipal de Energia de Ijuí | O44: 138 | P44: 95 | Q44: SUPRIDA
L45: 51 | M45: DMED | N45: =TabEmpresas[[#This Row],[Empresa]]&" - DME Distribuição S.A" -> DMED - DME Distribuição S.A | O45: 139 | P45: 51 | Q45: NÃO SUPRIDA
L46: 6611 | M46: EBO | N46: EBO - Energisa Borborema – Distribuidora de Energia S.A. | O46: 140 | P46: 6611 | Q46: NÃO SUPRIDA
B47: Deslocar mercado | C47: Não | L47: 5217 | M47: EDEVP | N47: EDEVP - Empresa de Distribuição de Energia Vale Paranapanema S/A | O47: 141 | P47: 5217 | Q47: NÃO SUPRIDA
B48: Data de processamento em simulação | L48: 385 | M48: ELEKTRO | N48: ELEKTRO - Elektro Eletricidade e Serviços S/A. | O48: 145 | P48: 385 | Q48: NÃO SUPRIDA
L49: 26 | M49: ELETROACRE | N49: ELETROACRE - Companhia de Eletricidade do Acre | O49: 146 | P49: 26 | Q49: NÃO SUPRIDA
L50: 398 | M50: ELETROCAR | N50: ELETROCAR - Centrais Elétricas de Carazinho S/A. | O50: 147 | P50: 398 | Q50: SUPRIDA
L51: 390 | M51: ELETROPAULO | N51: ELETROPAULO - Eletropaulo Metropolitana Eletricidade de São Paulo S/A | O51: 148 | P51: 390 | Q51: NÃO SUPRIDA
L52: 6585 | M52: EMG | N52: EMG - Energisa Minas Gerais - Distribuidora de Energia S.A. | O52: 150 | P52: 6585 | Q52: NÃO SUPRIDA
L53: 404 | M53: ENERSUL | N53: ENERSUL - Empresa Energética de Mato Grosso do Sul S/A. | O53: 151 | P53: 404 | Q53: NÃO SUPRIDA
L54: 6612 | M54: ENF | N54: ENF - Energisa Nova Friburgo - Distribuidora de Energia S.A. | O54: 152 | P54: 6612 | Q54: SUPRIDA
L55: 6600 | M55: EPB | N55: EPB - Energisa Paraíba - Distribuidora de Energia | O55: 153 | P55: 6600 | Q55: NÃO SUPRIDA
L56: 380 | M56: ESCELSA | N56: ESCELSA - Espírito Santo Centrais Elétricas S/A. | O56: 154 | P56: 380 | Q56: NÃO SUPRIDA
L57: 6587 | M57: ESE | N57: ESE - Energisa Sergipe - Distribuidora de Energia S.A. | O57: 155 | P57: 6587 | Q57: NÃO SUPRIDA
L58: 83 | M58: FORCEL | N58: FORCEL - Força e Luz Coronel Vivida Ltda | O58: 156 | P58: 83 | Q58: SUPRIDA
L59: 399 | M59: HIDROPAN | N59: HIDROPAN - Hidroelétrica Panambi S/A. | O59: 157 | P59: 399 | Q59: SUPRIDA
L60: 87 | M60: IENERGIA | N60: IENERGIA - Iguaçu Distribuidora de Energia Elétrica Ltda | O60: 158 | P60: 87 | Q60: NÃO SUPRIDA
L61: 213 | M61: JARI | N61: JARI - Jari Celulose S/A | O61: 159 | P61: 213 | Q61: NÃO SUPRIDA
L62: 88 | M62: JOÃO CESA | N62: JOÃO CESA - Empresa Força e Luz João Cesa Ltda | O62: 143 | P62: 88 | Q62: SUPRIDA
L63: 382 | M63: LIGHT | N63: LIGHT - Light Serviços de Eletricidade S/A. | O63: 160 | P63: 382 | Q63: NÃO SUPRIDA
L64: 401 | M64: MUX Energia | N64: MUX Energia - Muxfeldt Marin & Cia. Ltda | O64: 161 | P64: 401 | Q64: SUPRIDA
L65: 84 | M65: OESTE | N65: CFLO - Companhia Força e Luz do Oeste | O65: 122 | P65: 84 | Q65: SUPRIDA
L66: 397 | M66: RGE | N66: RGE - Rio Grande Energia S/A. | O66: 162 | P66: 397 | Q66: NÃO SUPRIDA
L67: 381 | M67: SANTA MARIA | N67: SANTA MARIA - Empresa Luz e Força Santa Maria S/A. | O67: 149 | P67: 381 | Q67: SUPRIDA
L68: 46 | M68: SULGIPE | N68: SULGIPE - Companhia Sul Sergipana de Eletricidade | O68: 163 | P68: 46 | Q68: SUPRIDA
L69: 400 | M69: UHENPAL | N69: UHENPAL - Usina Hidroelétrica Nova Palma Ltda. | O69: 164 | P69: 400 | Q69: SUPRIDA
L70: 86 | M70: URUSSANGA | N70: URUSSANGA - Empresa Força e Luz Urussanga Ltda | O70: 144 | P70: 86 | Q70: SUPRIDA
L71: 1000040 | M71: ENERGISA Sul Sudeste | N71: ENERGISA SUL SUDESTE | O71: 165 | P71: 1000040 | Q71: NÃO SUPRIDA
L72: 1000041 | M72: NOVA SANTA CRUZ | N72: NOVA SANTA CRUZ | O72: 166 | P72: 1000041 | Q72: NÃO SUPRIDA
Q73: NÃO SUPRIDA
Q74: NÃO SUPRIDA

Sheet BD
B1: Banco de Dados | M1: Anexo II | N1: =Resultado!$D$6 -> 0.03492162053
B2: =CAPA!B6 -> ENERGISA Sul Sudeste | M2: Anexo I | N2: =Resultado!$D$8 -> 0.1027783646
B5: Informações do ano anterior | G5: Dados de abertura (Neutralidade e CVA saldo a compensar) | L5: Dados de Energia | S5: Dados para Revisão
B7: Encargos | G7: Encargo | H7: Valor | I7: Norma | L7: Cotas | M7: Valor da "Cota" | N7: Ano | O7: Custo Médio da Cota | S7: item | T7: Descrição | U7: Detalhe | V7: Valor | W7: Coluna1
B8: CDE Energia: Conta ACR | C8: 0 | G8: CCC | L8: Angra | M8: 0.01040454973 | N8: 2021 | O8: 249.64 | S8: 0 | T8: Duração do Ciclo de Revisão | V8: 5
B9: CDE Energia: Decreto | C9: 0 | G9: CDE | H9: 234832963.8 | I9: REH 2.864/2021 | S9: 1 | T9: RI Limite de Neutralidade de Encargos (por grupo) | U9: RESIDENCIAL
B10: TFSEE | C10: 1959584.691 | G10: CFURH | S10: 2 | T10: RI Limite de Neutralidade de Encargos (por grupo) | U10: INDUSTRIAL
B11: CDE | C11: 225954126.2 | G11: ESS/EER | H11: 26689324.07 | I11: 0 | L11: Ano | M11: Cota Itaipu | S11: 3 | T11: RI Limite de Neutralidade de Encargos (por grupo) | U11: COMERCIAL
G12: PROINFA | H12: 39156018.26 | I12: ReH 2.815/2020 | L12: 2018 | M12: 0.01368408 | S12: 4 | T12: RI Limite de Neutralidade de Encargos (por grupo) | U12: RURAL
B13: ESS/ERR | C13: 36590917.82 | G13: ONS | H13: 91881.14 | I13: Contribuição 2020 | L13: 2019 | M13: 0.01370034 | S13: 5 | T13: RI Limite de Neutralidade de Encargos (por grupo) | U13: PoderPublico
B14: PROINFA | C14: 31396250.3 | G14: TFSEE | L14: 2020 | M14: 0.01366211413 | S14: 6 | T14: RI Limite de Neutralidade de Encargos (por grupo) | U14: IlumPublica
B15: P&D | C15: 16303755.13 | G15: EER | H15: 23605736.2 | I15: 0 | L15: 2021 | M15: 0.01384534586 | S15: 7 | T15: RI Limite de Neutralidade de Encargos (por grupo) | U15: ServPublico
B16: ONS | C16: 0 | G16: TFSEE Fator de Carga | H16: 0.902 | L16: 2022 | M16: 0.01370368 | S16: 11 | T16: RI Limite de outros componentes (por empresa) | U16: RESIDENCIAL
G17: CDE Covid | H17: 39023592.56 | I17: DSP 939/2021 | S17: 12 | T17: RI Limite de outros componentes (por empresa) | U17: INDUSTRIAL
B18: Pmix | C18: 206.7762411 | S18: 13 | T18: RI Limite de outros componentes (por empresa) | U18: COMERCIAL
B19: PN2020 | C19: 0.008150473962 | S19: 14 | T19: RI Limite de outros componentes (por empresa) | U19: RURAL
B20: PT2017 | C20: 0.06290952235 | S20: 15 | T20: RI Limite de outros componentes (por empresa) | U20: PoderPublico
G21: Informações de Postergação | S21: 16 | T21: RI Limite de outros componentes (por empresa) | U21: IlumPublica
B22: Perda RB total | C22: 0.01383439754 | L22: Mês | M22: Potência | N22: Tarifa | O22: Perdas | P22: Energia | S22: 17 | T22: RI Limite de outros componentes (por empresa) | U22: ServPublico
G23: Tipo | H23: Valor | L23: 44378 | M23: 150.0143223 | N23: 28.07 | O23: 0.05794699743 | P23: 68175.9352 | S23: 101 | T23: Parâmetros de Custos Operacionais | U23: CO1_Theta_inf | V23: 0.719 | W23: 0.719
B24: CVA RB | C24: 14909305.31 | G24: Data Postergada | H24: 44389 | L24: 44409 | M24: 147.2452532 | N24: 28.07 | O24: 0.05794699743 | P24: 68175.9352 | S24: 102 | T24: Parâmetros de Custos Operacionais | U24: CO2_Theta_centro | V24: 0.762 | W24: 0.762
B25: CVA CCC | C25: 0 | G25: Data Anterior | H25: 44389 | L25: 44440 | M25: 146.4145324 | N25: 28.07 | O25: 0.05794699743 | P25: 65976.71148 | S25: 103 | T25: Parâmetros de Custos Operacionais | U25: CO3_Theta_sup | V25: 0.8018 | W25: 0.8018
B26: CVA CDE | C26: 26486229.58 | G26: Diferença de Dias | H26: 0 | L26: 44470 | M26: 144.1992771 | N26: 28.07 | O26: 0.05794699743 | P26: 68175.9352 | S26: 104 | T26: Parâmetros de Custos Operacionais | U26: CO4_Theta_ref | V26: 0.7881 | W26: 0.7881
B27: CVA CFURH | G27: MesesAdin | H27: 0 | L27: 44501 | M27: 143.6454633 | N27: 28.07 | O27: 0.05794699743 | P27: 65976.71148 | S27: 105 | T27: Parâmetros de Custos Operacionais | U27: CO5_Opex_real | V27: 214977.7 | W27: 214977.7
B28: CVA ESS\ERR | C28: -37059576.96 | G28: Reversão Subvenção CDE | L28: 44531 | M28: 140.3225802 | N28: 28.07 | O28: 0.05794699743 | P28: 68175.9352 | S28: 106 | T28: Parâmetros de Custos Operacionais | U28: CO6_PMSOcorrigido | V28: 211575.51 | W28: 211575.51
B29: CVA PROINFA | C29: -3453813.474 | G29: Data 4CRT | H29: 44389 | L29: 44562 | M29: 138.8867968 | N29: 28.07 | O29: 0.05794699743 | P29: 67478.35767 | S29: 107 | T29: Parâmetros de Custos Operacionais | U29: CO7_FatorEscala | V29: 0.0011030625 | W29: 0.0011030625
B30: CVA TRANS. ITAIPU | C30: 1928513.336 | L30: 44593 | M30: 138.8867968 | N30: 28.07 | O30: 0.05794699743 | P30: 60948.19402 | S30: 108 | T30: Parâmetros de Custos Operacionais | U30: CO8_u | V30: 4.7264e-06 | W30: 4.7264e-06
B31: CVA ENERGIA | C31: 84735297.58 | L31: 44621 | M31: 142.3127168 | N31: 28.07 | O31: 0.05794699743 | P31: 67478.35767 | S31: 109 | T31: Parâmetros de Custos Operacionais | U31: CO9_Vs_Yrsub | V31: 5.4107e-06 | W31: 5.4107e-06
B32: CVA CDE E | C32: -4906541.442 | L32: 44652 | M32: 144.6423424 | N32: 28.07 | O32: 0.05794699743 | P32: 65301.63645 | S32: 110 | T32: Parâmetros de Custos Operacionais | U32: CO10_Vs_Yrdist_a | V32: 5.4107e-06 | W32: 5.4107e-06
L33: 44682 | M33: 149.1645568 | N33: 28.07 | O33: 0.05794699743 | P33: 67478.35767 | S33: 111 | T33: Parâmetros de Custos Operacionais | U33: CO11_Vs_Yralta | V33: 2.1643e-06 | W33: 2.1643e-06
L34: 44713 | M34: 149.8497408 | N34: 28.07 | O34: 0.05794699743 | P34: 65301.63645 | S34: 112 | T34: Parâmetros de Custos Operacionais | U34: CO12_Vs_Ycons | V34: 3.546e-07 | W34: 3.546e-07
G35: Nome | H35: Valor | S35: 113 | T35: Parâmetros de Custos Operacionais | U35: CO13_Vs_Ymponderado | V35: 1.733e-07 | W35: 1.733e-07
G36: TUSDg Export DRP | H36: 0 | L36: Mês | M36: Potência | N36: Tarifa DRA | O36: Tarifa DRP | P36: Colunas1 | S36: 114 | T36: Parâmetros de Custos Operacionais | U36: CO14_Vs_Yd_perdas_dif2 | V36: 5.92e-08 | W36: 5.92e-08
G37: TUSDg ONS DRP | H37: 939991.2 | L37: 44013 | M37: 152.9473677 | N37: 12649.64 | O37: 7989.06 | S37: 115 | T37: Parâmetros de Custos Operacionais | U37: CO15_Vs_Yd_DEC_V8 | V37: 1.18e-08 | W37: 1.18e-08
G38: TUSDg ONS DRA | H38: 1593458.64 | L38: 44044 | M38: 151.5811563 | N38: 12649.64 | O38: 7989.06 | S38: 116 | T38: Parâmetros de Custos Operacionais | U38: CO16_P_AT | V38: 0.007 | W38: 0.007
B39: Rede Básica | G39: TUSDg Export DRA | H39: 0 | L39: 44075 | M39: 150.7614294 | N39: 12649.64 | O39: 7989.06 | S39: 117 | T39: Parâmetros de Custos Operacionais | U39: CO17_P_MT | V39: 0.199 | W39: 0.199
C40: 4639937.94 | L40: 44105 | M40: 146.1163106 | N40: 12649.64 | O40: 7989.06 | S40: 118 | T40: Parâmetros de Custos Operacionais | U40: CO18_P_BT | V40: 0.794 | W40: 0.794
L41: 44136 | M41: 145.2965838 | N41: 12649.64 | O41: 7989.06 | S41: 119 | T41: Parâmetros de Custos Operacionais | U41: CO19_PMSO2013
G42: Fator X | H42: Valor | L42: 44166 | M42: 142.0176764 | N42: 12649.64 | O42: 7989.06 | S42: 120 | T42: Parâmetros de Custos Operacionais | U42: CO20_Cont_Associativa
L43: 44197 | M43: 140.3225802 | N43: 12649.64 | O43: 7989.06 | S43: 201 | T43: Parâmetros de Custos Operacionais | U43: pesoAT | V43: 0.008 | W43: 0.008
B44: Mercado | L44: 44228 | M44: 140.3225802 | N44: 12649.64 | O44: 7989.06 | S44: 202 | T44: Parâmetros de Custos Operacionais | U44: pesoMT | V44: 0.226 | W44: 0.226
C45: 4489818.093 | L45: 44256 | M45: 143.7839167 | N45: 12649.64 | O45: 7989.06 | S45: 203 | T45: Parâmetros de Custos Operacionais | U45: pesoBT | V45: 0.767 | W45: 0.767
C46: 1841963435 | G46: DecFec Processo Anterior | H46: Valor | L46: 44287 | M46: 146.1376255 | N46: 12649.64 | O46: 7989.06 | S46: 401 | T46: Duração do Próximo Ciclo de Revisão | V46: 5 | W46: 5
G47: DEC A-2 | H47: 0 | L47: 44317 | M47: 150.7065896 | N47: 12649.64 | O47: 7989.06
B48: 2021 | C48: 82033.16784 | G48: DEC A-1 | H48: 0 | L48: 44348 | M48: 151.3988569 | N48: 12649.64 | O48: 7989.06
B49: Detalhamento de Encargos ESS e CDE | G49: FEC A-2 | H49: 0
G50: FEC A-1 | H50: 0 | L50: Dado | M50: Valor | N50: Início | O50: Fim
L51: MUST | M51: 9039 | N51: 44013 | O51: 44377
G52: Dados de dólar | H52: Valor | L52: MUST | M52: 7919 | N52: 44378 | O52: 44742
B53: Ciclo de Revisão | C53: 5 | G53: Dólar médio | H53: 5.062055 | L53: Potência Max | M53: 11215 | N53: 43831 | O53: 44196
G54: Data Inicial | H54: 44344 | L54: Potência Max | M54: 11215 | N54: 44197 | O54: 44561
G55: Data Final | H55: 44372
G56: Último Dado Diponível | H56: 44377 | L56: Dados de perda | M56: Valor | O56: Agente | P56: Ressarcimento P&D
B57: Subsídios Concedidos (sem ajuste) | L57: Perdas RB | M57: 55995.884
B58: Mês de Início | C58: Carga Fonte | D58: Geração | E58: Distribuição | F58: Água, Esgoto e Saneamento | G58: Rural | H58: Irrigante/Aquicultor | L58: Perdas DITs | M58: 117064.3917
B59: 2020-07-01 | C59: 4157486.713 | D59: 304950.48 | E59: 0 | F59: 568022.1033 | G59: 2317050.848 | H59: 516894.3867
B60: 2021-07-01 | C60: 4268172.828 | D60: 413117.095 | E60: 37842.64 | F60: 374193.5433 | G60: 1790308.655 | H60: 596506.6217
L62: Informações de DR1
L63: Fator PB1 | M63: 1.088036382
L64: Informações de RI
B65: Data | C65: Tipo | D65: Valor | E65: Valor IGPM | F65: Valor IPCA | G65: EixoRef
B66: =DATE(YEAR(CAPA!C10),MONTH(CAPA!C10),1) -> 2021-07-01 | C66: =IF(CAPA!C7="Revisão",1,0) -> 1 | D66: =Resultado!L11 -> 572.4603864 | E66: =IFERROR(VLOOKUP(EDATE($B66,-1),Índices!$B$6:$F$500,2,FALSE)/VLOOKUP(EDATE(MIN($B$67:$B$81),-1),Índices!$B$6:$F$500,2,FALSE)*VLOOKUP(MIN($B$67:$B$81),$B$67:$D$81,3,FALSE),0) -> 718.2956432 | F66: =IFERROR(VLOOKUP(EDATE($B66,-1),Índices!$B$6:$F$500,3,FALSE)/VLOOKUP(EDATE(MIN($B$67:$B$81),-1),Índices!$B$6:$F$500,3,FALSE)*VLOOKUP(MIN($B$67:$B$81),$B$67:$D$81,3,FALSE),0) -> 517.2337011 | G66: =IF(B66<>"",150+1,"") -> 151 | L66: Tipo | M66: % RI | O66: Data | P66: Fat Bandeiras
B67: 2020-07-01 | C67: Reajuste | D67: 513.89 | L67: PctRIResidencial | M67: 0.0008 | O67: 44013 | P67: 0
B68: 2019-07-01 | C68: Reajuste | D68: 497.35 | L68: PctRIIndustrial | M68: 0 | O68: 44044 | P68: 0
B69: 2018-07-01 | C69: Reajuste | D69: 498.84 | L69: PctRICOMERCIAL | M69: 0.0005 | O69: 44075 | P69: 0
B70: 2017-07-01 | C70: Reajuste | D70: 432.96 | L70: PctRIRURAL | M70: 0.0001 | O70: 44105 | P70: 0
L71: PctRILUMPUBLICA | M71: 0 | O71: 44136 | P71: 1007.83
L72: PctRIPODERPUBLICO | M72: 0 | O72: 44166 | P72: 10669382.47
L73: PctRISERVPUBLICO | M73: 0 | O73: 44197 | P73: 9872969.35
O74: 44228 | P74: 3623575.78
L75: Tipo | M75: % RI Anterior | O75: 44256 | P75: 3881664.35
L76: PctRIResidencial | M76: 0.0008 | O76: 44287 | P76: 3801525.8
L77: PctRIIndustrial | M77: 0 | O77: 44317 | P77: 3801525.8
L78: PctRICOMERCIAL | M78: 0.0005 | O78: 44348 | P78: 3801525.8
L79: PctRIRURAL | M79: 0.0001
L80: PctRILUMPUBLICA | M80: 0
L81: PctRIPODERPUBLICO | M81: 0
L82: PctRISERVPUBLICO | M82: 0
B84: Tabela de Resumo de Montante DRP ano anterior/ Montante Apurado pelo Mercado
B85: detalhe_grupo | C85: GrupoTarifa | D85: tipoBase | E85: tipofatura | F85: ValorCTAnterior_Sum | G85: ValorAnt_Sum | L85: Prcesso Anterior | N85: RTE
L86: MWh | M86: R$ | N86: MWh | O86: R$ | S86: DthEfetivaPagamento | T86: VlrGarantiaFinanceira
I87: BILATERAL | K87: valor | L87: 601848 | M87: 141976983.3 | S87: 43983 | T87: 94507.55
I88: CCEAR-DISP | J88: Alternativa | K88: valor | L88: 51293.13472 | M88: 11813329.97 | S88: 44013 | T88: 94507.55
I89: CCEAR-DISP | J89: Nova | K89: valor | L89: 512770.1269 | M89: 140232063.6 | S89: 44044 | T89: 94507.55
I90: CCEAR-QTD | J90: Alternativa | K90: valor | L90: 4057.023933 | M90: 1019372.918 | S90: 44075 | T90: 94507.55
I91: CCEAR-QTD | J91: Belo Monte | K91: valor | L91: 478811.2722 | M91: 64272514.44 | S91: 44105 | T91: 94507.55
I92: CCEAR-QTD | J92: Madeira | K92: valor | L92: 168323.4884 | M92: 23098577.21 | S92: 44136 | T92: 94507.55
I93: CCEAR-QTD | J93: Nova | K93: valor | L93: 361455.1047 | M93: 65779307.02 | S93: 44166 | T93: 94507.55
I94: CCEN | K94: valor | L94: 144322.5851 | M94: 38931017.33 | S94: 44197 | T94: 94507.55
I95: CCGF | K95: valor | L95: 957935.7705 | M95: 107307965 | S95: 44228 | T95: 94507.55
I96: ITAIPU | K96: valor | L96: 777447.3601 | M96: 262828218.6 | S96: 44256 | T96: 93803.2
I97: PROINFA | K97: valor | L97: 81499.61949 | S97: 44287 | T97: 93803.2
I98: SOBRA/EXPOSIÇÃO | K98: valor | L98: -281196.3277 | M98: -59399336.48 | S98: 44317 | T98: 93803.2
V105: Empresa | W105: AT | X105: MT | Y105: BT
V106: 167 | W106: 0.02134 | X106: 0.35825 | Y106: 0.62041
V107: 102 | W107: 0.064 | X107: 0.32003 | Y107: 0.61596
V108: 103 | W108: 0.02996 | X108: 0.27106 | Y108: 0.69898
V109: 104 | W109: 0.07171 | X109: 0.2909 | Y109: 0.63739
V110: 105 | W110: 0.00823 | X110: 0.24677 | Y110: 0.745
I111: Agente | J111: idagente | K111: indexador | L111: database | M111: RAP do ciclo | N111: Colunas1 | O111: RAP atualizada | V111: 165 | W111: 0.00795 | X111: 0.22554 | Y111: 0.76651
O112: =M112*VLOOKUP(CAPA!C15,Índices!$B$6:$F$626,IF(BD!K112="IPCA",3,2),FALSE)/VLOOKUP(L112,Índices!$B$6:$F$626,IF(BD!K112="IPCA",3,2),FALSE) ->  | V112: 108 | W112: 0.06098 | X112: 0.1711 | Y112: 0.76792
O113: =M113*VLOOKUP(CAPA!C16,Índices!$B$6:$F$626,IF(BD!K113="IPCA",3,2),FALSE)/VLOOKUP(L113,Índices!$B$6:$F$626,IF(BD!K113="IPCA",3,2),FALSE) ->  | V113: 109 | W113: 0.01034 | X113: 0.24366 | Y113: 0.746
O114: =M114*VLOOKUP(CAPA!C17,Índices!$B$6:$F$626,IF(BD!K114="IPCA",3,2),FALSE)/VLOOKUP(L114,Índices!$B$6:$F$626,IF(BD!K114="IPCA",3,2),FALSE) ->  | V114: 110 | W114: 0.01165 | X114: 0.24322 | Y114: 0.74513
O115: =M115*VLOOKUP(CAPA!C18,Índices!$B$6:$F$626,IF(BD!K115="IPCA",3,2),FALSE)/VLOOKUP(L115,Índices!$B$6:$F$626,IF(BD!K115="IPCA",3,2),FALSE) ->  | V115: 111 | W115: 0.03791 | X115: 0.37961 | Y115: 0.58248
O116: =M116*VLOOKUP(CAPA!C19,Índices!$B$6:$F$626,IF(BD!K116="IPCA",3,2),FALSE)/VLOOKUP(L116,Índices!$B$6:$F$626,IF(BD!K116="IPCA",3,2),FALSE) ->  | V116: 112 | W116: 0.02273 | X116: 0.26361 | Y116: 0.71367
O117: =M117*VLOOKUP(CAPA!C20,Índices!$B$6:$F$626,IF(BD!K117="IPCA",3,2),FALSE)/VLOOKUP(L117,Índices!$B$6:$F$626,IF(BD!K117="IPCA",3,2),FALSE) ->  | V117: 113 | W117: 0.01263 | X117: 0.23345 | Y117: 0.75392
O118: =M118*VLOOKUP(CAPA!C21,Índices!$B$6:$F$626,IF(BD!K118="IPCA",3,2),FALSE)/VLOOKUP(L118,Índices!$B$6:$F$626,IF(BD!K118="IPCA",3,2),FALSE) ->  | V118: 114 | W118: 0.01726 | X118: 0.23794 | Y118: 0.7448
O119: =M119*VLOOKUP(CAPA!C22,Índices!$B$6:$F$626,IF(BD!K119="IPCA",3,2),FALSE)/VLOOKUP(L119,Índices!$B$6:$F$626,IF(BD!K119="IPCA",3,2),FALSE) ->  | V119: 115 | W119: 0.00993 | X119: 0.23087 | Y119: 0.7592
O120: =M120*VLOOKUP(CAPA!C23,Índices!$B$6:$F$626,IF(BD!K120="IPCA",3,2),FALSE)/VLOOKUP(L120,Índices!$B$6:$F$626,IF(BD!K120="IPCA",3,2),FALSE) ->  | S120: iddet1 | T120: valor | V120: 116 | W120: 0.00806 | X120: 0.16835 | Y120: 0.82359
O121: =M121*VLOOKUP(CAPA!C24,Índices!$B$6:$F$626,IF(BD!K121="IPCA",3,2),FALSE)/VLOOKUP(L121,Índices!$B$6:$F$626,IF(BD!K121="IPCA",3,2),FALSE) ->  | S121: 56 | T121: 44365 | V121: 117 | W121: 0.03028 | X121: 0.29131 | Y121: 0.67841
O122: =M122*VLOOKUP(CAPA!C25,Índices!$B$6:$F$626,IF(BD!K122="IPCA",3,2),FALSE)/VLOOKUP(L122,Índices!$B$6:$F$626,IF(BD!K122="IPCA",3,2),FALSE) ->  | S122: 57 | T122: 44333 | V122: 118 | W122: 0.04215 | X122: 0.2081 | Y122: 0.74975
O123: =M123*VLOOKUP(CAPA!C26,Índices!$B$6:$F$626,IF(BD!K123="IPCA",3,2),FALSE)/VLOOKUP(L123,Índices!$B$6:$F$626,IF(BD!K123="IPCA",3,2),FALSE) ->  | S123: 58 | T123: 44287 | V123: 119 | W123: 0.01807 | X123: 0.11713 | Y123: 0.8648
O124: =M124*VLOOKUP(CAPA!C27,Índices!$B$6:$F$626,IF(BD!K124="IPCA",3,2),FALSE)/VLOOKUP(L124,Índices!$B$6:$F$626,IF(BD!K124="IPCA",3,2),FALSE) ->  | V124: 120 | W124: - | X124: 0.17688 | Y124: 0.82312
O125: =M125*VLOOKUP(CAPA!C28,Índices!$B$6:$F$626,IF(BD!K125="IPCA",3,2),FALSE)/VLOOKUP(L125,Índices!$B$6:$F$626,IF(BD!K125="IPCA",3,2),FALSE) ->  | V125: 123 | W125: - | X125: 0.13612 | Y125: 0.86388
O126: =M126*VLOOKUP(CAPA!C29,Índices!$B$6:$F$626,IF(BD!K126="IPCA",3,2),FALSE)/VLOOKUP(L126,Índices!$B$6:$F$626,IF(BD!K126="IPCA",3,2),FALSE) ->  | V126: 166 | W126: 0.04257 | X126: 0.29652 | Y126: 0.66092
O127: =M127*VLOOKUP(CAPA!C30,Índices!$B$6:$F$626,IF(BD!K127="IPCA",3,2),FALSE)/VLOOKUP(L127,Índices!$B$6:$F$626,IF(BD!K127="IPCA",3,2),FALSE) ->  | V127: 128 | W127: - | X127: 0.40427 | Y127: 0.59573
O128: =M128*VLOOKUP(CAPA!C31,Índices!$B$6:$F$626,IF(BD!K128="IPCA",3,2),FALSE)/VLOOKUP(L128,Índices!$B$6:$F$626,IF(BD!K128="IPCA",3,2),FALSE) ->  | V128: 129 | W128: 0.02905 | X128: 0.24895 | Y128: 0.722
O129: =M129*VLOOKUP(CAPA!C32,Índices!$B$6:$F$626,IF(BD!K129="IPCA",3,2),FALSE)/VLOOKUP(L129,Índices!$B$6:$F$626,IF(BD!K129="IPCA",3,2),FALSE) ->  | V129: 130 | W129: 0.0175 | X129: 0.14397 | Y129: 0.83853
O130: =M130*VLOOKUP(CAPA!C33,Índices!$B$6:$F$626,IF(BD!K130="IPCA",3,2),FALSE)/VLOOKUP(L130,Índices!$B$6:$F$626,IF(BD!K130="IPCA",3,2),FALSE) ->  | S130: Nível | T130: Mercado Faturado A-6 | V130: 131 | W130: - | X130: 0.30099 | Y130: 0.69901
O131: =M131*VLOOKUP(CAPA!C34,Índices!$B$6:$F$626,IF(BD!K131="IPCA",3,2),FALSE)/VLOOKUP(L131,Índices!$B$6:$F$626,IF(BD!K131="IPCA",3,2),FALSE) ->  | V131: 132 | W131: 0.02757 | X131: 0.26424 | Y131: 0.70819
O132: =M132*VLOOKUP(CAPA!C35,Índices!$B$6:$F$626,IF(BD!K132="IPCA",3,2),FALSE)/VLOOKUP(L132,Índices!$B$6:$F$626,IF(BD!K132="IPCA",3,2),FALSE) ->  | V132: 133 | W132: 0.01856 | X132: 0.19536 | Y132: 0.78608
V133: 135 | W133: 0.04788 | X133: 0.27054 | Y133: 0.68158
V134: 136 | W134: 0.06732 | X134: 0.35547 | Y134: 0.57721
V135: 138 | W135: - | X135: 0.07651 | Y135: 0.92349
V136: 139 | W136: - | X136: 0.35483 | Y136: 0.64517
V137: 140 | W137: 0.01004 | X137: 0.21058 | Y137: 0.77938
V138: 143 | W138: - | X138: 0.20409 | Y138: 0.79591
V139: 144 | W139: - | X139: 0.48131 | Y139: 0.51869
A140: NumBar | B140: Nome Conexão | C140: Tensão | D140: Posto Tarifário | E140: Tarifas RB - DRA | F140: Tarifa RB - DRP | G140: Tarifas Fronteira - DRA | H140: Tarifa Fronteira - DRP | I140: M01 | J140: M02 | K140: M03 | L140: M04 | M140: M05 | N140: M06 | O140: M07 | P140: M08 | Q140: M09 | R140: M10 | S140: M11 | T140: M12 | V140: 145 | W140: 0.03725 | X140: 0.29306 | Y140: 0.66969
A141: 3180 | B141: ALTO ALEGRE - 138 kV (A) | C141: 138 | D141: Ponta | E141: 4676 | F141: 4304 | G141: 5734 | H141: 4129 | I141: 3 | J141: 3 | K141: 3 | L141: 3 | M141: 3 | N141: 3 | O141: 3 | P141: 3 | Q141: 3 | R141: 3 | S141: 3 | T141: 3 | W141: - | X141: 0.14124 | Y141: 0.85876
A142: 3190 | B142: BASTOS - 138 kV (A) | C142: 138 | D142: Ponta | E142: 4672 | F142: 4377 | G142: 5734 | H142: 4129 | I142: 14.6 | J142: 14.6 | K142: 14.6 | L142: 14.6 | M142: 14.6 | N142: 14.6 | O142: 15.5 | P142: 15.5 | Q142: 15.5 | R142: 15.5 | S142: 15.5 | T142: 15.5 | V142: 147 | W142: - | X142: 0.20977 | Y142: 0.79023
A143: 3155 | B143: BORBOREMA - 138 kV (A) | C143: 138 | D143: Ponta | E143: 5075 | F143: 4750 | G143: 5734 | H143: 4129 | I143: 23.4 | J143: 23.4 | K143: 23.4 | L143: 23.4 | M143: 23.4 | N143: 23.4 | O143: 24.4 | P143: 24.4 | Q143: 24.4 | R143: 24.4 | S143: 24.4 | T143: 24.4 | V143: 148 | W143: 0.03455 | X143: 0.23757 | Y143: 0.72788
A144: 3158 | B144: BRA. PAULISTA - 138 kV (A) | C144: 138 | D144: Ponta | E144: 5704 | F144: 5301 | G144: 5734 | H144: 4129 | I144: 157.3 | J144: 157.3 | K144: 157.3 | L144: 157.3 | M144: 157.3 | N144: 157.3 | O144: 164.1 | P144: 164.1 | Q144: 164.1 | R144: 164.1 | S144: 164.1 | T144: 164.1 | V144: 149 | W144: - | X144: 0.17399 | Y144: 0.82601
A145: 550 | B145: CAPIVARA - 138 kV (A) | C145: 138 | D145: Ponta | E145: 4673 | F145: 4301 | G145: 9 | H145: 0.013 | I145: 6.3 | J145: 6.3 | K145: 6.3 | L145: 6.3 | M145: 6.3 | N145: 6.3 | O145: 6.5 | P145: 6.5 | Q145: 6.5 | R145: 6.5 | S145: 6.5 | T145: 6.5 | V145: 150 | W145: 0.03635 | X145: 0.17413 | Y145: 0.78952
A146: 638 | B146: CATANDUVA - 138 kV (A) | C146: 138 | D146: Ponta | E146: 5018 | F146: 4643 | G146: 5734 | H146: 4129 | I146: 77.1 | J146: 77.1 | K146: 77.1 | L146: 77.1 | M146: 77.1 | N146: 77.1 | O146: 83.5 | P146: 83.5 | Q146: 83.5 | R146: 83.5 | S146: 83.5 | T146: 83.5 | V146: 151 | W146: 0.02735 | X146: 0.28351 | Y146: 0.68915
A147: 3175 | B147: ENEIDA - 138 kV (A) | C147: 138 | D147: Ponta | E147: 4676 | F147: 4305 | G147: 5734 | H147: 4129 | I147: 2.9 | J147: 2.9 | K147: 2.9 | L147: 2.9 | M147: 2.9 | N147: 2.9 | O147: 2.9 | P147: 2.9 | Q147: 2.9 | R147: 2.9 | S147: 2.9 | T147: 2.9 | V147: 152 | W147: 0.00215 | X147: 0.1412 | Y147: 0.85665
B148: OSVALDO CRUZ - 138 kV (A) | C148: 138 | D148: Ponta | F148: 4351 | H148: 4129 | I148: 19 | J148: 19 | K148: 19 | L148: 19 | M148: 19 | N148: 19 | O148: 19.5 | P148: 19.5 | Q148: 19.5 | R148: 19.5 | S148: 19.5 | T148: 19.5 | V148: 153 | W148: 0.03606 | X148: 0.17601 | Y148: 0.78793
B149: P.PRUDENTE 2 138 kV | C149: 138 | D149: Ponta | F149: 4310 | H149: 4129 | I149: 0 | J149: 0 | K149: 0 | L149: 0 | M149: 0 | N149: 2.983870968 | O149: 18.5 | P149: 18.5 | Q149: 18.5 | R149: 18.5 | S149: 18.5 | T149: 18.5 | V149: 154 | W149: 0.12913 | X149: 0.26626 | Y149: 0.60462
A150: 3172 | B150: PRE.PRUDENTE4 - 138 kV (A) | C150: 138 | D150: Ponta | E150: 4677 | F150: 4309 | G150: 5734 | H150: 4129 | I150: 30.2 | J150: 30.2 | K150: 30.2 | L150: 30.2 | M150: 30.2 | N150: 30.2 | O150: 32 | P150: 32 | Q150: 32 | R150: 32 | S150: 32 | T150: 32 | V150: 155 | W150: 0.04008 | X150: 0.23225 | Y150: 0.72768
A151: 3178 | B151: PRE.PRUDENTE5 - 138 kV (A) | C151: 138 | D151: Ponta | E151: 4670 | F151: 4305 | G151: 5734 | H151: 4129 | I151: 35.9 | J151: 35.9 | K151: 35.9 | L151: 35.9 | M151: 35.9 | N151: 35.9 | O151: 40.2 | P151: 40.2 | Q151: 40.2 | R151: 66 | S151: 66 | T151: 66 | V151: 156 | W151: - | X151: 0.35985 | Y151: 0.64015
B152: PRE.VENCESLAU - 138 kV (A) | C152: 138 | D152: Ponta | F152: 4283 | H152: 4129 | I152: 52.3 | J152: 52.3 | K152: 52.3 | L152: 52.3 | M152: 52.3 | N152: 52.3 | O152: 55.6 | P152: 55.6 | Q152: 55.6 | R152: 55.6 | S152: 55.6 | T152: 55.6 | V152: 157 | W152: - | X152: 0.15963 | Y152: 0.84037
A153: 3159 | B153: STA.TEREZINHA - 138 kV (A) | C153: 138 | D153: Ponta | E153: 5703 | F153: 5301 | G153: 5734 | H153: 4129 | I153: 35 | J153: 35 | K153: 35 | L153: 35 | M153: 35 | N153: 35 | O153: 35 | P153: 35 | Q153: 35 | R153: 35 | S153: 35 | T153: 35 | V153: 158 | W153: - | X153: 0.33049 | Y153: 0.66951
A154: 3191 | B154: TUPA - 138 kV (A) | C154: 138 | D154: Ponta | E154: 4833 | F154: 4405 | G154: 5734 | H154: 4129 | I154: 31.1 | J154: 31.1 | K154: 31.1 | L154: 31.1 | M154: 31.1 | N154: 31.1 | O154: 32.2 | P154: 32.2 | Q154: 32.2 | R154: 32.2 | S154: 32.2 | T154: 32.2 | V154: 160 | W154: 0.1013 | X154: 0.22818 | Y154: 0.67051
A155: 3164 | B155: URUPES - 138 kV (A) | C155: 138 | D155: Ponta | E155: 4997 | F155: 4621 | G155: 5734 | H155: 4129 | I155: 24.7 | J155: 24.7 | K155: 24.7 | L155: 24.7 | M155: 24.7 | N155: 24.7 | O155: 25.8 | P155: 25.8 | Q155: 25.8 | R155: 25.8 | S155: 25.8 | T155: 25.8 | V155: 161 | W155: - | X155: 0.28355 | Y155: 0.71645
A156: 642 | B156: FLOR.PAULISTA - 69 kV (A) | C156: 69 | D156: Ponta | E156: 4672 | F156: 4304 | G156: 5734 | H156: 4129 | I156: 20.7 | J156: 20.7 | K156: 20.7 | L156: 20.7 | M156: 20.7 | N156: 20.7 | O156: 21.3 | P156: 21.3 | Q156: 21.3 | R156: 21.3 | S156: 21.3 | T156: 21.3 | V156: 163 | W156: 0.03507 | X156: 0.1664 | Y156: 0.79853
A157: 672 | B157: UBARANA - 69 kV (A) | C157: 69 | D157: Ponta | E157: 4960 | F157: 4581 | G157: 5734 | H157: 4129 | I157: 22.3 | J157: 22.3 | K157: 22.3 | L157: 22.3 | M157: 22.3 | N157: 22.3 | O157: 23.4 | P157: 23.4 | Q157: 23.4 | R157: 23.4 | S157: 23.4 | T157: 23.4 | V157: 164 | W157: - | X157: 0.12897 | Y157: 0.87103
A158: 3192 | B158: ASSIS I - 88 kV (A) | C158: 88 | D158: Ponta | E158: 4974 | F158: 4610 | G158: 5734 | H158: 4129 | I158: 31.5 | J158: 31.5 | K158: 31.5 | L158: 31.5 | M158: 31.5 | N158: 31.5 | O158: 32.4 | P158: 32.4 | Q158: 32.4 | R158: 32.4 | S158: 32.4 | T158: 32.4
A159: 3193 | B159: ASSIS III - 88 kV (A) | C159: 88 | D159: Ponta | E159: 4968 | F159: 4605 | G159: 5734 | H159: 4129 | I159: 30.9 | J159: 30.9 | K159: 30.9 | L159: 30.9 | M159: 30.9 | N159: 30.9 | O159: 31.9 | P159: 31.9 | Q159: 31.9 | R159: 31.9 | S159: 31.9 | T159: 31.9
A160: 3197 | B160: CANDIDO MOTA - 88 kV (A) | C160: 88 | D160: Ponta | E160: 5132 | F160: 4729 | G160: 5734 | H160: 4129 | I160: 16.6 | J160: 16.6 | K160: 16.6 | L160: 16.6 | M160: 16.6 | N160: 16.6 | O160: 17.2 | P160: 17.2 | Q160: 17.2 | R160: 17.2 | S160: 17.2 | T160: 17.2
A161: 9112 | B161: DECASA - 88 kV (A) | C161: 88 | D161: Ponta | E161: 5052 | F161: 4669 | G161: 5734 | H161: 4129 | I161: 0.2 | J161: 0.2 | K161: 0.2 | L161: 2.5 | M161: 2.5 | N161: 2.5 | O161: 2.5 | P161: 2.5 | Q161: 2.5 | R161: 2.5 | S161: 2.5 | T161: 2.5
A162: 3184 | B162: HALOTEK FADEL - 88 kV (A) | C162: 88 | D162: Ponta | E162: 5019 | F162: 4644 | G162: 5734 | H162: 4129 | I162: 7 | J162: 7 | K162: 7 | L162: 7 | M162: 7 | N162: 7 | O162: 7 | P162: 7 | Q162: 7 | R162: 7 | S162: 7 | T162: 7
A163: 3199 | B163: IBIRAREMA - 88 kV (A) | C163: 88 | D163: Ponta | E163: 5075 | F163: 4686 | G163: 5734 | H163: 4129 | I163: 10.1 | J163: 10.1 | K163: 10.1 | L163: 10.1 | M163: 10.1 | N163: 10.1 | O163: 10.4 | P163: 10.4 | Q163: 10.4 | R163: 10.4 | S163: 10.4 | T163: 10.4
A164: 9519 | B164: MARACAI - 88 kV (A) | C164: 88 | D164: Ponta | E164: 4931 | F164: 4571 | G164: 5734 | H164: 4129 | I164: 6.5 | J164: 6.5 | K164: 6.5 | L164: 6.5 | M164: 6.5 | N164: 6.5 | O164: 6.5 | P164: 6.5 | Q164: 6.5 | R164: 6.5 | S164: 6.5 | T164: 6.5
B165: MARTINOPOLIS - 88 kV (A) | C165: 88 | D165: Ponta | F165: 4386 | H165: 4129 | I165: 14.9 | J165: 14.9 | K165: 14.9 | L165: 14.9 | M165: 14.9 | N165: 14.9 | O165: 15.4 | P165: 15.4 | Q165: 15.4 | R165: 15.4 | S165: 15.4 | T165: 15.4
A166: 3198 | B166: PALMITAL - 88 kV (A) | C166: 88 | D166: Ponta | E166: 5026 | F166: 4649 | G166: 5734 | H166: 4129 | I166: 9.4 | J166: 9.4 | K166: 9.4 | L166: 9.4 | M166: 9.4 | N166: 9.4 | O166: 9.8 | P166: 9.8 | Q166: 9.8 | R166: 9.8 | S166: 9.8 | T166: 9.8
A167: 3194 | B167: PAR.PAULISTA2 - 88 kV (A) | C167: 88 | D167: Ponta | E167: 4912 | F167: 4553 | G167: 5734 | H167: 4129 | I167: 18.6 | J167: 18.6 | K167: 18.6 | L167: 18.6 | M167: 18.6 | N167: 18.6 | O167: 21.3 | P167: 21.3 | Q167: 21.3 | R167: 21.3 | S167: 21.3 | T167: 21.3
A168: 3171 | B168: PRE.PRUDENTE1 - 88 kV (A) | C168: 88 | D168: Ponta | E168: 4705 | F168: 4339 | G168: 5734 | H168: 4129 | I168: 69.5 | J168: 69.5 | K168: 69.5 | L168: 69.5 | M168: 69.5 | N168: 69.5 | O168: 71.5 | P168: 71.5 | Q168: 71.5 | R168: 71.5 | S168: 71.5 | T168: 71.5
A169: 9521 | B169: QUATA II - 88 kV (A) | C169: 88 | D169: Ponta | E169: 4863 | F169: 4503 | G169: 5734 | H169: 4129 | I169: 14.6 | J169: 14.6 | K169: 14.6 | L169: 14.6 | M169: 14.6 | N169: 14.6 | O169: 14.6 | P169: 14.6 | Q169: 14.6 | R169: 14.6 | S169: 14.6 | T169: 14.6
A170: 3196 | B170: RANCHARIA - 88 kV (A) | C170: 88 | D170: Ponta | E170: 4819 | F170: 4457 | G170: 5734 | H170: 4129 | I170: 16.6 | J170: 16.6 | K170: 16.6 | L170: 16.6 | M170: 16.6 | N170: 16.6 | O170: 17.8 | P170: 17.8 | Q170: 17.8 | R170: 17.8 | S170: 17.8 | T170: 17.8
A171: 3195 | B171: SANTA LINA - 88 kV (A) | C171: 88 | D171: Ponta | E171: 4872 | F171: 4512 | G171: 5734 | H171: 4129 | I171: 7.1 | J171: 7.1 | K171: 7.1 | L171: 7.1 | M171: 7.1 | N171: 7.1 | O171: 7.3 | P171: 7.3 | Q171: 7.3 | R171: 7.3 | S171: 7.3 | T171: 7.3
A172: 9513 | B172: UTE COCAL - 88 kV (A) | C172: 88 | D172: Ponta | E172: 4910 | F172: 4551 | G172: 5734 | H172: 4129 | I172: 2 | J172: 2 | K172: 2 | L172: 2 | M172: 2 | N172: 2 | O172: 2 | P172: 2 | Q172: 2 | R172: 2 | S172: 2 | T172: 2
A173: 3180 | B173: ALTO ALEGRE - 138 kV (A) | C173: 138 | D173: Fora Ponta | E173: 4553 | F173: 4259 | G173: 5734 | H173: 4129 | I173: 3.5 | J173: 3.5 | K173: 3.5 | L173: 3.5 | M173: 3.5 | N173: 3.5 | O173: 3.5 | P173: 3.5 | Q173: 3.5 | R173: 3.5 | S173: 3.5 | T173: 3.5
A174: 3190 | B174: BASTOS - 138 kV (A) | C174: 138 | D174: Fora Ponta | E174: 4538 | F174: 4326 | G174: 5734 | H174: 4129 | I174: 19.2 | J174: 19.2 | K174: 19.2 | L174: 19.2 | M174: 19.2 | N174: 19.2 | O174: 20.1 | P174: 20.1 | Q174: 20.1 | R174: 20.1 | S174: 20.1 | T174: 20.1
A175: 3155 | B175: BORBOREMA - 138 kV (A) | C175: 138 | D175: Fora Ponta | E175: 4980 | F175: 4731 | G175: 5734 | H175: 4129 | I175: 23.9 | J175: 23.9 | K175: 23.9 | L175: 23.9 | M175: 23.9 | N175: 23.9 | O175: 24.9 | P175: 24.9 | Q175: 24.9 | R175: 24.9 | S175: 24.9 | T175: 24.9
A176: 3158 | B176: BRA. PAULISTA - 138 kV (A) | C176: 138 | D176: Fora Ponta | E176: 5703 | F176: 5396 | G176: 5734 | H176: 4129 | I176: 171.7 | J176: 171.7 | K176: 171.7 | L176: 171.7 | M176: 171.7 | N176: 171.7 | O176: 177.4 | P176: 177.4 | Q176: 177.4 | R176: 177.4 | S176: 177.4 | T176: 177.4
A177: 550 | B177: CAPIVARA - 138 kV (A) | C177: 138 | D177: Fora Ponta | E177: 4549 | F177: 4279 | G177: 9 | H177: 0.013 | I177: 6.3 | J177: 6.3 | K177: 6.3 | L177: 6.3 | M177: 6.3 | N177: 6.3 | O177: 6.5 | P177: 6.5 | Q177: 6.5 | R177: 6.5 | S177: 6.5 | T177: 6.5
A178: 638 | B178: CATANDUVA - 138 kV (A) | C178: 138 | D178: Fora Ponta | E178: 4911 | F178: 4590 | G178: 5734 | H178: 4129 | I178: 87.6 | J178: 87.6 | K178: 87.6 | L178: 87.6 | M178: 87.6 | N178: 87.6 | O178: 93.5 | P178: 93.5 | Q178: 93.5 | R178: 93.5 | S178: 93.5 | T178: 93.5
A179: 3175 | B179: ENEIDA - 138 kV (A) | C179: 138 | D179: Fora Ponta | E179: 4553 | F179: 4263 | G179: 5734 | H179: 4129 | I179: 2.8 | J179: 2.8 | K179: 2.8 | L179: 2.8 | M179: 2.8 | N179: 2.8 | O179: 2.8 | P179: 2.8 | Q179: 2.8 | R179: 2.8 | S179: 2.8 | T179: 2.8
B180: OSVALDO CRUZ - 138 kV (A) | C180: 138 | D180: Fora Ponta | F180: 4298 | H180: 4129 | I180: 20 | J180: 20 | K180: 20 | L180: 20 | M180: 20 | N180: 20 | O180: 20.5 | P180: 20.5 | Q180: 20.5 | R180: 20.5 | S180: 20.5 | T180: 20.5
B181: P.PRUDENTE 2 138 kV | C181: 138 | D181: Fora Ponta | F181: 4280 | H181: 4129 | I181: 0 | J181: 0 | K181: 0 | L181: 0 | M181: 0 | N181: 2.983870968 | O181: 18.5 | P181: 18.5 | Q181: 18.5 | R181: 18.5 | S181: 18.5 | T181: 18.5
A182: 3172 | B182: PRE.PRUDENTE4 - 138 kV (A) | C182: 138 | D182: Fora Ponta | E182: 4556 | F182: 4278 | G182: 5734 | H182: 4129 | I182: 39.6 | J182: 39.6 | K182: 39.6 | L182: 39.6 | M182: 39.6 | N182: 39.6 | O182: 40.7 | P182: 40.7 | Q182: 40.7 | R182: 40.7 | S182: 40.7 | T182: 40.7
A183: 3178 | B183: PRE.PRUDENTE5 - 138 kV (A) | C183: 138 | D183: Fora Ponta | E183: 4548 | F183: 4273 | G183: 5734 | H183: 4129 | I183: 44.2 | J183: 44.2 | K183: 44.2 | L183: 44.2 | M183: 44.2 | N183: 44.2 | O183: 45.6 | P183: 45.6 | Q183: 45.6 | R183: 67.2 | S183: 67.2 | T183: 67.2
B184: PRE.VENCESLAU - 138 kV (A) | C184: 138 | D184: Fora Ponta | F184: 4237 | H184: 4129 | I184: 62.6 | J184: 62.6 | K184: 62.6 | L184: 62.6 | M184: 62.6 | N184: 62.6 | O184: 64.9 | P184: 64.9 | Q184: 64.9 | R184: 64.9 | S184: 64.9 | T184: 64.9
A185: 3159 | B185: STA.TEREZINHA - 138 kV (A) | C185: 138 | D185: Fora Ponta | E185: 5701 | F185: 5396 | G185: 5734 | H185: 4129 | I185: 37 | J185: 37 | K185: 37 | L185: 37 | M185: 37 | N185: 37 | O185: 37 | P185: 37 | Q185: 37 | R185: 37 | S185: 37 | T185: 37
A186: 3191 | B186: TUPA - 138 kV (A) | C186: 138 | D186: Fora Ponta | E186: 4716 | F186: 4356 | G186: 5734 | H186: 4129 | I186: 32 | J186: 32 | K186: 32 | L186: 32 | M186: 32 | N186: 32 | O186: 33.6 | P186: 33.6 | Q186: 33.6 | R186: 33.6 | S186: 33.6 | T186: 33.6
A187: 3164 | B187: URUPES - 138 kV (A) | C187: 138 | D187: Fora Ponta | E187: 4890 | F187: 4569 | G187: 5734 | H187: 4129 | I187: 26.2 | J187: 26.2 | K187: 26.2 | L187: 26.2 | M187: 26.2 | N187: 26.2 | O187: 27.4 | P187: 27.4 | Q187: 27.4 | R187: 27.4 | S187: 27.4 | T187: 27.4
A188: 642 | B188: FLOR.PAULISTA - 69 kV (A) | C188: 69 | D188: Fora Ponta | E188: 4538 | F188: 4247 | G188: 5734 | H188: 4129 | I188: 22.1 | J188: 22.1 | K188: 22.1 | L188: 22.1 | M188: 22.1 | N188: 22.1 | O188: 22.8 | P188: 22.8 | Q188: 22.8 | R188: 22.8 | S188: 22.8 | T188: 22.8
A189: 672 | B189: UBARANA - 69 kV (A) | C189: 69 | D189: Fora Ponta | E189: 4851 | F189: 4531 | G189: 5734 | H189: 4129 | I189: 26.3 | J189: 26.3 | K189: 26.3 | L189: 26.3 | M189: 26.3 | N189: 26.3 | O189: 27.5 | P189: 27.5 | Q189: 27.5 | R189: 27.5 | S189: 27.5 | T189: 27.5
A190: 3192 | B190: ASSIS I - 88 kV (A) | C190: 88 | D190: Fora Ponta | E190: 4941 | F190: 4741 | G190: 5734 | H190: 4129 | I190: 31.2 | J190: 31.2 | K190: 31.2 | L190: 31.2 | M190: 31.2 | N190: 31.2 | O190: 32.1 | P190: 32.1 | Q190: 32.1 | R190: 32.1 | S190: 32.1 | T190: 32.1
A191: 3193 | B191: ASSIS III - 88 kV (A) | C191: 88 | D191: Fora Ponta | E191: 4933 | F191: 4734 | G191: 5734 | H191: 4129 | I191: 32.9 | J191: 32.9 | K191: 32.9 | L191: 32.9 | M191: 32.9 | N191: 32.9 | O191: 34 | P191: 34 | Q191: 34 | R191: 34 | S191: 34 | T191: 34
A192: 3197 | B192: CANDIDO MOTA - 88 kV (A) | C192: 88 | D192: Fora Ponta | E192: 5139 | F192: 4892 | G192: 5734 | H192: 4129 | I192: 17.2 | J192: 17.2 | K192: 17.2 | L192: 17.2 | M192: 17.2 | N192: 17.2 | O192: 17.8 | P192: 17.8 | Q192: 17.8 | R192: 17.8 | S192: 17.8 | T192: 17.8
A193: 9112 | B193: DECASA - 88 kV (A) | C193: 88 | D193: Fora Ponta | E193: 5039 | F193: 4816 | G193: 5734 | H193: 4129 | I193: 0.5 | J193: 0.5 | K193: 0.5 | L193: 2.5 | M193: 2.5 | N193: 2.5 | O193: 2.5 | P193: 2.5 | Q193: 2.5 | R193: 2.5 | S193: 2.5 | T193: 2.5
A194: 3184 | B194: HALOTEK FADEL - 88 kV (A) | C194: 88 | D194: Fora Ponta | E194: 4998 | F194: 4784 | G194: 5734 | H194: 4129 | I194: 7 | J194: 7 | K194: 7 | L194: 7 | M194: 7 | N194: 7 | O194: 7 | P194: 7 | Q194: 7 | R194: 7 | S194: 7 | T194: 7
A195: 3199 | B195: IBIRAREMA - 88 kV (A) | C195: 88 | D195: Fora Ponta | E195: 5067 | F195: 4837 | G195: 5734 | H195: 4129 | I195: 11.1 | J195: 11.1 | K195: 11.1 | L195: 11.1 | M195: 11.1 | N195: 11.1 | O195: 11.4 | P195: 11.4 | Q195: 11.4 | R195: 11.4 | S195: 11.4 | T195: 11.4
A196: 9519 | B196: MARACAI - 88 kV (A) | C196: 88 | D196: Fora Ponta | E196: 4886 | F196: 4684 | G196: 5734 | H196: 4129 | I196: 6.5 | J196: 6.5 | K196: 6.5 | L196: 6.5 | M196: 6.5 | N196: 6.5 | O196: 6.5 | P196: 6.5 | Q196: 6.5 | R196: 6.5 | S196: 6.5 | T196: 6.5
B197: MARTINOPOLIS - 88 kV (A) | C197: 88 | D197: Fora Ponta | F197: 4398 | H197: 4129 | I197: 14.6 | J197: 14.6 | K197: 14.6 | L197: 14.6 | M197: 14.6 | N197: 14.6 | O197: 15.5 | P197: 15.5 | Q197: 15.5 | R197: 15.5 | S197: 15.5 | T197: 15.5
A198: 3198 | B198: PALMITAL - 88 kV (A) | C198: 88 | D198: Fora Ponta | E198: 5006 | F198: 4790 | G198: 5734 | H198: 4129 | I198: 9.4 | J198: 9.4 | K198: 9.4 | L198: 9.4 | M198: 9.4 | N198: 9.4 | O198: 9.6 | P198: 9.6 | Q198: 9.6 | R198: 9.6 | S198: 9.6 | T198: 9.6
A199: 3194 | B199: PAR.PAULISTA2 - 88 kV (A) | C199: 88 | D199: Fora Ponta | E199: 4861 | F199: 4657 | G199: 5734 | H199: 4129 | I199: 19.9 | J199: 19.9 | K199: 19.9 | L199: 19.9 | M199: 19.9 | N199: 19.9 | O199: 21.9 | P199: 21.9 | Q199: 21.9 | R199: 21.9 | S199: 21.9 | T199: 21.9
A200: 3171 | B200: PRE.PRUDENTE1 - 88 kV (A) | C200: 88 | D200: Fora Ponta | E200: 4592 | F200: 4325 | G200: 5734 | H200: 4129 | I200: 73.8 | J200: 73.8 | K200: 73.8 | L200: 73.8 | M200: 73.8 | N200: 73.8 | O200: 76 | P200: 76 | Q200: 76 | R200: 76 | S200: 76 | T200: 76
A201: 9521 | B201: QUATA II - 88 kV (A) | C201: 88 | D201: Fora Ponta | E201: 4798 | F201: 4579 | G201: 5734 | H201: 4129 | I201: 14.6 | J201: 14.6 | K201: 14.6 | L201: 14.6 | M201: 14.6 | N201: 14.6 | O201: 14.6 | P201: 14.6 | Q201: 14.6 | R201: 14.6 | S201: 14.6 | T201: 14.6
A202: 3196 | B202: RANCHARIA - 88 kV (A) | C202: 88 | D202: Fora Ponta | E202: 4740 | F202: 4508 | G202: 5734 | H202: 4129 | I202: 18.6 | J202: 18.6 | K202: 18.6 | L202: 18.6 | M202: 18.6 | N202: 18.6 | O202: 19.1 | P202: 19.1 | Q202: 19.1 | R202: 19.1 | S202: 19.1 | T202: 19.1
A203: 3195 | B203: SANTA LINA - 88 kV (A) | C203: 88 | D203: Fora Ponta | E203: 4810 | F203: 4594 | G203: 5734 | H203: 4129 | I203: 6.9 | J203: 6.9 | K203: 6.9 | L203: 6.9 | M203: 6.9 | N203: 6.9 | O203: 7.1 | P203: 7.1 | Q203: 7.1 | R203: 7.1 | S203: 7.1 | T203: 7.1
A204: 9513 | B204: UTE COCAL - 88 kV (A) | C204: 88 | D204: Fora Ponta | E204: 4858 | F204: 4654 | G204: 5734 | H204: 4129 | I204: 4 | J204: 4 | K204: 4 | L204: 4 | M204: 4 | N204: 4 | O204: 4 | P204: 4 | Q204: 4 | R204: 4 | S204: 4 | T204: 4
B441: Transmissora | C441: Indice de atualização | D441: ENCARGO DE CONEXÃO repassável | E441: Instalações com Estabelecimento de RAP que entraram em operação | F441: PA para repasse a tarifa | G441: PA Qualidade DIT | H441: ENCARGO DE CONEXÃO ou PA não rapassável a tarifa (REN 67/2004 ou 68/2004) | I441: PA Empreendimento Autorizado sem estabelecimento prévio de RAP | J441: Contrato | K441: Estimativa Total do Encargo de Conexão
B442: CTEEP | C442: IPCA | D442: 2680381.34 | E442: 0 | F442: 344671.75 | G442: 0 | H442: 0 | I442: 0 | J442: 059/2001
B457: Tabela de Financeiros para o cálculo da Neutralidade | G457: Tabela de Financeiros para o cálculo da Neutralidade de RB | M457: Tabela de Financeiros para o cálculo da Neutralidade CVA processamento
B458: Grupo Tarifa | C458: Detalhe Grupo | D458: Valor | E458: Percentual | G458: Tipo | H458: Detalhe | I458: Posto | J458: Unidade | K458: Valor | M458: Grupo Tarifa | N458: Detalhe Grupo | O458: Valor | P458: Percentual
B459: ENCARGO | C459: CDE | D459: -865097.9234 | G459: CUSTO | H459: CONEXÃO D | J459: R$ | K459: 0 | M459: ENCARGO | N459: CDE | O459: 194994.2072
B460: ENCARGO | C460: CDE Energia | D460: 31032.15505 | G460: CUSTO | H460: CONEXÃO T | J460: R$ | K460: 4639937.94 | M460: ENCARGO | N460: CDE Energia | O460: -36122.43697
B461: ENCARGO | C461: ESS/ERR | D461: 196375.4202 | G461: CUSTO | H461: EUSD | J461: R$ | K461: 35880902.38 | M461: ENCARGO | N461: ESS/ERR | O461: -272836.2225
... 30 more rows

Sheet Resultado
B1: =LnkTxtNomeCompleto -> ENERGISA SUL SUDESTE
B2: Resultado | F2: Parâmetros a serem considerados para os Reajustes subsequentes
B4: RA1 | D4: =D40+D45 -> 1930755781 | E4: 1989105632 | F4: FATOR X | K4: Última versão enviada: | L4: 28
B5: RA0 | D5: =Mercado!D24 -> 1865605803 | E5: 1866693394 | F5: Componente T do Fator X | G5: ='VPB e Fator X'!C36 -> -0.01395129451 | K5: Data de envio | L5: 2021-07-02T19:39:32
B6: Índice de Reposição/Reajuste (Anexo II) | D6: =D4/D5-1 -> 0.03492162053 | F6: Componente Pd do Fator X | G6: ='VPB e Fator X'!C33 -> 0.009836748211
B7: Componentes Financeiros | D7: =Financeiros!E8 -> 0.06785674402 | K7: Efeito Consumidor
B8: Índice de Reposição/Reajuste com Financeiros (Anexo I) | D8: =D6+D7 -> 0.1027783646 | E8: 0.1782965179 | F8: PERDAS | K8: Efeito Grupo A - Alta tensão | L8: 0.04317624694
F9: Perdas Não Técnicas | G9: =Entrada!G33 -> 0.003651260973 | K9: Efeito Grupo B - Baixa tensão | L9: 0.1211906111
C10: DRA | D10: DRP | F10: Perdas Técnicas | G10: =Entrada!G34 -> 0.06631 | K10: Efeito tarifário médio AT+BT | L10: 0.09838856497
B11: TOTAL (Parcela A + Parcela B) | C11: =C45+C40 -> 1865605803 | D11: =D45+D40 -> 1930755781 | E11: =D11+Financeiros!D8 -> 2057349717 | K11: Tarifa B1 - Residencial (R$) | L11: 572.4603864
K13: Subvenção da CDE para descontos tarifários (Valores anuais)
E14: =29.18*1000000 -> 29180000 | K14: Subsídio Carga Fonte Incentivada | L14: 46008961.28
E15: =E14/LnkTxtRA -> 0.01564103196 | K15: Subsídio Geração Fonte Incentivada | L15: 7030275.478
B16: Parcela A | F16: Formação da Parcela B e Reposicionamento (Resumo) | K16: Subsídio Distribuição | L16: 387035.1608
K17: Subsídio Água, Esgoto e Saneamento | L17: 4717575.044
C18: Processo Anterior | D18: Processo Atual | K18: Subsídio Rural | L18: 21521228.52
B19: ENCARGOS | C19: =SUM(C20:C28) -> 317497600.8 | D19: =SUM(D20:D28) -> 359058290.7 | E19: 371808714.9 | F19: Custo de Administração, Operação e Manutenção (CAOM) | G19: =SUM(G20:G20) -> 267462798.6 | K19: Subsídio Irrigante/Aquicultor | L19: 10038882.57
B20: Reserva Global de Reversão – RGR | D20: =Encargos!C16 -> 0 | E20: 0 | F20: Custos Operacionais (CO) | G20: ='VPB e Fator X'!C121+Encargos!C14 -> 267462798.6
B21: Conta de Consumo de Combustíveis – CCC | D21: =Encargos!C9 -> 0 | E21: 0 | F21: Custo Anual dos Ativos (CAA) | G21: =SUM(G22:G24) -> 228935833.6 | K21: Versão de Mercado
B22: Taxa de Fisc. de Serviços de E.E. – TFSEE | C22: ='Votos e NTs'!BM268 -> 2008426.097 | D22: =Encargos!C17 -> 1797662.609 | E22: 1817113.746 | F22: Remuneração do Capital (RC) | G22: ='VPB e Fator X'!C95 -> 129257395.9 | K22: Status de Sincronização de BDL | L22: Trabalha na pasta de rede
B23: Conta de Desenvolvimento Energético – CDE | C23: ='Votos e NTs'!BM269+'Votos e NTs'!BM270+'Votos e NTs'!BM271 -> 230274375.7 | D23: =Encargos!C10 -> 273856556.4 | E23: 273856556.4 | F23: Quota de Reintegração Regulatória (QRR) | G23: ='VPB e Fator X'!C77 -> 62348450.12 | K23: Última Sincronização
B24: Compensação financeira - CFURH | C24: ='Votos e NTs'!BM272 -> 0 | D24: =Encargos!C11 -> 0 | E24: 0 | F24: Custo anual das instalações móveis e imóveis (CAIMI) | G24: ='VPB e Fator X'!C67 -> 37329987.57
B25: Encargos Serv. Sist. - ESS e Energ. Reserv. - EER | C25: ='Votos e NTs'!BM273 -> 36668522.07 | D25: =Encargos!C12 -> 26689324.07 | E25: 38492192.17 | F25: Parcela B (VPB) | G25: =SUM(G21,G19) -> 496398632.2
B26: PROINFA | C26: ='Votos e NTs'!BM274 -> 32013851.44 | D26: =Encargos!C13 -> 39156018.26 | E26: 39156018.26 | F26: Índice de Produtividade da Parcela B | G26: ='VPB e Fator X'!C33 -> 0.009836748211
B27: P&D e Eficiência Energética | C27: ='Votos e NTs'!BM275 -> 16532425.41 | D27: =Encargos!C15 -> 17558729.31 | E27: 18486834.29 | F27: Mecanismo de Incentivo à Qualidade | G27: ='VPB1'!F42 -> -0.007425773857
F28: Parcela B com ajustes | G28: =(1-G26-G27)*G25 -> 495201827.8
B29: TRANSPORTE | C29: =SUM(C30:C37) -> 336461461.8 | D29: =SUM(D30:D37) -> 266860632.7 | E29: 311405620.7 | F29: Outras Receitas (OR) | G29: =UDEROR!C2 -> 26363875.84 | H29: Proret 2.1A_38 e Proret 2.1 - Aba "VPB e Fator X"
B30: Rede Básica | C30: ='Votos e NTs'!BM278 -> 108133176.8 | D30: ='RB e Conexão'!E6 -> 99532169.15 | E30: 106428293.3 | F30: Ultrapassagem de Demanda (UD) | G30: =UDEROR!C6+I30/5 -> 7897928.467 | H30: Ultrapassagem de demanda anterior a DRAC | I30: =UDEROR!D61*5 -> 3822256.729
B31: Rede Básica Fronteira | C31: ='Votos e NTs'!BM279 -> 146162020.1 | D31: ='RB e Conexão'!E7 -> 87279909.5 | E31: 121208209.6 | F31: Excedente de Reativos (ER) | G31: =UDEROR!C7+I31/5 -> 10677089.08 | H31: Excedente de reativos anterior a DRAC | I31: =UDEROR!D62*5 -> 12082522.18
B32: Rede Básica ONS (A2) | C32: ='Votos e NTs'!BM280 -> 1370699.207 | D32: =VLOOKUP("TUSDg ONS DRP",TUSDG[],2,FALSE) -> 939991.2 | E32: 1593458.64 | F32: Parcela B deduzidas as outras receitas | G32: =G28-SUM(G29:G31) -> 450262934.4
B33: Rede Básica Export. (A2) | C33: ='Votos e NTs'!BM281 -> 0 | D33: =VLOOKUP("TUSDg Export DRP",TUSDG[],2,FALSE) -> 0 | E33: 0
B34: MUST Itaipu | C34: ='Votos e NTs'!BM282 -> 17000977.23 | D34: ='RB e Conexão'!E8 -> 14657886.72 | E34: 14348773.57 | F34: 1. Receita Requerida (RR) | G34: =G28+D40 -> 1975694675
B35: Transporte de Itaipu | C35: ='Votos e NTs'!BM283 -> 22480051.92 | D35: =SUMPRODUCT(itaiputransporte[Potência],itaiputransporte[Tarifa DRP]) -> 14071871.75 | E35: 16454278.64 | F35: 2. Outras Receitas (OR) | G35: =G29 -> 26363875.84 | I35: =(I30+I31)/5 -> 3180955.781
B36: Conexão | C36: ='Votos e NTs'!BM284 -> 4726553.499 | D36: ='RB e Conexão'!E9 -> 3042598.398 | E36: 4036401.038 | F36: 3. Receita Verificada (RV) | G36: =Mercado!D24 -> 1865605803 | I36: =I35/LnkTxtRA -> 0.001705052469
B37: Uso do sistema de distribuição e CCD | C37: ='Votos e NTs'!BM285 -> 36587982.96 | D37: =CUSD!D14+CUSD!E14 -> 47336205.94 | E37: 47336205.94
B38: ENERGIA | C38: ='Votos e NTs'!BM286 -> 801394781.1 | D38: =Energia!D15 -> 853322245.8 | E38: 854496537.3
B39: RECEITA IRRECUPERÁVEL | C39: ='Votos e NTs'!BM287 -> 1169514.149 | D39: =Mercado!H38 -> 1251677.702 | E39: 1305040.294
B40: VPA (ENCARGO + TRANSPORTE + ENERGIA+RI) | C40: =C19+C29+C38+C39 -> 1456523358 | D40: =D19+D29+D38+D39 -> 1480492847 | E40: 1539015913
B42: Parcela B
D44: VPB1 | E44: VPB1
B45: ="Parcela B "&IF(CAPA!C7="Revisão","(menos Outras Receitas)",) -> Parcela B (menos Outras Receitas) | C45: ='Votos e NTs'!BM288 -> 409082445.6 | D45: =IF(CAPA!$C$7="Revisão",Resultado!$G$32,'VPB1'!$C$43) -> 450262934.4 | E45: 450089719

Sheet AP x Final
C1: Prencher valores conforme CP | F1: Prencher valores conforme CP
B2: Descrição | C2: CP 17/2021 Receita Verificada (R$) | D2: Final Receita Verificada (R$) | E2: Variação Receita Verificada Final/CP | F2: CP 17/2021 Receita Requerida (R$) | G2: Final Receita Requerida (R$) | H2: Variação Receita Requerida Final/CP | I2: CP Participação na Revisão % | J2: Final Participação na Revisão % | K2: Variação Total | M2: Variação de Custos | N2: Variação de Receita Verificada | O2: Simulação sem var. mercado
B3: PARCELA A [Encargos+Transmissão+Energia] | C3: 1441357414 | D3: =D4+D14+D23+D24 -> 1456523358 | E3: =IF(ISERROR(D3/C3-1),"-",D3/C3-1) -> 0.01052198671 | F3: 1496851605 | G3: =G4+G14+G23+G24 -> 1480492847 | H3: =IF(ISERROR(G3/F3-1),"-",G3/F3-1) -> -0.01092877762 | I3: =IFERROR((F3-C3)/$C$31,"") -> 0.03005323299 | J3: =IFERROR((G3-D3)/$D$31,"") -> 0.01284809952 | K3: =J3-I3 -> -0.01720513347 | L3: =IF(G3+D3<>0,1,0) -> 1 | M3: =(G3-C3)/$C$31-I3 -> -0.008859189893 | N3: =K3-M3 -> -0.008345943575 | O3: =(G3-C3)/$C$31 -> 0.0211940431
B4: Encargos Setoriais | C4: 316176281.2 | D4: =SUM(D5:D13) -> 317497600.8 | E4: =IF(ISERROR(D4/C4-1),"-",D4/C4-1) -> 0.004179059605 | F4: 371743741.1 | G4: =SUM(G5:G13) -> 359058290.7 | H4: =IF(ISERROR(G4/F4-1),"-",G4/F4-1) -> -0.03412418029 | I4: =IFERROR((F4-C4)/$C$31,"") -> 0.03009291226 | J4: 0.02227731594 | K4: =J4-I4 -> -0.007815596327 | L4: 1 | M4: -0.006869886587 | N4: =K4-M4 -> -0.0009457097404 | O4: =(G4-C4)/$C$31 -> 0.02322302568
B5: Taxa de Fisc. de Serviços de E.E. – TFSEE | C5: 1977939.351 | D5: ='NT Revisao'!AQ196 -> 2008426.097 | E5: =IF(ISERROR(D5/C5-1),"-",D5/C5-1) -> 0.01541338725 | F5: 1844771.868 | G5: ='NT Revisao'!AR196 -> 1797662.609 | H5: =IF(ISERROR(G5/F5-1),"-",G5/F5-1) -> -0.02553663141 | I5: -7.211769971e-05 | J5: -0.000112973216 | K5: -4.085551632e-05 | L5: 1 | M5: -2.551231977e-05 | N5: =K5-M5 -> -1.534319655e-05 | O5: -9.763001948e-05
B6: Conta de Desenvolvimento Energético – CDE (USO) | C6: 229562462 | D6: ='NT Revisao'!AQ197 -> 230274375.7 | E6: =IF(ISERROR(D6/C6-1),"-",D6/C6-1) -> 0.003101176542 | F6: 237776865.6 | G6: ='NT Revisao'!AR197 -> 234832963.8 | H6: =IF(ISERROR(G6/F6-1),"-",G6/F6-1) -> -0.01238094285 | I6: 0.004448562662 | J6: 0.002443489452 | K6: -0.002005073209 | L6: 1 | M6: -0.001594288786 | N6: -0.000410784423 | O6: 0.002854273875
B7: Conta de Desenvolvimento Energético – CDE Conta-Covid (TUSD) | C7: 0 | D7: ='NT Revisao'!AQ198 -> 0 | E7: - | F7: 16371566.39 | G7: ='NT Revisao'!AR198 -> 16371566.39 | H7: =IF(ISERROR(G7/F7-1),"-",G7/F7-1) -> 7.841105543e-11 | I7: 0.008866126184 | J7: 0.008775469264 | K7: -9.065691979e-05 | L7: 1 | M7: 6.952025761e-13 | N7: -9.065692049e-05 | O7: 0.008866126185
B8: Conta de Desenvolvimento Energético – CDE Conta-Covid (TE) | C8: 0 | D8: ='NT Revisao'!AQ199 -> 1.002083157e-05 | F8: 22652026.17 | G8: ='NT Revisao'!AR199 -> 22652026.18 | H8: =IF(ISERROR(G8/F8-1),"-",G8/F8-1) -> 7.841127747e-11 | I8: 0.01226734924 | J8: 0.01214191451 | K8: -0.0001254347246 | L8: 1 | M8: 9.618989633e-13 | N8: -0.0001254347255 | O8: 0.01226734924
B9: Compensação financeira - CFURH | C9: 0 | D9: ='NT Revisao'!AQ200 -> 0 | E9: - | F9: 0 | G9: ='NT Revisao'!AR200 -> 0 | H9: =IF(ISERROR(G9/F9-1),"-",G9/F9-1) -> - | I9: 0 | J9: 0 | L9: 0 | M9: 0 | N9: 0 | O9: 0
B10: Encargos Serv. Sist. - ESS e Energ. Reserv. - EER | C10: 36324882.35 | D10: ='NT Revisao'!AQ201 -> 36668522.07 | E10: 0.009460174537 | F10: 36590917.82 | G10: ='NT Revisao'!AR201 -> 26689324.07 | H10: -0.2706024976 | I10: 0.0001440732089 | J10: -0.005349038894 | K10: =J10-I10 -> -0.005493112103 | L10: 1 | M10: -0.005362271243 | N10: -0.0001308408598 | O10: -0.005218198034
B11: PROINFA | C11: 31891983.57 | D11: ='NT Revisao'!AQ202 -> 32013851.44 | E11: 0.003821269703 | F11: 39156018.26 | G11: ='NT Revisao'!AR202 -> 39156018.26 | H11: 0 | I11: 0.003933884313 | J11: 0.003828336516 | K11: =J11-I11 -> -0.0001055477971 | L11: 1 | M11: 0 | N11: -0.0001055477971 | O11: 0.003933884313
B12: P&D, Efic.Energ | C12: 16419013.95 | D12: ='NT Revisao'!AQ203 -> 16532425.41 | E12: 0.006907324672 | F12: 17351574.96 | G12: ='NT Revisao'!AR203 -> 17558729.31 | H12: 0.01193864836 | I12: 0.0005050343598 | J12: 0.0005501183021 | K12: =J12-I12 -> 4.508394238e-05 | L12: 1 | M12: 0.0001121857603 | N12: -6.710181795e-05 | O12: 0.0006172201201
B13: ONS | D13: ='NT Revisao'!AQ204 -> 0 | E13: - | F13: 0 | G13: ='NT Revisao'!AR204 -> 0 | H13: - | I13: 0 | J13: 0 | K13: 0 | L13: 0 | M13: 0 | N13: 0 | O13: 0
B14: Custos de Transmissão | C14: 328928917.4 | D14: =SUM(D15:D22) -> 336461461.8 | E14: 0.02290021925 | F14: 265851177.9 | G14: =SUM(G15:G22) -> 266860632.7 | H14: 0.003797067138 | I14: -0.03416015212 | J14: -0.03730736095 | K14: =J14-I14 -> -0.00314720883 | L14: 1 | M14: 0.000546676669 | N14: -0.003693885499 | O14: -0.03361347545
B15: Rede Básica | C15: 105534464.4 | D15: ='NT Revisao'!AQ206 -> 108133176.8 | E15: =IF(ISERROR(D15/C15-1),"-",D15/C15-1) -> 0.02462430047 | F15: 95821489.53 | G15: ='NT Revisao'!AR206 -> 99532169.15 | H15: 0.03872492111 | I15: -0.005260123511 | J15: -0.0046103028 | K15: =J15-I15 -> 0.0006498207109 | L15: 1 | M15: 0.002009542214 | N15: -0.001359721503 | O15: -0.003250581297
B16: Rede Básica Fronteira | C16: 142382646.6 | D16: ='NT Revisao'!AQ207 -> 146162020.1 | E16: 0.02654377912 | F16: 95497270.52 | G16: ='NT Revisao'!AR207 -> 87279909.5 | H16: -0.08604812446 | I16: -0.02539107443 | J16: -0.0315619251 | K16: =J16-I16 -> -0.006170850672 | L16: 1 | M16: -0.004450164265 | N16: -0.001720686406 | O16: -0.02984123869
B17: Rede Básica ONS (A2) | C17: 1246805.541 | D17: ='NT Revisao'!AQ208 -> 1370699.207 | E17: 0.09936887698 | F17: 1593458.64 | G17: ='NT Revisao'!AR208 -> 939991.2 | H17: -0.4100937568 | I17: 0.0001877321967 | J17: -0.000230867639 | K17: -0.0004185998357 | L17: 1 | M17: -0.0003538894596 | N17: -6.471037609e-05 | O17: -0.0001661572629
B18: Rede Básica Export. (A2) | C18: 0 | D18: ='NT Revisao'!AQ209 -> 0 | E18: - | F18: 0 | G18: ='NT Revisao'!AR209 -> 0 | H18: - | I18: 0 | J18: 0 | K18: 0 | L18: 0 | M18: 0 | N18: 0 | O18: 0
B19: MUST Itaipu | C19: 16841652.26 | D19: ='NT Revisao'!AQ210 -> 17000977.23 | E19: 0.009460174537 | F19: 17291142.11 | G19: ='NT Revisao'!AR210 -> 14657886.72 | H19: -0.1522892686 | I19: 0.0002434240956 | J19: -0.001255940831 | K19: =J19-I19 -> -0.001499364927 | L19: 1 | M19: -0.001426056247 | N19: -7.330867977e-05 | O19: -0.001182632151
B20: Transporte de Itaipu | C20: 22269379.71 | D20: ='NT Revisao'!AQ211 -> 22480051.92 | E20: 0.009460174536 | F20: 13654316 | G20: ='NT Revisao'!AR211 -> 14071871.75 | H20: 0.03058049536 | I20: -0.004665542689 | J20: -0.00450694362 | K20: =J20-I20 -> 0.0001585990691 | L20: 1 | M20: 0.0002261299778 | N20: -6.753090867e-05 | O20: -0.004439412711
B21: Conexão | C21: 4591388.056 | D21: ='NT Revisao'!AQ212 -> 4726553.499 | E21: 0.02943890637 | F21: 4028366.001 | G21: ='NT Revisao'!AR212 -> 3042598.398 | H21: -0.2447065641 | I21: -0.0003049081846 | J21: -0.0009026317877 | K21: =J21-I21 -> -0.0005977236031 | L21: 1 | M21: -0.0005338487321 | N21: -6.387487098e-05 | O21: -0.0008387569167
B22: Uso do sistema de distribuição | C22: 36062580.81 | D22: ='NT Revisao'!AQ213 -> 36587982.96 | E22: 0.01456917756 | F22: 37965135.09 | G22: ='NT Revisao'!AR213 -> 47336205.94 | H22: =IF(ISERROR(G22/F22-1),"-",G22/F22-1) -> 0.2468335968 | I22: 0.001030340405 | J22: 0.005761250832 | K22: =J22-I22 -> 0.004730910427 | L22: 1 | M22: 0.005074963181 | N22: -0.0003440527535 | O22: 0.006105303586
B23: Custo de Aquisição de Energia | C23: 795092901.8 | D23: ='NT Revisao'!AQ214 -> 801394781.1 | E23: 0.007925966046 | F23: 858013227.9 | G23: ='NT Revisao'!AR214 -> 853322245.8 | H23: -0.005467260882 | I23: 0.0340749039 | J23: 0.02783410331 | K23: -0.006240800594 | L23: 1 | M23: -0.002540431304 | N23: -0.00370036929 | O23: 0.0315344726
B24: Receitas Irrecuperáveis | C24: 1164669.26 | D24: ='NT Revisao'!AQ215 -> 1169514.149 | E24: 0.004159884602 | F24: 1243458.192 | G24: ='NT Revisao'!AR215 -> 1251677.702 | H24: 0.006610202287 | I24: 4.26686486e-05 | J24: 4.404121831e-05 | K24: 1.372569714e-06 | L24: 1 | M24: 4.451328158e-06 | N24: -3.078758444e-06 | O24: 4.711997676e-05
B25: PARCELA B | C25: 405172405.6 | D25: =SUM(D26:D30) -> 409082445.6 | E25: 0.009650311601 | F25: 454566875.4 | G25: =SUM(G26:G30) -> 450262934.4 | H25: =IF(ISERROR(G25/F25-1),"-",G25/F25-1) -> -0.009468223847 | I25: 0.02674989012 | J25: 0.02207352101 | K25: -0.004676369115 | L25: 1 | M25: -0.002330826658 | N25: -0.002345542456 | O25: 0.02441906346
B26: Custos Operacionais | C26: 258393123.1 | D26: ='NT Revisao'!AQ217 -> 260886697.2 | E26: 0.009650311601 | F26: 265116955.9 | G26: ='NT Revisao'!AR217 -> 266817952.6 | H26: 0.006416023922 | I26: 0.003641334548 | J26: 0.003179265092 | K26: -0.0004620694566 | L26: 1 | M26: 0.0009211856278 | N26: -0.001383255084 | O26: 0.004562520176
B27: Anuidades | C27: 41552224.48 | D27: ='NT Revisao'!AQ218 -> 41953216.39 | E27: 0.009650311601 | F27: 37180491.45 | G27: ='NT Revisao'!AR218 -> 37239985.92 | H27: 0.001600152868 | I27: -0.002367539901 | J27: -0.002526380686 | K27: -0.0001588407858 | L27: 1 | M27: 3.221960967e-05 | N27: -0.0001910603955 | O27: -0.002335320291
B28: Remuneração | C28: 91801611.98 | D28: ='NT Revisao'!AQ219 -> 92687526.15 | E28: 0.009650311601 | F28: 130117222 | G28: ='NT Revisao'!AR219 -> 128945759.7 | H28: -0.009003130834 | I28: 0.02075006298 | J28: 0.01943509902 | K28: =J28-I28 -> -0.00131496396 | L28: 1 | M28: -0.0006344129195 | N28: -0.0006805510403 | O28: 0.02011565006
B29: Depreciação | C29: 49095358.89 | D29: ='NT Revisao'!AQ220 -> 49569144.4 | E29: 0.009650311601 | F29: 62411372.93 | G29: ='NT Revisao'!AR220 -> 62198129.6 | H29: -0.003416738242 | I29: 0.007211372326 | J29: 0.006769374958 | K29: -0.0004419973685 | L29: 1 | M29: -0.0001154832824 | N29: -0.0003265140861 | O29: 0.007095889044
B30: OR, UD e ER | C30: -35669912.83 | D30: ='NT Revisao'!AQ221 -> -36014138.61 | E30: =IF(ISERROR(D30/C30-1),"-",D30/C30-1) -> 0.009650311601 | F30: -40259166.95 | G30: ='NT Revisao'!AR221+'NT Revisao'!AR222 -> -44938893.38 | H30: 0.1162400215 | I30: -0.002485339834 | J30: -0.004783837378 | K30: -0.002298497544 | L30: 1 | M30: -0.002534335694 | N30: 0.00023583815 | O30: -0.005019675528
B31: Reposicionamento Tarifário | C31: =C25+C3 -> 1846529820 | D31: =D25+D3 -> 1865605803 | E31: =IF(ISERROR(D31/C31-1),"-",D31/C31-1) -> 0.01033072053 | F31: =F25+F3 -> 1951418480 | G31: =G25+G3 -> 1930755781 | H31: -0.01058855364 | I31: 0.05680312311 | J31: 0.03492162053 | K31: =J31-I31 -> -0.02188150258 | L31: 1 | M31: =(G31-C31)/$C$31-I31 -> -0.01119001655 | N31: -0.01069148603 | O31: 0.04561310656
L32: 0
B33: Componentes Financeiros do Processo Atual | F33: =SUM(F34:F69) -> 85056416.55 | G33: =SUM(G34:G69) -> 126593935.4 | I33: =SUM(I34:I69) -> 0.04606284482 | J33: =SUM(J34:J69) -> 0.06785674402 | K33: =J33-I33 -> 0.0217938992 | L33: 1 | M33: =G33/$C$31-I33 -> 0.02249490826 | N33: =K33-M33 -> -0.0007010090585 | O33: =(G33-C33)/$C$31 -> 0.06855775308
B34: ='NT Revisao'!AO226 -> CVA em processamento - Energia | F34: 80962780.79 | G34: ='NT Revisao'!AR226 -> 119410566.8 | I34: =F34/$C$31 -> 0.04384591027 | J34: ='NT Revisao'!AT226 -> 0.06400632257 | K34: =J34-I34 -> 0.0201604123 | L34: 1 | M34: =G34/$C$31-I34 -> 0.02082164373 | N34: =K34-M34 -> -0.0006612314306 | O34: =K34-N34 -> 0.02082164373
B35: ='NT Revisao'!AO227 -> CVA em processamento - Transporte | F35: -3424222.031 | G35: ='NT Revisao'!AR227 -> -3490938.581 | I35: =F35/$C$31 -> -0.001854409278 | J35: ='NT Revisao'!AT227 -> -0.001871209113 | K35: =J35-I35 -> -1.679983491e-05 | L35: 1 | M35: -3.613077332e-05 | N35: 1.93309384e-05 | O35: -3.613077332e-05
B36: ='NT Revisao'!AO228 -> CVA em processamento - Encargos Setoriais | F36: 19901838.55 | G36: ='NT Revisao'!AR228 -> 31869450.77 | I36: 0.01077796759 | J36: ='NT Revisao'!AT228 -> 0.01708262845 | K36: 0.006304660858 | L36: 1 | M36: 0.006481136718 | N36: -0.0001764758604 | O36: 0.006481136718
B37: ='NT Revisao'!AO229 -> Saldo a Compensar CVA-Ano Anterior + Ajustes | F37: -622168.8139 | G37: ='NT Revisao'!AR229 -> -1362887.52 | I37: -0.000336939489 | J37: ='NT Revisao'!AT229 -> -0.0007305334906 | K37: -0.0003935940016 | L37: 1 | M37: -0.000401140939 | N37: 7.546937329e-06 | O37: -0.000401140939
B38: ='NT Revisao'!AO230 -> Neutralidade de Parcela A- Energia | F38: 8827204.409 | G38: ='NT Revisao'!AR230 -> 9316585.703 | I38: 0.004780428843 | J38: ='NT Revisao'!AT230 -> 0.004993866167 | K38: 0.0002134373249 | L38: 1 | M38: 0.0002650275606 | N38: -5.159023574e-05 | O38: 0.0002650275606
B39: ='NT Revisao'!AO231 -> Neutralidade de Parcela A - Transporte | F39: 9830512.327 | G39: ='NT Revisao'!AR231 -> 3919847.74 | I39: 0.005323776644 | J39: ='NT Revisao'!AT231 -> 0.002101112536 | K39: -0.003222664108 | L39: 1 | M39: -0.003200958102 | N39: -2.170600641e-05 | O39: -0.003200958102
B40: ='NT Revisao'!AO232 -> Neutralidade de Parcela A - Encargos Setoriais | F40: -3842984.646 | G40: ='NT Revisao'!AR232 -> -4748460.627 | I40: -0.002081192843 | J40: ='NT Revisao'!AT232 -> -0.002545264717 | K40: -0.0004640718734 | L40: 1 | M40: -0.0004903662919 | N40: 2.629441846e-05 | O40: -0.0004903662919
B41: ='NT Revisao'!AO233 -> Neutralidade de Parcela A - Receita Irrecuperável | F41: -16556.92877 | G41: ='NT Revisao'!AR233 -> -13110.41582 | I41: -8.966510366e-06 | J41: ='NT Revisao'!AT233 -> -7.027430872e-06 | K41: 1.939079494e-06 | L41: 1 | M41: 1.86648107e-06 | N41: 7.259842438e-08 | O41: 1.86648107e-06
B42: ='NT Revisao'!AO234 -> Sobrecontratação/exposição de energia | F42: -19614449.93 | G42: ='NT Revisao'!AR234 -> 10368963.25 | I42: -0.01062233045 | J42: ='NT Revisao'!AT234 -> 0.00555796044 | K42: 0.01618029089 | L42: 1 | M42: 0.01623770863 | N42: -5.741773602e-05 | O42: 0.01623770863
B43: ='NT Revisao'!AO235 -> Garantias financeiras na contratação regulada de energia (CCEAR) | F43: 864430.4448 | G43: ='NT Revisao'!AR235 -> 1149274.34 | I43: 0.0004681378202 | J43: ='NT Revisao'!AT235 -> 0.0006160327859 | K43: 0.0001478949657 | L43: 1 | M43: 0.0001542590283 | N43: -6.364062549e-06 | O43: 0.0001542590283
B44: ='NT Revisao'!AO236 -> Previsão de Risco Hidrológico | F44: 67708633.7 | G44: ='NT Revisao'!AR236 -> 97617127.67 | I44: 0.03666804238 | J44: ='NT Revisao'!AT236 -> 0.05232462694 | K44: 0.01565658455 | L44: 1 | M44: 0.01619713565 | N44: -0.0005405510977 | O44: 0.01619713565
B45: ='NT Revisao'!AO237 -> Ajuste Liminar Abrace | F45: 0 | G45: ='NT Revisao'!AR237 -> 0 | H45: 0 | I45: 0 | J45: ='NT Revisao'!AT237 -> 0 | K45: 0 | L45: 0 | M45: 0 | N45: 0 | O45: 0
B46: ='NT Revisao'!AO238 -> Financeiro TUSDG | F46: -11996.29828 | G46: ='NT Revisao'!AR238 -> -12013.26973 | I46: -6.496671838e-06 | J46: ='NT Revisao'!AT238 -> -6.439339818e-06 | K46: 5.733202011e-08 | L46: 1 | M46: -9.190999942e-09 | N46: 6.652302005e-08 | O46: -9.190999942e-09
B47: ='NT Revisao'!AO239 -> Repasse de ultrapassagem de Supridas/Permissionárias de Energia | F47: 0 | G47: ='NT Revisao'!AR239 -> 0 | H47: 0 | I47: 0 | J47: ='NT Revisao'!AT239 -> 0 | K47: 0 | L47: 0 | M47: 0 | N47: 0 | O47: 0
B48: ='NT Revisao'!AO240 -> 0 | F48: 0 | G48: ='NT Revisao'!AR240 -> 0 | I48: 0 | J48: ='NT Revisao'!AT240 -> 0 | K48: 0 | L48: 0 | M48: 0 | N48: 0 | O48: 0
B49: ='NT Revisao'!AO241 -> Ajuste CUSD | F49: 1922087.124 | G49: ='NT Revisao'!AR241 -> 4020434.221 | I49: 0.00104091854 | J49: ='NT Revisao'!AT241 -> 0.002155028792 | K49: 0.001114110252 | L49: 1 | M49: 0.001136373252 | N49: -2.226300018e-05 | O49: 0.001136373252
B50: ='NT Revisao'!AO242 -> Repasse de compensação DIC/FIC | F50: 0 | G50: ='NT Revisao'!AR242 -> 0 | H50: 0 | I50: 0 | J50: ='NT Revisao'!AT242 -> 0 | K50: 0 | L50: 0 | M50: 0 | N50: 0 | O50: 0
B51: ='NT Revisao'!AO243 -> Compensação ref. acordos bilaterais de CCEAR | F51: -11092.58321 | G51: ='NT Revisao'!AR243 -> -11108.27616 | I51: -6.007259178e-06 | J51: ='NT Revisao'!AT243 -> -5.954246141e-06 | K51: 5.301303692e-08 | L51: 1 | M51: -8.498615928e-09 | N51: 6.151165285e-08 | O51: -8.498615928e-09
B52: ='NT Revisao'!AO244 -> Reversão do Risco Hidrológico | F52: -78108925.04 | G52: ='NT Revisao'!AR244 -> -78207534.88 | I52: -0.04230038649 | J52: ='NT Revisao'!AT244 -> -0.04192071805 | K52: 0.0003796684328 | L52: 1 | M52: -5.340278979e-05 | N52: 0.0004330712226 | O52: -5.340278979e-05
B53: Ressarcimento de P&D | F53: 0 | G53: 0 | H53: 0 | I53: 0 | J53: 0 | K53: 0 | L53: 0 | M53: 0 | N53: 0
B54: ='NT Revisao'!AO246 -> Reversão Conta-Covid - CVA em processamento - Energia | F54: 0 | G54: ='NT Revisao'!AR246 -> 0 | H54: 0 | I54: =F54/$C$31 -> 0 | J54: ='NT Revisao'!AT246 -> 0 | K54: 0 | L54: 0 | M54: 0 | N54: 0 | O54: 0
B55: ='NT Revisao'!AO247 -> Reversão Conta-Covid - CVA em processamento -Transporte | F55: 0 | G55: ='NT Revisao'!AR247 -> 0 | H55: 0 | I55: 0 | J55: ='NT Revisao'!AT247 -> 0 | K55: 0 | L55: 0 | M55: 0 | N55: 0 | O55: 0
B56: ='NT Revisao'!AO248 -> Reversão Conta-Covid - CVA em processamento - Encargos Setoriais | F56: 0 | G56: ='NT Revisao'!AR248 -> 0 | H56: 0 | I56: 0 | J56: ='NT Revisao'!AT248 -> 0 | L56: 0 | M56: 0 | N56: 0 | O56: 0
B57: ='NT Revisao'!AO249 -> Reversão Conta-Covid - Saldo a Compensar CVA-Ano Anterior + Ajustes | F57: 0 | G57: ='NT Revisao'!AR249 -> 0 | H57: 0 | I57: 0 | J57: ='NT Revisao'!AT249 -> 0 | K57: =J57-I57 -> 0 | L57: 0 | M57: 0 | N57: 0 | O57: 0
B58: ='NT Revisao'!AO250 -> Reversão Conta-Covid - Neutralidade de Parcela A | F58: 0 | G58: ='NT Revisao'!AR250 -> 0 | H58: 0 | I58: 0 | J58: ='NT Revisao'!AT250 -> 0 | K58: 0 | L58: 0 | M58: 0 | N58: 0 | O58: 0
B59: ='NT Revisao'!AO251 -> Reversão Conta-Covid - Sobrecontratação | F59: 0 | G59: ='NT Revisao'!AR251 -> 0 | H59: 0 | I59: 0 | J59: ='NT Revisao'!AT251 -> 0 | K59: 0 | L59: 0 | M59: 0 | N59: 0 | O59: 0
B60: ='NT Revisao'!AO252 -> Reversão Conta Covid - Parcela B | F60: 0 | G60: ='NT Revisao'!AR252 -> 0 | H60: 0 | I60: 0 | J60: ='NT Revisao'!AT252 -> 0 | K60: 0 | L60: 0 | M60: 0 | N60: 0 | O60: 0
B61: ='NT Revisao'!AO253 -> Reversão Conta Covid - Diferimento | F61: 0 | G61: ='NT Revisao'!AR253 -> 0 | H61: 0 | I61: 0 | J61: ='NT Revisao'!AT253 -> 0 | K61: 0 | L61: 0 | M61: 0 | N61: 0 | O61: 0
B62: ='NT Revisao'!AO254 -> Reversão Conta Covid - Postergação | F62: 0 | G62: ='NT Revisao'!AR254 -> 0 | H62: 0 | I62: 0 | J62: ='NT Revisao'!AT254 -> 0 | K62: 0 | L62: 0 | M62: 0 | N62: 0 | O62: 0
B63: ='NT Revisao'!AO255 -> Conselho de Consumidores | F63: 691325.4826 | G63: ='NT Revisao'!AR255 -> 696571.0392 | I63: 0.0003743917239 | J63: ='NT Revisao'!AT255 -> 0.0003733752532 | K63: -1.016470763e-06 | L63: 1 | M63: 2.840764631e-06 | N63: -3.857235393e-06 | O63: 2.840764631e-06
B64: ='NT Revisao'!AO256 -> Conta Covid - Postergação TUSD | G64: ='NT Revisao'!AR256 -> 0 | I64: 0 | J64: ='NT Revisao'!AT256 -> 0 | K64: 0 | L64: 0 | M64: 0 | N64: 0 | O64: 0
B65: ='NT Revisao'!AO257 -> Reversão de créditos de rescisão contratual e migração de consumidores (REN 376 e 414) | G65: ='NT Revisao'!AR257 -> -594042.21 | I65: 0 | J65: ='NT Revisao'!AT257 -> -0.0003184178613 | K65: -0.0003184178613 | L65: 1 | M65: -0.0003217073473 | N65: 3.289485937e-06 | O65: -0.0003217073473
B66: ='NT Revisao'!AO258 -> Efeito Decreto 10.665/2021 - Financeiro de saldo de Itaipu | G66: ='NT Revisao'!AR258 -> -14745197.55 | I66: 0 | J66: ='NT Revisao'!AT258 -> -0.007903704804 | K66: -0.007903704804 | L66: 1 | M66: -0.007985355769 | N66: 8.165096548e-05 | O66: -0.007985355769
B67: ='NT Revisao'!AO259 -> Créditos de Pis Cofins | G67: ='NT Revisao'!AR259 -> -29180000 | I67: 0 | J67: ='NT Revisao'!AT259 -> -0.01564103196 | K67: -0.01564103196 | L67: =IF(G67+D67<>0,1,0) -> 1 | M67: -0.01580261509 | N67: 0.00016158313 | O67: -0.01580261509
B68: ='NT Revisao'!AO260 -> Diferimento Previsão de Risco Hidrológico | G68: ='NT Revisao'!AR260 -> -19409592.79 | I68: 0 | J68: ='NT Revisao'!AT260 -> -0.01040390888 | K68: -0.01040390888 | L68: 1 | M68: -0.01051138876 | N68: 0.0001074798751 | O68: -0.01051138876
B69: ='NT Revisao'!AO261 -> 0 | G69: ='NT Revisao'!AR261 -> 0 | I69: 0 | J69: ='NT Revisao'!AT261 -> 0 | K69: 0 | L69: 0 | M69: 0 | N69: 0
B70: Efeito da retirada dos Componentes Financeiros do Processo Anterior | I70: -0.0038 | J70: =J71-J31-J33 -> -0.004389799585 | K70: =J70-I70 -> -0.0005897995854 | L70: 1 | O70: =J70-I70 -> -0.0005897995854
B71: Efeito Médio a ser percebido pelos Consumidores | I71: 0.09904566142 | J71: ='NT Revisao'!AT278 -> 0.09838856497 | K71: =J71-I71 -> -0.0006570964499 | L71: 1 | M71: =((G31+G33)/C31-1)-((F31+F33)/C31-1) -> 0.01130489171 | N71: =K71-M71 -> -0.01196198815 | O71: =K71-N71 -> 0.01130489171
I73: =I31+I33 -> 0.1028659679 | J73: =J31+J33 -> 0.1027783646 | K73: =J73-I73 -> -8.760338499e-05
B85: CVA em processamento - Energia | E85: 80962780.79 | G85: 0.04384591027
B86: CVA em processamento -Transporte | E86: -3424222.031 | G86: -0.001854409278
B87: CVA em processamento - Encargos Setoriais | E87: 19901838.55 | G87: 0.01077796759
B88: Saldo a Compensar CVA-Ano Anterior + Ajustes | E88: -622168.8139 | G88: -0.000336939489
B89: Neutralidade de Parcela A- Energia | E89: 8827204.409 | G89: 0.004780428843
B90: Neutralidade de Parcela A - Transporte | E90: 9830512.327 | G90: 0.005323776644
B91: Neutralidade de Parcela A - Encargos Setoriais | E91: -3842984.646 | G91: -0.002081192843
B92: Neutralidade de Parcela A - Receita Irrecuperável | E92: -16556.92877 | G92: -8.966510366e-06
B93: Sobrecontratação/exposição de energia | E93: -19614449.93 | G93: -0.01062233045
B94: Garantias financeiras na contratação regulada de energia (CCEAR) | E94: 864430.4448 | G94: 0.0004681378202
B95: Previsão de Risco Hidrológico | E95: 67708633.7 | G95: 0.03666804238
B96: Ajuste Liminar Abrace | E96: 0 | G96: 0
B97: Ajuste ref. equilíbrio econômico-financeiro TUSDg (A3a) | E97: -11996.29828 | G97: -6.496671838e-06
B98: Repasse de ultrapassagem de Supridas/Permissionárias de Energia | E98: 0 | G98: 0
B99: Cálculo extraordinário de Neutralidade -Postergação da Data de Aniversário | E99: 0 | G99: 0
B100: Ajuste CUSD | E100: 1922087.124 | G100: 0.00104091854
B101: Repasse de compensação DIC/FIC | E101: 0 | G101: 0
B102: Compensação ref. acordos bilaterais de CCEAR | E102: -11092.58321 | G102: -6.007259178e-06
B103: Reversão do Risco Hidrológico | E103: -78108925.04 | G103: -0.04230038649
B104: Ressarcimento de P&D | E104: 0 | G104: 0
B105: Reversão Conta-Covid - CVA em processamento - Energia | E105: 0 | G105: 0
B106: Reversão Conta-Covid - CVA em processamento -Transporte | E106: 0 | G106: 0
B107: Reversão Conta-Covid - CVA em processamento - Encargos Setoriais | E107: 0 | G107: 0
B108: Reversão Conta-Covid - Saldo a Compensar CVA-Ano Anterior + Ajustes | E108: 0 | G108: 0
B109: Reversão Conta-Covid - Neutralidade de Parcela A | E109: 0 | G109: 0
B110: Reversão Conta-Covid - Sobrecontratação | E110: 0 | G110: 0
B111: Reversão Conta Covid - Parcela B | E111: 0 | G111: 0
B112: Reversão Conta Covid - Diferimento | E112: 0 | G112: 0
B113: Reversão Conta Covid - Postergação | E113: 0 | G113: 0
B114: Conselho de Consumidores | E114: 691325.4826 | G114: 0.0003743917239

Sheet Mercado_Receita
A1: Código | B1: TipoMercado | C1: Modalidade | D1: Subgrupo | E1: Classe | F1: Subclasse | G1: Detalhe | H1: Agente | I1: Posto | J1: OPÇÃO | K1: AnoMes | L1: D | M1: Daj | N1: TUSD_E | O1: TUSD_Eaj | P1: TE_E | Q1: TE_Eaj | R1: TUSD/KW | S1: TUSD/MWh | T1: TE | U1: ReceitaD | V1: ReceitaE | W1: Total | X1: Total com Tar de aplicação | Y1: CCC | Z1: CDE | AA1: CFURH | AB1: Conexao_D | AC1: Conexao_T | AD1: CUSD | AE1: DISTRIBUICAO | AF1: EnergiaRevenda | AG1: ESSERR | AH1: ITAIPU | AI1: ONS | AJ1: OUTROS | AK1: PeD | AL1: PROINFA | AM1: RGR | AN1: TFSEE | AO1: TUST_FR | AP1: TUST_RB | AQ1: TUSDG_ONS | AR1: TUSDG_T | AS1: TUST_CI | AT1: TUST_ITAIPU | AU1: CVA_CCC | AV1: CVA_CDE | AW1: CVA_PROINFA | AX1: CVA_TranItaipu | AY1: CVA_ESSERR | AZ1: CVA_CFURH | BA1: CVA_CDE_E | BB1: CVA_Energia | BC1: CVA_RB | BD1: perdasnt | BE1: perdasrb_d | BF1: perdasrb_c | BG1: perdastec | BH1: RI | BI1: PisPasep | BJ1: Cofins | BK1: ICMS | BL1: UC | BM1: total_dummy | BN1: Subs_CarFI | BO1: Subs_GerFI | BP1: Subs_Dist | BQ1: Subs_AguaEsgoto | BR1: Subs_Rural | BS1: Subs_Irrigante | BT1: Subs_BaixaRenda | BU1: CDE_E | BV1: DespesaEnergia | BW1: RTE_CUSD | BX1: RTE_Energia | BY1: RTE_CDE_USO | BZ1: RTE_CDE_E | CA1: RTE_PeD | CB1: Dif_Subs_Car | CC1: Dif_Subs_Ger | CD1: Dif_Subs_D | CE1: Dif_Subs_Agua | CF1: Dif_Subs_Ru | CG1: Dif_Subs_Irr | CH1: dif_subs_baixa | CI1: FinTotAj | CJ1: FinAj | CK1: RTE_CDE_E_Dec | CL1: RTE_CDE_E_ACR | CM1: CDE_E_Dec | CN1: CDE_E_ACR | CO1: FinPostTUSD | CP1: FinPostTE | CQ1: FinPostQtddias | CR1: FinCT_Geral | CS1: finCT_TUST_FR | CT1: finCT_TUST_RB | CU1: FINCT_TUSDG_ONS | CV1: FINCT_TUSDG_T | CW1: FINCT_TUST_CI | CX1: FINCT_TUST_ITAIPU | CY1: FinCT_Itaipu | CZ1: FinCT_CUSD | DA1: FinCT_Conexao_D | DB1: FinCT_Conexao_T | DC1: FinCT_EnergiaRevenda | DD1: FINCT_perdasrb_c | DE1: FINCT_perdasrb_d | DF1: FinCT_perdasnt | DG1: FinCT_perdastec | DH1: FinCT_CCC | DI1: FinCT_CDE | DJ1: FinCT_CDE_E | DK1: FinCT_CFURH | DL1: FinCT_ONS | DM1: FinCT_ESSERR | DN1: FinCT_Ped | DO1: finCT_PROINFA | DP1: finCT_TFSEE | DQ1: FINCT_Liminar | DR1: FinCT_Posterg | DS1: FINCT_RGR | DT1: Tipo_ato | DU1: DIST_D | DV1: DIST_E | DW1: FIN_RI | DX1: FINCT_RI | DY1: Fin_TUSD | DZ1: Fin_TE | EA1: CVA_TUSD | EB1: CVA_TE | EC1: FinCT_ParcelaB | ED1: CVA_EnergiaRevenda | EE1: CVA_perdasnt | EF1: CVA_perdasrb_d | EG1: CVA_perdasrb_c | EH1: CVA_perdastec | EI1: CVA_TUST_RB | EJ1: CVA_TUST_FR | EK1: CVA_TUSDG_ONS | EL1: CVA_TUSDG_T | EM1: CVA_TUST_CI | EN1: CVA_TUST_ITAIPU | EO1: CVA_liminar | EP1: idsreag | EQ1: FinCTAn3En | ER1: An3En | ES1: CVA_An3En | ET1: Fin_An3En | EU1: FIN_CFURH | EV1: TEAngra | EW1: TUSDAngra | EX1: teCheia | EY1: tusdcheia | EZ1: AngraIII_TE | FA1: AngraIII_TUSD | FB1: AngraIII_Desc_TE | FC1: AngraIII_Desc_TUSD
A2: 32 | B2: Regular | C2: Azul | D2: A2 | E2: Industrial | F2: Não se aplica | G2: Não se aplica | H2: Não se aplica | I2: Fora ponta | J2: CATIVO | K2: 2020-07-01 | L2: 11573 | M2: 11573 | N2: 2538.133 | O2: 2538.133 | P2: 2538.133 | Q2: 2538.133 | R2: 11.85 | S2: 52.66 | T2: 228.68 | U2: 137140.05 | V2: 714078.3382 | W2: 851218.3882 | X2: 869566.7756 | Y2: 0 | Z2: 107737.5291 | AA2: 0 | AB2: 0 | AC2: 1547.517651 | AD2: 7052.708566 | AE2: 4047.445621 | AF2: 508726.8707 | AG2: 27974.51948 | AH2: 17150.09536 | AI2: 0 | AJ2: 0 | AK2: 6345.788019 | AL2: 19243.59109 | AM2: 0 | AN2: 53.49933773 | AO2: 70916.37001 | AP2: 53613.90025 | AQ2: 0 | AR2: 0 | AS2: 0 | AT2: 12970.09374 | AU2: 0 | AV2: 92.97548329 | AW2: -15.58507107 | AX2: 10.85459313 | AY2: -208.5889799 | AZ2: 0 | BA2: -27.62487274 | BB2: 408.3334924 | BC2: 56.28514706 | BD2: 1348.203639 | BE2: 65.87260477 | BF2: 7446.62909 | BG2: 4659.206878 | BH2: 351.6485403 | BI2: 0 | BJ2: 0 | BK2: 0 | BL2: 0 | BU2: 7.647566183e-09 | BV2: 522246.7829 | CI2: 869565.9143 | CJ2: 18347.49608 | CM2: 0 | CN2: 7.647566183e-09 | CO2: 3449.5467 | CP2: 14898.84071 | CQ2: 31 | CR2: 18030.84014 | CS2: 2069.050034 | CT2: 1494.670154 | CU2: 0 | CV2: 0 | CW2: 0 | CX2: 598.0019832 | CY2: -70.64573689 | CZ2: 90.67337069 | DA2: 0 | DB2: -23.22792552 | DC2: 13821.93895 | DD2: 202.3224222 | DE2: 1.789736643 | DF2: 36.63024203 | DG2: 126.5890928 | DH2: 0 | DI2: -412.4886511 | DJ2: 23.73204595 | DK2: 0 | DL2: 0 | DM2: 150.1331025 | DN2: -2.306285471 | DO2: -75.31804536 | DP2: -0.7043530767 | DQ2: 0 | DR2: 0 | DS2: 0 | DU2: 4047.445621 | DV2: 0 | DW2: 345.0360531 | DX2: -6.612487239 | DY2: 3373.40271 | DZ2: 14721.1714 | EA2: 76.14399 | EB2: 177.66931 | EC2: 0 | ED2: 397.7625648 | EE2: 1.054131339 | EF2: 0.05150436852 | EG2: 5.822358629 | EH2: 3.642933339 | EI2: 21.96408197 | EJ2: 29.00758853 | EK2: 0 | EL2: 0 | EM2: 0 | EN2: 5.313476555 | EO2: 0 | EP2: 165 | EQ2: 0 | ER2: 0 | ES2: 0 | EU2: 0 | EZ2: 0 | FA2: 0 | FB2: 0 | FC2: 0
A3: 2128 | B3: Regular | C3: Azul | D3: A2 | E3: Industrial | F3: Não se aplica | G3: Não se aplica | H3: Não se aplica | I3: Fora ponta | J3: LIVRE | K3: 2020-07-01 | L3: 59079 | M3: 59079 | N3: 0 | O3: 0 | P3: 0 | Q3: 0 | R3: 11.85 | U3: 700086.15 | W3: 700086.15 | X3: 718991.43 | Y3: 0 | Z3: 0 | AA3: 0 | AB3: 0 | AC3: 7899.921829 | AD3: 36003.36727 | AE3: 20661.80246 | AI3: 0 | AJ3: 0 | AK3: 0 | AL3: 0 | AM3: 0 | AN3: 0 | AO3: 362020.9301 | AP3: 273693.5637 | AQ3: 0 | AR3: 0 | AU3: 0 | AV3: 0 | AW3: 0 | AZ3: 0 | BB3: 0 | BC3: 260.2052468 | BD3: 0 | BE3: 0 | BG3: 0 | BH3: 0 | BI3: 0 | BJ3: 0 | BK3: 0 | BL3: 0 | BV3: 0 | CI3: 718991.43 | CJ3: 18905.25 | CO3: 18905.28 | CP3: 0 | CQ3: 31 | CR3: 18536.73502 | CS3: 10562.29214 | CT3: 7630.140674 | CU3: 0 | CV3: 0 | CZ3: 462.8784297 | DA3: 0 | DB3: -118.5762216 | DE3: 0 | DF3: 0 | DG3: 0 | DH3: 0 | DI3: 0 | DK3: 0 | DL3: 0 | DN3: 0 | DO3: 0 | DP3: 0 | DQ3: 0 | DR3: 0 | DS3: 0 | DU3: 20661.80246 | DW3: 0 | DX3: 0 | DY3: 18905.28 | EA3: 0 | EC3: 0 | EE3: 0 | EF3: 0 | EH3: 0 | EI3: 112.1244274 | EJ3: 148.0808194 | EK3: 0 | EL3: 0 | EO3: 0 | EP3: 165 | EU3: 0 | EZ3: 0 | FA3: 0 | FB3: 0 | FC3: 0
A4: 2224 | B4: Regular | C4: Azul | D4: A2 | E4: Industrial | F4: Não se aplica | G4: Fonte incentivada | H4: Não se aplica | I4: Fora ponta | J4: LIVRE | K4: 2020-07-01 | L4: 17815 | M4: 8.41883455 | N4: 0 | O4: 0 | P4: 0 | Q4: 0 | R4: 11.85 | U4: 211107.75 | W4: 211107.75 | X4: 216808.55 | Y4: 0 | Z4: 0 | AA4: 0 | AB4: 0 | AC4: 2382.184996 | AD4: 10856.64936 | AE4: 6230.471247 | AI4: 0 | AJ4: 0 | AK4: 0 | AL4: 0 | AM4: 0 | AN4: 0 | AO4: 109165.742 | AP4: 82531.03196 | AQ4: 0 | AR4: 0 | AU4: 0 | AV4: 0 | AW4: 0 | AZ4: 0 | BB4: 0 | BC4: 78.46369221 | BD4: 0 | BE4: 0 | BG4: 0 | BH4: 0 | BI4: 0 | BJ4: 0 | BK4: 0 | BL4: 0 | BN4: 216706.0928 | BV4: 0 | CI4: 102.4714 | CJ4: 2.678210582 | CO4: 5700.8 | CP4: 0 | CQ4: 31 | CR4: 5589.666962 | CS4: 3185.010486 | CT4: 2300.833733 | CU4: 0 | CV4: 0 | CZ4: 139.5788559 | DA4: 0 | DB4: -35.75611278 | DE4: 0 | DF4: 0 | DG4: 0 | DH4: 0 | DI4: 0 | DK4: 0 | DL4: 0 | DN4: 0 | DO4: 0 | DP4: 0 | DQ4: 0 | DR4: 0 | DS4: 0 | DU4: 6230.471247 | DW4: 0 | DX4: 0 | DY4: 5700.8 | EA4: 0 | EC4: 0 | EE4: 0 | EF4: 0 | EH4: 0 | EI4: 33.81060401 | EJ4: 44.6530882 | EK4: 0 | EL4: 0 | EO4: 0 | EP4: 165 | EU4: 0 | EZ4: 0 | FA4: 0 | FB4: 0 | FC4: 0
A5: 208 | B5: Regular | C5: Azul | D5: A2 | E5: Industrial | F5: Não se aplica | G5: Não se aplica | H5: Não se aplica | I5: Fora ponta | J5: CATIVO | K5: 2020-08-01 | L5: 9496 | M5: 9496 | N5: 2261.987 | O5: 2261.987 | P5: 2261.987 | Q5: 2261.987 | R5: 11.85 | S5: 52.66 | T5: 228.68 | U5: 112527.6 | V5: 636387.4226 | W5: 748915.0226 | X5: 765005.4076 | Y5: 0 | Z5: 96015.8078 | AA5: 0 | AB5: 0 | AC5: 1269.785502 | AD5: 5786.962805 | AE5: 3321.052762 | AF5: 453377.9625 | AG5: 24930.92339 | AH5: 15284.18438 | AI5: 0 | AJ5: 0 | AK5: 5655.373459 | AL5: 17149.91014 | AM5: 0 | AN5: 47.67867029 | AO5: 58189.04775 | AP5: 43991.8428 | AQ5: 0 | AR5: 0 | AS5: 0 | AT5: 11558.96221 | AU5: 0 | AV5: 82.85985585 | AW5: -13.88943297 | AX5: 9.673625675 | AY5: -185.8947348 | AZ5: 0 | BA5: -24.61931783 | BB5: 363.9072702 | BC5: 46.5591889 | BD5: 1201.520608 | BE5: 58.70573987 | BF5: 6636.444266 | BG5: 4152.290439 | BH5: 313.3895768 | BI5: 0 | BJ5: 0 | BK5: 0 | BL5: 0 | BU5: 6.815519631e-09 | BV5: 465426.9235 | CI5: 765006.2689 | CJ5: 16091.21632 | CM5: 0 | CN5: 6.815519631e-09 | CO5: 2812.5213 | CP5: 13277.86369 | CQ5: 31 | CR5: 15812.48852 | CS5: 1697.718752 | CT5: 1226.422516 | CU5: 0 | CV5: 0 | CW5: 0 | CX5: 532.9400437 | CY5: -62.95956061 | CZ5: 74.40027029 | DA5: 0 | DB5: -19.0592224 | DC5: 12318.12763 | DD5: 180.3099714 | DE5: 1.595015321 | DF5: 32.64491313 | DG5: 112.8163427 | DH5: 0 | DI5: -367.6103524 | DJ5: 21.15002619 | DK5: 0 | DL5: 0 | DM5: 133.7987908 | DN5: -2.05536422 | DO5: -67.1235272 | DP5: -0.6277202585 | DQ5: 0 | DR5: 0 | DS5: 0 | DU5: 3321.052762 | DV5: 0 | DW5: 307.4965207 | DX5: -5.893056106 | DY5: 2744.66169 | DZ5: 13119.5246 | EA5: 67.85961 | EB5: 158.33909 | EC5: 0 | ED5: 354.4864475 | EE5: 0.9394430415 | EF5: 0.04590075147 | EG5: 5.188892595 | EH5: 3.246586311 | EI5: 18.02220015 | EJ5: 23.80161244 | EK5: 0 | EL5: 0 | EM5: 0 | EN5: 4.735376315 | EO5: 0 | EP5: 165 | EQ5: 0 | ER5: 0 | ES5: 0 | EU5: 0 | EZ5: 0 | FA5: 0 | FB5: 0 | FC5: 0
A6: 2337 | B6: Regular | C6: Azul | D6: A2 | E6: Industrial | F6: Não se aplica | G6: Não se aplica | H6: Não se aplica | I6: Fora ponta | J6: LIVRE | K6: 2020-08-01 | L6: 58110 | M6: 58110 | N6: 0 | O6: 0 | P6: 0 | Q6: 0 | R6: 11.85 | U6: 688603.5 | W6: 688603.5 | X6: 707198.7 | Y6: 0 | Z6: 0 | AA6: 0 | AB6: 0 | AC6: 7770.34915 | AD6: 35412.84842 | AE6: 20322.91239 | AI6: 0 | AJ6: 0 | AK6: 0 | AL6: 0 | AM6: 0 | AN6: 0 | AO6: 356083.1471 | AP6: 269204.5056 | AQ6: 0 | AR6: 0 | AU6: 0 | AV6: 0 | AW6: 0 | AZ6: 0 | BB6: 0 | BC6: 255.937421 | BD6: 0 | BE6: 0 | BG6: 0 | BH6: 0 | BI6: 0 | BJ6: 0 | BK6: 0 | BL6: 0 | BV6: 0 | CI6: 707198.7 | CJ6: 18595.17 | CO6: 18595.2 | CP6: 0 | CQ6: 31 | CR6: 18232.69981 | CS6: 10389.05188 | CT6: 7504.992883 | CU6: 0 | CV6: 0 | CZ6: 455.2864055 | DA6: 0 | DB6: -116.631362 | DE6: 0 | DF6: 0 | DG6: 0 | DH6: 0 | DI6: 0 | DK6: 0 | DL6: 0 | DN6: 0 | DO6: 0 | DP6: 0 | DQ6: 0 | DR6: 0 | DS6: 0 | DU6: 20322.91239 | DW6: 0 | DX6: 0 | DY6: 18595.2 | EA6: 0 | EC6: 0 | EE6: 0 | EF6: 0 | EH6: 0 | EI6: 110.2853887 | EJ6: 145.6520323 | EK6: 0 | EL6: 0 | EO6: 0 | EP6: 165 | EU6: 0 | EZ6: 0 | FA6: 0 | FB6: 0 | FC6: 0
A7: 2433 | B7: Regular | C7: Azul | D7: A2 | E7: Industrial | F7: Não se aplica | G7: Fonte incentivada | H7: Não se aplica | I7: Fora ponta | J7: LIVRE | K7: 2020-08-01 | L7: 20638 | M7: 2497.472898 | N7: 0 | O7: 0 | P7: 0 | Q7: 0 | R7: 11.85 | U7: 244560.3 | W7: 244560.3 | X7: 251164.46 | Y7: 0 | Z7: 0 | AA7: 0 | AB7: 0 | AC7: 2759.670724 | AD7: 12577.01541 | AE7: 7217.763996 | AI7: 0 | AJ7: 0 | AK7: 0 | AL7: 0 | AM7: 0 | AN7: 0 | AO7: 126464.3605 | AP7: 95609.06189 | AQ7: 0 | AR7: 0 | AU7: 0 | AV7: 0 | AW7: 0 | AZ7: 0 | BB7: 0 | BC7: 90.89720347 | BD7: 0 | BE7: 0 | BG7: 0 | BH7: 0 | BI7: 0 | BJ7: 0 | BK7: 0 | BL7: 0 | BN7: 220770.2148 | BV7: 0 | CI7: 30394.2099 | CJ7: 799.1260568 | CO7: 6604.16 | CP7: 0 | CQ7: 31 | CR7: 6475.416601 | CS7: 3689.713522 | CT7: 2665.428379 | CU7: 0 | CV7: 0 | CZ7: 161.6967964 | DA7: 0 | DB7: -41.42209686 | DE7: 0 | DF7: 0 | DG7: 0 | DH7: 0 | DI7: 0 | DK7: 0 | DL7: 0 | DN7: 0 | DO7: 0 | DP7: 0 | DQ7: 0 | DR7: 0 | DS7: 0 | DU7: 7217.763996 | DW7: 0 | DX7: 0 | DY7: 6604.16 | EA7: 0 | EC7: 0 | EE7: 0 | EF7: 0 | EH7: 0 | EI7: 39.16829894 | EJ7: 51.72890453 | EK7: 0 | EL7: 0 | EO7: 0 | EP7: 165 | EU7: 0 | EZ7: 0 | FA7: 0 | FB7: 0 | FC7: 0
A8: 377 | B8: Regular | C8: Azul | D8: A2 | E8: Industrial | F8: Não se aplica | G8: Não se aplica | H8: Não se aplica | I8: Fora ponta | J8: CATIVO | K8: 2020-09-01 | L8: 13142 | M8: 13142 | N8: 2371.942 | O8: 2371.942 | P8: 2371.942 | Q8: 2371.942 | R8: 11.85 | S8: 52.66 | T8: 228.68 | U8: 155732.7 | V8: 667322.1623 | W8: 823054.8623 | X8: 840946.4076 | Y8: 0 | Z8: 100683.1282 | AA8: 0 | AB8: 0 | AC8: 1757.32109 | AD8: 8008.873755 | AE8: 4596.174748 | AF8: 475416.6276 | AG8: 26142.81351 | AH8: 16027.14731 | AI8: 0 | AJ8: 0 | AK8: 5930.280693 | AL8: 17983.56585 | AM8: 0 | AN8: 49.99632649 | AO8: 80530.79881 | AP8: 60882.56088 | AQ8: 0 | AR8: 0 | AS8: 0 | AT8: 12120.8424 | AU8: 0 | AV8: 86.88766656 | AW8: -14.56459715 | AX8: 10.14385981 | AY8: -194.9310624 | AZ8: 0 | BA8: -25.81606082 | BB8: 381.5967724 | BC8: 62.84767556 | BD8: 1259.926425 | BE8: 61.559421 | BF8: 6959.04127 | BG8: 4354.132932 | BH8: 328.6234181 | BI8: 0 | BJ8: 0 | BK8: 0 | BL8: 0 | BU8: 7.146821474e-09 | BV8: 488051.2876 | CI8: 840945.8334 | CJ8: 17890.94112 | CM8: 0 | CN8: 7.146821474e-09 | CO8: 3968.2458 | CP8: 13923.29954 | CQ8: 30 | CR8: 17580.27551 | CS8: 2349.559798 | CT8: 1697.308836 | CU8: 0 | CV8: 0 | CW8: 0 | CX8: 558.846215 | CY8: -66.02001961 | CZ8: 102.9663387 | DA8: 0 | DB8: -26.37703251 | DC8: 12916.91079 | DD8: 189.0748242 | DE8: 1.672548883 | DF8: 34.23177964 | DG8: 118.3003357 | DH8: 0 | DI8: -385.479861 | DJ8: 22.17812721 | DK8: 0 | DL8: 0 | DM8: 140.3027389 | DN8: -2.155275303 | DO8: -70.38639628 | DP8: -0.6582336881 | DQ8: 0 | DR8: 0 | DS8: 0 | DU8: 4596.174748 | DV8: 0 | DW8: 322.443901 | DX8: -6.179517073 | DY8: 3897.08754 | DZ8: 13757.2636 | EA8: 71.15826 | EB8: 166.03594 | EC8: 0 | ED8: 371.7180043 | EE8: 0.9851092896 | EF8: 0.04813198318 | EG8: 5.441124233 | EH8: 3.404402602 | EI8: 24.9418444 | EJ8: 32.9402686 | EK8: 0 | EL8: 0 | EM8: 0 | EN8: 4.965562564 | EO8: 0 | EP8: 165 | EQ8: 0 | ER8: 0 | ES8: 0 | EU8: 0 | EZ8: 0 | FA8: 0 | FB8: 0 | FC8: 0
A9: 2546 | B9: Regular | C9: Azul | D9: A2 | E9: Industrial | F9: Não se aplica | G9: Não se aplica | H9: Não se aplica | I9: Fora ponta | J9: LIVRE | K9: 2020-09-01 | L9: 57948 | M9: 57948 | N9: 0 | O9: 0 | P9: 0 | Q9: 0 | R9: 11.85 | U9: 686683.8 | W9: 686683.8 | X9: 705227.16 | Y9: 0 | Z9: 0 | AA9: 0 | AB9: 0 | AC9: 7748.686845 | AD9: 35314.12391 | AE9: 20266.25584 | AI9: 0 | AJ9: 0 | AK9: 0 | AL9: 0 | AM9: 0 | AN9: 0 | AO9: 355090.4527 | AP9: 268454.0129 | AQ9: 0 | AR9: 0 | AU9: 0 | AV9: 0 | AW9: 0 | AZ9: 0 | BB9: 0 | BC9: 255.2239145 | BD9: 0 | BE9: 0 | BG9: 0 | BH9: 0 | BI9: 0 | BJ9: 0 | BK9: 0 | BL9: 0 | BV9: 0 | CI9: 705227.16 | CJ9: 18543.33 | CO9: 18543.36 | CP9: 0 | CQ9: 30 | CR9: 18181.87039 | CS9: 10360.08912 | CT9: 7484.070343 | CU9: 0 | CV9: 0 | CZ9: 454.0171507 | DA9: 0 | DB9: -116.3062152 | DE9: 0 | DF9: 0 | DG9: 0 | DH9: 0 | DI9: 0 | DK9: 0 | DL9: 0 | DN9: 0 | DO9: 0 | DP9: 0 | DQ9: 0 | DR9: 0 | DS9: 0 | DU9: 20266.25584 | DW9: 0 | DX9: 0 | DY9: 18543.36 | EA9: 0 | EC9: 0 | EE9: 0 | EF9: 0 | EH9: 0 | EI9: 109.9779333 | EJ9: 145.2459812 | EK9: 0 | EL9: 0 | EO9: 0 | EP9: 165 | EU9: 0 | EZ9: 0 | FA9: 0 | FB9: 0 | FC9: 0
A10: 2642 | B10: Regular | C10: Azul | D10: A2 | E10: Industrial | F10: Não se aplica | G10: Fonte incentivada | H10: Não se aplica | I10: Fora ponta | J10: LIVRE | K10: 2020-09-01 | L10: 19224 | M10: 2873.736358 | N10: 0 | O10: 0 | P10: 0 | Q10: 0 | R10: 11.85 | U10: 227804.4 | W10: 227804.4 | X10: 233956.08 | Y10: 0 | Z10: 0 | AA10: 0 | AB10: 0 | AC10: 2570.593565 | AD10: 11715.30886 | AE10: 6723.243292 | AI10: 0 | AJ10: 0 | AK10: 0 | AL10: 0 | AM10: 0 | AN10: 0 | AO10: 117799.7319 | AP10: 89058.46525 | AQ10: 0 | AR10: 0 | AU10: 0 | AV10: 0 | AW10: 0 | AZ10: 0 | BB10: 0 | BC10: 84.66943694 | BD10: 0 | BE10: 0 | BG10: 0 | BH10: 0 | BI10: 0 | BJ10: 0 | BK10: 0 | BL10: 0 | BN10: 198982.7085 | BV10: 0 | CI10: 34973.4158 | CJ10: 919.6099596 | CO10: 6151.68 | CP10: 0 | CQ10: 30 | CR10: 6031.757377 | CS10: 3436.915048 | CT10: 2482.808177 | CU10: 0 | CV10: 0 | CZ10: 150.6182388 | DA10: 0 | DB10: -38.58408712 | DE10: 0 | DF10: 0 | DG10: 0 | DH10: 0 | DI10: 0 | DK10: 0 | DL10: 0 | DN10: 0 | DO10: 0 | DP10: 0 | DQ10: 0 | DR10: 0 | DS10: 0 | DU10: 6723.243292 | DW10: 0 | DX10: 0 | DY10: 6151.68 | EA10: 0 | EC10: 0 | EE10: 0 | EF10: 0 | EH10: 0 | EI10: 36.48470679 | EJ10: 48.18473015 | EK10: 0 | EL10: 0 | EO10: 0 | EP10: 165 | EU10: 0 | EZ10: 0 | FA10: 0 | FB10: 0 | FC10: 0
A11: 556 | B11: Regular | C11: Azul | D11: A2 | E11: Industrial | F11: Não se aplica | G11: Não se aplica | H11: Não se aplica | I11: Fora ponta | J11: CATIVO | K11: 2020-10-01 | L11: 8740 | M11: 8740 | N11: 771.301 | O11: 771.301 | P11: 771.301 | Q11: 771.301 | R11: 11.85 | S11: 52.66 | T11: 228.68 | U11: 103569 | V11: 216997.8233 | W11: 320566.8233 | X11: 327814.0301 | Y11: 0 | Z11: 32739.83828 | AA11: 0 | AB11: 0 | AC11: 1168.694744 | AD11: 5326.248411 | AE11: 3056.655554 | AF11: 154594.556 | AG11: 8501.041847 | AH11: 5211.659792 | AI11: 0 | AJ11: 0 | AK11: 1928.390926 | AL11: 5847.842115 | AM11: 0 | AN11: 16.2576558 | AO11: 53556.47402 | AP11: 40489.54361 | AQ11: 0 | AR11: 0 | AS11: 0 | AT11: 3941.419252 | AU11: 0 | AV11: 28.25387134 | AW11: -4.736072107 | AX11: 3.298549972 | AY11: -63.3870994 | AZ11: 0 | BA11: -8.394789387 | BB11: 124.0864963 | BC11: 40.1088024 | BD11: 409.6991037 | BE11: 20.01770827 | BF11: 2262.920211 | BG11: 1415.863914 | BH11: 106.8607795 | BI11: 0 | BJ11: 0 | BK11: 0 | BL11: 0 | BU11: 2.323982015e-09 | BV11: 158703.0569 | CI11: 327813.743 | CJ11: 7246.88966 | CM11: 0 | CN11: 2.323982015e-09 | CO11: 2719.6699 | CP11: 4527.53687 | CQ11: 31 | CR11: 7118.126034 | CS11: 1562.559172 | CT11: 1128.783992 | CU11: 0 | CV11: 0 | CW11: 0 | CX11: 181.7239395 | CY11: -21.46819237 | CZ11: 68.47708112 | DA11: 0 | DB11: -17.54187065 | DC11: 4200.282388 | DD11: 61.48278539 | DE11: 0.5438744395 | DF11: 11.13138764 | DG11: 38.46854908 | DH11: 0 | DI11: -125.3491874 | DJ11: 7.211817023 | DK11: 0 | DL11: 0 | DM11: 45.62322468 | DN11: -0.7008459721 | DO11: -22.88803767 | DP11: -0.2140424605 | DQ11: 0 | DR11: 0 | DS11: 0 | DU11: 3056.655554 | DV11: 0 | DW11: 104.8513426 | DX11: -2.009436866 | DY11: 2696.53087 | DZ11: 4473.5458 | EA11: 23.13903 | EB11: 53.99107 | EC11: 0 | ED11: 120.874148 | EE11: 0.3203348902 | EF11: 0.01565141422 | EG11: 1.769328492 | EH11: 1.107033448 | EI11: 16.58740831 | EJ11: 21.90670732 | EK11: 0 | EL11: 0 | EM11: 0 | EN11: 1.614686772 | EO11: 0 | EP11: 165 | EQ11: 0 | ER11: 0 | ES11: 0 | EU11: 0 | EZ11: 0 | FA11: 0 | FB11: 0 | FC11: 0
A12: 2758 | B12: Regular | C12: Azul | D12: A2 | E12: Industrial | F12: Não se aplica | G12: Não se aplica | H12: Não se aplica | I12: Fora ponta | J12: LIVRE | K12: 2020-10-01 | L12: 58423 | M12: 58423 | N12: 0 | O12: 0 | P12: 0 | Q12: 0 | R12: 11.85 | U12: 692312.55 | W12: 692312.55 | X12: 711007.91 | Y12: 0 | Z12: 0 | AA12: 0 | AB12: 0 | AC12: 7812.202864 | AD12: 35603.59393 | AE12: 20432.37843 | AI12: 0 | AJ12: 0 | AK12: 0 | AL12: 0 | AM12: 0 | AN12: 0 | AO12: 358001.1307 | AP12: 270654.5316 | AQ12: 0 | AR12: 0 | AU12: 0 | AV12: 0 | AW12: 0 | AZ12: 0 | BB12: 0 | BC12: 257.315986 | BD12: 0 | BE12: 0 | BG12: 0 | BH12: 0 | BI12: 0 | BJ12: 0 | BK12: 0 | BL12: 0 | BV12: 0 | CI12: 711007.91 | CJ12: 18695.33 | CO12: 18695.36 | CP12: 0 | CQ12: 31 | CR12: 18330.90726 | CS12: 10445.01081 | CT12: 7545.417299 | CU12: 0 | CV12: 0 | CZ12: 457.7387312 | DA12: 0 | DB12: -117.2595777 | DE12: 0 | DF12: 0 | DG12: 0 | DH12: 0 | DI12: 0 | DK12: 0 | DL12: 0 | DN12: 0 | DO12: 0 | DP12: 0 | DQ12: 0 | DR12: 0 | DS12: 0 | DU12: 20432.37843 | DW12: 0 | DX12: 0 | DY12: 18695.36 | EA12: 0 | EC12: 0 | EE12: 0 | EF12: 0 | EH12: 0 | EI12: 110.8794229 | EJ12: 146.4365631 | EK12: 0 | EL12: 0 | EO12: 0 | EP12: 165 | EU12: 0 | EZ12: 0 | FA12: 0 | FB12: 0 | FC12: 0
A13: 2854 | B13: Regular | C13: Azul | D13: A2 | E13: Industrial | F13: Não se aplica | G13: Fonte incentivada | H13: Não se aplica | I13: Fora ponta | J13: LIVRE | K13: 2020-10-01 | L13: 24190 | M13: 0.2276279 | N13: 0 | O13: 0 | P13: 0 | Q13: 0 | R13: 11.85 | U13: 286651.5 | W13: 286651.5 | X13: 294392.3 | Y13: 0 | Z13: 0 | AA13: 0 | AB13: 0 | AC13: 3234.636826 | AD13: 14741.64177 | AE13: 8460.011196 | AI13: 0 | AJ13: 0 | AK13: 0 | AL13: 0 | AM13: 0 | AN13: 0 | AO13: 148230.1037 | AP13: 112064.3089 | AQ13: 0 | AR13: 0 | AU13: 0 | AV13: 0 | AW13: 0 | AZ13: 0 | BB13: 0 | BC13: 106.5414939 | BD13: 0 | BE13: 0 | BG13: 0 | BH13: 0 | BI13: 0 | BJ13: 0 | BK13: 0 | BL13: 0 | BN13: 294389.5298 | BV13: 0 | CI13: 2.7991 | CJ13: 0.071709385 | CO13: 7740.8 | CP13: 0 | CQ13: 31 | CR13: 7589.898613 | CS13: 4324.749012 | CT13: 3124.17446 | CU13: 0 | CV13: 0 | CZ13: 189.5263836 | DA13: 0 | DB13: -48.55124155 | DE13: 0 | DF13: 0 | DG13: 0 | DH13: 0 | DI13: 0 | DK13: 0 | DL13: 0 | DN13: 0 | DO13: 0 | DP13: 0 | DQ13: 0 | DR13: 0 | DS13: 0 | DU13: 8460.011196 | DW13: 0 | DX13: 0 | DY13: 7740.8 | EA13: 0 | EC13: 0 | EE13: 0 | EF13: 0 | EH13: 0 | EI13: 45.90954314 | EJ13: 60.6319508 | EK13: 0 | EL13: 0 | EO13: 0 | EP13: 165 | EU13: 0 | EZ13: 0 | FA13: 0 | FB13: 0 | FC13: 0
A14: 733 | B14: Regular | C14: Azul | D14: A2 | E14: Industrial | F14: Não se aplica | G14: Não se aplica | H14: Não se aplica | I14: Fora ponta | J14: CATIVO | K14: 2020-11-01 | L14: 6358 | M14: 6358 | N14: 480.95 | O14: 480.95 | P14: 480.95 | Q14: 480.95 | R14: 11.85 | S14: 52.66 | T14: 228.68 | U14: 75342.3 | V14: 135310.473 | W14: 210652.773 | X14: 215462.4145 | Y14: 0 | Z14: 20415.1495 | AA14: 0 | AB14: 0 | AC14: 850.178625 | AD14: 3874.632426 | AE14: 2223.59451 | AF14: 96398.48994 | AG14: 5300.882634 | AH14: 3249.766015 | AI14: 0 | AJ14: 0 | AK14: 1202.461316 | AL14: 3646.461842 | AM14: 0 | AN14: 10.13757218 | AO14: 38960.19014 | AP14: 29454.52154 | AQ14: 0 | AR14: 0 | AS14: 0 | AT14: 2457.698861 | AU14: 0 | AV14: 17.61789421 | AW14: -2.953210069 | AX14: 2.056833336 | AY14: -39.52545823 | AZ14: 0 | BA14: -5.234628188 | BB14: 77.37498121 | BC14: 29.00977655 | BD14: 255.4706709 | BE14: 12.48217854 | BF14: 1411.059334 | BG14: 882.8716021 | BH14: 66.63376799 | BI14: 0 | BJ14: 0 | BK14: 0 | BL14: 0 | BU14: 1.449134839e-09 | BV14: 98960.37372 | CI14: 215462.4145 | CJ14: 4809.6115 | CM14: 0 | CN14: 1.449134839e-09 | CO14: 1986.465 | CP14: 2823.1765 | CQ14: 30 | CR14: 4723.487359 | CS14: 1136.699224 | CT14: 821.1451515 | CU14: 0 | CV14: 0 | CW14: 0 | CX14: 113.3152021 | CY14: -13.3866378 | CZ14: 49.8143343 | DA14: 0 | DB14: -12.76100842 | DC14: 2619.114735 | DD14: 38.33801024 | DE14: 0.3391366168 | DF14: 6.941052697 | DG14: 23.98732619 | DH14: 0 | DI14: -78.16234089 | DJ14: 4.4969777 | DK14: 0 | DL14: 0 | DM14: 28.44867297 | DN14: -0.4370172868 | DO14: -14.27199202 | DP14: -0.1334676363 | DQ14: 0 | DR14: 0 | DS14: 0 | DU14: 2223.59451 | DV14: 0 | DW14: 65.38076993 | DX14: -1.252998065 | DY14: 1972.0365 | DZ14: 2789.51 | EA14: 14.4285 | EB14: 33.6665 | EC14: 0 | ED14: 75.37189955 | EE14: 0.199747006 | EF14: 0.009759546106 | EG14: 1.103276851 | EH14: 0.6902982583 | EI14: 12.06667529 | EJ14: 15.9362523 | EK14: 0 | EL14: 0 | EM14: 0 | EN14: 1.006848951 | EO14: 0 | EP14: 165 | EQ14: 0 | ER14: 0 | ES14: 0 | EU14: 0 | EZ14: 0 | FA14: 0 | FB14: 0 | FC14: 0
A15: 734 | B15: Refaturamento - Regular | C15: Azul | D15: A2 | E15: Industrial | F15: Não se aplica | G15: Não se aplica | H15: Não se aplica | I15: Fora ponta | J15: CATIVO | K15: 2020-11-01 | L15: -1557 | M15: -1557 | N15: -1.069 | O15: -1.069 | P15: -1.069 | Q15: -1.069 | R15: 11.85 | S15: 52.66 | T15: 228.68 | U15: -18450.45 | V15: -300.75246 | W15: -18751.20246 | X15: -19255.61059 | Y15: 0 | Z15: -45.37643167 | AA15: 0 | AB15: 0 | AC15: -208.1988234 | AD15: -948.8522628 | AE15: -544.5323453 | AF15: -214.2634073 | AG15: -11.78218845 | AH15: -7.223203805 | AI15: 0 | AJ15: 0 | AK15: -2.672691854 | AL15: -8.10493338 | AM15: 0 | AN15: -0.02253262222 | AO15: -9540.895887 | AP15: -7213.068581 | AQ15: 0 | AR15: 0 | AS15: 0 | AT15: -5.462688601 | AU15: 0 | AV15: -0.03915901635 | AW15: 0.006564053569 | AX15: -0.004571691104 | AY15: 0.0878526143 | AZ15: 0 | BA15: 0.01163492574 | BB15: -0.1719801537 | BC15: -6.859828071 | BD15: -0.5678306419 | BE15: -0.02774394191 | BF15: -3.136339387 | BG15: -1.962344823 | BH15: -0.148105828 | BI15: 0 | BJ15: 0 | BK15: 0 | BL15: 0 | BU15: -3.220969212e-12 | BV15: -219.9576661 | CI15: -19255.8977 | CJ15: -504.72524 | CM15: 0 | CN15: -3.220969212e-12 | CO15: -498.1331 | CP15: -6.27503 | CQ15: 30 | CR15: -494.5919591 | CS15: -278.3643742 | CT15: -201.0888646 | CU15: 0 | CV15: 0 | CW15: 0 | CX15: -0.2518639173 | CY15: 0.02975426927 | CZ15: -12.19894912 | DA15: 0 | DB15: 3.125022038 | DC15: -5.821465125 | DD15: -0.08521329232 | DE15: -0.0007537936238 | DF15: -0.01542776865 | DG15: -0.05331625262 | DH15: 0 | DI15: 0.1737302057 | DJ15: -0.0099953616 | DK15: 0 | DL15: 0 | DM15: -0.06323241793 | DN15: 0.0009713514493 | DO15: 0.03172213217 | DP15: 0.0002966564159 | DQ15: 0 | DR15: 0 | DS15: 0 | DU15: -544.5323453 | DV15: 0 | DW15: -0.1453208089 | DX15: 0.00278501909 | DY15: -498.10103 | DZ15: -6.2002 | EA15: -0.03207 | EB15: -0.07483 | EC15: 0 | ED15: -0.1675279356 | EE15: -0.0004439745283 | EF15: -2.169238962e-05 | EG15: -0.002452236102 | EH15: -0.001534315081 | EI15: -2.954987957 | EJ15: -3.902602208 | EK15: 0 | EL15: 0 | EM15: 0 | EN15: -0.002237907327 | EO15: 0 | EP15: 165 | EQ15: 0 | ER15: 0 | ES15: 0 | EU15: 0 | EZ15: 0 | FA15: 0 | FB15: 0 | FC15: 0
A16: 2970 | B16: Regular | C16: Azul | D16: A2 | E16: Industrial | F16: Não se aplica | G16: Não se aplica | H16: Não se aplica | I16: Fora ponta | J16: LIVRE | K16: 2020-11-01 | L16: 58107 | M16: 58107 | N16: 0 | O16: 0 | P16: 0 | Q16: 0 | R16: 11.85 | U16: 688567.95 | W16: 688567.95 | X16: 707162.19 | Y16: 0 | Z16: 0 | AA16: 0 | AB16: 0 | AC16: 7769.947997 | AD16: 35411.02019 | AE16: 20321.86319 | AI16: 0 | AJ16: 0 | AK16: 0 | AL16: 0 | AM16: 0 | AN16: 0 | AO16: 356064.7639 | AP16: 269190.6076 | AQ16: 0 | AR16: 0 | AU16: 0 | AV16: 0 | AW16: 0 | AZ16: 0 | BB16: 0 | BC16: 255.9242079 | BD16: 0 | BE16: 0 | BG16: 0 | BH16: 0 | BI16: 0 | BJ16: 0 | BK16: 0 | BL16: 0 | BV16: 0 | CI16: 707162.19 | CJ16: 18594.21 | CO16: 18594.24 | CP16: 0 | CQ16: 30 | CR16: 18231.75853 | CS16: 10388.51554 | CT16: 7504.605429 | CU16: 0 | CV16: 0 | CZ16: 455.2629008 | DA16: 0 | DB16: -116.6253407 | DE16: 0 | DF16: 0 | DG16: 0 | DH16: 0 | DI16: 0 | DK16: 0 | DL16: 0 | DN16: 0 | DO16: 0 | DP16: 0 | DQ16: 0 | DR16: 0 | DS16: 0 | DU16: 20321.86319 | DW16: 0 | DX16: 0 | DY16: 18594.24 | EA16: 0 | EC16: 0 | EE16: 0 | EF16: 0 | EH16: 0 | EI16: 110.279695 | EJ16: 145.6445128 | EK16: 0 | EL16: 0 | EO16: 0 | EP16: 165 | EU16: 0 | EZ16: 0 | FA16: 0 | FB16: 0 | FC16: 0
A17: 3066 | B17: Regular | C17: Azul | D17: A2 | E17: Industrial | F17: Não se aplica | G17: Fonte incentivada | H17: Não se aplica | I17: Fora ponta | J17: LIVRE | K17: 2020-11-01 | L17: 20726 | M17: 88.75950952 | N17: 0 | O17: 0 | P17: 0 | Q17: 0 | R17: 11.85 | U17: 245603.1 | W17: 245603.1 | X17: 252235.42 | Y17: 0 | Z17: 0 | AA17: 0 | AB17: 0 | AC17: 2771.437902 | AD17: 12630.64354 | AE17: 7248.540391 | AI17: 0 | AJ17: 0 | AK17: 0 | AL17: 0 | AM17: 0 | AN17: 0 | AO17: 127003.6019 | AP17: 96016.73693 | AQ17: 0 | AR17: 0 | AU17: 0 | AV17: 0 | AW17: 0 | AZ17: 0 | BB17: 0 | BC17: 91.28478725 | BD17: 0 | BE17: 0 | BG17: 0 | BH17: 0 | BI17: 0 | BJ17: 0 | BK17: 0 | BL17: 0 | BN17: 251155.2168 | BV17: 0 | CI17: 1080.2092 | CJ17: 28.37901219 | CO17: 6632.32 | CP17: 0 | CQ17: 30 | CR17: 6503.027642 | CS17: 3705.446384 | CT17: 2676.79371 | CU17: 0 | CV17: 0 | CZ17: 162.3862681 | DA17: 0 | DB17: -41.59871982 | DE17: 0 | DF17: 0 | DG17: 0 | DH17: 0 | DI17: 0 | DK17: 0 | DL17: 0 | DN17: 0 | DO17: 0 | DP17: 0 | DQ17: 0 | DR17: 0 | DS17: 0 | DU17: 7248.540391 | DW17: 0 | DX17: 0 | DY17: 6632.32 | EA17: 0 | EC17: 0 | EE17: 0 | EF17: 0 | EH17: 0 | EI17: 39.33531175 | EJ17: 51.9494755 | EK17: 0 | EL17: 0 | EO17: 0 | EP17: 165 | EU17: 0 | EZ17: 0 | FA17: 0 | FB17: 0 | FC17: 0
A18: 896 | B18: Regular | C18: Azul | D18: A2 | E18: Industrial | F18: Não se aplica | G18: Não se aplica | H18: Não se aplica | I18: Fora ponta | J18: CATIVO | K18: 2020-12-01 | L18: 5992 | M18: 5992 | N18: 499.244 | O18: 499.244 | P18: 499.244 | Q18: 499.244 | R18: 11.85 | S18: 52.66 | T18: 228.68 | U18: 71005.2 | V18: 140457.307 | W18: 211462.507 | X18: 216260.5848 | Y18: 0 | Z18: 21191.68499 | AA18: 0 | AB18: 0 | AC18: 801.2378611 | AD18: 3651.588156 | AE18: 2095.592687 | AF18: 100065.2203 | AG18: 5502.513462 | AH18: 3373.378073 | AI18: 0 | AJ18: 0 | AK18: 1248.199599 | AL18: 3785.163106 | AM18: 0 | AN18: 10.52317722 | AO18: 36717.4362 | AP18: 27758.96399 | AQ18: 0 | AR18: 0 | AS18: 0 | AT18: 2551.182888 | AU18: 0 | AV18: 18.28802989 | AW18: -3.065541965 | AX18: 2.135069554 | AY18: -41.0288967 | AZ18: 0 | BA18: -5.433738881 | BB18: 80.31811024 | BC18: 27.43607813 | BD18: 265.1880645 | BE18: 12.95696589 | BF18: 1464.732106 | BG18: 916.4535817 | BH18: 69.16833115 | BI18: 0 | BJ18: 0 | BK18: 0 | BL18: 0 | BU18: 1.504255897e-09 | BV18: 102724.551 | CI18: 216259.4364 | CJ18: 4796.89944 | CM18: 0 | CN18: 1.504255897e-09 | CO18: 1867.5156 | CP18: 2930.56228 | CR18: 4712.43849 | CS18: 1071.264823 | CT18: 773.8757074 | CU18: 0 | CV18: 0 | CW18: 0 | CX18: 117.6253971 | CY18: -13.89582826 | CZ18: 46.94675859 | DA18: 0 | DB18: -12.0264175 | DC18: 2718.738573 | DD18: 39.79628149 | DE18: 0.3520364302 | DF18: 7.205071032 | DG18: 24.89973735 | DH18: 0 | DI18: -81.13541889 | DJ18: 4.668030221 | DK18: 0 | DL18: 0 | DM18: 29.53078134 | DN18: -0.4536402086 | DO18: -14.81485889 | DP18: -0.1385443739 | DQ18: 0 | DR18: 0 | DS18: 0 | DU18: 2095.592687 | DV18: 0 | DW18: 67.86767253 | DX18: -1.300658626 | DY18: 1852.53828 | DZ18: 2895.6152 | EA18: 14.97732 | EB18: 34.94708 | EC18: 0 | ED18: 78.23883693 | EE18: 0.2073448264 | EF18: 0.01013077209 | EG18: 1.145242433 | EH18: 0.7165552837 | EI18: 11.37205384 | EJ18: 15.0188776 | EK18: 0 | EL18: 0 | EM18: 0 | EN18: 1.045146684 | EO18: 0 | EP18: 165 | EQ18: 0 | ER18: 0 | ES18: 0 | EU18: 0 | EZ18: 0 | FA18: 0 | FB18: 0 | FC18: 0
A19: 897 | B19: Refaturamento - Regular | C19: Azul | D19: A2 | E19: Industrial | F19: Não se aplica | G19: Não se aplica | H19: Não se aplica | I19: Fora ponta | J19: CATIVO | K19: 2020-12-01 | L19: 4710 | M19: 4710 | N19: -16.265 | O19: -16.265 | P19: -16.265 | Q19: -16.265 | R19: 11.85 | S19: 52.66 | T19: 228.68 | U19: 55813.5 | V19: -4575.9951 | W19: 51237.5049 | X19: 52650.85585 | Y19: 0 | Z19: -690.4094117 | AA19: 0 | AB19: 0 | AC19: 629.8114696 | AD19: 2870.323801 | AE19: 1647.236574 | AF19: -3260.050814 | AG19: -179.2678159 | AH19: -109.9021608 | AI19: 0 | AJ19: 0 | AK19: -40.66541908 | AL19: -123.3178124 | AM19: 0 | AN19: -0.342837325 | AO19: 28861.66964 | AP19: 21819.87991 | AQ19: 0 | AR19: 0 | AS19: 0 | AT19: -83.11565023 | AU19: 0 | AV19: -0.5958104779 | AW19: 0.09987308822 | AX19: -0.06955898579 | AY19: 1.336691087 | AZ19: 0 | BA19: 0.1770271909 | BB19: -2.616704583 | BC19: 20.71049047 | BD19: -8.639630861 | BE19: -0.4221283584 | BF19: -47.71988786 | BG19: -29.85737937 | BH19: -2.253453033 | BI19: 0 | BJ19: 0 | BK19: 0 | BL19: 0 | BU19: -4.900754372e-11 | BV19: -3346.68984 | CI19: 52649.4203 | CJ19: 1411.8854 | CM19: 0 | CN19: -4.900754372e-11 | CO19: 1508.8265 | CP19: -95.47555 | CR19: 1385.541442 | CS19: 842.0656406 | CT19: 608.3035016 | CU19: 0 | CV19: 0 | CW19: 0 | CX19: -3.832148377 | CY19: 0.4527157996 | CZ19: 36.90240871 | DA19: 0 | DB19: -9.453342195 | DC19: -88.57449042 | DD19: -1.296533395 | DE19: -0.01146908633 | DF19: -0.2347358813 | DG19: -0.811215013 | DH19: 0 | DI19: 2.643331894 | DJ19: -0.1520809695 | DK19: 0 | DL19: 0 | DM19: -0.9620909987 | DN19: 0.01477926223 | DO19: 0.4826571373 | DP19: 0.004513673158 | DQ19: 0 | DR19: 0 | DS19: 0 | DU19: 1647.236574 | DV19: 0 | DW19: -2.211078538 | DX19: 0.04237449533 | DY19: 1509.31445 | DZ19: -94.337 | EA19: -0.48795 | EB19: -1.13855 | EC19: 0 | ED19: -2.548963398 | EE19: -0.006755140976 | EF19: -0.0003300530563 | EG19: -0.0373111508 | EH19: -0.02334484078 | EI19: 8.938980909 | EJ19: 11.80555966 | EK19: 0 | EL19: 0 | EM19: 0 | EN19: -0.0340501054 | EO19: 0 | EP19: 165 | EQ19: 0 | ER19: 0 | ES19: 0 | EU19: 0 | EZ19: 0 | FA19: 0 | FB19: 0 | FC19: 0
A20: 3183 | B20: Regular | C20: Azul | D20: A2 | E20: Industrial | F20: Não se aplica | G20: Não se aplica | H20: Não se aplica | I20: Fora ponta | J20: LIVRE | K20: 2020-12-01 | L20: 57270 | M20: 57270 | N20: 0 | O20: 0 | P20: 0 | Q20: 0 | R20: 11.85 | U20: 678649.5 | W20: 678649.5 | X20: 696975.9 | Y20: 0 | Z20: 0 | AA20: 0 | AB20: 0 | AC20: 7658.026086 | AD20: 34900.94354 | AE20: 20029.13771 | AI20: 0 | AJ20: 0 | AK20: 0 | AL20: 0 | AM20: 0 | AN20: 0 | AO20: 350935.8429 | AP20: 265313.0621 | AQ20: 0 | AR20: 0 | AU20: 0 | AV20: 0 | AW20: 0 | AZ20: 0 | BB20: 0 | BC20: 252.2377577 | BD20: 0 | BE20: 0 | BG20: 0 | BH20: 0 | BI20: 0 | BJ20: 0 | BK20: 0 | BL20: 0 | BV20: 0 | CI20: 696975.9 | CJ20: 18326.37 | CO20: 18326.4 | CP20: 0 | CR20: 17969.13988 | CS20: 10238.87457 | CT20: 7396.505635 | CU20: 0 | CV20: 0 | CZ20: 448.7050842 | DA20: 0 | DB20: -114.9454156 | DE20: 0 | DF20: 0 | DG20: 0 | DH20: 0 | DI20: 0 | DK20: 0 | DL20: 0 | DN20: 0 | DO20: 0 | DP20: 0 | DQ20: 0 | DR20: 0 | DS20: 0 | DU20: 20029.13771 | DW20: 0 | DX20: 0 | DY20: 18326.4 | EA20: 0 | EC20: 0 | EE20: 0 | EF20: 0 | EH20: 0 | EI20: 108.6911755 | EJ20: 143.5465822 | EK20: 0 | EL20: 0 | EO20: 0 | EP20: 165 | EU20: 0 | EZ20: 0 | FA20: 0 | FB20: 0 | FC20: 0
A21: 3279 | B21: Regular | C21: Azul | D21: A2 | E21: Industrial | F21: Não se aplica | G21: Fonte incentivada | H21: Não se aplica | I21: Fora ponta | J21: LIVRE | K21: 2020-12-01 | L21: 32022 | M21: 7936.019625 | N21: 0 | O21: 0 | P21: 0 | Q21: 0 | R21: 11.85 | U21: 379460.7 | W21: 379460.7 | X21: 389707.74 | Y21: 0 | Z21: 0 | AA21: 0 | AB21: 0 | AC21: 4281.915686 | AD21: 19514.54538 | AE21: 11199.11032 | AI21: 0 | AJ21: 0 | AK21: 0 | AL21: 0 | AM21: 0 | AN21: 0 | AO21: 196222.5871 | AP21: 148347.3873 | AQ21: 0 | AR21: 0 | AU21: 0 | AV21: 0 | AW21: 0 | AZ21: 0 | BB21: 0 | BC21: 141.0364497 | BD21: 0 | BE21: 0 | BG21: 0 | BH21: 0 | BI21: 0 | BJ21: 0 | BK21: 0 | BL21: 0 | BN21: 293126.3812 | BV21: 0 | CI21: 96581.3634 | CJ21: 2539.500843 | CO21: 10247.04 | CP21: 0 | CR21: 10047.28125 | CS21: 5724.973661 | CT21: 4135.688902 | CU21: 0 | CV21: 0 | CZ21: 250.8893698 | DA21: 0 | DB21: -64.27068445 | DE21: 0 | DF21: 0 | DG21: 0 | DH21: 0 | DI21: 0 | DK21: 0 | DL21: 0 | DN21: 0 | DO21: 0 | DP21: 0 | DQ21: 0 | DR21: 0 | DS21: 0 | DU21: 11199.11032 | DW21: 0 | DX21: 0 | DY21: 10247.04 | EA21: 0 | EC21: 0 | EE21: 0 | EF21: 0 | EH21: 0 | EI21: 60.77368294 | EJ21: 80.26276679 | EK21: 0 | EL21: 0 | EO21: 0 | EP21: 165 | EU21: 0 | EZ21: 0 | FA21: 0 | FB21: 0 | FC21: 0
A22: 1069 | B22: Regular | C22: Azul | D22: A2 | E22: Industrial | F22: Não se aplica | G22: Não se aplica | H22: Não se aplica | I22: Fora ponta | J22: CATIVO | K22: 2021-01-01 | L22: 3600 | M22: 3600 | N22: 17.929 | O22: 17.929 | P22: 17.929 | Q22: 17.929 | R22: 11.85 | S22: 52.66 | T22: 228.68 | U22: 42660 | V22: 5044.14486 | W22: 47704.14486 | X22: 48959.59519 | Y22: 0 | Z22: 761.042136 | AA22: 0 | AB22: 0 | AC22: 481.3845628 | AD22: 2193.878064 | AE22: 1259.034324 | AF22: 3593.572151 | AG22: 197.6079109 | AH22: 121.1457633 | AI22: 0 | AJ22: 0 | AK22: 44.82571772 | AL22: 135.9339107 | AM22: 0 | AN22: 0.3779114909 | AO22: 22059.87488 | AP22: 16677.61522 | AQ22: 0 | AR22: 0 | AS22: 0 | AT22: 91.61884371 | AU22: 0 | AV22: 0.6567652049 | AW22: -0.1100906608 | AX22: 0.07667525707 | AY22: -1.473442022 | AZ22: 0 | BA22: -0.1951380575 | BB22: 2.884408022 | BC22: 15.89323342 | BD22: 9.523513169 | BE22: 0.4653144382 | BF22: 52.60189791 | BG22: 32.91195541 | BH22: 2.483993817 | BI22: 0 | BJ22: 0 | BK22: 0 | BL22: 0 | BU22: 5.402128813e-11 | BV22: 3689.074832 | CI22: 48959.8823 | CJ22: 1255.70744 | CM22: 0 | CN22: 5.402128813e-11 | CO22: 1150.2071 | CP22: 105.24323 | CQ22: 31 | CR22: 1231.259773 | CS22: 643.6170501 | CT22: 464.9453516 | CU22: 0 | CV22: 0 | CW22: 0 | CX22: 4.224198479 | CY22: -0.4990311448 | CZ22: 28.20566271 | DA22: 0 | DB22: -7.22548448 | DC22: 97.63615363 | DD22: 1.429175976 | DE22: 0.01264243768 | DF22: 0.2587506681 | DG22: 0.8942068225 | DH22: 0 | DI22: -2.913759455 | DJ22: 0.1676396989 | DK22: 0 | DL22: 0 | DM22: 1.060518261 | DN22: -0.01629126299 | DO22: -0.532035648 | DP22: -0.004975447036 | DQ22: 0 | DR22: 0 | DS22: 0 | DU22: 1259.034324 | DV22: 0 | DW22: 2.437284175 | DX22: -0.04670964197 | DY22: 1149.66923 | DZ22: 103.9882 | EA22: 0.53787 | EB22: 1.25503 | EC22: 0 | ED22: 2.809736536 | EE22: 0.007446229484 | EF22: 0.0003638193204 | EG22: 0.04112828913 | EH22: 0.02573314788 | EI22: 6.832342096 | EJ22: 9.023357705 | EK22: 0 | EL22: 0 | EM22: 0 | EN22: 0.03753362064 | EO22: 0 | EP22: 165 | EQ22: 0 | ER22: 0 | ES22: 0 | EU22: 0 | EZ22: 0 | FA22: 0 | FB22: 0 | FC22: 0
A23: 1070 | B23: Refaturamento - Regular | C23: Azul | D23: A2 | E23: Industrial | F23: Não se aplica | G23: Não se aplica | H23: Não se aplica | I23: Fora ponta | J23: CATIVO | K23: 2021-01-01 | L23: 1121 | M23: 1121 | N23: 36.312 | O23: 36.312 | P23: 36.312 | Q23: 36.312 | R23: 11.85 | S23: 52.66 | T23: 228.68 | U23: 13283.85 | V23: 10216.01808 | W23: 23499.86808 | X23: 24068.10832 | Y23: 0 | Z23: 1541.35546 | AA23: 0 | AB23: 0 | AC23: 149.8978041 | AD23: 683.1492528 | AE23: 392.0492993 | AF23: 7278.14111 | AG23: 400.2196698 | AH23: 245.3591923 | AI23: 0 | AJ23: 0 | AK23: 90.78651692 | AL23: 275.3099541 | AM23: 0 | AN23: 0.7653924959 | AO23: 6869.199929 | AP23: 5193.224071 | AQ23: 0 | AR23: 0 | AS23: 0 | AT23: 185.5576693 | AU23: 0 | AV23: 1.330161087 | AW23: -0.2229690488 | AX23: 0.155292093 | AY23: -2.984194696 | AZ23: 0 | BA23: -0.3952174212 | BB23: 5.841855323 | BC23: 5.013306415 | BD23: 19.28818173 | BE23: 0.9424116169 | BF23: 106.5357865 | BG23: 66.65731077 | BH23: 5.030887584 | BI23: 0 | BJ23: 0 | BK23: 0 | BL23: 0 | BU23: 1.094105089e-10 | BV23: 7471.5648 | CI23: 24067.5341 | CJ23: 567.63602 | CM23: 0 | CN23: 1.094105089e-10 | CO23: 355.0888 | CP23: 213.15144 | CQ23: 31 | CR23: 557.7370883 | CS23: 200.4151981 | CT23: 144.7788164 | CU23: 0 | CV23: 0 | CW23: 0 | CX23: 8.55536255 | CY23: -1.010698808 | CZ23: 8.78292997 | DA23: 0 | DB23: -2.249935584 | DC23: 197.7446601 | DD23: 2.894541694 | DE23: 0.02560500848 | DF23: 0.5240534474 | DG23: 1.811056843 | DH23: 0 | DI23: -5.901301429 | DJ23: 0.3395243877 | DK23: 0 | DL23: 0 | DM23: 2.147891076 | DN23: -0.03299505503 | DO23: -1.077543558 | DP23: -0.01007688286 | DQ23: 0 | DR23: 0 | DS23: 0 | DU23: 392.0492993 | DV23: 0 | DW23: 4.936285513 | DX23: -0.09460207035 | DY23: 353.99944 | DZ23: 210.6096 | EA23: 1.08936 | EB23: 2.54184 | EC23: 0 | ED23: 5.690621513 | EE23: 0.01508101316 | EF23: 0.0007368513114 | EG23: 0.08329803306 | EH23: 0.05211791321 | EI23: 2.127515414 | EJ23: 2.80977333 | EK23: 0 | EL23: 0 | EM23: 0 | EN23: 0.07601767152 | EO23: 0 | EP23: 165 | EQ23: 0 | ER23: 0 | ES23: 0 | EU23: 0 | EZ23: 0 | FA23: 0 | FB23: 0 | FC23: 0
A24: 4682 | B24: Regular | C24: Azul | D24: A2 | E24: Industrial | F24: Não se aplica | G24: Não se aplica | H24: Não se aplica | I24: Fora ponta | J24: LIVRE | K24: 2021-01-01 | L24: 57270 | M24: 57270 | N24: 0 | O24: 0 | P24: 0 | Q24: 0 | R24: 11.85 | U24: 678649.5 | W24: 678649.5 | X24: 696975.9 | Y24: 0 | Z24: 0 | AA24: 0 | AB24: 0 | AC24: 7658.026086 | AD24: 34900.94354 | AE24: 20029.13771 | AI24: 0 | AJ24: 0 | AK24: 0 | AL24: 0 | AM24: 0 | AN24: 0 | AO24: 350935.8429 | AP24: 265313.0621 | AQ24: 0 | AR24: 0 | AU24: 0 | AV24: 0 | AW24: 0 | AZ24: 0 | BB24: 0 | BC24: 252.2377577 | BD24: 0 | BE24: 0 | BG24: 0 | BH24: 0 | BI24: 0 | BJ24: 0 | BK24: 0 | BL24: 0 | BV24: 0 | CI24: 696975.9 | CJ24: 18326.37 | CO24: 18326.4 | CP24: 0 | CQ24: 31 | CR24: 17969.13988 | CS24: 10238.87457 | CT24: 7396.505635 | CU24: 0 | CV24: 0 | CZ24: 448.7050842 | DA24: 0 | DB24: -114.9454156 | DE24: 0 | DF24: 0 | DG24: 0 | DH24: 0 | DI24: 0 | DK24: 0 | DL24: 0 | DN24: 0 | DO24: 0 | DP24: 0 | DQ24: 0 | DR24: 0 | DS24: 0 | DU24: 20029.13771 | DW24: 0 | DX24: 0 | DY24: 18326.4 | EA24: 0 | EC24: 0 | EE24: 0 | EF24: 0 | EH24: 0 | EI24: 108.6911755 | EJ24: 143.5465822 | EK24: 0 | EL24: 0 | EO24: 0 | EP24: 165 | EU24: 0 | EZ24: 0 | FA24: 0 | FB24: 0 | FC24: 0
A25: 4687 | B25: Regular | C25: Azul | D25: A2 | E25: Industrial | F25: Não se aplica | G25: Fonte incentivada | H25: Não se aplica | I25: Fora ponta | J25: LIVRE | K25: 2021-01-01 | L25: 32022 | M25: 7936.019625 | N25: 0 | O25: 0 | P25: 0 | Q25: 0 | R25: 11.85 | U25: 379460.7 | W25: 379460.7 | X25: 389707.74 | Y25: 0 | Z25: 0 | AA25: 0 | AB25: 0 | AC25: 4281.915686 | AD25: 19514.54538 | AE25: 11199.11032 | AI25: 0 | AJ25: 0 | AK25: 0 | AL25: 0 | AM25: 0 | AN25: 0 | AO25: 196222.5871 | AP25: 148347.3873 | AQ25: 0 | AR25: 0 | AU25: 0 | AV25: 0 | AW25: 0 | AZ25: 0 | BB25: 0 | BC25: 141.0364497 | BD25: 0 | BE25: 0 | BG25: 0 | BH25: 0 | BI25: 0 | BJ25: 0 | BK25: 0 | BL25: 0 | BN25: 293126.3812 | BV25: 0 | CI25: 96581.3634 | CJ25: 2539.500843 | CO25: 10247.04 | CP25: 0 | CQ25: 31 | CR25: 10047.28125 | CS25: 5724.973661 | CT25: 4135.688902 | CU25: 0 | CV25: 0 | CZ25: 250.8893698 | DA25: 0 | DB25: -64.27068445 | DE25: 0 | DF25: 0 | DG25: 0 | DH25: 0 | DI25: 0 | DK25: 0 | DL25: 0 | DN25: 0 | DO25: 0 | DP25: 0 | DQ25: 0 | DR25: 0 | DS25: 0 | DU25: 11199.11032 | DW25: 0 | DX25: 0 | DY25: 10247.04 | EA25: 0 | EC25: 0 | EE25: 0 | EF25: 0 | EH25: 0 | EI25: 60.77368294 | EJ25: 80.26276679 | EK25: 0 | EL25: 0 | EO25: 0 | EP25: 165 | EU25: 0 | EZ25: 0 | FA25: 0 | FB25: 0 | FC25: 0
A26: 1246 | B26: Regular | C26: Azul | D26: A2 | E26: Industrial | F26: Não se aplica | G26: Não se aplica | H26: Não se aplica | I26: Fora ponta | J26: CATIVO | K26: 2021-02-01 | L26: 7936 | M26: 7936 | N26: 649.78 | O26: 649.78 | P26: 649.78 | Q26: 649.78 | R26: 11.85 | S26: 52.66 | T26: 228.68 | U26: 94041.6 | V26: 182809.1052 | W26: 276850.7052 | X26: 283139.4558 | Y26: 0 | Z26: 27581.56948 | AA26: 0 | AB26: 0 | AC26: 1061.185525 | AD26: 4836.28231 | AE26: 2775.471222 | AF26: 130237.6771 | AG26: 7161.674847 | AH26: 4390.545714 | AI26: 0 | AJ26: 0 | AK26: 1624.566616 | AL26: 4926.495427 | AM26: 0 | AN26: 13.69620886 | AO26: 48629.76863 | AP26: 36764.87621 | AQ26: 0 | AR26: 0 | AS26: 0 | AT26: 3320.435733 | AU26: 0 | AV26: 23.80238133 | AW26: -3.989888427 | AX26: 2.778852615 | AY26: -53.40025418 | AZ26: 0 | BA26: -7.072162811 | BB26: 104.5362622 | BC26: 36.31329692 | BD26: 345.1496674 | BE26: 16.86385273 | BF26: 1906.389716 | BG26: 1192.789915 | BH26: 90.0245135 | BI26: 0 | BJ26: 0 | BK26: 0 | BL26: 0 | BU26: 1.957831034e-09 | BV26: 133698.8702 | CI26: 283139.4558 | CJ26: 6288.7206 | CM26: 0 | CN26: 1.957831034e-09 | CO26: 2474.542 | CP26: 3814.2086 | CQ26: 29 | CR26: 6176.432387 | CS26: 1418.818031 | CT26: 1024.946197 | CU26: 0 | CV26: 0 | CW26: 0 | CX26: 153.0927373 | CY26: -18.08580831 | CZ26: 62.17781645 | DA26: 0 | DB26: -15.92817912 | DC26: 3538.514134 | DD26: 51.79597108 | DE26: 0.4581852394 | DF26: 9.377601043 | DG26: 32.40770311 | DH26: 0 | DI26: -105.6000122 | DJ26: 6.075571619 | DK26: 0 | DL26: 0 | DM26: 38.43513613 | DN26: -0.5904253927 | DO26: -19.28195233 | DP26: -0.1803193695 | DQ26: 0 | DR26: 0 | DS26: 0 | DU26: 2775.471222 | DV26: 0 | DW26: 88.33167 | DX26: -1.692843503 | DY26: 2455.0486 | DZ26: 3768.724 | EA26: 19.4934 | EB26: 45.4846 | EC26: 0 | ED26: 101.8300299 | EE26: 0.2698650786 | EF26: 0.01318548263 | EG26: 1.49056499 | EH26: 0.9326167009 | EI26: 15.06151858 | EJ26: 19.89149076 | EK26: 0 | EL26: 0 | EM26: 0 | EN26: 1.36028758 | EO26: 0 | EP26: 165 | EQ26: 0 | ER26: 0 | ES26: 0 | EU26: 0 | EZ26: 0 | FA26: 0 | FB26: 0 | FC26: 0
A27: 3609 | B27: Regular | C27: Azul | D27: A2 | E27: Industrial | F27: Não se aplica | G27: Não se aplica | H27: Não se aplica | I27: Fora ponta | J27: LIVRE | K27: 2021-02-01 | L27: 56250 | M27: 56250 | N27: 0 | O27: 0 | P27: 0 | Q27: 0 | R27: 11.85 | U27: 666562.5 | W27: 666562.5 | X27: 684562.5 | Y27: 0 | Z27: 0 | AA27: 0 | AB27: 0 | AC27: 7521.633793 | AD27: 34279.34475 | AE27: 19672.41132 | AI27: 0 | AJ27: 0 | AK27: 0 | AL27: 0 | AM27: 0 | AN27: 0 | AO27: 344685.5451 | AP27: 260587.7377 | AQ27: 0 | AR27: 0 | AU27: 0 | AV27: 0 | AW27: 0 | AZ27: 0 | BB27: 0 | BC27: 247.7453094 | BD27: 0 | BE27: 0 | BG27: 0 | BH27: 0 | BI27: 0 | BJ27: 0 | BK27: 0 | BL27: 0 | BV27: 0 | CI27: 684562.5 | CJ27: 17999.97 | CO27: 18000 | CP27: 0 | CQ27: 29 | CR27: 17649.10281 | CS27: 10056.51641 | CT27: 7264.771118 | CU27: 0 | CV27: 0 | CZ27: 440.7134798 | DA27: 0 | DB27: -112.898195 | DE27: 0 | DF27: 0 | DG27: 0 | DH27: 0 | DI27: 0 | DK27: 0 | DL27: 0 | DN27: 0 | DO27: 0 | DP27: 0 | DQ27: 0 | DR27: 0 | DS27: 0 | DU27: 19672.41132 | DW27: 0 | DX27: 0 | DY27: 18000 | EA27: 0 | EC27: 0 | EE27: 0 | EF27: 0 | EH27: 0 | EI27: 106.7553453 | EJ27: 140.9899641 | EK27: 0 | EL27: 0 | EO27: 0 | EP27: 165 | EU27: 0 | EZ27: 0 | FA27: 0 | FB27: 0 | FC27: 0
A28: 3705 | B28: Regular | C28: Azul | D28: A2 | E28: Industrial | F28: Não se aplica | G28: Fonte incentivada | H28: Não se aplica | I28: Fora ponta | J28: LIVRE | K28: 2021-02-01 | L28: 20105 | M28: 0.2392495 | N28: 0 | O28: 0 | P28: 0 | Q28: 0 | R28: 11.85 | U28: 238244.25 | W28: 238244.25 | X28: 244677.85 | Y28: 0 | Z28: 0 | AA28: 0 | AB28: 0 | AC28: 2688.399065 | AD28: 12252.19958 | AE28: 7031.35697 | AI28: 0 | AJ28: 0 | AK28: 0 | AL28: 0 | AM28: 0 | AN28: 0 | AO28: 123198.2735 | AP28: 93139.84831 | AQ28: 0 | AR28: 0 | AU28: 0 | AV28: 0 | AW28: 0 | AZ28: 0 | BB28: 0 | BC28: 88.54967903 | BD28: 0 | BE28: 0 | BG28: 0 | BH28: 0 | BI28: 0 | BJ28: 0 | BK28: 0 | BL28: 0 | BN28: 244674.9383 | BV28: 0 | CI28: 2.9208 | CJ28: 0.05569342501 | CO28: 6433.6 | CP28: 0 | CQ28: 29 | CR28: 6308.181547 | CS28: 3594.422442 | CT28: 2596.590637 | CU28: 0 | CV28: 0 | CZ28: 157.5207913 | DA28: 0 | DB28: -40.35232374 | DE28: 0 | DF28: 0 | DG28: 0 | DH28: 0 | DI28: 0 | DK28: 0 | DL28: 0 | DN28: 0 | DO28: 0 | DP28: 0 | DQ28: 0 | DR28: 0 | DS28: 0 | DU28: 7031.35697 | DW28: 0 | DX28: 0 | DY28: 6433.6 | EA28: 0 | EC28: 0 | EE28: 0 | EF28: 0 | EH28: 0 | EI28: 38.15673273 | EJ28: 50.3929463 | EK28: 0 | EL28: 0 | EO28: 0 | EP28: 165 | EU28: 0 | EZ28: 0 | FA28: 0 | FB28: 0 | FC28: 0
A29: 1430 | B29: Regular | C29: Azul | D29: A2 | E29: Industrial | F29: Não se aplica | G29: Não se aplica | H29: Não se aplica | I29: Fora ponta | J29: CATIVO | K29: 2021-03-01 | L29: 4447 | M29: 4447 | N29: 595.34 | O29: 595.34 | P29: 595.34 | Q29: 595.34 | R29: 11.85 | S29: 52.66 | T29: 228.68 | U29: 52696.95 | V29: 167492.9556 | W29: 220189.9056 | X29: 225048.0574 | Y29: 0 | Z29: 25270.72482 | AA29: 0 | AB29: 0 | AC29: 594.6436529 | AD29: 2710.04882 | AE29: 1555.257122 | AF29: 119326.0776 | AG29: 6561.65395 | AH29: 4022.696121 | AI29: 0 | AJ29: 0 | AK29: 1488.456846 | AL29: 4513.742786 | AM29: 0 | AN29: 12.5487103 | AO29: 27250.07322 | AP29: 20601.48746 | AQ29: 0 | AR29: 0 | AS29: 0 | AT29: 3042.242312 | AU29: 0 | AV29: 21.80816538 | AW29: -3.655606784 | AX29: 2.546034221 | AY29: -48.92626323 | AZ29: 0 | BA29: -6.479641429 | BB29: 95.77798381 | BC29: 20.83251331 | BD29: 316.2322678 | BE29: 15.450962 | BF29: 1746.668186 | BG29: 1092.855348 | BH29: 82.48206142 | BI29: 0 | BJ29: 0 | BK29: 0 | BL29: 0 | BU29: 1.793799636e-09 | BV29: 122497.2843 | CI29: 225048.0574 | CJ29: 4858.1218 | CM29: 0 | CN29: 1.793799636e-09 | CO29: 1363.506 | CP29: 3494.6458 | CQ29: 31 | CR29: 4772.861104 | CS29: 795.0458394 | CT29: 574.3366607 | CU29: 0 | CV29: 0 | CW29: 0 | CX29: 140.2662905 | CY29: -16.57053945 | CZ29: 34.84182835 | DA29: 0 | DB29: -8.925480412 | DC29: 3242.049624 | DD29: 47.45639051 | DE29: 0.4197974705 | DF29: 8.591924967 | DG29: 29.69251434 | DH29: 0 | DI29: -96.75261051 | DJ29: 5.566546843 | DK29: 0 | DL29: 0 | DM29: 35.21495574 | DN29: -0.5409582524 | DO29: -17.66646788 | DP29: -0.1652118154 | DQ29: 0 | DR29: 0 | DS29: 0 | DU29: 1555.257122 | DV29: 0 | DW29: 80.93104807 | DX29: -1.551013344 | DY29: 1345.6458 | DZ29: 3452.972 | EA29: 17.8602 | EB29: 41.6738 | EC29: 0 | ED29: 93.29848566 | EE29: 0.2472551877 | EF29: 0.01208077384 | EG29: 1.365682171 | EH29: 0.854480019 | EI29: 8.439840361 | EJ29: 11.14635325 | EK29: 0 | EL29: 0 | EM29: 0 | EN29: 1.246319689 | EO29: 0 | EP29: 165 | EQ29: 0 | ER29: 0 | ES29: 0 | EU29: 0 | EZ29: 0 | FA29: 0 | FB29: 0 | FC29: 0
A30: 3822 | B30: Regular | C30: Azul | D30: A2 | E30: Industrial | F30: Não se aplica | G30: Não se aplica | H30: Não se aplica | I30: Fora ponta | J30: LIVRE | K30: 2021-03-01 | L30: 56661 | M30: 56661 | N30: 0 | O30: 0 | P30: 0 | Q30: 0 | R30: 11.85 | U30: 671432.85 | W30: 671432.85 | X30: 689564.37 | Y30: 0 | Z30: 0 | AA30: 0 | AB30: 0 | AC30: 7576.591864 | AD30: 34529.8125 | AE30: 19816.15107 | AI30: 0 | AJ30: 0 | AK30: 0 | AL30: 0 | AM30: 0 | AN30: 0 | AO30: 347204.0474 | AP30: 262491.7655 | AQ30: 0 | AR30: 0 | AU30: 0 | AV30: 0 | AW30: 0 | AZ30: 0 | BB30: 0 | BC30: 249.5555018 | BD30: 0 | BE30: 0 | BG30: 0 | BH30: 0 | BI30: 0 | BJ30: 0 | BK30: 0 | BL30: 0 | BV30: 0 | CI30: 689564.37 | CJ30: 18131.49 | CO30: 18131.52 | CP30: 0 | CQ30: 31 | CR30: 17778.05892 | CS30: 10129.99602 | CT30: 7317.852379 | CU30: 0 | CV30: 0 | CZ30: 443.9336263 | DA30: 0 | DB30: -113.7231045 | DE30: 0 | DF30: 0 | DG30: 0 | DH30: 0 | DI30: 0 | DK30: 0 | DL30: 0 | DN30: 0 | DO30: 0 | DP30: 0 | DQ30: 0 | DR30: 0 | DS30: 0 | DU30: 19816.15107 | DW30: 0 | DX30: 0 | DY30: 18131.52 | EA30: 0 | EC30: 0 | EE30: 0 | EF30: 0 | EH30: 0 | EI30: 107.535371 | EJ30: 142.0201308 | EK30: 0 | EL30: 0 | EO30: 0 | EP30: 165 | EU30: 0 | EZ30: 0 | FA30: 0 | FB30: 0 | FC30: 0
A31: 3918 | B31: Regular | C31: Azul | D31: A2 | E31: Industrial | F31: Não se aplica | G31: Fonte incentivada | H31: Não se aplica | I31: Fora ponta | J31: LIVRE | K31: 2021-03-01 | L31: 27295 | M31: 23647.67069 | N31: 0 | O31: 0 | P31: 0 | Q31: 0 | R31: 11.85 | U31: 323445.75 | W31: 323445.75 | X31: 332180.15 | Y31: 0 | Z31: 0 | AA31: 0 | AB31: 0 | AC31: 3649.831011 | AD31: 16633.8616 | AE31: 9545.928301 | AI31: 0 | AJ31: 0 | AK31: 0 | AL31: 0 | AM31: 0 | AN31: 0 | AO31: 167256.7458 | AP31: 126448.752 | AQ31: 0 | AR31: 0 | AU31: 0 | AV31: 0 | AW31: 0 | AZ31: 0 | BB31: 0 | BC31: 120.217035 | BD31: 0 | BE31: 0 | BG31: 0 | BH31: 0 | BI31: 0 | BJ31: 0 | BK31: 0 | BL31: 0 | BN31: 44387.99773 | BV31: 0 | CI31: 287792.1439 | CJ31: 7567.216254 | CO31: 8734.4 | CP31: 0 | CQ31: 31 | CR31: 8564.129089 | CS31: 4879.868718 | CT31: 3525.189825 | CU31: 0 | CV31: 0 | CZ31: 213.8537677 | DA31: 0 | DB31: -54.78322191 | DE31: 0 | DF31: 0 | DG31: 0 | DH31: 0 | DI31: 0 | DK31: 0 | DL31: 0 | DN31: 0 | DO31: 0 | DP31: 0 | DQ31: 0 | DR31: 0 | DS31: 0 | DU31: 9545.928301 | DW31: 0 | DX31: 0 | DY31: 8734.4 | EA31: 0 | EC31: 0 | EE31: 0 | EF31: 0 | EH31: 0 | EI31: 51.8024382 | EJ31: 68.41459683 | EK31: 0 | EL31: 0 | EO31: 0 | EP31: 165 | EU31: 0 | EZ31: 0 | FA31: 0 | FB31: 0 | FC31: 0
A32: 1614 | B32: Regular | C32: Azul | D32: A2 | E32: Industrial | F32: Não se aplica | G32: Não se aplica | H32: Não se aplica | I32: Fora ponta | J32: CATIVO | K32: 2021-04-01 | L32: 6580 | M32: 6580 | N32: 728.555 | O32: 728.555 | P32: 728.555 | Q32: 728.555 | R32: 11.85 | S32: 52.66 | T32: 228.68 | U32: 77973 | V32: 204971.6637 | W32: 282944.6637 | X32: 289254.026 | Y32: 0 | Z32: 30925.37528 | AA32: 0 | AB32: 0 | AC32: 879.8640064 | AD32: 4009.921573 | AE32: 2301.23496 | AF32: 146026.8257 | AG32: 8029.908613 | AH32: 4922.826238 | AI32: 0 | AJ32: 0 | AK32: 1821.518254 | AL32: 5523.750925 | AM32: 0 | AN32: 15.35664601 | AO32: 40320.54909 | AP32: 30482.97448 | AQ32: 0 | AR32: 0 | AS32: 0 | AT32: 3722.983249 | AU32: 0 | AV32: 26.68802353 | AW32: -4.473595929 | AX32: 3.115742201 | AY32: -59.87414538 | AZ32: 0 | BA32: -7.929544733 | BB32: 117.2095424 | BC32: 30.50589554 | BD32: 386.9933146 | BE32: 18.90831393 | BF32: 2137.50771 | BG32: 1337.395821 | BH32: 100.938486 | BI32: 0 | BJ32: 0 | BK32: 0 | BL32: 0 | BU32: 2.19518543e-09 | BV32: 149907.6309 | CI32: 289255.4616 | CJ32: 6310.7679 | CM32: 0 | CN32: 2.19518543e-09 | CO32: 2032.7445 | CP32: 4276.61785 | CQ32: 30 | CR32: 6197.88818 | CS32: 1176.388942 | CT32: 849.8167815 | CU32: 0 | CV32: 0 | CW32: 0 | CX32: 171.6526813 | CY32: -20.27841127 | CZ32: 51.5536835 | DA32: 0 | DB32: -13.20657997 | DC32: 3967.500023 | DD32: 58.07536968 | DE32: 0.5137325665 | DF32: 10.51447894 | DG32: 36.33659722 | DH32: 0 | DI32: -118.4022544 | DJ32: 6.812133462 | DK32: 0 | DL32: 0 | DM32: 43.09475608 | DN32: -0.6620046353 | DO32: -21.61956782 | DP32: -0.202180089 | DQ32: 0 | DR32: 0 | DS32: 0 | DU32: 2301.23496 | DV32: 0 | DW32: 99.04041342 | DX32: -1.898072576 | DY32: 2010.88785 | DZ32: 4225.619 | EA32: 21.85665 | EB32: 50.99885 | EC32: 0 | ED32: 114.1752246 | EE32: 0.3025817235 | EF32: 0.01478400273 | EG32: 1.671271163 | EH32: 1.045680939 | EI32: 12.48800305 | EJ32: 16.49269269 | EK32: 0 | EL32: 0 | EM32: 0 | EN32: 1.525199787 | EO32: 0 | EP32: 165 | EQ32: 0 | ER32: 0 | ES32: 0 | EU32: 0 | EZ32: 0 | FA32: 0 | FB32: 0 | FC32: 0
A33: 4035 | B33: Regular | C33: Azul | D33: A2 | E33: Industrial | F33: Não se aplica | G33: Não se aplica | H33: Não se aplica | I33: Fora ponta | J33: LIVRE | K33: 2021-04-01 | L33: 59170 | M33: 59170 | N33: 0 | O33: 0 | P33: 0 | Q33: 0 | R33: 11.85 | U33: 701164.5 | W33: 701164.5 | X33: 720098.9 | Y33: 0 | Z33: 0 | AA33: 0 | AB33: 0 | AC33: 7912.090161 | AD33: 36058.82363 | AE33: 20693.62805 | AI33: 0 | AJ33: 0 | AK33: 0 | AL33: 0 | AM33: 0 | AN33: 0 | AO33: 362578.5547 | AP33: 274115.1368 | AQ33: 0 | AR33: 0 | AU33: 0 | AV33: 0 | AW33: 0 | AZ33: 0 | BB33: 0 | BC33: 260.6060437 | BD33: 0 | BE33: 0 | BG33: 0 | BH33: 0 | BI33: 0 | BJ33: 0 | BK33: 0 | BL33: 0 | BV33: 0 | CI33: 720098.9 | CJ33: 18934.37 | CO33: 18934.4 | CP33: 0 | CQ33: 30 | CR33: 18565.28735 | CS33: 10578.56135 | CT33: 7641.893459 | CU33: 0 | CV33: 0 | CZ33: 463.5914062 | DA33: 0 | DB33: -118.7588657 | DE33: 0 | DF33: 0 | DG33: 0 | DH33: 0 | DI33: 0 | DK33: 0 | DL33: 0 | DN33: 0 | DO33: 0 | DP33: 0 | DQ33: 0 | DR33: 0 | DS33: 0 | DU33: 20693.62805 | DW33: 0 | DX33: 0 | DY33: 18934.4 | EA33: 0 | EC33: 0 | EE33: 0 | EF33: 0 | EH33: 0 | EI33: 112.2971338 | EJ33: 148.3089098 | EK33: 0 | EL33: 0 | EO33: 0 | EP33: 165 | EU33: 0 | EZ33: 0 | FA33: 0 | FB33: 0 | FC33: 0
A34: 4134 | B34: Regular | C34: Azul | D34: A2 | E34: Industrial | F34: Não se aplica | G34: Fonte incentivada | H34: Não se aplica | I34: Fora ponta | J34: LIVRE | K34: 2021-04-01 | L34: 38344 | M34: 25559.52374 | N34: 0 | O34: 0 | P34: 0 | Q34: 0 | R34: 11.85 | U34: 454376.4 | W34: 454376.4 | X34: 466646.48 | Y34: 0 | Z34: 0 | AA34: 0 | AB34: 0 | AC34: 5127.280465 | AD34: 23367.23903 | AE34: 13410.11448 | AI34: 0 | AJ34: 0 | AK34: 0 | AL34: 0 | AM34: 0 | AN34: 0 | AO34: 234962.1785 | AP34: 177635.1327 | AQ34: 0 | AR34: 0 | AU34: 0 | AV34: 0 | AW34: 0 | AZ34: 0 | BB34: 0 | BC34: 168.8808203 | BD34: 0 | BE34: 0 | BG34: 0 | BH34: 0 | BI34: 0 | BJ34: 0 | BK34: 0 | BL34: 0 | BN34: 155587.0761 | BV34: 0 | CI34: 311059.3584 | CJ34: 8178.972119 | CO34: 12270.08 | CP34: 0 | CQ34: 30 | CR34: 12030.88352 | CS34: 6855.236714 | CT34: 4952.1846 | CU34: 0 | CV34: 0 | CZ34: 300.4216474 | DA34: 0 | DB34: -76.95943803 | DE34: 0 | DF34: 0 | DG34: 0 | DH34: 0 | DI34: 0 | DK34: 0 | DL34: 0 | DN34: 0 | DO34: 0 | DP34: 0 | DQ34: 0 | DR34: 0 | DS34: 0 | DU34: 13410.11448 | DW34: 0 | DX34: 0 | DY34: 12270.08 | EA34: 0 | EC34: 0 | EE34: 0 | EF34: 0 | EH34: 0 | EI34: 72.77203481 | EJ34: 96.10878552 | EK34: 0 | EL34: 0 | EO34: 0 | EP34: 165 | EU34: 0 | EZ34: 0 | FA34: 0 | FB34: 0 | FC34: 0
A35: 1800 | B35: Regular | C35: Azul | D35: A2 | E35: Industrial | F35: Não se aplica | G35: Não se aplica | H35: Não se aplica | I35: Fora ponta | J35: CATIVO | K35: 2021-05-01 | L35: 6485 | M35: 6485 | N35: 483.05 | O35: 483.05 | P35: 483.05 | Q35: 483.05 | R35: 11.85 | S35: 52.66 | T35: 228.68 | U35: 76847.25 | V35: 135901.287 | W35: 212748.537 | X35: 217610.9355 | Y35: 0 | Z35: 20504.28935 | AA35: 0 | AB35: 0 | AC35: 867.1608026 | AD35: 3952.027568 | AE35: 2268.010443 | AF35: 96819.40028 | AG35: 5324.028186 | AH35: 3263.955657 | AI35: 0 | AJ35: 0 | AK35: 1207.711693 | AL35: 3662.383601 | AM35: 0 | AN35: 10.18183645 | AO35: 39738.41351 | AP35: 30042.87074 | AQ35: 0 | AR35: 0 | AS35: 0 | AT35: 2468.430055 | AU35: 0 | AV35: 17.69482025 | AW35: -2.966104843 | AX35: 2.065814208 | AY35: -39.69804054 | AZ35: 0 | BA35: -5.25748445 | BB35: 77.7128281 | BC35: 29.57352666 | BD35: 256.5861474 | BE35: 12.5366802 | BF35: 1417.220525 | BG35: 886.7265358 | BH35: 66.9247149 | BI35: 0 | BJ35: 0 | BK35: 0 | BL35: 0 | BU35: 1.455462281e-09 | BV35: 99392.47017 | CI35: 217610.9355 | CJ35: 4862.3685 | CM35: 0 | CN35: 1.455462281e-09 | CO35: 2026.895 | CP35: 2835.5035 | CQ35: 31 | CR35: 4775.249111 | CS35: 1159.404603 | CT35: 837.5473903 | CU35: 0 | CV35: 0 | CW35: 0 | CX35: 113.8099769 | CY35: -13.44508865 | CZ35: 50.8093674 | DA35: 0 | DB35: -13.01590746 | DC35: 2630.550728 | DD35: 38.50540772 | DE35: 0.3406174088 | DF35: 6.97135982 | DG35: 24.09206345 | DH35: 0 | DI35: -78.50362567 | DJ35: 4.516613116 | DK35: 0 | DL35: 0 | DM35: 28.57289007 | DN35: -0.4389254608 | DO35: -14.33430865 | DP35: -0.1340504039 | DQ35: 0 | DR35: 0 | DS35: 0 | DU35: 2268.010443 | DV35: 0 | DW35: 65.66624579 | DX35: -1.258469103 | DY35: 2012.4035 | DZ35: 2801.69 | EA35: 14.4915 | EB35: 33.8135 | EC35: 0 | ED35: 75.70100027 | EE35: 0.200619173 | EF35: 0.009802159781 | EG35: 1.108094153 | EH35: 0.6933123478 | EI35: 12.30770514 | EJ35: 16.25457631 | EK35: 0 | EL35: 0 | EM35: 0 | EN35: 1.011245214 | EO35: 0 | EP35: 165 | EQ35: 0 | ER35: 0 | ES35: 0 | EU35: 0 | EZ35: 0 | FA35: 0 | FB35: 0 | FC35: 0
A36: 4251 | B36: Regular | C36: Azul | D36: A2 | E36: Industrial | F36: Não se aplica | G36: Não se aplica | H36: Não se aplica | I36: Fora ponta | J36: LIVRE | K36: 2021-05-01 | L36: 59624 | M36: 59624 | N36: 0 | O36: 0 | P36: 0 | Q36: 0 | R36: 11.85 | U36: 706544.4 | W36: 706544.4 | X36: 725624.08 | Y36: 0 | Z36: 0 | AA36: 0 | AB36: 0 | AC36: 7972.798103 | AD36: 36335.49603 | AE36: 20852.40627 | AI36: 0 | AJ36: 0 | AK36: 0 | AL36: 0 | AM36: 0 | AN36: 0 | AO36: 365360.55 | AP36: 276218.3693 | AQ36: 0 | AR36: 0 | AU36: 0 | AV36: 0 | AW36: 0 | AZ36: 0 | BB36: 0 | BC36: 262.6056236 | BD36: 0 | BE36: 0 | BG36: 0 | BH36: 0 | BI36: 0 | BJ36: 0 | BK36: 0 | BL36: 0 | BV36: 0 | CI36: 725624.08 | CJ36: 19079.65 | CO36: 19079.68 | CP36: 0 | CQ36: 31 | CR36: 18707.73522 | CS36: 10659.72861 | CT36: 7700.528234 | CU36: 0 | CV36: 0 | CZ36: 467.1484537 | DA36: 0 | DB36: -119.6700796 | DE36: 0 | DF36: 0 | DG36: 0 | DH36: 0 | DI36: 0 | DK36: 0 | DL36: 0 | DN36: 0 | DO36: 0 | DP36: 0 | DQ36: 0 | DR36: 0 | DS36: 0 | DU36: 20852.40627 | DW36: 0 | DX36: 0 | DY36: 19079.68 | EA36: 0 | EC36: 0 | EE36: 0 | EF36: 0 | EH36: 0 | EI36: 113.1587681 | EJ36: 149.4468555 | EK36: 0 | EL36: 0 | EO36: 0 | EP36: 165 | EU36: 0 | EZ36: 0 | FA36: 0 | FB36: 0 | FC36: 0
A37: 4350 | B37: Regular | C37: Azul | D37: A2 | E37: Industrial | F37: Não se aplica | G37: Fonte incentivada | H37: Não se aplica | I37: Fora ponta | J37: LIVRE | K37: 2021-05-01 | L37: 35495 | M37: 42963.148 | N37: 0 | O37: 0 | P37: 0 | Q37: 0 | R37: 11.85 | U37: 420615.75 | W37: 420615.75 | X37: 431974.15 | Y37: 0 | Z37: 0 | AA37: 0 | AB37: 0 | AC37: 4746.318071 | AD37: 21631.0283 | AE37: 12413.72871 | AI37: 0 | AJ37: 0 | AK37: 0 | AL37: 0 | AM37: 0 | AN37: 0 | AO37: 217504.2386 | AP37: 164436.6534 | AQ37: 0 | AR37: 0 | AU37: 0 | AV37: 0 | AW37: 0 | AZ37: 0 | BB37: 0 | BC37: 156.3327957 | BD37: 0 | BE37: 0 | BG37: 0 | BH37: 0 | BI37: 0 | BJ37: 0 | BK37: 0 | BL37: 0 | BN37: -90887.36116 | BV37: 0 | CI37: 522861.5355 | CJ37: 13748.2017 | CO37: 11358.4 | CP37: 0 | CQ37: 31 | CR37: 11136.97608 | CS37: 6345.885332 | CT37: 4584.232015 | CU37: 0 | CV37: 0 | CZ37: 278.0999994 | DA37: 0 | DB37: -71.2412699 | DE37: 0 | DF37: 0 | DG37: 0 | DH37: 0 | DI37: 0 | DK37: 0 | DL37: 0 | DN37: 0 | DO37: 0 | DP37: 0 | DQ37: 0 | DR37: 0 | DS37: 0 | DU37: 12413.72871 | DW37: 0 | DX37: 0 | DY37: 11358.4 | EA37: 0 | EC37: 0 | EE37: 0 | EF37: 0 | EH37: 0 | EI37: 67.36499519 | EJ37: 88.96780049 | EK37: 0 | EL37: 0 | EO37: 0 | EP37: 165 | EU37: 0 | EZ37: 0 | FA37: 0 | FB37: 0 | FC37: 0
A38: 4351 | B38: Refaturamento - Regular | C38: Azul | D38: A2 | E38: Industrial | F38: Não se aplica | G38: Fonte incentivada | H38: Não se aplica | I38: Fora ponta | J38: LIVRE | K38: 2021-05-01 | L38: -28674 | M38: -28674 | N38: 0 | O38: 0 | P38: 0 | Q38: 0 | R38: 11.85 | U38: -339786.9 | W38: -339786.9 | X38: -348962.58 | Y38: 0 | Z38: 0 | AA38: 0 | AB38: 0 | AC38: -3834.228042 | AD38: -17474.23878 | AE38: -10028.20839 | AI38: 0 | AJ38: 0 | AK38: 0 | AL38: 0 | AM38: 0 | AN38: 0 | AO38: -175706.9035 | AP38: -132837.2052 | AQ38: 0 | AR38: 0 | AU38: 0 | AV38: 0 | AW38: 0 | AZ38: 0 | BB38: 0 | BC38: -126.2906489 | BD38: 0 | BE38: 0 | BG38: 0 | BH38: 0 | BI38: 0 | BJ38: 0 | BK38: 0 | BL38: 0 | BV38: 0 | CI38: -348962.58 | CJ38: -9175.71 | CO38: -9175.68 | CP38: 0 | CQ38: 31 | CR38: -8996.806649 | CS38: -5126.409804 | CT38: -3703.289725 | CU38: 0 | CV38: 0 | CZ38: -224.6581035 | DA38: 0 | DB38: 57.55098388 | DE38: 0 | DF38: 0 | DG38: 0 | DH38: 0 | DI38: 0 | DK38: 0 | DL38: 0 | DN38: 0 | DO38: 0 | DP38: 0 | DQ38: 0 | DR38: 0 | DS38: 0 | DU38: -10028.20839 | DW38: 0 | DX38: 0 | DY38: -9175.68 | EA38: 0 | EC38: 0 | EE38: 0 | EF38: 0 | EH38: 0 | EI38: -54.41960479 | EJ38: -71.87104412 | EK38: 0 | EL38: 0 | EO38: 0 | EP38: 165 | EU38: 0 | EZ38: 0 | FA38: 0 | FB38: 0 | FC38: 0
A39: 1983 | B39: PROJETADO | C39: Azul | D39: A2 | E39: Industrial | F39: Não se aplica | G39: Não se aplica | H39: Não se aplica | I39: Fora ponta | J39: CATIVO | K39: 2021-06-01 | L39: 6485 | M39: 6485 | N39: 483.05 | O39: 483.05 | P39: 483.05 | Q39: 483.05 | R39: 11.85 | S39: 52.66 | T39: 228.68 | U39: 76847.25 | V39: 135901.287 | W39: 212748.537 | X39: 217610.9355 | Y39: 0 | Z39: 20504.28935 | AA39: 0 | AB39: 0 | AC39: 867.1608026 | AD39: 3952.027568 | AE39: 2268.010443 | AF39: 96819.40028 | AG39: 5324.028186 | AH39: 3263.955657 | AI39: 0 | AJ39: 0 | AK39: 1207.711693 | AL39: 3662.383601 | AM39: 0 | AN39: 10.18183645 | AO39: 39738.41351 | AP39: 30042.87074 | AQ39: 0 | AR39: 0 | AS39: 0 | AT39: 2468.430055 | AU39: 0 | AV39: 17.69482025 | AW39: -2.966104843 | AX39: 2.065814208 | AY39: -39.69804054 | AZ39: 0 | BA39: -5.25748445 | BB39: 77.7128281 | BC39: 29.57352666 | BD39: 256.5861474 | BE39: 12.5366802 | BF39: 1417.220525 | BG39: 886.7265358 | BH39: 66.9247149 | BI39: 0 | BJ39: 0 | BK39: 0 | BL39: 0 | BU39: 1.455462281e-09 | BV39: 99392.47017 | CI39: 217610.9355 | CJ39: 4862.3685 | CM39: 0 | CN39: 1.455462281e-09 | CO39: 2026.895 | CP39: 2835.5035 | CQ39: 30 | CR39: 4775.249111 | CS39: 1159.404603 | CT39: 837.5473903 | CU39: 0 | CV39: 0 | CW39: 0 | CX39: 113.8099769 | CY39: -13.44508865 | CZ39: 50.8093674 | DA39: 0 | DB39: -13.01590746 | DC39: 2630.550728 | DD39: 38.50540772 | DE39: 0.3406174088 | DF39: 6.97135982 | DG39: 24.09206345 | DH39: 0 | DI39: -78.50362567 | DJ39: 4.516613116 | DK39: 0 | DL39: 0 | DM39: 28.57289007 | DN39: -0.4389254608 | DO39: -14.33430865 | DP39: -0.1340504039 | DQ39: 0 | DR39: 0 | DS39: 0 | DU39: 2268.010443 | DV39: 0 | DW39: 65.66624579 | DX39: -1.258469103 | DY39: 2012.4035 | DZ39: 2801.69 | EA39: 14.4915 | EB39: 33.8135 | EC39: 0 | ED39: 75.70100027 | EE39: 0.200619173 | EF39: 0.009802159781 | EG39: 1.108094153 | EH39: 0.6933123478 | EI39: 12.30770514 | EJ39: 16.25457631 | EK39: 0 | EL39: 0 | EM39: 0 | EN39: 1.011245214 | EO39: 0 | EP39: 165 | EQ39: 0 | ER39: 0 | ES39: 0 | EU39: 0 | EZ39: 0 | FA39: 0 | FB39: 0 | FC39: 0
A40: 4467 | B40: PROJETADO | C40: Azul | D40: A2 | E40: Industrial | F40: Não se aplica | G40: Não se aplica | H40: Não se aplica | I40: Fora ponta | J40: LIVRE | K40: 2021-06-01 | L40: 59624 | M40: 59624 | N40: 0 | O40: 0 | P40: 0 | Q40: 0 | R40: 11.85 | U40: 706544.4 | W40: 706544.4 | X40: 725624.08 | Y40: 0 | Z40: 0 | AA40: 0 | AB40: 0 | AC40: 7972.798103 | AD40: 36335.49603 | AE40: 20852.40627 | AI40: 0 | AJ40: 0 | AK40: 0 | AL40: 0 | AM40: 0 | AN40: 0 | AO40: 365360.55 | AP40: 276218.3693 | AQ40: 0 | AR40: 0 | AU40: 0 | AV40: 0 | AW40: 0 | AZ40: 0 | BB40: 0 | BC40: 262.6056236 | BD40: 0 | BE40: 0 | BG40: 0 | BH40: 0 | BI40: 0 | BJ40: 0 | BK40: 0 | BL40: 0 | BV40: 0 | CI40: 725624.08 | CJ40: 19079.65 | CO40: 19079.68 | CP40: 0 | CQ40: 30 | CR40: 18707.73522 | CS40: 10659.72861 | CT40: 7700.528234 | CU40: 0 | CV40: 0 | CZ40: 467.1484537 | DA40: 0 | DB40: -119.6700796 | DE40: 0 | DF40: 0 | DG40: 0 | DH40: 0 | DI40: 0 | DK40: 0 | DL40: 0 | DN40: 0 | DO40: 0 | DP40: 0 | DQ40: 0 | DR40: 0 | DS40: 0 | DU40: 20852.40627 | DW40: 0 | DX40: 0 | DY40: 19079.68 | EA40: 0 | EC40: 0 | EE40: 0 | EF40: 0 | EH40: 0 | EI40: 113.1587681 | EJ40: 149.4468555 | EK40: 0 | EL40: 0 | EO40: 0 | EP40: 165 | EU40: 0 | EZ40: 0 | FA40: 0 | FB40: 0 | FC40: 0
A41: 4566 | B41: PROJETADO | C41: Azul | D41: A2 | E41: Industrial | F41: Não se aplica | G41: Fonte incentivada | H41: Não se aplica | I41: Fora ponta | J41: LIVRE | K41: 2021-06-01 | L41: 35495 | M41: 42963.148 | N41: 0 | O41: 0 | P41: 0 | Q41: 0 | R41: 11.85 | U41: 420615.75 | W41: 420615.75 | X41: 431974.15 | Y41: 0 | Z41: 0 | AA41: 0 | AB41: 0 | AC41: 4746.318071 | AD41: 21631.0283 | AE41: 12413.72871 | AI41: 0 | AJ41: 0 | AK41: 0 | AL41: 0 | AM41: 0 | AN41: 0 | AO41: 217504.2386 | AP41: 164436.6534 | AQ41: 0 | AR41: 0 | AU41: 0 | AV41: 0 | AW41: 0 | AZ41: 0 | BB41: 0 | BC41: 156.3327957 | BD41: 0 | BE41: 0 | BG41: 0 | BH41: 0 | BI41: 0 | BJ41: 0 | BK41: 0 | BL41: 0 | BN41: -90887.36116 | BV41: 0 | CI41: 522861.5355 | CJ41: 13748.2017 | CO41: 11358.4 | CP41: 0 | CQ41: 30 | CR41: 11136.97608 | CS41: 6345.885332 | CT41: 4584.232015 | CU41: 0 | CV41: 0 | CZ41: 278.0999994 | DA41: 0 | DB41: -71.2412699 | DE41: 0 | DF41: 0 | DG41: 0 | DH41: 0 | DI41: 0 | DK41: 0 | DL41: 0 | DN41: 0 | DO41: 0 | DP41: 0 | DQ41: 0 | DR41: 0 | DS41: 0 | DU41: 12413.72871 | DW41: 0 | DX41: 0 | DY41: 11358.4 | EA41: 0 | EC41: 0 | EE41: 0 | EF41: 0 | EH41: 0 | EI41: 67.36499519 | EJ41: 88.96780049 | EK41: 0 | EL41: 0 | EO41: 0 | EP41: 165 | EU41: 0 | EZ41: 0 | FA41: 0 | FB41: 0 | FC41: 0
A42: 4567 | B42: PROJETADO | C42: Azul | D42: A2 | E42: Industrial | F42: Não se aplica | G42: Fonte incentivada | H42: Não se aplica | I42: Fora ponta | J42: LIVRE | K42: 2021-06-01 | L42: -28674 | M42: -28674 | N42: 0 | O42: 0 | P42: 0 | Q42: 0 | R42: 11.85 | U42: -339786.9 | W42: -339786.9 | X42: -348962.58 | Y42: 0 | Z42: 0 | AA42: 0 | AB42: 0 | AC42: -3834.228042 | AD42: -17474.23878 | AE42: -10028.20839 | AI42: 0 | AJ42: 0 | AK42: 0 | AL42: 0 | AM42: 0 | AN42: 0 | AO42: -175706.9035 | AP42: -132837.2052 | AQ42: 0 | AR42: 0 | AU42: 0 | AV42: 0 | AW42: 0 | AZ42: 0 | BB42: 0 | BC42: -126.2906489 | BD42: 0 | BE42: 0 | BG42: 0 | BH42: 0 | BI42: 0 | BJ42: 0 | BK42: 0 | BL42: 0 | BV42: 0 | CI42: -348962.58 | CJ42: -9175.71 | CO42: -9175.68 | CP42: 0 | CQ42: 30 | CR42: -8996.806649 | CS42: -5126.409804 | CT42: -3703.289725 | CU42: 0 | CV42: 0 | CZ42: -224.6581035 | DA42: 0 | DB42: 57.55098388 | DE42: 0 | DF42: 0 | DG42: 0 | DH42: 0 | DI42: 0 | DK42: 0 | DL42: 0 | DN42: 0 | DO42: 0 | DP42: 0 | DQ42: 0 | DR42: 0 | DS42: 0 | DU42: -10028.20839 | DW42: 0 | DX42: 0 | DY42: -9175.68 | EA42: 0 | EC42: 0 | EE42: 0 | EF42: 0 | EH42: 0 | EI42: -54.41960479 | EJ42: -71.87104412 | EK42: 0 | EL42: 0 | EO42: 0 | EP42: 165 | EU42: 0 | EZ42: 0 | FA42: 0 | FB42: 0 | FC42: 0
A43: 33 | B43: Regular | C43: Azul | D43: A2 | E43: Industrial | F43: Não se aplica | G43: Não se aplica | H43: Não se aplica | I43: Não se aplica | J43: CATIVO | K43: 2020-07-01 | L43: 0 | M43: 0 | N43: 0 | O43: 0 | P43: 0 | Q43: 0 | AA43: 0 | AZ43: 0 | BI43: 17560.82 | BJ43: 80889.98 | BK43: 289651.33 | BL43: 4 | CJ43: -0.03 | CO43: 0 | CP43: 0 | CQ43: 31 | DK43: 0 | EP43: 165 | EU43: 0 | EZ43: 0 | FA43: 0 | FB43: 0 | FC43: 0
A44: 2130 | B44: Regular | C44: Azul | D44: A2 | E44: Industrial | F44: Não se aplica | G44: Não se aplica | H44: Não se aplica | I44: Não se aplica | J44: LIVRE | K44: 2020-07-01 | L44: 0 | M44: 0 | N44: 24885.097 | O44: 24885.097 | P44: 0 | Q44: 0 | S44: 52.66 | V44: 1310449.208 | W44: 1310449.208 | X44: 1307960.698 | Y44: 0 | Z44: 1056311.416 | AA44: 0 | AB44: 0 | AC44: 0 | AD44: 0 | AE44: 0 | AI44: 0 | AJ44: 0 | AK44: 1903.206823 | AL44: 188673.5766 | AM44: 0 | AN44: 524.5336666 | AO44: 0 | AP44: 0 | AQ44: 0 | AR44: 0 | AU44: 0 | AV44: 911.5771003 | AW44: -152.8036574 | AZ44: 0 | BB44: 46.55729283 | BC44: 0 | BD44: 13218.44771 | BE44: 645.8472269 | BG44: 45681.14244 | BH44: 3447.734234 | BI44: 153410.81 | BJ44: 0 | BK44: 1249521.04 | BL44: 6 | BV44: 59545.43738 | CI44: 1307960.856 | CJ44: -2488.38202 | CO44: -2488.5097 | CP44: 0 | CQ44: 31 | CR44: -3172.463269 | CS44: 0 | CT44: 0 | CU44: 0 | CV44: 0 | CZ44: 0 | DA44: 0 | DB44: 0 | DE44: 17.54745318 | DF44: 359.1408039 | DG44: 1241.141364 | DH44: 0 | DI44: -4044.24043 | DK44: 0 | DL44: 0 | DN44: -0.6916931718 | DO44: -738.4549449 | DP44: -6.905821971 | DQ44: 0 | DR44: 0 | DS44: 0 | DV44: 0 | DW44: 3382.902176 | DX44: -64.83205819 | DY44: -3235.06261 | EA44: 746.55291 | EC44: 0 | EE44: 10.33521909 | EF44: 0.504974013 | EH44: 35.71709974 | EI44: 0 | EJ44: 0 | EK44: 0 | EL44: 0 | EO44: 0 | EP44: 165 | EU44: 0 | EZ44: 0 | FA44: 0 | FB44: 0 | FC44: 0
A45: 2226 | B45: Regular | C45: Azul | D45: A2 | E45: Industrial | F45: Não se aplica | G45: Fonte incentivada | H45: Não se aplica | I45: Não se aplica | J45: LIVRE | K45: 2020-07-01 | L45: 0 | M45: 0 | N45: 457.92 | O45: 457.92 | P45: 0 | Q45: 0 | S45: 52.66 | V45: 24114.0672 | W45: 24114.0672 | X45: 24068.2752 | Y45: 0 | Z45: 19437.5824 | AA45: 0 | AB45: 0 | AC45: 0 | AD45: 0 | AE45: 0 | AI45: 0 | AJ45: 0 | AK45: 35.02162231 | AL45: 3471.853221 | AM45: 0 | AN45: 9.652140662 | AO45: 0 | AP45: 0 | AQ45: 0 | AR45: 0 | AU45: 0 | AV45: 16.774272 | AW45: -2.811797391 | AZ45: 0 | BB45: 0.856718201 | BC45: 0 | BD45: 243.2376123 | BE45: 11.88447697 | BG45: 840.5958292 | BH45: 63.4430503 | BI45: 10570.77 | BJ45: 0 | BK45: 74064.73 | BL45: 4 | BV45: 1095.717918 | CI45: 24068.2752 | CJ45: -45.822 | CO45: -45.792 | CP45: 0 | CQ45: 31 | CR45: -58.37768605 | CS45: 0 | CT45: 0 | CU45: 0 | CV45: 0 | CZ45: 0 | DA45: 0 | DB45: 0 | DE45: 0.3228972649 | DF45: 6.608684585 | DG45: 22.83870758 | DH45: 0 | DI45: -74.41958444 | DK45: 0 | DL45: 0 | DN45: -0.01272810539 | DO45: -13.58858631 | DP45: -0.1270766193 | DQ45: 0 | DR45: 0 | DS45: 0 | DV45: 0 | DW45: 62.25005129 | DX45: -1.19299901 | DY45: -59.5296 | EA45: 13.7376 | EC45: 0 | EE45: 0.1901822414 | EF45: 0.009292216141 | EH45: 0.6572437435 | EI45: 0 | EJ45: 0 | EK45: 0 | EL45: 0 | EO45: 0 | EP45: 165 | EU45: 0 | EZ45: 0 | FA45: 0 | FB45: 0 | FC45: 0
A46: 209 | B46: Regular | C46: Azul | D46: A2 | E46: Industrial | F46: Não se aplica | G46: Não se aplica | H46: Não se aplica | I46: Não se aplica | J46: CATIVO | K46: 2020-08-01 | L46: 0 | M46: 0 | N46: 0 | O46: 0 | P46: 0 | Q46: 0 | AA46: 0 | AZ46: 0 | BI46: 16511.41 | BJ46: 76056.11 | BK46: 271654.13 | BL46: 4 | CJ46: -0.03 | CO46: 0 | CP46: 0 | CQ46: 31 | DK46: 0 | EP46: 165 | EU46: 0 | EZ46: 0 | FA46: 0 | FB46: 0 | FC46: 0
A47: 2339 | B47: Regular | C47: Azul | D47: A2 | E47: Industrial | F47: Não se aplica | G47: Não se aplica | H47: Não se aplica | I47: Não se aplica | J47: LIVRE | K47: 2020-08-01 | L47: 0 | M47: 0 | N47: 25365.009 | O47: 25365.009 | P47: 0 | Q47: 0 | S47: 52.66 | V47: 1335721.374 | W47: 1335721.374 | X47: 1333184.873 | Y47: 0 | Z47: 1076682.505 | AA47: 0 | AB47: 0 | AC47: 0 | AD47: 0 | AE47: 0 | AI47: 0 | AJ47: 0 | AK47: 1939.910388 | AL47: 192312.1685 | AM47: 0 | AN47: 534.6493596 | AO47: 0 | AP47: 0 | AQ47: 0 | AR47: 0 | AU47: 0 | AV47: 929.156971 | AW47: -155.7504938 | AZ47: 0 | BB47: 47.45515566 | BC47: 0 | BD47: 13473.36702 | BE47: 658.302466 | BG47: 46562.10861 | BH47: 3514.224191 | BI47: 217915.47 | BJ47: 0 | BK47: 1318008.36 | BL47: 6 | BV47: 60693.77809 | CI47: 1333184.926 | CJ47: -2536.47834 | CO47: -2536.5009 | CP47: 0 | CQ47: 31 | CR47: -3233.644593 | CS47: 0 | CT47: 0 | CU47: 0 | CV47: 0 | CZ47: 0 | DA47: 0 | DB47: 0 | DE47: 17.88585786 | DF47: 366.0668763 | DG47: 1265.07692 | DH47: 0 | DI47: -4122.234078 | DK47: 0 | DL47: 0 | DN47: -0.7050325553 | DO47: -752.6961347 | DP47: -7.039001553 | DQ47: 0 | DR47: 0 | DS47: 0 | DV47: 0 | DW47: 3448.141839 | DX47: -66.082352 | DY47: -3297.45117 | EA47: 760.95027 | EC47: 0 | EE47: 10.53453499 | EF47: 0.5147124957 | EH47: 36.40590817 | EI47: 0 | EJ47: 0 | EK47: 0 | EL47: 0 | EO47: 0 | EP47: 165 | EU47: 0 | EZ47: 0 | FA47: 0 | FB47: 0 | FC47: 0
A48: 2435 | B48: Regular | C48: Azul | D48: A2 | E48: Industrial | F48: Não se aplica | G48: Fonte incentivada | H48: Não se aplica | I48: Não se aplica | J48: LIVRE | K48: 2020-08-01 | L48: 0 | M48: 0 | N48: 71.903 | O48: 71.903 | P48: 0 | Q48: 0 | S48: 52.66 | V48: 3786.41198 | W48: 3786.41198 | X48: 3779.22168 | Y48: 0 | Z48: 3052.106236 | AA48: 0 | AB48: 0 | AC48: 0 | AD48: 0 | AE48: 0 | AI48: 0 | AJ48: 0 | AK48: 5.499125849 | AL48: 545.1534376 | AM48: 0 | AN48: 1.515587592 | AO48: 0 | AP48: 0 | AQ48: 0 | AR48: 0 | AU48: 0 | AV48: 2.6339109 | AW48: -0.4415108922 | AZ48: 0 | BB48: 0.1345226433 | BC48: 0 | BD48: 38.1933832 | BE48: 1.866110996 | BG48: 131.9910943 | BH48: 9.961883398 | BI48: 25810.76 | BJ48: 0 | BK48: 79934.53 | BL48: 5 | BV48: 172.0505885 | CI48: 3779.064 | CJ48: -7.37798 | CO48: -7.1903 | CP48: 0 | CQ48: 31 | CR48: -9.166515461 | CS48: 0 | CT48: 0 | CU48: 0 | CV48: 0 | CZ48: 0 | DA48: 0 | DB48: 0 | DE48: 0.05070161172 | DF48: 1.037701449 | DG48: 3.586153893 | DH48: 0 | DI48: -11.68542842 | DK48: 0 | DL48: 0 | DN48: -0.001998578271 | DO48: -2.133691739 | DP48: -0.0199536822 | DQ48: 0 | DR48: 0 | DS48: 0 | DV48: 0 | DW48: 9.774557647 | DX48: -0.1873257508 | DY48: -9.34739 | EA48: 2.15709 | EC48: 0 | EE48: 0.02986258233 | EF48: 0.001459071928 | EH48: 0.103200989 | EI48: 0 | EJ48: 0 | EK48: 0 | EL48: 0 | EO48: 0 | EP48: 165 | EU48: 0 | EZ48: 0 | FA48: 0 | FB48: 0 | FC48: 0
A49: 378 | B49: Regular | C49: Azul | D49: A2 | E49: Industrial | F49: Não se aplica | G49: Não se aplica | H49: Não se aplica | I49: Não se aplica | J49: CATIVO | K49: 2020-09-01 | L49: 0 | M49: 0 | N49: 0 | O49: 0 | P49: 0 | Q49: 0 | AA49: 0 | AZ49: 0 | BI49: 10834.69 | BJ49: 49905.35 | BK49: 254623.62 | BL49: 4 | CJ49: -0.03 | CO49: 0 | CP49: 0 | CQ49: 30 | DK49: 0 | EP49: 165 | EU49: 0 | EZ49: 0 | FA49: 0 | FB49: 0 | FC49: 0
A50: 2548 | B50: Regular | C50: Azul | D50: A2 | E50: Industrial | F50: Não se aplica | G50: Não se aplica | H50: Não se aplica | I50: Não se aplica | J50: LIVRE | K50: 2020-09-01 | L50: 0 | M50: 0 | N50: 24547.685 | O50: 24547.685 | P50: 0 | Q50: 0 | S50: 52.66 | V50: 1292681.092 | W50: 1292681.092 | X50: 1290226.324 | Y50: 0 | Z50: 1041989.103 | AA50: 0 | AB50: 0 | AC50: 0 | AD50: 0 | AE50: 0 | AI50: 0 | AJ50: 0 | AK50: 1877.401626 | AL50: 186115.3897 | AM50: 0 | AN50: 517.4216207 | AO50: 0 | AP50: 0 | AQ50: 0 | AR50: 0 | AU50: 0 | AV50: 899.2172106 | AW50: -150.7318235 | AZ50: 0 | BB50: 45.92603191 | BC50: 0 | BD50: 13039.22145 | BE50: 637.0903149 | BG50: 45061.76107 | BH50: 3400.987103 | BI50: 187629.45 | BJ50: 0 | BK50: 1289400.93 | BL50: 205 | BV50: 58738.07283 | CI50: 1290226.586 | CJ50: -2454.5357 | CO50: -2454.7685 | CP50: 0 | CQ50: 30 | CR50: -3129.448481 | CS50: 0 | CT50: 0 | CU50: 0 | CV50: 0 | CZ50: 0 | DA50: 0 | DB50: 0 | DE50: 17.30953081 | DF50: 354.2712864 | DG50: 1224.312979 | DH50: 0 | DI50: -3989.405391 | DK50: 0 | DL50: 0 | DN50: -0.6823146439 | DO50: -728.4423836 | DP50: -6.812187326 | DQ50: 0 | DR50: 0 | DS50: 0 | DV50: 0 | DW50: 3337.034089 | DX50: -63.95301342 | DY50: -3191.19905 | EA50: 736.43055 | EC50: 0 | EE50: 10.19508594 | EF50: 0.4981271724 | EH50: 35.2328188 | EI50: 0 | EJ50: 0 | EK50: 0 | EL50: 0 | EO50: 0 | EP50: 165 | EU50: 0 | EZ50: 0 | FA50: 0 | FB50: 0 | FC50: 0
A51: 2597 | B51: Refaturamento - Regular | C51: Azul | D51: A2 | E51: Industrial | F51: Não se aplica | G51: APE | H51: Não se aplica | I51: Não se aplica | J51: LIVRE APE | K51: 2020-09-01 | L51: 0 | M51: 0 | N51: 4.155 | O51: 4.155 | P51: 0 | Q51: 0 | S51: 2.62 | V51: 10.8861 | W51: 10.8861 | X51: 11.1354 | Y51: 0 | Z51: 0 | AA51: 0 | AB51: 0 | AC51: 0 | AD51: 0 | AE51: 0 | AI51: 0 | AJ51: 0 | AK51: 0.262427343 | AL51: 0 | AM51: 0 | AN51: 0.0875800237 | AO51: 0 | AP51: 0 | AQ51: 0 | AR51: 0 | AU51: 0 | AV51: 0 | AW51: 0 | AZ51: 0 | BB51: 0.007773550239 | BC51: 0 | BD51: 2.207049876 | BE51: 0.1078354337 | BG51: 7.627261684 | BH51: 0.5756592286 | BI51: 0 | BJ51: 0 | BK51: 0 | BL51: 0 | BV51: 9.942146993 | CI51: 11.1488 | CJ51: 0.2327 | CO51: 0.2493 | CP51: 0 | CQ51: 30 | CR51: 0.2688763865 | CS51: 0 | CT51: 0 | CU51: 0 | CV51: 0 | CZ51: 0 | DA51: 0 | DB51: 0 | DE51: 0.002929852672 | DF51: 0.05996480706 | DG51: 0.2072301493 | DH51: 0 | DI51: 0 | DK51: 0 | DL51: 0 | DN51: -9.537544689e-05 | DO51: 0 | DP51: -0.001153047155 | DQ51: 0 | DR51: 0 | DS51: 0 | DV51: 0 | DW51: 0.5648343883 | DX51: -0.01082484034 | DY51: 0.2493 | EA51: 0 | EC51: 0 | EE51: 0.001725644682 | EF51: 8.431419913e-05 | EH51: 0.005963591358 | EI51: 0 | EJ51: 0 | EK51: 0 | EL51: 0 | EO51: 0 | EP51: 165 | EU51: 0 | EZ51: 0 | FA51: 0 | FB51: 0 | FC51: 0
A52: 2644 | B52: Regular | C52: Azul | D52: A2 | E52: Industrial | F52: Não se aplica | G52: Fonte incentivada | H52: Não se aplica | I52: Não se aplica | J52: LIVRE | K52: 2020-09-01 | L52: 0 | M52: 0 | N52: 608.733 | O52: 608.733 | P52: 0 | Q52: 0 | S52: 52.66 | V52: 32055.87978 | W52: 32055.87978 | X52: 31995.00648 | Y52: 0 | Z52: 25839.22486 | AA52: 0 | AB52: 0 | AC52: 0 | AD52: 0 | AE52: 0 | AI52: 0 | AJ52: 0 | AK52: 46.55576784 | AL52: 4615.285698 | AM52: 0 | AN52: 12.83101097 | AO52: 0 | AP52: 0 | AQ52: 0 | AR52: 0 | AU52: 0 | AV52: 22.29877034 | AW52: -3.737844735 | AZ52: 0 | BB52: 1.138872818 | BC52: 0 | BD52: 323.3463518 | BE52: 15.79855284 | BG52: 1117.440647 | BH52: 84.33760992 | BI52: 42692.88 | BJ52: 0 | BK52: 158736.52 | BL52: 5 | BV52: 1456.585551 | CI52: 31994.8488 | CJ52: -61.06098 | CO52: -60.8733 | CP52: 0 | CQ52: 30 | CR52: -77.60400062 | CS52: 0 | CT52: 0 | CU52: 0 | CV52: 0 | CZ52: 0 | DA52: 0 | DB52: 0 | DE52: 0.4292413976 | DF52: 8.78521225 | DG52: 30.36048869 | DH52: 0 | DI52: -98.92919483 | DK52: 0 | DL52: 0 | DN52: -0.01692002485 | DO52: -18.06389961 | DP52: -0.1689284846 | DQ52: 0 | DR52: 0 | DS52: 0 | DV52: 0 | DW52: 82.75170438 | DX52: -1.585905543 | DY52: -79.13529 | EA52: 18.26199 | EC52: 0 | EE52: 0.2528175365 | EF52: 0.01235254762 | EH52: 0.8737027335 | EI52: 0 | EJ52: 0 | EK52: 0 | EL52: 0 | EO52: 0 | EP52: 165 | EU52: 0 | EZ52: 0 | FA52: 0 | FB52: 0 | FC52: 0
A53: 2645 | B53: Refaturamento - Regular | C53: Azul | D53: A2 | E53: Industrial | F53: Não se aplica | G53: Fonte incentivada | H53: Não se aplica | I53: Não se aplica | J53: LIVRE | K53: 2020-09-01 | L53: 0 | M53: 0 | N53: -4.155 | O53: -4.155 | P53: 0 | Q53: 0 | S53: 52.66 | V53: -218.8023 | W53: -218.8023 | X53: -218.3868 | Y53: 0 | Z53: -176.369573 | AA53: 0 | AB53: 0 | AC53: 0 | AD53: 0 | AE53: 0 | AI53: 0 | AJ53: 0 | AK53: -0.317773499 | AL53: -31.50233695 | AM53: 0 | AN53: -0.0875800237 | AO53: 0 | AP53: 0 | AQ53: 0 | AR53: 0 | AU53: 0 | AV53: -0.1522036604 | AW53: 0.02551322973 | AZ53: 0 | BB53: -0.007773550239 | BC53: 0 | BD53: -2.207049876 | BE53: -0.1078354337 | BG53: -7.627261684 | BH53: -0.5756592286 | BI53: 0 | BJ53: 0 | BK53: 0 | BL53: 0 | BV53: -9.942146993 | CI53: -218.6496 | CJ53: 0.1227 | CO53: 0.4155 | CP53: 0 | CQ53: 30 | CR53: 0.5296979506 | CS53: 0 | CT53: 0 | CU53: 0 | CV53: 0 | CZ53: 0 | DA53: 0 | DB53: 0 | DE53: -0.002929852672 | DF53: -0.05996480706 | DG53: -0.2072301493 | DH53: 0 | DI53: 0.6752563185 | DK53: 0 | DL53: 0 | DN53: 0.000115490212 | DO53: 0.1232979038 | DP53: 0.001153047155 | DQ53: 0 | DR53: 0 | DS53: 0 | DV53: 0 | DW53: -0.5648343883 | DX53: 0.01082484034 | DY53: 0.54015 | EA53: -0.12465 | EC53: 0 | EE53: -0.001725644682 | EF53: -8.431419913e-05 | EH53: -0.005963591358 | EI53: 0 | EJ53: 0 | EK53: 0 | EL53: 0 | EO53: 0 | EP53: 165 | EU53: 0 | EZ53: 0 | FA53: 0 | FB53: 0 | FC53: 0
A54: 557 | B54: Regular | C54: Azul | D54: A2 | E54: Industrial | F54: Não se aplica | G54: Não se aplica | H54: Não se aplica | I54: Não se aplica | J54: CATIVO | K54: 2020-10-01 | L54: 0 | M54: 0 | N54: 0 | O54: 0 | P54: 0 | Q54: 0 | AA54: 0 | AZ54: 0 | BI54: 4428.89 | BJ54: 20401.06 | BK54: 117788.35 | BL54: 4 | CJ54: -0.03 | CO54: 0 | CP54: 0 | CQ54: 31 | DK54: 0 | EP54: 165 | EU54: 0 | EZ54: 0 | FA54: 0 | FB54: 0 | FC54: 0
A55: 2760 | B55: Regular | C55: Azul | D55: A2 | E55: Industrial | F55: Não se aplica | G55: Não se aplica | H55: Não se aplica | I55: Não se aplica | J55: LIVRE | K55: 2020-10-01 | L55: 0 | M55: 0 | N55: 24857.236 | O55: 24857.236 | P55: 0 | Q55: 0 | S55: 52.66 | V55: 1308982.048 | W55: 1308982.048 | X55: 1306496.324 | Y55: 0 | Z55: 1055128.785 | AA55: 0 | AB55: 0 | AC55: 0 | AD55: 0 | AE55: 0 | AI55: 0 | AJ55: 0 | AK55: 1901.076019 | AL55: 188462.3403 | AM55: 0 | AN55: 523.9464062 | AO55: 0 | AP55: 0 | AQ55: 0 | AR55: 0 | AU55: 0 | AV55: 910.5565115 | AW55: -152.6325806 | AZ55: 0 | BB55: 46.50516795 | BC55: 0 | BD55: 13203.64852 | BE55: 645.1241455 | BG55: 45629.99849 | BH55: 3443.8742 | BI55: 139279.28 | BJ55: 0 | BK55: 1252090.38 | BL55: 6 | BV55: 59478.77116 | CI55: 1306496.534 | CJ55: -2485.54336 | CO55: -2485.7236 | CP55: 0 | CQ55: 31 | CR55: -3168.911424 | CS55: 0 | CT55: 0 | CU55: 0 | CV55: 0 | CZ55: 0 | DA55: 0 | DB55: 0 | DE55: 17.5278073 | DF55: 358.738715 | DG55: 1239.7518 | DH55: 0 | DI55: -4039.712556 | DK55: 0 | DL55: 0 | DN55: -0.6909187619 | DO55: -737.6281812 | DP55: -6.898090311 | DQ55: 0 | DR55: 0 | DS55: 0 | DV55: 0 | DW55: 3379.114727 | DX55: -64.75947315 | DY55: -3231.44068 | EA55: 745.71708 | EC55: 0 | EE55: 10.32364792 | EF55: 0.5044086512 | EH55: 35.67711138 | EI55: 0 | EJ55: 0 | EK55: 0 | EL55: 0 | EO55: 0 | EP55: 165 | EU55: 0 | EZ55: 0 | FA55: 0 | FB55: 0 | FC55: 0
A56: 2809 | B56: Refaturamento - Regular | C56: Azul | D56: A2 | E56: Industrial | F56: Não se aplica | G56: APE | H56: Não se aplica | I56: Não se aplica | J56: LIVRE APE | K56: 2020-10-01 | L56: 0 | M56: 0 | N56: 20.557 | O56: 20.557 | P56: 0 | Q56: 0 | S56: 2.62 | V56: 53.85934 | W56: 53.85934 | X56: 55.09276 | Y56: 0 | Z56: 0 | AA56: 0 | AB56: 0 | AC56: 0 | AD56: 0 | AE56: 0 | AI56: 0 | AJ56: 0 | AK56: 1.298367964 | AL56: 0 | AM56: 0 | AN56: 0.4333050655 | AO56: 0 | AP56: 0 | AQ56: 0 | AR56: 0 | AU56: 0 | AV56: 0 | AW56: 0 | AZ56: 0 | BB56: 0.03845989705 | BC56: 0 | BD56: 10.9194523 | BE56: 0.5335193768 | BG56: 37.73612959 | BH56: 2.848093084 | BI56: 0 | BJ56: 0 | BK56: 0 | BL56: 0 | BV56: 49.18910126 | CI56: 55.1008 | CJ56: 1.21146 | CO56: 1.23342 | CP56: 0 | CQ56: 31 | CR56: 1.33027482 | CS56: 0 | CT56: 0 | CU56: 0 | CV56: 0 | CZ56: 0 | DA56: 0 | DB56: 0 | DE56: 0.01449554305 | DF56: 0.2966778673 | DG56: 1.025278022 | DH56: 0 | DI56: 0 | DK56: 0 | DL56: 0 | DN56: -0.0004718731797 | DO56: 0 | DP56: -0.005704738955 | DQ56: 0 | DR56: 0 | DS56: 0 | DV56: 0 | DW56: 2.794536828 | DX56: -0.05355625579 | DY56: 1.23342 | EA56: 0 | EC56: 0 | EE56: 0.008537684171 | EF56: 0.0004171472904 | EH56: 0.02950506559 | EI56: 0 | EJ56: 0 | EK56: 0 | EL56: 0 | EO56: 0 | EP56: 165 | EU56: 0 | EZ56: 0 | FA56: 0 | FB56: 0 | FC56: 0
A57: 2856 | B57: Regular | C57: Azul | D57: A2 | E57: Industrial | F57: Não se aplica | G57: Fonte incentivada | H57: Não se aplica | I57: Não se aplica | J57: LIVRE | K57: 2020-10-01 | L57: 0 | M57: 0 | N57: 235.956 | O57: 235.956 | P57: 0 | Q57: 0 | S57: 52.66 | V57: 12425.44296 | W57: 12425.44296 | X57: 12401.84736 | Y57: 0 | Z57: 10015.75427 | AA57: 0 | AB57: 0 | AC57: 0 | AD57: 0 | AE57: 0 | AI57: 0 | AJ57: 0 | AK57: 18.04586372 | AL57: 1788.968813 | AM57: 0 | AN57: 4.973533591 | AO57: 0 | AP57: 0 | AQ57: 0 | AR57: 0 | AU57: 0 | AV57: 8.643409599 | AW57: -1.448856711 | AZ57: 0 | BB57: 0.4414478508 | BC57: 0 | BD57: 125.3349363 | BE57: 6.123806882 | BG57: 433.1403509 | BH57: 32.69079397 | BI57: 23206.43 | BJ57: 0 | BK57: 108924.47 | BL57: 5 | BV57: 564.5990941 | CI57: 12402.0576 | CJ57: -23.41536 | CO57: -23.5956 | CP57: 0 | CQ57: 31 | CR57: -30.08072434 | CS57: 0 | CT57: 0 | CU57: 0 | CV57: 0 | CZ57: 0 | DA57: 0 | DB57: 0 | DE57: 0.1663817851 | DF57: 3.405308307 | DG57: 11.76827849 | DH57: 0 | DI57: -38.3467581 | DK57: 0 | DL57: 0 | DN57: -0.00655850986 | DO57: -7.001896556 | DP57: -0.06547975798 | DQ57: 0 | DR57: 0 | DS57: 0 | DV57: 0 | DW57: 32.07606809 | DX57: -0.6147258788 | DY57: -30.67428 | EA57: 7.07868 | EC57: 0 | EE57: 0.0979966827 | EF57: 0.004788072484 | EH57: 0.3386630956 | EI57: 0 | EJ57: 0 | EK57: 0 | EL57: 0 | EO57: 0 | EP57: 165 | EU57: 0 | EZ57: 0 | FA57: 0 | FB57: 0 | FC57: 0
A58: 2857 | B58: Refaturamento - Regular | C58: Azul | D58: A2 | E58: Industrial | F58: Não se aplica | G58: Fonte incentivada | H58: Não se aplica | I58: Não se aplica | J58: LIVRE | K58: 2020-10-01 | L58: 0 | M58: 0 | N58: -20.557 | O58: -20.557 | P58: 0 | Q58: 0 | S58: 52.66 | V58: -1082.53162 | W58: -1082.53162 | X58: -1080.47592 | Y58: 0 | Z58: -872.5942992 | AA58: 0 | AB58: 0 | AC58: 0 | AD58: 0 | AE58: 0 | AI58: 0 | AJ58: 0 | AK58: -1.572194902 | AL58: -155.8588545 | AM58: 0 | AN58: -0.4333050655 | AO58: 0 | AP58: 0 | AQ58: 0 | AR58: 0 | AU58: 0 | AV58: -0.7530326464 | AW58: 0.1262275484 | AZ58: 0 | BB58: -0.03845989705 | BC58: 0 | BD58: -10.9194523 | BE58: -0.5335193768 | BG58: -37.73612959 | BH58: -2.848093084 | BI58: 0 | BJ58: 0 | BK58: 0 | BL58: 0 | BV58: -49.18910126 | CI58: -1080.6336 | CJ58: 1.86802 | CO58: 2.0557 | CP58: 0 | CQ58: 31 | CR58: 2.62069814 | CS58: 0 | CT58: 0 | CU58: 0 | CV58: 0 | CZ58: 0 | DA58: 0 | DB58: 0 | DE58: -0.01449554305 | DF58: -0.2966778673 | DG58: -1.025278022 | DH58: 0 | DI58: 3.340852982 | DK58: 0 | DL58: 0 | DN58: 0.0005713916459 | DO58: 0.6100204593 | DP58: 0.005704738955 | DQ58: 0 | DR58: 0 | DS58: 0 | DV58: 0 | DW58: -2.794536828 | DX58: 0.05355625579 | DY58: 2.67241 | EA58: -0.61671 | EC58: 0 | EE58: -0.008537684171 | EF58: -0.0004171472904 | EH58: -0.02950506559 | EI58: 0 | EJ58: 0 | EK58: 0 | EL58: 0 | EO58: 0 | EP58: 165 | EU58: 0 | EZ58: 0 | FA58: 0 | FB58: 0 | FC58: 0
A59: 735 | B59: Regular | C59: Azul | D59: A2 | E59: Industrial | F59: Não se aplica | G59: Não se aplica | H59: Não se aplica | I59: Não se aplica | J59: CATIVO | K59: 2020-11-01 | L59: 0 | M59: 0 | N59: 0 | O59: 0 | P59: 0 | Q59: 0 | AA59: 0 | AZ59: 0 | BI59: 2877.42 | BJ59: 13254.36 | BK59: 49850.03 | BL59: 5 | CJ59: -0.03 | CO59: 0 | CP59: 0 | CQ59: 30 | DK59: 0 | EP59: 165 | EU59: 0 | EZ59: 0 | FA59: 0 | FB59: 0 | FC59: 0
A60: 736 | B60: Refaturamento - Regular | C60: Azul | D60: A2 | E60: Industrial | F60: Não se aplica | G60: Não se aplica | H60: Não se aplica | I60: Não se aplica | J60: CATIVO | K60: 2020-11-01 | L60: 0 | M60: 0 | N60: 0 | O60: 0 | P60: 0 | Q60: 0 | AA60: 0 | AZ60: 0 | BI60: -542.26 | BJ60: -2497.84 | BK60: -14631.43 | BL60: 0 | CJ60: -0.03 | CO60: 0 | CP60: 0 | CQ60: 30 | DK60: 0 | EP60: 165 | EU60: 0 | EZ60: 0 | FA60: 0 | FB60: 0 | FC60: 0
A61: 2972 | B61: Regular | C61: Azul | D61: A2 | E61: Industrial | F61: Não se aplica | G61: Não se aplica | H61: Não se aplica | I61: Não se aplica | J61: LIVRE | K61: 2020-11-01 | L61: 0 | M61: 0 | N61: 26001.309 | O61: 26001.309 | P61: 0 | Q61: 0 | S61: 52.66 | V61: 1369228.932 | W61: 1369228.932 | X61: 1366628.801 | Y61: 0 | Z61: 1103691.881 | AA61: 0 | AB61: 0 | AC61: 0 | AD61: 0 | AE61: 0 | AI61: 0 | AJ61: 0 | AK61: 1988.574474 | AL61: 197136.4614 | AM61: 0 | AN61: 548.061434 | AO61: 0 | AP61: 0 | AQ61: 0 | AR61: 0 | AU61: 0 | AV61: 952.4655605 | AW61: -159.6576101 | AZ61: 0 | BB61: 48.64560332 | BC61: 0 | BD61: 13811.35639 | BE61: 674.81647 | BG61: 47730.15352 | BH61: 3602.381103 | BI61: 130591.61 | BJ61: 0 | BK61: 1319979.94 | BL61: 6 | BV61: 62216.32638 | CI61: 1366628.854 | CJ61: -2600.10834 | CO61: -2600.1309 | CP61: 0 | CQ61: 30 | CR61: -3314.762958 | CS61: 0 | CT61: 0 | CU61: 0 | CV61: 0 | CZ61: 0 | DA61: 0 | DB61: 0 | DE61: 18.33453782 | DF61: 375.2499344 | DG61: 1296.81231 | DH61: 0 | DI61: -4225.643367 | DK61: 0 | DL61: 0 | DN61: -0.7227188181 | DO61: -771.5780736 | DP61: -7.21558011 | DQ61: 0 | DR61: 0 | DS61: 0 | DV61: 0 | DW61: 3534.641026 | DX61: -67.74007665 | DY61: -3380.17017 | EA61: 780.03927 | EC61: 0 | EE61: 10.79880159 | EF61: 0.5276244391 | EH61: 37.31917729 | EI61: 0 | EJ61: 0 | EK61: 0 | EL61: 0 | EO61: 0 | EP61: 165 | EU61: 0 | EZ61: 0 | FA61: 0 | FB61: 0 | FC61: 0
A62: 3021 | B62: Refaturamento - Regular | C62: Azul | D62: A2 | E62: Industrial | F62: Não se aplica | G62: APE | H62: Não se aplica | I62: Não se aplica | J62: LIVRE APE | K62: 2020-11-01 | L62: 0 | M62: 0 | N62: 8.551 | O62: 8.551 | P62: 0 | Q62: 0 | S62: 2.62 | V62: 22.40362 | W62: 22.40362 | X62: 22.91668 | Y62: 0 | Z62: 0 | AA62: 0 | AB62: 0 | AC62: 0 | AD62: 0 | AE62: 0 | AI62: 0 | AJ62: 0 | AK62: 0.5400761034 | AL62: 0 | AM62: 0 | AN62: 0.1802398995 | AO62: 0 | AP62: 0 | AQ62: 0 | AR62: 0 | AU62: 0 | AV62: 0 | AW62: 0 | AZ62: 0 | BB62: 0.0159979851 | BC62: 0 | BD62: 4.542113956 | BE62: 0.2219255821 | BG62: 15.6969229 | BH62: 1.184708078 | BI62: 0 | BJ62: 0 | BK62: 0 | BL62: 0 | BV62: 20.46096244 | CI62: 22.914 | CJ62: 0.48038 | CO62: 0.51306 | CP62: 0 | CQ62: 30 | CR62: 0.5533482505 | CS62: 0 | CT62: 0 | CU62: 0 | CV62: 0 | CZ62: 0 | DA62: 0 | DB62: 0 | DE62: 0.006029643851 | DF62: 0.1234077173 | DG62: 0.4264801461 | DH62: 0 | DI62: 0 | DK62: 0 | DL62: 0 | DN62: -0.0001962828992 | DO62: 0 | DP62: -0.002372973819 | DQ62: 0 | DR62: 0 | DS62: 0 | DV62: 0 | DW62: 1.162430531 | DX62: -0.02227754747 | DY62: 0.51306 | EA62: 0 | EC62: 0 | EE62: 0.003551380909 | EF62: 0.0001735188247 | EH62: 0.01227308537 | EI62: 0 | EJ62: 0 | EK62: 0 | EL62: 0 | EO62: 0 | EP62: 165 | EU62: 0 | EZ62: 0 | FA62: 0 | FB62: 0 | FC62: 0
A63: 3068 | B63: Regular | C63: Azul | D63: A2 | E63: Industrial | F63: Não se aplica | G63: Fonte incentivada | H63: Não se aplica | I63: Não se aplica | J63: LIVRE | K63: 2020-11-01 | L63: 0 | M63: 0 | N63: 672.632 | O63: 672.632 | P63: 0 | Q63: 0 | S63: 52.66 | V63: 35420.80112 | W63: 35420.80112 | X63: 35353.53792 | Y63: 0 | Z63: 28551.5809 | AA63: 0 | AB63: 0 | AC63: 0 | AD63: 0 | AE63: 0 | AI63: 0 | AJ63: 0 | AK63: 51.44274951 | AL63: 5099.75449 | AM63: 0 | AN63: 14.17788845 | AO63: 0 | AP63: 0 | AQ63: 0 | AR63: 0 | AU63: 0 | AV63: 24.63948315 | AW63: -4.13020812 | AZ63: 0 | BB63: 1.258420853 | BC63: 0 | BD63: 357.2881761 | BE63: 17.45693464 | BG63: 1234.738936 | BH63: 93.19056998 | BI63: 24179.04 | BJ63: 0 | BK63: 176496.72 | BL63: 5 | BV63: 1609.484047 | CI63: 35353.4328 | CJ63: -67.39832 | CO63: -67.2632 | CP63: 0 | CQ63: 30 | CR63: -85.75013042 | CS63: 0 | CT63: 0 | CU63: 0 | CV63: 0 | CZ63: 0 | DA63: 0 | DB63: 0 | DE63: 0.4742990765 | DF63: 9.707400266 | DG63: 33.547444 | DH63: 0 | DI63: -109.3138407 | DK63: 0 | DL63: 0 | DN63: -0.01869612811 | DO63: -19.96007596 | DP63: -0.1866609901 | DQ63: 0 | DR63: 0 | DS63: 0 | DV63: 0 | DW63: 91.43819116 | DX63: -1.752378822 | DY63: -87.44216 | EA63: 20.17896 | EC63: 0 | EE63: 0.2793559167 | EF63: 0.01364920058 | EH63: 0.9654157357 | EI63: 0 | EJ63: 0 | EK63: 0 | EL63: 0 | EO63: 0 | EP63: 165 | EU63: 0 | EZ63: 0 | FA63: 0 | FB63: 0 | FC63: 0
A64: 3069 | B64: Refaturamento - Regular | C64: Azul | D64: A2 | E64: Industrial | F64: Não se aplica | G64: Fonte incentivada | H64: Não se aplica | I64: Não se aplica | J64: LIVRE | K64: 2020-11-01 | L64: 0 | M64: 0 | N64: -8.551 | O64: -8.551 | P64: 0 | Q64: 0 | S64: 52.66 | V64: -450.29566 | W64: -450.29566 | X64: -449.44056 | Y64: 0 | Z64: -362.9690058 | AA64: 0 | AB64: 0 | AC64: 0 | AD64: 0 | AE64: 0 | AI64: 0 | AJ64: 0 | AK64: -0.6539786258 | AL64: -64.83188525 | AM64: 0 | AN64: -0.1802398995 | AO64: 0 | AP64: 0 | AQ64: 0 | AR64: 0 | AU64: 0 | AV64: -0.3132354993 | AW64: 0.05250628819 | AZ64: 0 | BB64: -0.0159979851 | BC64: 0 | BD64: -4.542113956 | BE64: -0.2219255821 | BG64: -15.6969229 | BH64: -1.184708078 | BI64: 0 | BJ64: 0 | BK64: 0 | BL64: 0 | BV64: -20.46096244 | CI64: -449.388 | CJ64: 0.87766 | CO64: 0.8551 | CP64: 0 | CQ64: 30 | CR64: 1.090119657 | CS64: 0 | CT64: 0 | CU64: 0 | CV64: 0 | CZ64: 0 | DA64: 0 | DB64: 0 | DE64: -0.006029643851 | DF64: -0.1234077173 | DG64: -0.4264801461 | DH64: 0 | DI64: 1.389679129 | DK64: 0 | DL64: 0 | DN64: 0.0002376791343 | DO64: 0.2537473828 | DP64: 0.002372973819 | DQ64: 0 | DR64: 0 | DS64: 0 | DV64: 0 | DW64: -1.162430531 | DX64: 0.02227754747 | DY64: 1.11163 | EA64: -0.25653 | EC64: 0 | EE64: -0.003551380909 | EF64: -0.0001735188247 | EH64: -0.01227308537 | EI64: 0 | EJ64: 0 | EK64: 0 | EL64: 0 | EO64: 0 | EP64: 165 | EU64: 0 | EZ64: 0 | FA64: 0 | FB64: 0 | FC64: 0
A65: 898 | B65: Regular | C65: Azul | D65: A2 | E65: Industrial | F65: Não se aplica | G65: Não se aplica | H65: Não se aplica | I65: Não se aplica | J65: CATIVO | K65: 2020-12-01 | L65: 0 | M65: 0 | N65: 0 | O65: 0 | P65: 0 | Q65: 0 | AA65: 0 | AZ65: 0 | BI65: 4282.06 | BJ65: 19723.62 | BK65: 57087.97 | BL65: 5 | CJ65: -0.03 | CO65: 0 | CP65: 0 | DK65: 0 | EP65: 165 | EU65: 0 | EZ65: 0 | FA65: 0 | FB65: 0 | FC65: 0
A66: 899 | B66: Refaturamento - Regular | C66: Azul | D66: A2 | E66: Industrial | F66: Não se aplica | G66: Não se aplica | H66: Não se aplica | I66: Não se aplica | J66: CATIVO | K66: 2020-12-01 | L66: 0 | M66: 0 | N66: 0 | O66: 0 | P66: 0 | Q66: 0 | AA66: 0 | AZ66: 0 | BI66: 631.55 | BJ66: 2909.14 | BK66: 16853.51 | BL66: 0 | CJ66: -0.03 | CO66: 0 | CP66: 0 | DK66: 0 | EP66: 165 | EU66: 0 | EZ66: 0 | FA66: 0 | FB66: 0 | FC66: 0
A67: 3185 | B67: Regular | C67: Azul | D67: A2 | E67: Industrial | F67: Não se aplica | G67: Não se aplica | H67: Não se aplica | I67: Não se aplica | J67: LIVRE | K67: 2020-12-01 | L67: 0 | M67: 0 | N67: 24798.899 | O67: 24798.899 | P67: 0 | Q67: 0 | S67: 52.66 | V67: 1305910.021 | W67: 1305910.021 | X67: 1303430.131 | Y67: 0 | Z67: 1052652.522 | AA67: 0 | AB67: 0 | AC67: 0 | AD67: 0 | AE67: 0 | AI67: 0 | AJ67: 0 | AK67: 1896.614418 | AL67: 188020.0414 | AM67: 0 | AN67: 522.7167658 | AO67: 0 | AP67: 0 | AQ67: 0 | AR67: 0 | AU67: 0 | AV67: 908.4195428 | AW67: -152.27437 | AZ67: 0 | BB67: 46.39602581 | BC67: 0 | BD67: 13172.66112 | BE67: 643.6101152 | BG67: 45522.91026 | BH67: 3435.791834 | BI67: 153913.79 | BJ67: 0 | BK67: 1294353.94 | BL67: 6 | BV67: 59339.1815 | CI67: 1303430.184 | CJ67: -2479.86734 | CO67: -2479.8899 | CP67: 0 | CR67: -3161.474363 | CS67: 0 | CT67: 0 | CU67: 0 | CV67: 0 | CZ67: 0 | DA67: 0 | DB67: 0 | DE67: 17.4866716 | DF67: 357.8967976 | DG67: 1236.842249 | DH67: 0 | DI67: -4030.231827 | DK67: 0 | DL67: 0 | DN67: -0.6892972571 | DO67: -735.8970549 | DP67: -6.881901307 | DQ67: 0 | DR67: 0 | DS67: 0 | DV67: 0 | DW67: 3371.184344 | DX67: -64.6074903 | DY67: -3223.85687 | EA67: 743.96697 | EC67: 0 | EE67: 10.29941954 | EF67: 0.5032248637 | EH67: 35.59338141 | EI67: 0 | EJ67: 0 | EK67: 0 | EL67: 0 | EO67: 0 | EP67: 165 | EU67: 0 | EZ67: 0 | FA67: 0 | FB67: 0 | FC67: 0
A68: 3234 | B68: Refaturamento - Regular | C68: Azul | D68: A2 | E68: Industrial | F68: Não se aplica | G68: APE | H68: Não se aplica | I68: Não se aplica | J68: LIVRE APE | K68: 2020-12-01 | L68: 0 | M68: 0 | N68: 5.33 | O68: 5.33 | P68: 0 | Q68: 0 | S68: 2.62 | V68: 13.9646 | W68: 13.9646 | X68: 14.2844 | Y68: 0 | Z68: 0 | AA68: 0 | AB68: 0 | AC68: 0 | AD68: 0 | AE68: 0 | AI68: 0 | AJ68: 0 | AK68: 0.3366396481 | AL68: 0 | AM68: 0 | AN68: 0.1123469377 | AO68: 0 | AP68: 0 | AQ68: 0 | AR68: 0 | AU68: 0 | AV68: 0 | AW68: 0 | AZ68: 0 | BB68: 0.009971846636 | BC68: 0 | BD68: 2.83118552 | BE68: 0.1383304119 | BG68: 9.784188875 | BH68: 0.7384509479 | BI68: 0 | BJ68: 0 | BK68: 0 | BL68: 0 | BV68: 12.75370481 | CI68: 14.2844 | CJ68: 0.2898 | CO68: 0.3198 | CP68: 0 | CR68: 0.3449124284 | CS68: 0 | CT68: 0 | CU68: 0 | CV68: 0 | CZ68: 0 | DA68: 0 | DB68: 0 | DE68: 0.003758391034 | DF68: 0.07692236381 | DG68: 0.2658331398 | DH68: 0 | DI68: 0 | DK68: 0 | DL68: 0 | DN68: -0.0001223468428 | DO68: 0 | DP68: -0.001479119455 | DQ68: 0 | DR68: 0 | DS68: 0 | DV68: 0 | DW68: 0.7245649313 | DX68: -0.01388601661 | DY68: 0.3198 | EA68: 0 | EC68: 0 | EE68: 0.002213642877 | EF68: 0.0001081575647 | EH68: 0.007650046194 | EI68: 0 | EJ68: 0 | EK68: 0 | EL68: 0 | EO68: 0 | EP68: 165 | EU68: 0 | EZ68: 0 | FA68: 0 | FB68: 0 | FC68: 0
A69: 3281 | B69: Regular | C69: Azul | D69: A2 | E69: Industrial | F69: Não se aplica | G69: Fonte incentivada | H69: Não se aplica | I69: Não se aplica | J69: LIVRE | K69: 2020-12-01 | L69: 0 | M69: 0 | N69: 485.009 | O69: 485.009 | P69: 0 | Q69: 0 | S69: 52.66 | V69: 25540.57394 | W69: 25540.57394 | X69: 25492.07304 | Y69: 0 | Z69: 20587.4441 | AA69: 0 | AB69: 0 | AC69: 0 | AD69: 0 | AE69: 0 | AI69: 0 | AJ69: 0 | AK69: 37.09338315 | AL69: 3677.236327 | AM69: 0 | AN69: 10.22312869 | AO69: 0 | AP69: 0 | AQ69: 0 | AR69: 0 | AU69: 0 | AV69: 17.76658125 | AW69: -2.978133824 | AZ69: 0 | BB69: 0.9073987552 | BC69: 0 | BD69: 257.6267276 | BE69: 12.58752247 | BG69: 890.3226383 | BH69: 67.19612679 | BI69: 35319.69 | BJ69: 0 | BK69: 214570.79 | BL69: 5 | BV69: 1160.536888 | CI69: 25492.1256 | CJ69: -48.47834 | CO69: -48.5009 | CP69: 0 | CR69: -61.83111271 | CS69: 0 | CT69: 0 | CU69: 0 | CV69: 0 | CZ69: 0 | DA69: 0 | DB69: 0 | DE69: 0.3419987761 | DF69: 6.999632036 | DG69: 24.18976835 | DH69: 0 | DI69: -78.82199561 | DK69: 0 | DL69: 0 | DN69: -0.0134810571 | DO69: -14.39244116 | DP69: -0.1345940427 | DQ69: 0 | DR69: 0 | DS69: 0 | DV69: 0 | DW69: 65.93255399 | DX69: -1.263572801 | DY69: -63.05117 | EA69: 14.55027 | EC69: 0 | EE69: 0.2014327802 | EF69: 0.009841912252 | EH69: 0.6961240627 | EI69: 0 | EJ69: 0 | EK69: 0 | EL69: 0 | EO69: 0 | EP69: 165 | EU69: 0 | EZ69: 0 | FA69: 0 | FB69: 0 | FC69: 0
A70: 3282 | B70: Refaturamento - Regular | C70: Azul | D70: A2 | E70: Industrial | F70: Não se aplica | G70: Fonte incentivada | H70: Não se aplica | I70: Não se aplica | J70: LIVRE | K70: 2020-12-01 | L70: 0 | M70: 0 | N70: -5.33 | O70: -5.33 | P70: 0 | Q70: 0 | S70: 52.66 | V70: -280.6778 | W70: -280.6778 | X70: -280.1448 | Y70: 0 | Z70: -226.2454451 | AA70: 0 | AB70: 0 | AC70: 0 | AD70: 0 | AE70: 0 | AI70: 0 | AJ70: 0 | AK70: -0.4076372442 | AL70: -40.41094005 | AM70: 0 | AN70: -0.1123469377 | AO70: 0 | AP70: 0 | AQ70: 0 | AR70: 0 | AU70: 0 | AV70: -0.19524561 | AW70: 0.03272816232 | AZ70: 0 | BB70: -0.009971846636 | BC70: 0 | BD70: -2.83118552 | BE70: -0.1383304119 | BG70: -9.784188875 | BH70: -0.7384509479 | BI70: 0 | BJ70: 0 | BK70: 0 | BL70: 0 | BV70: -12.75370481 | CI70: -280.1448 | CJ70: 0.503 | CO70: 0.533 | CP70: 0 | CR70: 0.6794921966 | CS70: 0 | CT70: 0 | CU70: 0 | CV70: 0 | CZ70: 0 | DA70: 0 | DB70: 0 | DE70: -0.003758391034 | DF70: -0.07692236381 | DG70: -0.2658331398 | DH70: 0 | DI70: 0.8662132798 | DK70: 0 | DL70: 0 | DN70: 0.0001481498989 | DO70: 0.1581655421 | DP70: 0.001479119455 | DQ70: 0 | DR70: 0 | DS70: 0 | DV70: 0 | DW70: -0.7245649313 | DX70: 0.01388601661 | DY70: 0.6929 | EA70: -0.1599 | EC70: 0 | EE70: -0.002213642877 | EF70: -0.0001081575647 | EH70: -0.007650046194 | EI70: 0 | EJ70: 0 | EK70: 0 | EL70: 0 | EO70: 0 | EP70: 165 | EU70: 0 | EZ70: 0 | FA70: 0 | FB70: 0 | FC70: 0
A71: 1071 | B71: Regular | C71: Azul | D71: A2 | E71: Industrial | F71: Não se aplica | G71: Não se aplica | H71: Não se aplica | I71: Não se aplica | J71: CATIVO | K71: 2021-01-01 | L71: 0 | M71: 0 | N71: 0 | O71: 0 | P71: 0 | Q71: 0 | AA71: 0 | AZ71: 0 | BI71: 792.71 | BJ71: 3651.54 | BK71: 1608.45 | BL71: 1 | CJ71: -0.03 | CO71: 0 | CP71: 0 | CQ71: 31 | DK71: 0 | EP71: 165 | EU71: 0 | EZ71: 0 | FA71: 0 | FB71: 0 | FC71: 0
A72: 1072 | B72: Refaturamento - Regular | C72: Azul | D72: A2 | E72: Industrial | F72: Não se aplica | G72: Não se aplica | H72: Não se aplica | I72: Não se aplica | J72: CATIVO | K72: 2021-01-01 | L72: 0 | M72: 0 | N72: 0 | O72: 0 | P72: 0 | Q72: 0 | AA72: 0 | AZ72: 0 | BI72: 618.54 | BJ72: 2848.98 | BK72: 11160.3 | BL72: 0 | CJ72: -0.03 | CO72: 0 | CP72: 0 | CQ72: 31 | DK72: 0 | EP72: 165 | EU72: 0 | EZ72: 0 | FA72: 0 | FB72: 0 | FC72: 0
A73: 3447 | B73: Refaturamento - Regular | C73: Azul | D73: A2 | E73: Industrial | F73: Não se aplica | G73: APE | H73: Não se aplica | I73: Não se aplica | J73: LIVRE APE | K73: 2021-01-01 | L73: 0 | M73: 0 | N73: 29.675 | O73: 29.675 | P73: 0 | Q73: 0 | S73: 2.62 | V73: 77.7485 | W73: 77.7485 | X73: 79.529 | Y73: 0 | Z73: 0 | AA73: 0 | AB73: 0 | AC73: 0 | AD73: 0 | AE73: 0 | AI73: 0 | AJ73: 0 | AK73: 1.874255452 | AL73: 0 | AM73: 0 | AN73: 0.6254963185 | AO73: 0 | AP73: 0 | AQ73: 0 | AR73: 0 | AU73: 0 | AV73: 0 | AW73: 0 | AZ73: 0 | BB73: 0.0555186771 | BC73: 0 | BD73: 15.7627449 | BE73: 0.7701604079 | BG73: 54.47388459 | BH73: 4.111356826 | BI73: 0 | BJ73: 0 | BK73: 0 | BL73: 0 | BV73: 71.0067899 | CI73: 79.5424 | CJ73: 1.7639 | CO73: 1.7805 | CP73: 0 | CQ73: 31 | CR73: 1.920314505 | CS73: 0 | CT73: 0 | CU73: 0 | CV73: 0 | CZ73: 0 | DA73: 0 | DB73: 0 | DE73: 0.02092500074 | DF73: 0.4282685077 | DG73: 1.480037228 | DH73: 0 | DI73: 0 | DK73: 0 | DL73: 0 | DN73: -0.0006811712121 | DO73: 0 | DP73: -0.008235060003 | DQ73: 0 | DR73: 0 | DS73: 0 | DV73: 0 | DW73: 4.034045842 | DX73: -0.07731098363 | DY73: 1.7805 | EA73: 0 | EC73: 0 | EE73: 0.01232455017 | EF73: 0.0006021718073 | EH73: 0.04259195512 | EI73: 0 | EJ73: 0 | EK73: 0 | EL73: 0 | EO73: 0 | EP73: 165 | EU73: 0 | EZ73: 0 | FA73: 0 | FB73: 0 | FC73: 0
A74: 4683 | B74: Regular | C74: Azul | D74: A2 | E74: Industrial | F74: Não se aplica | G74: Não se aplica | H74: Não se aplica | I74: Não se aplica | J74: LIVRE | K74: 2021-01-01 | L74: 0 | M74: 0 | N74: 24798.899 | O74: 24798.899 | P74: 0 | Q74: 0 | S74: 52.66 | V74: 1305910.021 | W74: 1305910.021 | X74: 1303430.131 | Y74: 0 | Z74: 1052652.522 | AA74: 0 | AB74: 0 | AC74: 0 | AD74: 0 | AE74: 0 | AI74: 0 | AJ74: 0 | AK74: 1896.614418 | AL74: 188020.0414 | AM74: 0 | AN74: 522.7167658 | AO74: 0 | AP74: 0 | AQ74: 0 | AR74: 0 | AU74: 0 | AV74: 908.4195428 | AW74: -152.27437 | AZ74: 0 | BB74: 46.39602581 | BC74: 0 | BD74: 13172.66112 | BE74: 643.6101152 | BG74: 45522.91026 | BH74: 3435.791834 | BI74: 153913.79 | BJ74: 0 | BK74: 1294353.94 | BL74: 6 | BV74: 59339.1815 | CI74: 1303430.184 | CJ74: -2479.86734 | CO74: -2479.8899 | CP74: 0 | CQ74: 31 | CR74: -3161.474363 | CS74: 0 | CT74: 0 | CU74: 0 | CV74: 0 | CZ74: 0 | DA74: 0 | DB74: 0 | DE74: 17.4866716 | DF74: 357.8967976 | DG74: 1236.842249 | DH74: 0 | DI74: -4030.231827 | DK74: 0 | DL74: 0 | DN74: -0.6892972571 | DO74: -735.8970549 | DP74: -6.881901307 | DQ74: 0 | DR74: 0 | DS74: 0 | DV74: 0 | DW74: 3371.184344 | DX74: -64.6074903 | DY74: -3223.85687 | EA74: 743.96697 | EC74: 0 | EE74: 10.29941954 | EF74: 0.5032248637 | EH74: 35.59338141 | EI74: 0 | EJ74: 0 | EK74: 0 | EL74: 0 | EO74: 0 | EP74: 165 | EU74: 0 | EZ74: 0 | FA74: 0 | FB74: 0 | FC74: 0
A75: 4688 | B75: Regular | C75: Azul | D75: A2 | E75: Industrial | F75: Não se aplica | G75: Fonte incentivada | H75: Não se aplica | I75: Não se aplica | J75: LIVRE | K75: 2021-01-01 | L75: 0 | M75: 0 | N75: 485.009 | O75: 485.009 | P75: 0 | Q75: 0 | S75: 52.66 | V75: 25540.57394 | W75: 25540.57394 | X75: 25492.07304 | Y75: 0 | Z75: 20587.4441 | AA75: 0 | AB75: 0 | AC75: 0 | AD75: 0 | AE75: 0 | AI75: 0 | AJ75: 0 | AK75: 37.09338315 | AL75: 3677.236327 | AM75: 0 | AN75: 10.22312869 | AO75: 0 | AP75: 0 | AQ75: 0 | AR75: 0 | AU75: 0 | AV75: 17.76658125 | AW75: -2.978133824 | AZ75: 0 | BB75: 0.9073987552 | BC75: 0 | BD75: 257.6267276 | BE75: 12.58752247 | BG75: 890.3226383 | BH75: 67.19612679 | BI75: 35319.69 | BJ75: 0 | BK75: 214570.79 | BL75: 5 | BV75: 1160.536888 | CI75: 25492.1256 | CJ75: -48.47834 | CO75: -48.5009 | CP75: 0 | CQ75: 31 | CR75: -61.83111271 | CS75: 0 | CT75: 0 | CU75: 0 | CV75: 0 | CZ75: 0 | DA75: 0 | DB75: 0 | DE75: 0.3419987761 | DF75: 6.999632036 | DG75: 24.18976835 | DH75: 0 | DI75: -78.82199561 | DK75: 0 | DL75: 0 | DN75: -0.0134810571 | DO75: -14.39244116 | DP75: -0.1345940427 | DQ75: 0 | DR75: 0 | DS75: 0 | DV75: 0 | DW75: 65.93255399 | DX75: -1.263572801 | DY75: -63.05117 | EA75: 14.55027 | EC75: 0 | EE75: 0.2014327802 | EF75: 0.009841912252 | EH75: 0.6961240627 | EI75: 0 | EJ75: 0 | EK75: 0 | EL75: 0 | EO75: 0 | EP75: 165 | EU75: 0 | EZ75: 0 | FA75: 0 | FB75: 0 | FC75: 0
A76: 4689 | B76: Refaturamento - Regular | C76: Azul | D76: A2 | E76: Industrial | F76: Não se aplica | G76: Fonte incentivada | H76: Não se aplica | I76: Não se aplica | J76: LIVRE | K76: 2021-01-01 | L76: 0 | M76: 0 | N76: -5.33 | O76: -5.33 | P76: 0 | Q76: 0 | S76: 52.66 | V76: -280.6778 | W76: -280.6778 | X76: -280.1448 | Y76: 0 | Z76: -226.2454451 | AA76: 0 | AB76: 0 | AC76: 0 | AD76: 0 | AE76: 0 | AI76: 0 | AJ76: 0 | AK76: -0.4076372442 | AL76: -40.41094005 | AM76: 0 | AN76: -0.1123469377 | AO76: 0 | AP76: 0 | AQ76: 0 | AR76: 0 | AU76: 0 | AV76: -0.19524561 | AW76: 0.03272816232 | AZ76: 0 | BB76: -0.009971846636 | BC76: 0 | BD76: -2.83118552 | BE76: -0.1383304119 | BG76: -9.784188875 | BH76: -0.7384509479 | BI76: 0 | BJ76: 0 | BK76: 0 | BL76: 0 | BV76: -12.75370481 | CI76: -280.1448 | CJ76: 0.503 | CO76: 0.533 | CP76: 0 | CQ76: 31 | CR76: 0.6794921966 | CS76: 0 | CT76: 0 | CU76: 0 | CV76: 0 | CZ76: 0 | DA76: 0 | DB76: 0 | DE76: -0.003758391034 | DF76: -0.07692236381 | DG76: -0.2658331398 | DH76: 0 | DI76: 0.8662132798 | DK76: 0 | DL76: 0 | DN76: 0.0001481498989 | DO76: 0.1581655421 | DP76: 0.001479119455 | DQ76: 0 | DR76: 0 | DS76: 0 | DV76: 0 | DW76: -0.7245649313 | DX76: 0.01388601661 | DY76: 0.6929 | EA76: -0.1599 | EC76: 0 | EE76: -0.002213642877 | EF76: -0.0001081575647 | EH76: -0.007650046194 | EI76: 0 | EJ76: 0 | EK76: 0 | EL76: 0 | EO76: 0 | EP76: 165 | EU76: 0 | EZ76: 0 | FA76: 0 | FB76: 0 | FC76: 0
A77: 4751 | B77: Refaturamento - Regular | C77: Azul | D77: A2 | E77: Industrial | F77: Não se aplica | G77: APE | H77: Não se aplica | I77: Não se aplica | J77: LIVRE APE | K77: 2021-01-01 | L77: 0 | M77: 0 | N77: 5.33 | O77: 5.33 | P77: 0 | Q77: 0 | S77: 2.62 | V77: 13.9646 | W77: 13.9646 | X77: 14.2844 | Y77: 0 | Z77: 0 | AA77: 0 | AB77: 0 | AC77: 0 | AD77: 0 | AE77: 0 | AI77: 0 | AJ77: 0 | AK77: 0.3366396481 | AL77: 0 | AM77: 0 | AN77: 0.1123469377 | AO77: 0 | AP77: 0 | AQ77: 0 | AR77: 0 | AU77: 0 | AV77: 0 | AW77: 0 | AZ77: 0 | BB77: 0.009971846636 | BC77: 0 | BD77: 2.83118552 | BE77: 0.1383304119 | BG77: 9.784188875 | BH77: 0.7384509479 | BI77: 0 | BJ77: 0 | BK77: 0 | BL77: 0 | BV77: 12.75370481 | CI77: 14.2844 | CJ77: 0.2898 | CO77: 0.3198 | CP77: 0 | CQ77: 31 | CR77: 0.3449124284 | CS77: 0 | CT77: 0 | CU77: 0 | CV77: 0 | CZ77: 0 | DA77: 0 | DB77: 0 | DE77: 0.003758391034 | DF77: 0.07692236381 | DG77: 0.2658331398 | DH77: 0 | DI77: 0 | DK77: 0 | DL77: 0 | DN77: -0.0001223468428 | DO77: 0 | DP77: -0.001479119455 | DQ77: 0 | DR77: 0 | DS77: 0 | DV77: 0 | DW77: 0.7245649313 | DX77: -0.01388601661 | DY77: 0.3198 | EA77: 0 | EC77: 0 | EE77: 0.002213642877 | EF77: 0.0001081575647 | EH77: 0.007650046194 | EI77: 0 | EJ77: 0 | EK77: 0 | EL77: 0 | EO77: 0 | EP77: 165 | EU77: 0 | EZ77: 0 | FA77: 0 | FB77: 0 | FC77: 0
A78: 1247 | B78: Regular | C78: Azul | D78: A2 | E78: Industrial | F78: Não se aplica | G78: Não se aplica | H78: Não se aplica | I78: Não se aplica | J78: CATIVO | K78: 2021-02-01 | L78: 0 | M78: 0 | N78: 0 | O78: 0 | P78: 0 | Q78: 0 | AA78: 0 | AZ78: 0 | BI78: 3767.06 | BJ78: 17352.57 | BK78: 60302.6 | BL78: 5 | CJ78: -0.03 | CO78: 0 | CP78: 0 | CQ78: 29 | DK78: 0 | EP78: 165 | EU78: 0 | EZ78: 0 | FA78: 0 | FB78: 0 | FC78: 0
A79: 3611 | B79: Regular | C79: Azul | D79: A2 | E79: Industrial | F79: Não se aplica | G79: Não se aplica | H79: Não se aplica | I79: Não se aplica | J79: LIVRE | K79: 2021-02-01 | L79: 0 | M79: 0 | N79: 26173.595 | O79: 26173.595 | P79: 0 | Q79: 0 | S79: 52.66 | V79: 1378301.513 | W79: 1378301.513 | X79: 1375684.153 | Y79: 0 | Z79: 1111005 | AA79: 0 | AB79: 0 | AC79: 0 | AD79: 0 | AE79: 0 | AI79: 0 | AJ79: 0 | AK79: 2001.75087 | AL79: 198442.6977 | AM79: 0 | AN79: 551.692917 | AO79: 0 | AP79: 0 | AQ79: 0 | AR79: 0 | AU79: 0 | AV79: 958.7766459 | AW79: -160.7155095 | AZ79: 0 | BB79: 48.96793157 | BC79: 0 | BD79: 13902.87114 | BE79: 679.2878383 | BG79: 48046.41595 | BH79: 3626.250664 | BI79: 130141.94 | BJ79: 0 | BK79: 1313010.28 | BL79: 6 | BV79: 62628.57493 | CI79: 1375684.416 | CJ79: -2617.1267 | CO79: -2617.3595 | CP79: 0 | CQ79: 29 | CR79: -3336.726746 | CS79: 0 | CT79: 0 | CU79: 0 | CV79: 0 | CZ79: 0 | DA79: 0 | DB79: 0 | DE79: 18.45602341 | DF79: 377.7363596 | DG79: 1305.405054 | DH79: 0 | DI79: -4253.642696 | DK79: 0 | DL79: 0 | DN79: -0.7275075899 | DO79: -776.6905893 | DP79: -7.263390912 | DQ79: 0 | DR79: 0 | DS79: 0 | DV79: 0 | DW79: 3558.061738 | DX79: -68.18892585 | DY79: -3402.56735 | EA79: 785.20785 | EC79: 0 | EE79: 10.870355 | EF79: 0.5311205056 | EH79: 37.56645606 | EI79: 0 | EJ79: 0 | EK79: 0 | EL79: 0 | EO79: 0 | EP79: 165 | EU79: 0 | EZ79: 0 | FA79: 0 | FB79: 0 | FC79: 0
A80: 3660 | B80: Refaturamento - Regular | C80: Azul | D80: A2 | E80: Industrial | F80: Não se aplica | G80: APE | H80: Não se aplica | I80: Não se aplica | J80: LIVRE APE | K80: 2021-02-01 | L80: 0 | M80: 0 | N80: 3.889 | O80: 3.889 | P80: 0 | Q80: 0 | S80: 2.62 | V80: 10.18918 | W80: 10.18918 | X80: 10.42252 | Y80: 0 | Z80: 0 | AA80: 0 | AB80: 0 | AC80: 0 | AD80: 0 | AE80: 0 | AI80: 0 | AJ80: 0 | AK80: 0.2456269403 | AL80: 0 | AM80: 0 | AN80: 0.08197321592 | AO80: 0 | AP80: 0 | AQ80: 0 | AR80: 0 | AU80: 0 | AV80: 0 | AW80: 0 | AZ80: 0 | BB80: 0.007275893352 | BC80: 0 | BD80: 2.065756189 | BE80: 0.1009318897 | BG80: 7.138970081 | BH80: 0.5388059543 | BI80: 0 | BJ80: 0 | BK80: 0 | BL80: 0 | BV80: 9.30565816 | CI80: 10.4252 | CJ80: 0.20602 | CO80: 0.23334 | CP80: 0 | CQ80: 29 | CR80: 0.2516631208 | CS80: 0 | CT80: 0 | CU80: 0 | CV80: 0 | CZ80: 0 | DA80: 0 | DB80: 0 | DE80: 0.00274228569 | DF80: 0.05612590485 | DG80: 0.1939634298 | DH80: 0 | DI80: 0 | DK80: 0 | DL80: 0 | DN80: -8.926958194e-05 | DO80: 0 | DP80: -0.001079229936 | DQ80: 0 | DR80: 0 | DS80: 0 | DV80: 0 | DW80: 0.5286741122 | DX80: -0.01013184213 | DY80: 0.23334 | EA80: 0 | EC80: 0 | EE80: 0.001615170197 | EF80: 7.891646701e-05 | EH80: 0.005581806688 | EI80: 0 | EJ80: 0 | EK80: 0 | EL80: 0 | EO80: 0 | EP80: 165 | EU80: 0 | EZ80: 0 | FA80: 0 | FB80: 0 | FC80: 0
A81: 3707 | B81: Regular | C81: Azul | D81: A2 | E81: Industrial | F81: Não se aplica | G81: Fonte incentivada | H81: Não se aplica | I81: Não se aplica | J81: LIVRE | K81: 2021-02-01 | L81: 0 | M81: 0 | N81: 10807.553 | O81: 10807.553 | P81: 0 | Q81: 0 | S81: 52.66 | V81: 569125.741 | W81: 569125.741 | X81: 568044.9857 | Y81: 0 | Z81: 458754.1536 | AA81: 0 | AB81: 0 | AC81: 0 | AD81: 0 | AE81: 0 | AI81: 0 | AJ81: 0 | AK81: 826.5593099 | AL81: 81940.59595 | AM81: 0 | AN81: 227.8040308 | AO81: 0 | AP81: 0 | AQ81: 0 | AR81: 0 | AU81: 0 | AV81: 395.8962999 | AW81: -66.36235439 | AZ81: 0 | BB81: 20.21974879 | BC81: 0 | BD81: 5740.748136 | BE81: 280.4902924 | BG81: 19839.23824 | BH81: 1497.344795 | BI81: 63700.15 | BJ81: 0 | BK81: 725436.98 | BL81: 5 | BV81: 25860.47667 | CI81: 568044.828 | CJ81: -1080.94298 | CO81: -1080.7553 | CP81: 0 | CQ81: 29 | CR81: -1377.795108 | CS81: 0 | CT81: 0 | CU81: 0 | CV81: 0 | CZ81: 0 | DA81: 0 | DB81: 0 | DE81: 7.620827447 | DF81: 155.9742071 | DG81: 539.0254686 | DH81: 0 | DI81: -1756.406366 | DK81: 0 | DL81: 0 | DN81: -0.3004011041 | DO81: -320.7096583 | DP81: -2.999186097 | DQ81: 0 | DR81: 0 | DS81: 0 | DV81: 0 | DW81: 1469.188348 | DX81: -28.15644661 | DY81: -1404.98189 | EA81: 324.22659 | EC81: 0 | EE81: 4.488567114 | EF81: 0.2193093082 | EH81: 15.51187236 | EI81: 0 | EJ81: 0 | EK81: 0 | EL81: 0 | EO81: 0 | EP81: 165 | EU81: 0 | EZ81: 0 | FA81: 0 | FB81: 0 | FC81: 0
A82: 3708 | B82: Refaturamento - Regular | C82: Azul | D82: A2 | E82: Industrial | F82: Não se aplica | G82: Fonte incentivada | H82: Não se aplica | I82: Não se aplica | J82: LIVRE | K82: 2021-02-01 | L82: 0 | M82: 0 | N82: -3.889 | O82: -3.889 | P82: 0 | Q82: 0 | S82: 52.66 | V82: -204.79474 | W82: -204.79474 | X82: -204.40584 | Y82: 0 | Z82: -165.0785246 | AA82: 0 | AB82: 0 | AC82: 0 | AD82: 0 | AE82: 0 | AI82: 0 | AJ82: 0 | AK82: -0.2974298767 | AL82: -29.48558084 | AM82: 0 | AN82: -0.08197321592 | AO82: 0 | AP82: 0 | AQ82: 0 | AR82: 0 | AU82: 0 | AV82: -0.1424596956 | AW82: 0.0238798918 | AZ82: 0 | BB82: -0.007275893352 | BC82: 0 | BD82: -2.065756189 | BE82: -0.1009318897 | BG82: -7.138970081 | BH82: -0.5388059543 | BI82: 0 | BJ82: 0 | BK82: -6460.27 | BL82: 1 | BV82: -9.30565816 | CI82: -204.4584 | CJ82: 0.30634 | CO82: 0.3889 | CP82: 0 | CQ82: 29 | CR82: 0.495787083 | CS82: 0 | CT82: 0 | CU82: 0 | CV82: 0 | CZ82: 0 | DA82: 0 | DB82: 0 | DE82: -0.00274228569 | DF82: -0.05612590485 | DG82: -0.1939634298 | DH82: 0 | DI82: 0.6320269128 | DK82: 0 | DL82: 0 | DN82: 0.0001080966148 | DO82: 0.115404464 | DP82: 0.001079229936 | DQ82: 0 | DR82: 0 | DS82: 0 | DV82: 0 | DW82: -0.5286741122 | DX82: 0.01013184213 | DY82: 0.50557 | EA82: -0.11667 | EC82: 0 | EE82: -0.001615170197 | EF82: -7.891646701e-05 | EH82: -0.005581806688 | EI82: 0 | EJ82: 0 | EK82: 0 | EL82: 0 | EO82: 0 | EP82: 165 | EU82: 0 | EZ82: 0 | FA82: 0 | FB82: 0 | FC82: 0
A83: 1431 | B83: Regular | C83: Azul | D83: A2 | E83: Industrial | F83: Não se aplica | G83: Não se aplica | H83: Não se aplica | I83: Não se aplica | J83: CATIVO | K83: 2021-03-01 | L83: 0 | M83: 0 | N83: 0 | O83: 0 | P83: 0 | Q83: 0 | AA83: 0 | AZ83: 0 | BI83: 2545.89 | BJ83: 11727.35 | BK83: 56076.26 | BL83: 4 | CJ83: -0.03 | CO83: 0 | CP83: 0 | CQ83: 31 | DK83: 0 | EP83: 165 | EU83: 0 | EZ83: 0 | FA83: 0 | FB83: 0 | FC83: 0
A84: 3824 | B84: Regular | C84: Azul | D84: A2 | E84: Industrial | F84: Não se aplica | G84: Não se aplica | H84: Não se aplica | I84: Não se aplica | J84: LIVRE | K84: 2021-03-01 | L84: 0 | M84: 0 | N84: 24992.202 | O84: 24992.202 | P84: 0 | Q84: 0 | S84: 52.66 | V84: 1316089.357 | W84: 1316089.357 | X84: 1313590.137 | Y84: 0 | Z84: 1060857.761 | AA84: 0 | AB84: 0 | AC84: 0 | AD84: 0 | AE84: 0 | AI84: 0 | AJ84: 0 | AK84: 1911.39819 | AL84: 189485.6242 | AM84: 0 | AN84: 526.7912499 | AO84: 0 | AP84: 0 | AQ84: 0 | AR84: 0 | AU84: 0 | AV84: 915.5005113 | AW84: -153.4613216 | AZ84: 0 | BB84: 46.75767457 | BC84: 0 | BD84: 13275.33967 | BE84: 648.6269414 | BG84: 45877.75324 | BH84: 3462.573219 | BI84: 128037.52 | BJ84: 0 | BK84: 1257453.79 | BL84: 6 | BV84: 59801.71985 | CI84: 1313590.032 | CJ84: -2499.35532 | CO84: -2499.2202 | CP84: 0 | CQ84: 31 | CR84: -3186.117492 | CS84: 0 | CT84: 0 | CU84: 0 | CV84: 0 | CZ84: 0 | DA84: 0 | DB84: 0 | DE84: 17.62297709 | DF84: 360.6865394 | DG84: 1246.483214 | DH84: 0 | DI84: -4061.646766 | DK84: 0 | DL84: 0 | DN84: -0.6946702065 | DO84: -741.6332414 | DP84: -6.935544501 | DQ84: 0 | DR84: 0 | DS84: 0 | DV84: 0 | DW84: 3397.462125 | DX84: -65.11109418 | DY84: -3248.98626 | EA84: 749.76606 | EC84: 0 | EE84: 10.37970168 | EF84: 0.5071474118 | EH84: 35.87082548 | EI84: 0 | EJ84: 0 | EK84: 0 | EL84: 0 | EO84: 0 | EP84: 165 | EU84: 0 | EZ84: 0 | FA84: 0 | FB84: 0 | FC84: 0
A85: 3920 | B85: Regular | C85: Azul | D85: A2 | E85: Industrial | F85: Não se aplica | G85: Fonte incentivada | H85: Não se aplica | I85: Não se aplica | J85: LIVRE | K85: 2021-03-01 | L85: 0 | M85: 0 | N85: 12879.562 | O85: 12879.562 | P85: 0 | Q85: 0 | S85: 52.66 | V85: 678237.7349 | W85: 678237.7349 | X85: 676949.7787 | Y85: 0 | Z85: 546705.8606 | AA85: 0 | AB85: 0 | AC85: 0 | AD85: 0 | AE85: 0 | AI85: 0 | AJ85: 0 | AK85: 985.026109 | AL85: 97650.13281 | AM85: 0 | AN85: 271.4783021 | AO85: 0 | AP85: 0 | AQ85: 0 | AR85: 0 | AU85: 0 | AV85: 471.7969868 | AW85: -79.0852525 | AZ85: 0 | BB85: 24.09625084 | BC85: 0 | BD85: 6841.356368 | BE85: 334.2655004 | BG85: 23642.78935 | BH85: 1784.413653 | BI85: 80279.79 | BJ85: 0 | BK85: 774714.94 | BL85: 6 | BV85: 30818.41122 | CI85: 676949.6736 | CJ85: -1288.09132 | CO85: -1287.9562 | CP85: 0 | CQ85: 31 | CR85: -1641.944066 | CS85: 0 | CT85: 0 | CU85: 0 | CV85: 0 | CZ85: 0 | DA85: 0 | DB85: 0 | DE85: 9.081881864 | DF85: 185.8773647 | DG85: 642.3666803 | DH85: 0 | DI85: -2093.142147 | DK85: 0 | DL85: 0 | DN85: -0.3579935851 | DO85: -382.195667 | DP85: -3.574185876 | DQ85: 0 | DR85: 0 | DS85: 0 | DV85: 0 | DW85: 1750.859091 | DX85: -33.55456131 | DY85: -1674.34306 | EA85: 386.38686 | EC85: 0 | EE85: 5.349108947 | EF85: 0.2613549832 | EH85: 18.48578692 | EI85: 0 | EJ85: 0 | EK85: 0 | EL85: 0 | EO85: 0 | EP85: 165 | EU85: 0 | EZ85: 0 | FA85: 0 | FB85: 0 | FC85: 0
A86: 1615 | B86: Regular | C86: Azul | D86: A2 | E86: Industrial | F86: Não se aplica | G86: Não se aplica | H86: Não se aplica | I86: Não se aplica | J86: CATIVO | K86: 2021-04-01 | L86: 0 | M86: 0 | N86: 0 | O86: 0 | P86: 0 | Q86: 0 | AA86: 0 | AZ86: 0 | BI86: 3555.47 | BJ86: 16376.53 | BK86: 77302.04 | BL86: 4 | CJ86: -0.03 | CO86: 0 | CP86: 0 | CQ86: 30 | DK86: 0 | EP86: 165 | EU86: 0 | EZ86: 0 | FA86: 0 | FB86: 0 | FC86: 0
A87: 4037 | B87: Regular | C87: Azul | D87: A2 | E87: Industrial | F87: Não se aplica | G87: Não se aplica | H87: Não se aplica | I87: Não se aplica | J87: LIVRE | K87: 2021-04-01 | L87: 0 | M87: 0 | N87: 26618.046 | O87: 26618.046 | P87: 0 | Q87: 0 | S87: 52.66 | V87: 1401706.302 | W87: 1401706.302 | X87: 1399044.498 | Y87: 0 | Z87: 1129870.856 | AA87: 0 | AB87: 0 | AC87: 0 | AD87: 0 | AE87: 0 | AI87: 0 | AJ87: 0 | AK87: 2035.742386 | AL87: 201812.4318 | AM87: 0 | AN87: 561.0611551 | AO87: 0 | AP87: 0 | AQ87: 0 | AR87: 0 | AU87: 0 | AV87: 975.0575289 | AW87: -163.4446023 | AZ87: 0 | BB87: 49.79945074 | BC87: 0 | BD87: 14138.9543 | BE87: 690.822752 | BG87: 48862.28697 | BH87: 3687.827636 | BI87: 143550.63 | BJ87: 0 | BK87: 1306062.9 | BL87: 6 | BV87: 63692.06402 | CI87: 1399044.708 | CJ87: -2661.62436 | CO87: -2661.8046 | CP87: 0 | CQ87: 30 | CR87: -3393.387344 | CS87: 0 | CT87: 0 | CU87: 0 | CV87: 0 | CZ87: 0 | DA87: 0 | DB87: 0 | DE87: 18.76942316 | DF87: 384.1506601 | DG87: 1327.571997 | DH87: 0 | DI87: -4325.873345 | DK87: 0 | DL87: 0 | DN87: -0.739861318 | DO87: -789.8794886 | DP87: -7.386729772 | DQ87: 0 | DR87: 0 | DS87: 0 | DV87: 0 | DW87: 3618.480802 | DX87: -69.34683467 | DY87: -3460.34598 | EA87: 798.54138 | EC87: 0 | EE87: 11.05494333 | EF87: 0.5401394058 | EH87: 38.20436801 | EI87: 0 | EJ87: 0 | EK87: 0 | EL87: 0 | EO87: 0 | EP87: 165 | EU87: 0 | EZ87: 0 | FA87: 0 | FB87: 0 | FC87: 0
A88: 4136 | B88: Regular | C88: Azul | D88: A2 | E88: Industrial | F88: Não se aplica | G88: Fonte incentivada | H88: Não se aplica | I88: Não se aplica | J88: LIVRE | K88: 2021-04-01 | L88: 0 | M88: 0 | N88: 13392.748 | O88: 13392.748 | P88: 0 | Q88: 0 | S88: 52.66 | V88: 705262.1097 | W88: 705262.1097 | X88: 703922.8349 | Y88: 0 | Z88: 568489.3494 | AA88: 0 | AB88: 0 | AC88: 0 | AD88: 0 | AE88: 0 | AI88: 0 | AJ88: 0 | AK88: 1024.274463 | AL88: 101541.0012 | AM88: 0 | AN88: 282.2953519 | AO88: 0 | AP88: 0 | AQ88: 0 | AR88: 0 | AU88: 0 | AV88: 490.5957323 | AW88: -82.23640347 | AZ88: 0 | BB88: 25.05636568 | BC88: 0 | BD88: 7113.950134 | BE88: 347.5843054 | BG88: 24584.83602 | BH88: 1855.513594 | BI88: 108201.74 | BJ88: 0 | BK88: 854513.97 | BL88: 7 | BV88: 32046.37046 | CI88: 703922.94 | CJ88: -1339.19968 | CO88: -1339.2748 | CP88: 0 | CQ88: 30 | CR88: -1707.367309 | CS88: 0 | CT88: 0 | CU88: 0 | CV88: 0 | CZ88: 0 | DA88: 0 | DB88: 0 | DE88: 9.443749343 | DF88: 193.2836462 | DG88: 667.9617733 | DH88: 0 | DI88: -2176.543372 | DK88: 0 | DL88: 0 | DN88: -0.3722578354 | DO88: -397.424249 | DP88: -3.716599272 | DQ88: 0 | DR88: 0 | DS88: 0 | DV88: 0 | DW88: 1820.622052 | DX88: -34.89154242 | DY88: -1741.05724 | EA88: 401.78244 | EC88: 0 | EE88: 5.562244131 | EF88: 0.2717686695 | EH88: 19.22235288 | EI88: 0 | EJ88: 0 | EK88: 0 | EL88: 0 | EO88: 0 | EP88: 165 | EU88: 0 | EZ88: 0 | FA88: 0 | FB88: 0 | FC88: 0
A89: 1801 | B89: Regular | C89: Azul | D89: A2 | E89: Industrial | F89: Não se aplica | G89: Não se aplica | H89: Não se aplica | I89: Não se aplica | J89: CATIVO | K89: 2021-05-01 | L89: 0 | M89: 0 | N89: 0 | O89: 0 | P89: 0 | Q89: 0 | AA89: 0 | AZ89: 0 | BI89: 4331.91 | BJ89: 19953.78 | BK89: 62816.53 | BL89: 4 | CJ89: -0.03 | CO89: 0 | CP89: 0 | CQ89: 31 | DK89: 0 | EP89: 165 | EU89: 0 | EZ89: 0 | FA89: 0 | FB89: 0 | FC89: 0
A90: 4253 | B90: Regular | C90: Azul | D90: A2 | E90: Industrial | F90: Não se aplica | G90: Não se aplica | H90: Não se aplica | I90: Não se aplica | J90: LIVRE | K90: 2021-05-01 | L90: 0 | M90: 0 | N90: 24846.738 | O90: 24846.738 | P90: 0 | Q90: 0 | S90: 52.66 | V90: 1308429.223 | W90: 1308429.223 | X90: 1305944.549 | Y90: 0 | Z90: 1054683.17 | AA90: 0 | AB90: 0 | AC90: 0 | AD90: 0 | AE90: 0 | AI90: 0 | AJ90: 0 | AK90: 1900.273135 | AL90: 188382.7467 | AM90: 0 | AN90: 523.725127 | AO90: 0 | AP90: 0 | AQ90: 0 | AR90: 0 | AU90: 0 | AV90: 910.1719546 | AW90: -152.568119 | AZ90: 0 | BB90: 46.48552734 | BC90: 0 | BD90: 13198.0722 | BE90: 644.8516891 | BG90: 45610.72749 | BH90: 3442.419743 | BI90: 206864.38 | BJ90: 0 | BK90: 1271172.26 | BL90: 6 | BV90: 59453.65138 | CI90: 1305944.654 | CJ90: -2484.59868 | CO90: -2484.6738 | CP90: 0 | CQ90: 31 | CR90: -3167.573092 | CS90: 0 | CT90: 0 | CU90: 0 | CV90: 0 | CZ90: 0 | DA90: 0 | DB90: 0 | DE90: 17.52040475 | DF90: 358.5872083 | DG90: 1239.228213 | DH90: 0 | DI90: -4038.006457 | DK90: 0 | DL90: 0 | DN90: -0.690626965 | DO90: -737.3166574 | DP90: -6.895177028 | DQ90: 0 | DR90: 0 | DS90: 0 | DV90: 0 | DW90: 3377.68762 | DX90: -64.73212316 | DY90: -3230.07594 | EA90: 745.40214 | EC90: 0 | EE90: 10.31928792 | EF90: 0.5041956235 | EH90: 35.6620438 | EI90: 0 | EJ90: 0 | EK90: 0 | EL90: 0 | EO90: 0 | EP90: 165 | EU90: 0 | EZ90: 0 | FA90: 0 | FB90: 0 | FC90: 0
A91: 4352 | B91: Regular | C91: Azul | D91: A2 | E91: Industrial | F91: Não se aplica | G91: Fonte incentivada | H91: Não se aplica | I91: Não se aplica | J91: LIVRE | K91: 2021-05-01 | L91: 0 | M91: 0 | N91: 5773.003 | O91: 5773.003 | P91: 0 | Q91: 0 | S91: 52.66 | V91: 304006.338 | W91: 304006.338 | X91: 303429.0377 | Y91: 0 | Z91: 245049.8374 | AA91: 0 | AB91: 0 | AC91: 0 | AD91: 0 | AE91: 0 | AI91: 0 | AJ91: 0 | AK91: 441.5180176 | AL91: 43769.69572 | AM91: 0 | AN91: 121.6846545 | AO91: 0 | AP91: 0 | AQ91: 0 | AR91: 0 | AU91: 0 | AV91: 211.4734507 | AW91: -35.44836384 | AZ91: 0 | BB91: 10.80065676 | BC91: 0 | BD91: 3066.499531 | BE91: 149.8277454 | BG91: 10597.40182 | BH91: 799.8273054 | BI91: 95320.29 | BJ91: 0 | BK91: 436743.53 | BL91: 7 | BV91: 13813.7291 | CI91: 303428.88 | CJ91: -577.48798 | CO91: -577.3003 | CP91: 0 | CQ91: 31 | CR91: -735.9681969 | CS91: 0 | CT91: 0 | CU91: 0 | CV91: 0 | CZ91: 0 | DA91: 0 | DB91: 0 | DE91: 4.07076974 | DF91: 83.3157668 | DG91: 287.9278637 | DH91: 0 | DI91: -938.2086047 | DK91: 0 | DL91: 0 | DN91: -0.1604633792 | DO91: -171.3114726 | DP91: -1.602056482 | DQ91: 0 | DR91: 0 | DS91: 0 | DV91: 0 | DW91: 784.7871524 | DX91: -15.04015301 | DY91: -750.49039 | EA91: 173.19009 | EC91: 0 | EE91: 2.397629826 | EF91: 0.1171470817 | EH91: 8.285879855 | EI91: 0 | EJ91: 0 | EK91: 0 | EL91: 0 | EO91: 0 | EP91: 165 | EU91: 0 | EZ91: 0 | FA91: 0 | FB91: 0 | FC91: 0
A92: 4353 | B92: Refaturamento - Regular | C92: Azul | D92: A2 | E92: Industrial | F92: Não se aplica | G92: Fonte incentivada | H92: Não se aplica | I92: Não se aplica | J92: LIVRE | K92: 2021-05-01 | L92: 0 | M92: 0 | N92: 0 | O92: 0 | P92: 0 | Q92: 0 | AA92: 0 | AZ92: 0 | BI92: 17189.82 | BJ92: 0 | BK92: -1176815.22 | BL92: 1 | CJ92: -0.03 | CO92: 0 | CP92: 0 | CQ92: 31 | DK92: 0 | EP92: 165 | EU92: 0 | EZ92: 0 | FA92: 0 | FB92: 0 | FC92: 0
A93: 1984 | B93: PROJETADO | C93: Azul | D93: A2 | E93: Industrial | F93: Não se aplica | G93: Não se aplica | H93: Não se aplica | I93: Não se aplica | J93: CATIVO | K93: 2021-06-01 | L93: 0 | M93: 0 | N93: 0 | O93: 0 | P93: 0 | Q93: 0 | AA93: 0 | AZ93: 0 | BI93: 4331.91 | BJ93: 19953.78 | BK93: 62816.53 | BL93: 4 | CJ93: -0.03 | CO93: 0 | CP93: 0 | CQ93: 30 | DK93: 0 | EP93: 165 | EU93: 0 | EZ93: 0 | FA93: 0 | FB93: 0 | FC93: 0
A94: 4469 | B94: PROJETADO | C94: Azul | D94: A2 | E94: Industrial | F94: Não se aplica | G94: Não se aplica | H94: Não se aplica | I94: Não se aplica | J94: LIVRE | K94: 2021-06-01 | L94: 0 | M94: 0 | N94: 24846.738 | O94: 24846.738 | P94: 0 | Q94: 0 | S94: 52.66 | V94: 1308429.223 | W94: 1308429.223 | X94: 1305944.549 | Y94: 0 | Z94: 1054683.17 | AA94: 0 | AB94: 0 | AC94: 0 | AD94: 0 | AE94: 0 | AI94: 0 | AJ94: 0 | AK94: 1900.273135 | AL94: 188382.7467 | AM94: 0 | AN94: 523.725127 | AO94: 0 | AP94: 0 | AQ94: 0 | AR94: 0 | AU94: 0 | AV94: 910.1719546 | AW94: -152.568119 | AZ94: 0 | BB94: 46.48552734 | BC94: 0 | BD94: 13198.0722 | BE94: 644.8516891 | BG94: 45610.72749 | BH94: 3442.419743 | BI94: 206864.38 | BJ94: 0 | BK94: 1271172.26 | BL94: 6 | BV94: 59453.65138 | CI94: 1305944.654 | CJ94: -2484.59868 | CO94: -2484.6738 | CP94: 0 | CQ94: 30 | CR94: -3167.573092 | CS94: 0 | CT94: 0 | CU94: 0 | CV94: 0 | CZ94: 0 | DA94: 0 | DB94: 0 | DE94: 17.52040475 | DF94: 358.5872083 | DG94: 1239.228213 | DH94: 0 | DI94: -4038.006457 | DK94: 0 | DL94: 0 | DN94: -0.690626965 | DO94: -737.3166574 | DP94: -6.895177028 | DQ94: 0 | DR94: 0 | DS94: 0 | DV94: 0 | DW94: 3377.68762 | DX94: -64.73212316 | DY94: -3230.07594 | EA94: 745.40214 | EC94: 0 | EE94: 10.31928792 | EF94: 0.5041956235 | EH94: 35.6620438 | EI94: 0 | EJ94: 0 | EK94: 0 | EL94: 0 | EO94: 0 | EP94: 165 | EU94: 0 | EZ94: 0 | FA94: 0 | FB94: 0 | FC94: 0
A95: 4568 | B95: PROJETADO | C95: Azul | D95: A2 | E95: Industrial | F95: Não se aplica | G95: Fonte incentivada | H95: Não se aplica | I95: Não se aplica | J95: LIVRE | K95: 2021-06-01 | L95: 0 | M95: 0 | N95: 5773.003 | O95: 5773.003 | P95: 0 | Q95: 0 | S95: 52.66 | V95: 304006.338 | W95: 304006.338 | X95: 303429.0377 | Y95: 0 | Z95: 245049.8374 | AA95: 0 | AB95: 0 | AC95: 0 | AD95: 0 | AE95: 0 | AI95: 0 | AJ95: 0 | AK95: 441.5180176 | AL95: 43769.69572 | AM95: 0 | AN95: 121.6846545 | AO95: 0 | AP95: 0 | AQ95: 0 | AR95: 0 | AU95: 0 | AV95: 211.4734507 | AW95: -35.44836384 | AZ95: 0 | BB95: 10.80065676 | BC95: 0 | BD95: 3066.499531 | BE95: 149.8277454 | BG95: 10597.40182 | BH95: 799.8273054 | BI95: 95320.29 | BJ95: 0 | BK95: 436743.53 | BL95: 7 | BV95: 13813.7291 | CI95: 303428.88 | CJ95: -577.48798 | CO95: -577.3003 | CP95: 0 | CQ95: 30 | CR95: -735.9681969 | CS95: 0 | CT95: 0 | CU95: 0 | CV95: 0 | CZ95: 0 | DA95: 0 | DB95: 0 | DE95: 4.07076974 | DF95: 83.3157668 | DG95: 287.9278637 | DH95: 0 | DI95: -938.2086047 | DK95: 0 | DL95: 0 | DN95: -0.1604633792 | DO95: -171.3114726 | DP95: -1.602056482 | DQ95: 0 | DR95: 0 | DS95: 0 | DV95: 0 | DW95: 784.7871524 | DX95: -15.04015301 | DY95: -750.49039 | EA95: 173.19009 | EC95: 0 | EE95: 2.397629826 | EF95: 0.1171470817 | EH95: 8.285879855 | EI95: 0 | EJ95: 0 | EK95: 0 | EL95: 0 | EO95: 0 | EP95: 165 | EU95: 0 | EZ95: 0 | FA95: 0 | FB95: 0 | FC95: 0
A96: 4569 | B96: PROJETADO | C96: Azul | D96: A2 | E96: Industrial | F96: Não se aplica | G96: Fonte incentivada | H96: Não se aplica | I96: Não se aplica | J96: LIVRE | K96: 2021-06-01 | L96: 0 | M96: 0 | N96: 0 | O96: 0 | P96: 0 | Q96: 0 | AA96: 0 | AZ96: 0 | BI96: 17189.82 | BJ96: 0 | BK96: -1176815.22 | BL96: 1 | CJ96: -0.03 | CO96: 0 | CP96: 0 | CQ96: 30 | DK96: 0 | EP96: 165 | EU96: 0 | EZ96: 0 | FA96: 0 | FB96: 0 | FC96: 0
A97: 31 | B97: Regular | C97: Azul | D97: A2 | E97: Industrial | F97: Não se aplica | G97: Não se aplica | H97: Não se aplica | I97: Ponta | J97: CATIVO | K97: 2020-07-01 | L97: 6625 | M97: 6625 | N97: 235.94 | O97: 235.94 | P97: 235.94 | Q97: 235.94 | R97: 17.04 | S97: 52.66 | T97: 372.99 | U97: 112890 | V97: 100427.861 | W97: 213317.861 | X97: 218282.4324 | Y97: 0 | Z97: 10015.07511 | AA97: 0 | AB97: 0 | AC97: 1245.104664 | AD97: 13875.51367 | AE97: 12787.8711 | AF97: 81339.27999 | AG97: 2600.457945 | AH97: 1594.240136 | AI97: 0 | AJ97: 0 | AK97: 589.8923442 | AL97: 1788.847504 | AM97: 0 | AN97: 4.97319634 | AO97: 48130.55211 | AP97: 36859.33532 | AQ97: 0 | AR97: 0 | AS97: 0 | AT97: 1205.675162 | AU97: 0 | AV97: 8.642823495 | AW97: -1.448758465 | AX97: 1.009022263 | AY97: -19.39003351 | AZ97: 0 | BA97: -2.567955452 | BB97: 64.58008145 | BC97: 35.28143796 | BD97: 125.3264375 | BE97: 6.123391631 | BF97: 692.2244293 | BG97: 433.1109799 | BH97: 32.68857723 | BI97: 0 | BJ97: 0 | BK97: 0 | BL97: 0 | BU97: 7.109031581e-10 | BV97: 82596.06523 | CI97: 218282.4324 | CJ97: 4964.5414 | CM97: 0 | CN97: 7.109031581e-10 | CO97: 2626.406 | CP97: 2338.1654 | CQ97: 31 | CR97: 4855.200942 | CS97: 1404.252931 | CT97: 1027.579567 | CU97: 0 | CV97: 0 | CW97: 0 | CX97: 55.58912316 | CY97: -6.567092883 | CZ97: 178.3909803 | DA97: 0 | DB97: -18.68876803 | DC97: 2209.961037 | DD97: 18.80750626 | DE97: 0.1663705029 | DF97: 3.405077396 | DG97: 11.76748049 | DH97: 0 | DI97: -38.34415783 | DJ97: 2.206085702 | DK97: 0 | DL97: 0 | DM97: 13.9560867 | DN97: -0.2143878961 | DO97: -7.001421762 | DP97: -0.06547531785 | DQ97: 0 | DR97: 0 | DS97: 0 | DU97: 12787.8711 | DV97: 0 | DW97: 32.07389304 | DX97: -0.6146841947 | DY97: 2553.0778 | DZ97: 2293.3368 | EA97: 73.3282 | EB97: 44.8286 | EC97: 0 | ED97: 63.59742818 | EE97: 0.09799003761 | EF97: 0.004787747808 | EG97: 0.541235347 | EH97: 0.3386401311 | EI97: 15.10021577 | EJ97: 19.68729154 | EK97: 0 | EL97: 0 | EM97: 0 | EN97: 0.4939306405 | EO97: 0 | EP97: 165 | EQ97: 0 | ER97: 0 | ES97: 0 | EU97: 0 | EZ97: 0 | FA97: 0 | FB97: 0 | FC97: 0
A98: 2126 | B98: Regular | C98: Azul | D98: A2 | E98: Industrial | F98: Não se aplica | G98: Não se aplica | H98: Não se aplica | I98: Ponta | J98: LIVRE | K98: 2020-07-01 | L98: 41845 | M98: 41845 | N98: 0 | O98: 0 | P98: 0 | Q98: 0 | R98: 17.04 | U98: 713038.8 | W98: 713038.8 | X98: 729776.8 | Y98: 0 | Z98: 0 | AA98: 0 | AB98: 0 | AC98: 7864.362967 | AD98: 87640.88598 | AE98: 80771.08925 | AI98: 0 | AJ98: 0 | AK98: 0 | AL98: 0 | AM98: 0 | AN98: 0 | AO98: 304003.4646 | AP98: 232811.9074 | AQ98: 0 | AR98: 0 | AU98: 0 | AV98: 0 | AW98: 0 | AZ98: 0 | BB98: 0 | BC98: 219.7257726 | BD98: 0 | BE98: 0 | BG98: 0 | BH98: 0 | BI98: 0 | BJ98: 0 | BK98: 0 | BL98: 0 | BV98: 0 | CI98: 729776.8 | CJ98: 16737.97 | CO98: 16738 | CP98: 0 | CQ98: 31 | CR98: 16368.71999 | CS98: 8869.579459 | CT98: 6490.425204 | CU98: 0 | CV98: 0 | CZ98: 1126.757822 | DA98: 0 | DB98: -118.0424903 | DE98: 0 | DF98: 0 | DG98: 0 | DH98: 0 | DI98: 0 | DK98: 0 | DL98: 0 | DN98: 0 | DO98: 0 | DP98: 0 | DQ98: 0 | DR98: 0 | DS98: 0 | DU98: 80771.08925 | DW98: 0 | DX98: 0 | DY98: 16319.55 | EA98: 418.45 | EC98: 0 | EE98: 0 | EF98: 0 | EH98: 0 | EI98: 95.37638174 | EJ98: 124.3493909 | EK98: 0 | EL98: 0 | EO98: 0 | EP98: 165 | EU98: 0 | EZ98: 0 | FA98: 0 | FB98: 0 | FC98: 0
A99: 2222 | B99: Regular | C99: Azul | D99: A2 | E99: Industrial | F99: Não se aplica | G99: Fonte incentivada | H99: Não se aplica | I99: Ponta | J99: LIVRE | K99: 2020-07-01 | L99: 3833 | M99: 6.45653518 | N99: 0 | O99: 0 | P99: 0 | Q99: 0 | R99: 17.04 | U99: 65314.32 | W99: 65314.32 | X99: 66847.52 | Y99: 0 | Z99: 0 | AA99: 0 | AB99: 0 | AC99: 720.3752719 | AD99: 8027.900967 | AE99: 7398.627915 | AI99: 0 | AJ99: 0 | AK99: 0 | AL99: 0 | AM99: 0 | AN99: 0 | AO99: 27846.70283 | AP99: 21325.55959 | AQ99: 0 | AR99: 0 | AU99: 0 | AV99: 0 | AW99: 0 | AZ99: 0 | BB99: 0 | BC99: 20.12687027 | BD99: 0 | BE99: 0 | BG99: 0 | BH99: 0 | BI99: 0 | BJ99: 0 | BK99: 0 | BL99: 0 | BN99: 66734.91803 | BV99: 0 | CI99: 112.6624 | CJ99: 2.613040533 | CO99: 1533.2 | CP99: 0 | CQ99: 31 | CR99: 1499.373969 | CS99: 812.4530545 | CT99: 594.5226385 | CU99: 0 | CV99: 0 | CZ99: 103.2109626 | DA99: 0 | DB99: -10.81268647 | DE99: 0 | DF99: 0 | DG99: 0 | DH99: 0 | DI99: 0 | DK99: 0 | DL99: 0 | DN99: 0 | DO99: 0 | DP99: 0 | DQ99: 0 | DR99: 0 | DS99: 0 | DU99: 7398.627915 | DW99: 0 | DX99: 0 | DY99: 1494.87 | EA99: 38.33 | EC99: 0 | EE99: 0 | EF99: 0 | EH99: 0 | EI99: 8.736472009 | EJ99: 11.39039826 | EK99: 0 | EL99: 0 | EO99: 0 | EP99: 165 | EU99: 0 | EZ99: 0 | FA99: 0 | FB99: 0 | FC99: 0
A100: 207 | B100: Regular | C100: Azul | D100: A2 | E100: Industrial | F100: Não se aplica | G100: Não se aplica | H100: Não se aplica | I100: Ponta | J100: CATIVO | K100: 2020-08-01 | L100: 6160 | M100: 6160 | N100: 224.203 | O100: 224.203 | P100: 224.203 | Q100: 224.203 | R100: 17.04 | S100: 52.66 | T100: 372.99 | U100: 104966.4 | V100: 95432.00695 | W100: 200398.4069 | X100: 205061.8384 | Y100: 0 | Z100: 9516.868203 | AA100: 0 | AB100: 0 | AC100: 1157.712412 | AD100: 12901.60969 | AE100: 11890.30732 | AF100: 77293.00073 | AG100: 2471.096349 | AH100: 1514.933548 | AI100: 0 | AJ100: 0 | AK100: 560.5477378 | AL100: 1699.860036 | AM100: 0 | AN100: 4.725801216 | AO100: 44752.33223 | AP100: 34272.22726 | AQ100: 0 | AR100: 0 | AS100: 0 | AT100: 1145.69801 | AU100: 0 | AV100: 8.212880207 | AW100: -1.376688964 | AX100: 0.9588277462 | AY100: -18.42546275 | AZ100: 0 | BA100: -2.440210715 | BB100: 61.36750022 | BC100: 32.81517784 | BD100: 119.0919863 | BE100: 5.81877924 | BF100: 657.7892419 | BG100: 411.5655719 | BH100: 31.06246114 | BI100: 0 | BJ100: 0 | BK100: 0 | BL100: 0 | BU100: 6.755387842e-10 | BV100: 78487.26631 | CI100: 205060.532 | CJ100: 4662.09505 | CM100: 0 | CN100: 6.755387842e-10 | CO100: 2441.5797 | CP100: 2221.85173 | CQ100: 31 | CR100: 4560.696887 | CS100: 1305.690273 | CT100: 955.4551143 | CU100: 0 | CV100: 0 | CW100: 0 | CX100: 52.82380342 | CY100: -6.240408264 | CZ100: 165.869953 | DA100: 0 | DB100: -17.37702808 | DC100: 2100.024982 | DD100: 17.87191373 | DE100: 0.1580942861 | DF100: 3.235689444 | DG100: 11.18209896 | DH100: 0 | DI100: -36.43670093 | DJ100: 2.096342429 | DK100: 0 | DL100: 0 | DM100: 13.26183143 | DN100: -0.2037230206 | DO100: -6.653131149 | DP100: -0.06221820246 | DQ100: 0 | DR100: 0 | DS100: 0 | DU100: 11890.30732 | DV100: 0 | DW100: 30.47835484 | DX100: -0.5841063004 | DY100: 2373.25361 | DZ100: 2179.25316 | EA100: 68.32609 | EB100: 42.59857 | EC100: 0 | ED100: 60.43372973 | EE100: 0.09311545479 | EF100: 0.004549577951 | EG100: 0.5143112168 | EH100: 0.3217942414 | EI100: 14.04035157 | EJ100: 18.30546655 | EK100: 0 | EL100: 0 | EM100: 0 | EN100: 0.469359716 | EO100: 0 | EP100: 165 | EQ100: 0 | ER100: 0 | ES100: 0 | EU100: 0 | EZ100: 0 | FA100: 0 | FB100: 0 | FC100: 0
A101: 2335 | B101: Regular | C101: Azul | D101: A2 | E101: Industrial | F101: Não se aplica | G101: Não se aplica | H101: Não se aplica | I101: Ponta | J101: LIVRE | K101: 2020-08-01 | L101: 42510 | M101: 42510 | N101: 0 | O101: 0 | P101: 0 | Q101: 0 | R101: 17.04 | U101: 724370.4 | W101: 724370.4 | X101: 741374.4 | Y101: 0 | Z101: 0 | AA101: 0 | AB101: 0 | AC101: 7989.343285 | AD101: 89033.67339 | AE101: 82054.70197 | AI101: 0 | AJ101: 0 | AK101: 0 | AL101: 0 | AM101: 0 | AN101: 0 | AO101: 308834.6823 | AP101: 236511.7501 | AQ101: 0 | AR101: 0 | AU101: 0 | AV101: 0 | AW101: 0 | AZ101: 0 | BB101: 0 | BC101: 223.2176507 | BD101: 0 | BE101: 0 | BG101: 0 | BH101: 0 | BI101: 0 | BJ101: 0 | BK101: 0 | BL101: 0 | BV101: 0 | CI101: 741374.4 | CJ101: 17003.97 | CO101: 17004 | CP101: 0 | CQ101: 31 | CR101: 16628.8514 | CS101: 9010.534659 | CT101: 6593.570927 | CU101: 0 | CV101: 0 | CZ101: 1144.664237 | DA101: 0 | DB101: -119.9184194 | DE101: 0 | DF101: 0 | DG101: 0 | DH101: 0 | DI101: 0 | DK101: 0 | DL101: 0 | DN101: 0 | DO101: 0 | DP101: 0 | DQ101: 0 | DR101: 0 | DS101: 0 | DU101: 82054.70197 | DW101: 0 | DX101: 0 | DY101: 16578.9 | EA101: 425.1 | EC101: 0 | EE101: 0 | EF101: 0 | EH101: 0 | EI101: 96.89210152 | EJ101: 126.3255492 | EK101: 0 | EL101: 0 | EO101: 0 | EP101: 165 | EU101: 0 | EZ101: 0 | FA101: 0 | FB101: 0 | FC101: 0
A102: 2431 | B102: Regular | C102: Azul | D102: A2 | E102: Industrial | F102: Não se aplica | G102: Fonte incentivada | H102: Não se aplica | I102: Ponta | J102: LIVRE | K102: 2020-08-01 | L102: 4328 | M102: 769.186226 | N102: 0 | O102: 0 | P102: 0 | Q102: 0 | R102: 17.04 | U102: 73749.12 | W102: 73749.12 | X102: 75480.32 | Y102: 0 | Z102: 0 | AA102: 0 | AB102: 0 | AC102: 813.4057336 | AD102: 9064.63746 | AE102: 8354.099038 | AI102: 0 | AJ102: 0 | AK102: 0 | AL102: 0 | AM102: 0 | AN102: 0 | AO102: 31442.87238 | AP102: 24079.57785 | AQ102: 0 | AR102: 0 | AU102: 0 | AV102: 0 | AW102: 0 | AZ102: 0 | BB102: 0 | BC102: 22.7260878 | BD102: 0 | BE102: 0 | BG102: 0 | BH102: 0 | BI102: 0 | BJ102: 0 | BK102: 0 | BL102: 0 | BN102: 62065.71222 | BV102: 0 | CI102: 13414.6736 | CJ102: 307.710309 | CO102: 1731.2 | CP102: 0 | CQ102: 31 | CR102: 1693.005619 | CS102: 917.3745943 | CT102: 671.3002816 | CU102: 0 | CV102: 0 | CZ102: 116.5397981 | DA102: 0 | DB102: -12.2090548 | DE102: 0 | DF102: 0 | DG102: 0 | DH102: 0 | DI102: 0 | DK102: 0 | DL102: 0 | DN102: 0 | DO102: 0 | DP102: 0 | DQ102: 0 | DR102: 0 | DS102: 0 | DU102: 8354.099038 | DW102: 0 | DX102: 0 | DY102: 1687.92 | EA102: 43.28 | EC102: 0 | EE102: 0 | EF102: 0 | EH102: 0 | EI102: 9.864714546 | EJ102: 12.86137325 | EK102: 0 | EL102: 0 | EO102: 0 | EP102: 165 | EU102: 0 | EZ102: 0 | FA102: 0 | FB102: 0 | FC102: 0
A103: 376 | B103: Regular | C103: Azul | D103: A2 | E103: Industrial | F103: Não se aplica | G103: Não se aplica | H103: Não se aplica | I103: Ponta | J103: CATIVO | K103: 2020-09-01 | L103: 4287 | M103: 4287 | N103: 193.468 | O103: 193.468 | P103: 193.468 | Q103: 193.468 | R103: 17.04 | S103: 52.66 | T103: 372.99 | U103: 73050.48 | V103: 82349.6542 | W103: 155400.1342 | X103: 159012.8553 | Y103: 0 | Z103: 8212.242733 | AA103: 0 | AB103: 0 | AC103: 805.7001802 | AD103: 8978.766357 | AE103: 8274.959006 | AF103: 66697.24431 | AG103: 2132.344654 | AH103: 1307.257992 | AI103: 0 | AJ103: 0 | AK103: 483.7047217 | AL103: 1466.833724 | AM103: 0 | AN103: 4.077961979 | AO103: 31145.00783 | AP103: 23851.46725 | AQ103: 0 | AR103: 0 | AS103: 0 | AT103: 988.6393248 | AU103: 0 | AV103: 7.087012698 | AW103: -1.187964748 | AX103: 0.8273862812 | AY103: -15.89959736 | AZ103: 0 | BA103: -2.105692996 | BB103: 52.95490039 | BC103: 22.91581634 | BD103: 102.7661914 | BE103: 5.021108468 | BF103: 567.6158171 | BG103: 355.1458636 | BH103: 26.8042454 | BI103: 0 | BJ103: 0 | BK103: 0 | BL103: 0 | BU103: 5.82932153e-10 | BV103: 67727.79329 | CI103: 159013.7262 | CJ103: 3613.562 | CM103: 0 | CN103: 5.82932153e-10 | CO103: 1695.4532 | CP103: 1917.26788 | CQ103: 30 | CR103: 3533.146888 | CS103: 908.6841233 | CT103: 664.9409212 | CU103: 0 | CV103: 0 | CW103: 0 | CX103: 45.58242129 | CY103: -5.38493823 | CZ103: 115.4357936 | DA103: 0 | DB103: -12.093396 | DC103: 1812.141824 | DD103: 15.42193194 | DE103: 0.136421838 | DF103: 2.792123055 | DG103: 9.649194352 | DH103: 0 | DI103: -31.44175437 | DJ103: 1.808964095 | DK103: 0 | DL103: 0 | DM103: 11.44382547 | DN103: -0.1757955306 | DO103: -5.741082756 | DP103: -0.05368898361 | DQ103: 0 | DR103: 0 | DS103: 0 | DU103: 8274.959006 | DV103: 0 | DW103: 26.30021166 | DX103: -0.504033745 | DY103: 1646.77916 | DZ103: 1880.50896 | EA103: 48.67404 | EB103: 36.75892 | EC103: 0 | ED103: 52.14913637 | EE103: 0.08035066795 | EF103: 0.003925896384 | EG103: 0.4438065615 | EH103: 0.2776808888 | EI103: 9.771264154 | EJ103: 12.73953492 | EK103: 0 | EL103: 0 | EM103: 0 | EN103: 0.4050172635 | EO103: 0 | EP103: 165 | EQ103: 0 | ER103: 0 | ES103: 0 | EU103: 0 | EZ103: 0 | FA103: 0 | FB103: 0 | FC103: 0
A104: 2544 | B104: Regular | C104: Azul | D104: A2 | E104: Industrial | F104: Não se aplica | G104: Não se aplica | H104: Não se aplica | I104: Ponta | J104: LIVRE | K104: 2020-09-01 | L104: 39836 | M104: 39836 | N104: 0 | O104: 0 | P104: 0 | Q104: 0 | R104: 17.04 | U104: 678805.44 | W104: 678805.44 | X104: 694739.84 | Y104: 0 | Z104: 0 | AA104: 0 | AB104: 0 | AC104: 7486.790851 | AD104: 83433.20191 | AE104: 76893.22766 | AI104: 0 | AJ104: 0 | AK104: 0 | AL104: 0 | AM104: 0 | AN104: 0 | AO104: 289408.1017 | AP104: 221634.4878 | AQ104: 0 | AR104: 0 | AU104: 0 | AV104: 0 | AW104: 0 | AZ104: 0 | BB104: 0 | BC104: 209.1766251 | BD104: 0 | BE104: 0 | BG104: 0 | BH104: 0 | BI104: 0 | BJ104: 0 | BK104: 0 | BL104: 0 | BV104: 0 | CI104: 694739.84 | CJ104: 15934.37 | CO104: 15934.4 | CP104: 0 | CQ104: 30 | CR104: 15582.84932 | CS104: 8443.746381 | CT104: 6178.816547 | CU104: 0 | CV104: 0 | CZ104: 1072.661599 | DA104: 0 | DB104: -112.3752095 | DE104: 0 | DF104: 0 | DG104: 0 | DH104: 0 | DI104: 0 | DK104: 0 | DL104: 0 | DN104: 0 | DO104: 0 | DP104: 0 | DQ104: 0 | DR104: 0 | DS104: 0 | DU104: 76893.22766 | DW104: 0 | DX104: 0 | DY104: 15536.04 | EA104: 398.36 | EC104: 0 | EE104: 0 | EF104: 0 | EH104: 0 | EI104: 90.79731254 | EJ104: 118.3793126 | EK104: 0 | EL104: 0 | EO104: 0 | EP104: 165 | EU104: 0 | EZ104: 0 | FA104: 0 | FB104: 0 | FC104: 0
A105: 2640 | B105: Regular | C105: Azul | D105: A2 | E105: Industrial | F105: Não se aplica | G105: Fonte incentivada | H105: Não se aplica | I105: Ponta | J105: LIVRE | K105: 2020-09-01 | L105: 15329 | M105: 3184.24657 | N105: 0 | O105: 0 | P105: 0 | Q105: 0 | R105: 17.04 | U105: 261206.16 | W105: 261206.16 | X105: 267337.76 | Y105: 0 | Z105: 0 | AA105: 0 | AB105: 0 | AC105: 2880.937267 | AD105: 32105.32062 | AE105: 29588.72092 | AI105: 0 | AJ105: 0 | AK105: 0 | AL105: 0 | AM105: 0 | AN105: 0 | AO105: 111365.0164 | AP105: 85285.54734 | AQ105: 0 | AR105: 0 | AU105: 0 | AV105: 0 | AW105: 0 | AZ105: 0 | BB105: 0 | BC105: 80.49172825 | BD105: 0 | BE105: 0 | BG105: 0 | BH105: 0 | BI105: 0 | BJ105: 0 | BK105: 0 | BL105: 0 | BN105: 211804.4998 | BV105: 0 | CI105: 55533.32 | CJ105: 1273.72845 | CO105: 6131.6 | CP105: 0 | CQ105: 30 | CR105: 5996.322351 | CS105: 3249.17633 | CT105: 2377.625235 | CU105: 0 | CV105: 0 | CZ105: 412.7630697 | DA105: 0 | DB105: -43.24228303 | DE105: 0 | DF105: 0 | DG105: 0 | DH105: 0 | DI105: 0 | DK105: 0 | DL105: 0 | DN105: 0 | DO105: 0 | DP105: 0 | DQ105: 0 | DR105: 0 | DS105: 0 | DU105: 29588.72092 | DW105: 0 | DX105: 0 | DY105: 5978.31 | EA105: 153.29 | EC105: 0 | EE105: 0 | EF105: 0 | EH105: 0 | EI105: 34.9390502 | EJ105: 45.55267805 | EK105: 0 | EL105: 0 | EO105: 0 | EP105: 165 | EU105: 0 | EZ105: 0 | FA105: 0 | FB105: 0 | FC105: 0
A106: 555 | B106: Regular | C106: Azul | D106: A2 | E106: Industrial | F106: Não se aplica | G106: Não se aplica | H106: Não se aplica | I106: Ponta | J106: CATIVO | K106: 2020-10-01 | L106: 6635 | M106: 6635 | N106: 76.671 | O106: 76.671 | P106: 76.671 | Q106: 76.671 | R106: 17.04 | S106: 52.66 | T106: 372.99 | U106: 113060.4 | V106: 32635.01115 | W106: 145695.4111 | X106: 149101.5537 | Y106: 0 | Z106: 3254.496158 | AA106: 0 | AB106: 0 | AC106: 1246.984067 | AD106: 13896.45784 | AE106: 12807.17355 | AF106: 26431.99091 | AG106: 845.044126 | AH106: 518.063853 | AI106: 0 | AJ106: 0 | AK106: 191.6912602 | AL106: 581.3034118 | AM106: 0 | AN106: 1.616088567 | AO106: 48203.202 | AP106: 36914.97205 | AQ106: 0 | AR106: 0 | AS106: 0 | AT106: 391.7958819 | AU106: 0 | AV106: 2.808569637 | AW106: -0.4707881676 | AX106: 0.3278916077 | AY106: -6.30098016 | AZ106: 0 | BA106: -0.8344821245 | BB106: 20.98592619 | BC106: 35.00052433 | BD106: 40.72604597 | BE106: 1.989855725 | BF106: 224.9450675 | BG106: 140.7436295 | BH106: 10.62247141 | BI106: 0 | BJ106: 0 | BK106: 0 | BL106: 0 | BU106: 2.310149022e-10 | BV106: 26840.39551 | CI106: 149101.1182 | CJ106: 3405.67705 | CM106: 0 | CN106: 2.310149022e-10 | CO106: 2646.3329 | CP106: 759.80961 | CQ106: 31 | CR106: 3331.046841 | CS106: 1406.372558 | CT106: 1029.13063 | CU106: 0 | CV106: 0 | CW106: 0 | CX106: 18.06422676 | CY106: -2.134040767 | CZ106: 178.6602497 | DA106: 0 | DB106: -18.71697749 | DC106: 718.1483541 | DD106: 6.11168226 | DE106: 0.05406371462 | DF106: 1.10651305 | DG106: 3.823957348 | DH106: 0 | DI106: -12.46030739 | DJ106: 0.7168890264 | DK106: 0 | DL106: 0 | DM106: 4.535166244 | DN106: -0.06966743402 | DO106: -2.275180164 | DP106: -0.02127684197 | DQ106: 0 | DR106: 0 | DS106: 0 | DU106: 12807.17355 | DV106: 0 | DW106: 10.4227238 | DX106: -0.1997476134 | DY106: 2577.68277 | DZ106: 745.24212 | EA106: 68.65013 | EB106: 14.56749 | EC106: 0 | ED106: 20.66660344 | EE106: 0.03184281671 | EF106: 0.001555825261 | EG106: 0.1758796952 | EH106: 0.1100444075 | EI106: 15.12300855 | EJ106: 19.71700821 | EK106: 0 | EL106: 0 | EM106: 0 | EN106: 0.1605075703 | EO106: 0 | EP106: 165 | EQ106: 0 | ER106: 0 | ES106: 0 | EU106: 0 | EZ106: 0 | FA106: 0 | FB106: 0 | FC106: 0
A107: 2756 | B107: Regular | C107: Azul | D107: A2 | E107: Industrial | F107: Não se aplica | G107: Não se aplica | H107: Não se aplica | I107: Ponta | J107: LIVRE | K107: 2020-10-01 | L107: 39036 | M107: 39036 | N107: 0 | O107: 0 | P107: 0 | Q107: 0 | R107: 17.04 | U107: 665173.44 | W107: 665173.44 | X107: 680787.84 | Y107: 0 | Z107: 0 | AA107: 0 | AB107: 0 | AC107: 7336.43859 | AD107: 81757.66818 | AE107: 75349.0319 | AI107: 0 | AJ107: 0 | AK107: 0 | AL107: 0 | AM107: 0 | AN107: 0 | AO107: 283596.1105 | AP107: 217183.5492 | AQ107: 0 | AR107: 0 | AU107: 0 | AV107: 0 | AW107: 0 | AZ107: 0 | BB107: 0 | BC107: 204.9758695 | BD107: 0 | BE107: 0 | BG107: 0 | BH107: 0 | BI107: 0 | BJ107: 0 | BK107: 0 | BL107: 0 | BV107: 0 | CI107: 680787.84 | CJ107: 15614.37 | CO107: 15614.4 | CP107: 0 | CQ107: 31 | CR107: 15269.90928 | CS107: 8274.176216 | CT107: 6054.731468 | CU107: 0 | CV107: 0 | CZ107: 1051.120046 | DA107: 0 | DB107: -110.1184526 | DE107: 0 | DF107: 0 | DG107: 0 | DH107: 0 | DI107: 0 | DK107: 0 | DL107: 0 | DN107: 0 | DO107: 0 | DP107: 0 | DQ107: 0 | DR107: 0 | DS107: 0 | DU107: 75349.0319 | DW107: 0 | DX107: 0 | DY107: 15224.04 | EA107: 390.36 | EC107: 0 | EE107: 0 | EF107: 0 | EH107: 0 | EI107: 88.97389026 | EJ107: 116.0019793 | EK107: 0 | EL107: 0 | EO107: 0 | EP107: 165 | EU107: 0 | EZ107: 0 | FA107: 0 | FB107: 0 | FC107: 0
A108: 2852 | B108: Regular | C108: Azul | D108: A2 | E108: Industrial | F108: Não se aplica | G108: Fonte incentivada | H108: Não se aplica | I108: Ponta | J108: LIVRE | K108: 2020-10-01 | L108: 5300 | M108: 0.057346 | N108: 0 | O108: 0 | P108: 0 | Q108: 0 | R108: 17.04 | U108: 90312 | W108: 90312 | X108: 92432 | Y108: 0 | Z108: 0 | AA108: 0 | AB108: 0 | AC108: 996.0837311 | AD108: 11100.41094 | AE108: 10230.29688 | AI108: 0 | AJ108: 0 | AK108: 0 | AL108: 0 | AM108: 0 | AN108: 0 | AO108: 38504.44169 | AP108: 29487.46826 | AQ108: 0 | AR108: 0 | AU108: 0 | AV108: 0 | AW108: 0 | AZ108: 0 | BB108: 0 | BC108: 27.83000585 | BD108: 0 | BE108: 0 | BG108: 0 | BH108: 0 | BI108: 0 | BJ108: 0 | BK108: 0 | BL108: 0 | BN108: 92430.99989 | BV108: 0 | CI108: 1.0464 | CJ108: 0.03922416 | CO108: 2120 | CP108: 0 | CQ108: 31 | CR108: 2073.227768 | CS108: 1123.402345 | CT108: 822.0636535 | CU108: 0 | CV108: 0 | CZ108: 142.7127842 | DA108: 0 | DB108: -14.95101442 | DE108: 0 | DF108: 0 | DG108: 0 | DH108: 0 | DI108: 0 | DK108: 0 | DL108: 0 | DN108: 0 | DO108: 0 | DP108: 0 | DQ108: 0 | DR108: 0 | DS108: 0 | DU108: 10230.29688 | DW108: 0 | DX108: 0 | DY108: 2067 | EA108: 53 | EC108: 0 | EE108: 0 | EF108: 0 | EH108: 0 | EI108: 12.08017262 | EJ108: 15.74983324 | EK108: 0 | EL108: 0 | EO108: 0 | EP108: 165 | EU108: 0 | EZ108: 0 | FA108: 0 | FB108: 0 | FC108: 0
A109: 732 | B109: Regular | C109: Azul | D109: A2 | E109: Industrial | F109: Não se aplica | G109: Não se aplica | H109: Não se aplica | I109: Ponta | J109: CATIVO | K109: 2020-11-01 | L109: 5116 | M109: 5116 | N109: 42.744 | O109: 42.744 | P109: 42.744 | Q109: 42.744 | R109: 17.04 | S109: 52.66 | T109: 372.99 | U109: 87176.64 | V109: 18193.9836 | W109: 105370.6236 | X109: 107836.3422 | Y109: 0 | Z109: 1814.378106 | AA109: 0 | AB109: 0 | AC109: 961.502711 | AD109: 10715.03818 | AE109: 9875.131858 | AF109: 14735.80649 | AG109: 471.111191 | AH109: 288.8200406 | AI109: 0 | AJ109: 0 | AK109: 106.8676713 | AL109: 324.0760266 | AM109: 0 | AN109: 0.9009676373 | AO109: 37167.68371 | AP109: 28463.75238 | AQ109: 0 | AR109: 0 | AS109: 0 | AT109: 218.4257826 | AU109: 0 | AV109: 1.565774551 | AW109: -0.2624638969 | AX109: 0.1827992185 | AY109: -3.512789659 | AZ109: 0 | BA109: -0.4652228865 | BB109: 11.69963127 | BC109: 26.95331486 | BD109: 22.70472681 | BE109: 1.109342425 | BF109: 125.4066331 | BG109: 78.464422 | BH109: 5.922016383 | BI109: 0 | BJ109: 0 | BK109: 0 | BL109: 0 | BU109: 1.287905594e-10 | BV109: 14963.49162 | CI109: 107834.6004 | CJ109: 2463.9468 | CM109: 0 | CN109: 1.287905594e-10 | CO109: 2042.1256 | CP109: 423.59304 | CQ109: 30 | CR109: 2411.347979 | CS109: 1084.401207 | CT109: 793.5240852 | CU109: 0 | CV109: 0 | CW109: 0 | CX109: 10.07078698 | CY109: -1.189725431 | CZ109: 137.7582272 | DA109: 0 | DB109: -14.43196034 | DC109: 400.3669346 | DD109: 3.407256283 | DE109: 0.03014046273 | DF109: 0.6168798347 | DG109: 2.131852107 | DH109: 0 | DI109: -6.946607961 | DJ109: 0.3996648608 | DK109: 0 | DL109: 0 | DM109: 2.528350301 | DN109: -0.0388395195 | DO109: -1.268410493 | DP109: -0.0118618165 | DQ109: 0 | DR109: 0 | DS109: 0 | DU109: 9875.131858 | DV109: 0 | DW109: 5.810657303 | DX109: -0.1113590795 | DY109: 1989.68328 | DZ109: 415.47168 | EA109: 52.44232 | EB109: 8.12136 | EC109: 0 | ED109: 11.52160918 | EE109: 0.01775233605 | EF109: 0.0008673709092 | EG109: 0.09805274083 | EH109: 0.06134963875 | EI109: 11.66078549 | EJ109: 15.20304657 | EK109: 0 | EL109: 0 | EM109: 0 | EN109: 0.08948279773 | EO109: 0 | EP109: 165 | EQ109: 0 | ER109: 0 | ES109: 0 | EU109: 0 | EZ109: 0 | FA109: 0 | FB109: 0 | FC109: 0
A110: 2968 | B110: Regular | C110: Azul | D110: A2 | E110: Industrial | F110: Não se aplica | G110: Não se aplica | H110: Não se aplica | I110: Ponta | J110: LIVRE | K110: 2020-11-01 | L110: 39093 | M110: 39093 | N110: 0 | O110: 0 | P110: 0 | Q110: 0 | R110: 17.04 | U110: 666144.72 | W110: 666144.72 | X110: 681781.92 | Y110: 0 | Z110: 0 | AA110: 0 | AB110: 0 | AC110: 7347.151189 | AD110: 81877.04996 | AE110: 75459.05585 | AI110: 0 | AJ110: 0 | AK110: 0 | AL110: 0 | AM110: 0 | AN110: 0 | AO110: 284010.2149 | AP110: 217500.6786 | AQ110: 0 | AR110: 0 | AU110: 0 | AV110: 0 | AW110: 0 | AZ110: 0 | BB110: 0 | BC110: 205.2751734 | BD110: 0 | BE110: 0 | BG110: 0 | BH110: 0 | BI110: 0 | BJ110: 0 | BK110: 0 | BL110: 0 | BV110: 0 | CI110: 681781.92 | CJ110: 15637.17 | CO110: 15637.2 | CP110: 0 | CQ110: 30 | CR110: 15292.20625 | CS110: 8286.25809 | CT110: 6063.57253 | CU110: 0 | CV110: 0 | CZ110: 1052.654882 | DA110: 0 | DB110: -110.2792466 | DE110: 0 | DF110: 0 | DG110: 0 | DH110: 0 | DI110: 0 | DK110: 0 | DL110: 0 | DN110: 0 | DO110: 0 | DP110: 0 | DQ110: 0 | DR110: 0 | DS110: 0 | DU110: 75459.05585 | DW110: 0 | DX110: 0 | DY110: 15246.27 | EA110: 390.93 | EC110: 0 | EE110: 0 | EF110: 0 | EH110: 0 | EI110: 89.10380909 | EJ110: 116.1713643 | EK110: 0 | EL110: 0 | EO110: 0 | EP110: 165 | EU110: 0 | EZ110: 0 | FA110: 0 | FB110: 0 | FC110: 0
A111: 3064 | B111: Regular | C111: Azul | D111: A2 | E111: Industrial | F111: Não se aplica | G111: Fonte incentivada | H111: Não se aplica | I111: Ponta | J111: LIVRE | K111: 2020-11-01 | L111: 9029 | M111: 49.21662755 | N111: 0 | O111: 0 | P111: 0 | Q111: 0 | R111: 17.04 | U111: 153854.16 | W111: 153854.16 | X111: 157465.76 | Y111: 0 | Z111: 0 | AA111: 0 | AB111: 0 | AC111: 1696.913209 | AD111: 18910.49252 | AE111: 17428.17935 | AI111: 0 | AJ111: 0 | AK111: 0 | AL111: 0 | AM111: 0 | AN111: 0 | AO111: 65595.58566 | AP111: 50234.40583 | AQ111: 0 | AR111: 0 | AU111: 0 | AV111: 0 | AW111: 0 | AZ111: 0 | BB111: 0 | BC111: 47.4107779 | BD111: 0 | BE111: 0 | BG111: 0 | BH111: 0 | BI111: 0 | BJ111: 0 | BK111: 0 | BL111: 0 | BN111: 156607.422 | BV111: 0 | CI111: 858.3968 | CJ111: 19.71546655 | CO111: 3611.6 | CP111: 0 | CQ111: 30 | CR111: 3531.919532 | CS111: 1913.811278 | CT111: 1400.455232 | CU111: 0 | CV111: 0 | CZ111: 243.1233451 | DA111: 0 | DB111: -25.47032249 | DE111: 0 | DF111: 0 | DG111: 0 | DH111: 0 | DI111: 0 | DK111: 0 | DL111: 0 | DN111: 0 | DO111: 0 | DP111: 0 | DQ111: 0 | DR111: 0 | DS111: 0 | DU111: 17428.17935 | DW111: 0 | DX111: 0 | DY111: 3521.31 | EA111: 90.29 | EC111: 0 | EE111: 0 | EF111: 0 | EH111: 0 | EI111: 20.57959973 | EJ111: 26.83117817 | EK111: 0 | EL111: 0 | EO111: 0 | EP111: 165 | EU111: 0 | EZ111: 0 | FA111: 0 | FB111: 0 | FC111: 0
A112: 894 | B112: Regular | C112: Azul | D112: A2 | E112: Industrial | F112: Não se aplica | G112: Não se aplica | H112: Não se aplica | I112: Ponta | J112: CATIVO | K112: 2020-12-01 | L112: 4645 | M112: 4645 | N112: 39.779 | O112: 39.779 | P112: 39.779 | Q112: 39.779 | R112: 17.04 | S112: 52.66 | T112: 372.99 | U112: 79150.8 | V112: 16931.93135 | W112: 96082.73135 | X112: 98330.96334 | Y112: 0 | Z112: 1688.521118 | AA112: 0 | AB112: 0 | AC112: 872.9828172 | AD112: 9728.567699 | AE112: 8965.986607 | AF112: 13713.63575 | AG112: 438.431875 | AH112: 268.7856166 | AI112: 0 | AJ112: 0 | AK112: 99.45463915 | AL112: 301.5960196 | AM112: 0 | AN112: 0.838470701 | AO112: 33745.8739 | AP112: 25843.26227 | AQ112: 0 | AR112: 0 | AS112: 0 | AT112: 203.2743591 | AU112: 0 | AV112: 1.457162312 | AW112: -0.2442577053 | AX112: 0.1701190837 | AY112: -3.269119873 | AZ112: 0 | BA112: -0.4329520214 | BB112: 10.88806925 | BC112: 24.4739129 | BD112: 21.12978026 | BE112: 1.032391268 | BF112: 116.7076188 | BG112: 73.02162275 | BH112: 5.511227065 | BI112: 0 | BJ112: 0 | BK112: 0 | BL112: 0 | BU112: 1.198568141e-10 | BV112: 13925.52716 | CI112: 98331.3988 | CJ112: 2248.63745 | CM112: 0 | CN112: 1.198568141e-10 | CO112: 1854.0221 | CP112: 394.20989 | CR112: 2198.657593 | CS112: 984.5667723 | CT112: 720.4689944 | CU112: 0 | CV112: 0 | CW112: 0 | CX112: 9.37221213 | CY112: -1.107198389 | CZ112: 125.0756383 | DA112: 0 | DB112: -13.10329471 | DC112: 372.5948974 | DD112: 3.170906974 | DE112: 0.0280497255 | DF112: 0.5740890638 | DG112: 1.983973071 | DH112: 0 | DI112: -6.464746352 | DJ112: 0.3719415239 | DK112: 0 | DL112: 0 | DM112: 2.352967589 | DN112: -0.0361453595 | DO112: -1.180425347 | DP112: -0.01103900428 | DQ112: 0 | DR112: 0 | DS112: 0 | DU112: 8965.986607 | DV112: 0 | DW112: 5.407592571 | DX112: -0.1036344943 | DY112: 1806.37873 | DZ112: 386.65188 | EA112: 47.64337 | EB112: 7.55801 | EC112: 0 | ED112: 10.72239593 | EE112: 0.01652091933 | EF112: 0.000807204459 | EG112: 0.09125116923 | EH112: 0.05709403143 | EI112: 10.58724563 | EJ112: 13.80339158 | EK112: 0 | EL112: 0 | EM112: 0 | EN112: 0.08327569275 | EO112: 0 | EP112: 165 | EQ112: 0 | ER112: 0 | ES112: 0 | EU112: 0 | EZ112: 0 | FA112: 0 | FB112: 0 | FC112: 0
A113: 895 | B113: Refaturamento - Regular | C113: Azul | D113: A2 | E113: Industrial | F113: Não se aplica | G113: Não se aplica | H113: Não se aplica | I113: Ponta | J113: CATIVO | K113: 2020-12-01 | L113: 1394 | M113: 1394 | N113: -6.18 | O113: -6.18 | P113: -6.18 | Q113: -6.18 | R113: 17.04 | S113: 52.66 | T113: 372.99 | U113: 23753.76 | V113: -2630.517 | W113: 21123.243 | X113: 21620.2172 | Y113: 0 | Z113: -262.3258632 | AA113: 0 | AB113: 0 | AC113: 261.9888153 | AD113: 2919.617518 | AE113: 2690.761104 | AF113: -2130.52789 | AG113: -68.11405484 | AH113: -41.75809122 | AI113: 0 | AJ113: 0 | AK113: -15.45110913 | AL113: -46.85546145 | AM113: 0 | AN113: -0.1302634287 | AO113: 10127.39466 | AP113: 7755.760519 | AQ113: 0 | AR113: 0 | AS113: 0 | AT113: -31.58037002 | AU113: 0 | AV113: -0.2263823396 | AW113: 0.03794747527 | AX113: -0.02642942098 | AY113: 0.5078850854 | AZ113: 0 | BA113: 0.06726271379 | BB113: -1.691552528 | BC113: 7.30687906 | BD113: -3.282687902 | BE113: -0.160390609 | BF113: -18.13150366 | BG113: -11.34451918 | BH113: -0.8562151704 | BI113: 0 | BJ113: 0 | BK113: 0 | BL113: 0 | BU113: -1.862075747e-11 | BV113: -2163.446991 | CI113: 21620.2172 | CJ113: 496.9442 | CM113: 0 | CN113: -1.862075747e-11 | CO113: 558.218 | CP113: -61.2438 | CR113: 486.0055848 | CS113: 295.476013 | CT113: 216.2182515 | CU113: 0 | CV113: 0 | CW113: 0 | CX113: -1.456051458 | CY113: 0.1720125202 | CZ113: 37.53615495 | DA113: 0 | DB113: -3.932398887 | DC113: -57.8857303 | DD113: -0.4926268911 | DE113: -0.00435775921 | DF113: -0.08918953253 | DG113: -0.3082267925 | DH113: 0 | DI113: 1.004352358 | DJ113: -0.05778422328 | DK113: 0 | DL113: 0 | DM113: -0.3655531738 | DN113: 0.005615483589 | DO113: 0.1833889399 | DP113: 0.001715001544 | DQ113: 0 | DR113: 0 | DS113: 0 | DU113: 2690.761104 | DV113: 0 | DW113: -0.8401146859 | DX113: 0.01610048454 | DY113: 544.4634 | DZ113: -60.0696 | EA113: 13.7546 | EB113: -1.1742 | EC113: 0 | ED113: -1.665813792 | EE113: -0.002566662848 | EF113: -0.0001254059568 | EG113: -0.01417663154 | EH113: -0.008870034799 | EI113: 3.177313327 | EJ113: 4.142503308 | EK113: 0 | EL113: 0 | EM113: 0 | EN113: -0.01293757463 | EO113: 0 | EP113: 165 | EQ113: 0 | ER113: 0 | ES113: 0 | EU113: 0 | EZ113: 0 | FA113: 0 | FB113: 0 | FC113: 0
A114: 3181 | B114: Regular | C114: Azul | D114: A2 | E114: Industrial | F114: Não se aplica | G114: Não se aplica | H114: Não se aplica | I114: Ponta | J114: LIVRE | K114: 2020-12-01 | L114: 40267 | M114: 40267 | N114: 0 | O114: 0 | P114: 0 | Q114: 0 | R114: 17.04 | U114: 686149.68 | W114: 686149.68 | X114: 702256.48 | Y114: 0 | Z114: 0 | AA114: 0 | AB114: 0 | AC114: 7567.793132 | AD114: 84335.8957 | AE114: 77725.16312 | AI114: 0 | AJ114: 0 | AK114: 0 | AL114: 0 | AM114: 0 | AN114: 0 | AO114: 292539.312 | AP114: 224032.431 | AQ114: 0 | AR114: 0 | AU114: 0 | AV114: 0 | AW114: 0 | AZ114: 0 | BB114: 0 | BC114: 211.4397822 | BD114: 0 | BE114: 0 | BG114: 0 | BH114: 0 | BI114: 0 | BJ114: 0 | BK114: 0 | BL114: 0 | BV114: 0 | CI114: 702256.48 | CJ114: 16106.77 | CO114: 16106.8 | CP114: 0 | CR114: 15751.44576 | CS114: 8535.102308 | CT114: 6245.667384 | CU114: 0 | CV114: 0 | CZ114: 1084.26711 | DA114: 0 | DB114: -113.5910373 | DE114: 0 | DF114: 0 | DG114: 0 | DH114: 0 | DI114: 0 | DK114: 0 | DL114: 0 | DN114: 0 | DO114: 0 | DP114: 0 | DQ114: 0 | DR114: 0 | DS114: 0 | DU114: 77725.16312 | DW114: 0 | DX114: 0 | DY114: 15704.13 | EA114: 402.67 | EC114: 0 | EE114: 0 | EF114: 0 | EH114: 0 | EI114: 91.77968129 | EJ114: 119.6601009 | EK114: 0 | EL114: 0 | EO114: 0 | EP114: 165 | EU114: 0 | EZ114: 0 | FA114: 0 | FB114: 0 | FC114: 0
A115: 3277 | B115: Regular | C115: Azul | D115: A2 | E115: Industrial | F115: Não se aplica | G115: Fonte incentivada | H115: Não se aplica | I115: Ponta | J115: LIVRE | K115: 2020-12-01 | L115: 13137 | M115: 0.09813339 | N115: 0 | O115: 0 | P115: 0 | Q115: 0 | R115: 17.04 | U115: 223854.48 | W115: 223854.48 | X115: 229109.28 | Y115: 0 | Z115: 0 | AA115: 0 | AB115: 0 | AC115: 2468.972071 | AD115: 27514.35821 | AE115: 25357.62455 | AI115: 0 | AJ115: 0 | AK115: 0 | AL115: 0 | AM115: 0 | AN115: 0 | AO115: 95440.16047 | AP115: 73089.97557 | AQ115: 0 | AR115: 0 | AU115: 0 | AV115: 0 | AW115: 0 | AZ115: 0 | BB115: 0 | BC115: 68.98165791 | BD115: 0 | BE115: 0 | BG115: 0 | BH115: 0 | BI115: 0 | BJ115: 0 | BK115: 0 | BL115: 0 | BN115: 229107.5686 | BV115: 0 | CI115: 1.744 | CJ115: 0.0418070344 | CO115: 5254.8 | CP115: 0 | CR115: 5138.86664 | CS115: 2784.554077 | CT115: 2037.632116 | CU115: 0 | CV115: 0 | CZ115: 353.7392163 | DA115: 0 | DB115: -37.05876914 | DE115: 0 | DF115: 0 | DG115: 0 | DH115: 0 | DI115: 0 | DK115: 0 | DL115: 0 | DN115: 0 | DO115: 0 | DP115: 0 | DQ115: 0 | DR115: 0 | DS115: 0 | DU115: 25357.62455 | DW115: 0 | DX115: 0 | DY115: 5123.43 | EA115: 131.37 | EC115: 0 | EE115: 0 | EF115: 0 | EH115: 0 | EI115: 29.94287315 | EJ115: 39.03878476 | EK115: 0 | EL115: 0 | EO115: 0 | EP115: 165 | EU115: 0 | EZ115: 0 | FA115: 0 | FB115: 0 | FC115: 0
A116: 1067 | B116: Regular | C116: Azul | D116: A2 | E116: Industrial | F116: Não se aplica | G116: Não se aplica | H116: Não se aplica | I116: Ponta | J116: CATIVO | K116: 2021-01-01 | L116: 3600 | M116: 3600 | N116: 1.58 | O116: 1.58 | P116: 1.58 | Q116: 1.58 | R116: 17.04 | S116: 52.66 | T116: 372.99 | U116: 61344 | V116: 672.527 | W116: 62016.527 | X116: 63472.0268 | Y116: 0 | Z116: 67.06713006 | AA116: 0 | AB116: 0 | AC116: 676.5851758 | AD116: 7539.901769 | AE116: 6948.880901 | AF116: 544.6980689 | AG116: 17.41427292 | AH116: 10.67601685 | AI116: 0 | AJ116: 0 | AK116: 3.950283563 | AL116: 11.97922801 | AM116: 0 | AN116: 0.03330359505 | AO116: 26153.96039 | AP116: 20029.22372 | AQ116: 0 | AR116: 0 | AS116: 0 | AT116: 8.073945734 | AU116: 0 | AV116: 0.05787768552 | AW116: -0.009701781702 | AX116: 0.006757036431 | AY116: -0.1298476432 | AZ116: 0 | BA116: -0.01719661615 | BB116: 0.4324681219 | BC116: 18.90670787 | BD116: 0.8392632499 | BE116: 0.04100601329 | BF116: 4.635562424 | BG116: 2.900378691 | BH116: 0.2189029076 | BI116: 0 | BJ116: 0 | BK116: 0 | BL116: 0 | BU116: 4.760646731e-12 | BV116: 553.1142793 | CI116: 63472.0268 | CJ116: 1455.4698 | CM116: 0 | CN116: 4.760646731e-12 | CO116: 1439.842 | CP116: 15.6578 | CQ116: 31 | CR116: 1423.38909 | CS116: 763.0657438 | CT116: 558.382859 | CU116: 0 | CV116: 0 | CW116: 0 | CX116: 0.3722591107 | CY116: -0.04397731099 | CZ116: 96.93698552 | DA116: 0 | DB116: -10.15540602 | DC116: 14.79926438 | DD116: 0.1259466809 | DE116: 0.001114119668 | DF116: 0.02280250184 | DG116: 0.07880231912 | DH116: 0 | DI116: -0.2567761692 | DJ116: 0.01477331275 | DK116: 0 | DL116: 0 | DM116: 0.09345857842 | DN116: -0.001435673798 | DO116: -0.04688584549 | DP116: -0.0004384631779 | DQ116: 0 | DR116: 0 | DS116: 0 | DU116: 6948.880901 | DV116: 0 | DW116: 0.2147866025 | DX116: -0.00411630511 | DY116: 1403.7946 | DZ116: 15.3576 | EA116: 36.0474 | EB116: 0.3002 | EC116: 0 | ED116: 0.4258876686 | EE116: 0.0006562018286 | EF116: 3.206171712e-05 | EG116: 0.00362444625 | EH116: 0.002267743525 | EI116: 8.20540027 | EJ116: 10.69799993 | EK116: 0 | EL116: 0 | EM116: 0 | EN116: 0.003307664711 | EO116: 0 | EP116: 165 | EQ116: 0 | ER116: 0 | ES116: 0 | EU116: 0 | EZ116: 0 | FA116: 0 | FB116: 0 | FC116: 0
A117: 1068 | B117: Refaturamento - Regular | C117: Azul | D117: A2 | E117: Industrial | F117: Não se aplica | G117: Não se aplica | H117: Não se aplica | I117: Ponta | J117: CATIVO | K117: 2021-01-01 | L117: 1054 | M117: 1054 | N117: 5.331 | O117: 5.331 | P117: 5.331 | Q117: 5.331 | R117: 17.04 | S117: 52.66 | T117: 372.99 | U117: 17960.16 | V117: 2269.14015 | W117: 20229.30015 | X117: 20703.19726 | Y117: 0 | Z117: 226.2878926 | AA117: 0 | AB117: 0 | AC117: 198.0891043 | AD117: 2207.515685 | AE117: 2034.477908 | AF117: 1837.838864 | AG117: 58.75663857 | AH117: 36.02142141 | AI117: 0 | AJ117: 0 | AK117: 13.32845676 | AL117: 40.41852184 | AM117: 0 | AN117: 0.112368016 | AO117: 7657.298404 | AP117: 5864.111612 | AQ117: 0 | AR117: 0 | AS117: 0 | AT117: 27.24190171 | AU117: 0 | AV117: 0.1952822415 | AW117: -0.03273430269 | AX117: 0.02279858305 | AY117: -0.4381125227 | AZ117: 0 | BA117: -0.0580222536 | BB117: 1.459169341 | BC117: 5.545655732 | BD117: 2.8317167 | BE117: 0.1383563651 | BF117: 15.64062233 | BG117: 9.786024558 | BH117: 0.7385894941 | BI117: 0 | BJ117: 0 | BK117: 0 | BL117: 0 | BU117: 1.606266312e-11 | BV117: 1866.235584 | CI117: 20702.7618 | CJ117: 473.43165 | CM117: 0 | CN117: 1.606266312e-11 | CO117: 421.0669 | CP117: 52.83021 | CQ117: 31 | CR117: 463.445425 | CS117: 223.4086928 | CT117: 163.4820926 | CU117: 0 | CV117: 0 | CW117: 0 | CX117: 1.256021088 | CY117: -0.148381674 | CZ117: 28.3809952 | DA117: 0 | DB117: -2.973277208 | DC117: 49.93346735 | DD117: 0.4249504784 | DE117: 0.003759096173 | DF117: 0.07693679578 | DG117: 0.2658830147 | DH117: 0 | DI117: -0.8663757964 | DJ117: 0.04984590523 | DK117: 0 | DL117: 0 | DM117: 0.3153339757 | DN117: -0.004844036086 | DO117: -0.1581952166 | DP117: -0.001479396963 | DQ117: 0 | DR117: 0 | DS117: 0 | DU117: 2034.477908 | DV117: 0 | DW117: 0.7247008722 | DX117: -0.01388862186 | DY117: 410.36697 | DZ117: 51.81732 | EA117: 10.69993 | EB117: 1.01289 | EC117: 0 | ED117: 1.436966558 | EE117: 0.002214058195 | EF117: 0.0001081778569 | EG117: 0.01222906516 | EH117: 0.007651481475 | EI117: 2.402358857 | EJ117: 3.132136647 | EK117: 0 | EL117: 0 | EM117: 0 | EN117: 0.01116022821 | EO117: 0 | EP117: 165 | EQ117: 0 | ER117: 0 | ES117: 0 | EU117: 0 | EZ117: 0 | FA117: 0 | FB117: 0 | FC117: 0
A118: 4681 | B118: Regular | C118: Azul | D118: A2 | E118: Industrial | F118: Não se aplica | G118: Não se aplica | H118: Não se aplica | I118: Ponta | J118: LIVRE | K118: 2021-01-01 | L118: 40267 | M118: 40267 | N118: 0 | O118: 0 | P118: 0 | Q118: 0 | R118: 17.04 | U118: 686149.68 | W118: 686149.68 | X118: 702256.48 | Y118: 0 | Z118: 0 | AA118: 0 | AB118: 0 | AC118: 7567.793132 | AD118: 84335.8957 | AE118: 77725.16312 | AI118: 0 | AJ118: 0 | AK118: 0 | AL118: 0 | AM118: 0 | AN118: 0 | AO118: 292539.312 | AP118: 224032.431 | AQ118: 0 | AR118: 0 | AU118: 0 | AV118: 0 | AW118: 0 | AZ118: 0 | BB118: 0 | BC118: 211.4397822 | BD118: 0 | BE118: 0 | BG118: 0 | BH118: 0 | BI118: 0 | BJ118: 0 | BK118: 0 | BL118: 0 | BV118: 0 | CI118: 702256.48 | CJ118: 16106.77 | CO118: 16106.8 | CP118: 0 | CQ118: 31 | CR118: 15751.44576 | CS118: 8535.102308 | CT118: 6245.667384 | CU118: 0 | CV118: 0 | CZ118: 1084.26711 | DA118: 0 | DB118: -113.5910373 | DE118: 0 | DF118: 0 | DG118: 0 | DH118: 0 | DI118: 0 | DK118: 0 | DL118: 0 | DN118: 0 | DO118: 0 | DP118: 0 | DQ118: 0 | DR118: 0 | DS118: 0 | DU118: 77725.16312 | DW118: 0 | DX118: 0 | DY118: 15704.13 | EA118: 402.67 | EC118: 0 | EE118: 0 | EF118: 0 | EH118: 0 | EI118: 91.77968129 | EJ118: 119.6601009 | EK118: 0 | EL118: 0 | EO118: 0 | EP118: 165 | EU118: 0 | EZ118: 0 | FA118: 0 | FB118: 0 | FC118: 0
A119: 4686 | B119: Regular | C119: Azul | D119: A2 | E119: Industrial | F119: Não se aplica | G119: Fonte incentivada | H119: Não se aplica | I119: Ponta | J119: LIVRE | K119: 2021-01-01 | L119: 13137 | M119: 0.09813339 | N119: 0 | O119: 0 | P119: 0 | Q119: 0 | R119: 17.04 | U119: 223854.48 | W119: 223854.48 | X119: 229109.28 | Y119: 0 | Z119: 0 | AA119: 0 | AB119: 0 | AC119: 2468.972071 | AD119: 27514.35821 | AE119: 25357.62455 | AI119: 0 | AJ119: 0 | AK119: 0 | AL119: 0 | AM119: 0 | AN119: 0 | AO119: 95440.16047 | AP119: 73089.97557 | AQ119: 0 | AR119: 0 | AU119: 0 | AV119: 0 | AW119: 0 | AZ119: 0 | BB119: 0 | BC119: 68.98165791 | BD119: 0 | BE119: 0 | BG119: 0 | BH119: 0 | BI119: 0 | BJ119: 0 | BK119: 0 | BL119: 0 | BN119: 229107.5686 | BV119: 0 | CI119: 1.744 | CJ119: 0.0418070344 | CO119: 5254.8 | CP119: 0 | CQ119: 31 | CR119: 5138.86664 | CS119: 2784.554077 | CT119: 2037.632116 | CU119: 0 | CV119: 0 | CZ119: 353.7392163 | DA119: 0 | DB119: -37.05876914 | DE119: 0 | DF119: 0 | DG119: 0 | DH119: 0 | DI119: 0 | DK119: 0 | DL119: 0 | DN119: 0 | DO119: 0 | DP119: 0 | DQ119: 0 | DR119: 0 | DS119: 0 | DU119: 25357.62455 | DW119: 0 | DX119: 0 | DY119: 5123.43 | EA119: 131.37 | EC119: 0 | EE119: 0 | EF119: 0 | EH119: 0 | EI119: 29.94287315 | EJ119: 39.03878476 | EK119: 0 | EL119: 0 | EO119: 0 | EP119: 165 | EU119: 0 | EZ119: 0 | FA119: 0 | FB119: 0 | FC119: 0
A120: 1245 | B120: Regular | C120: Azul | D120: A2 | E120: Industrial | F120: Não se aplica | G120: Não se aplica | H120: Não se aplica | I120: Ponta | J120: CATIVO | K120: 2021-02-01 | L120: 6913 | M120: 6913 | N120: 47.654 | O120: 47.654 | P120: 47.654 | Q120: 47.654 | R120: 17.04 | S120: 52.66 | T120: 372.99 | U120: 117797.52 | V120: 20283.9251 | W120: 138081.4451 | X120: 141314.1308 | Y120: 0 | Z120: 2022.79558 | AA120: 0 | AB120: 0 | AC120: 1299.231478 | AD120: 14478.70581 | AE120: 13343.78157 | AF120: 16428.50745 | AG120: 525.2276973 | AH120: 321.9967765 | AI120: 0 | AJ120: 0 | AK120: 119.1435525 | AL120: 361.3026149 | AM120: 0 | AN120: 1.004461721 | AO120: 50222.86894 | AP120: 38461.67322 | AQ120: 0 | AR120: 0 | AS120: 0 | AT120: 243.5163354 | AU120: 0 | AV120: 1.745634953 | AW120: -0.2926131046 | AX120: 0.2037973507 | AY120: -3.916303538 | AZ120: 0 | BA120: -0.5186630037 | BB120: 13.04356701 | BC120: 36.39954101 | BD120: 25.31281703 | BE120: 1.236772505 | BF120: 139.8120834 | BG120: 87.47762414 | BH120: 6.60227795 | BI120: 0 | BJ120: 0 | BK120: 0 | BL120: 0 | BU120: 1.435847211e-10 | BV120: 16682.34675 | CI120: 141312.389 | CJ120: 3230.9139 | CM120: 0 | CN120: 1.435847211e-10 | CO120: 2760.4346 | CP120: 472.25114 | CQ120: 29 | CR120: 3161.39729 | CS120: 1465.298191 | CT120: 1072.250196 | CU120: 0 | CV120: 0 | CW120: 0 | CX120: 11.22761751 | CY120: -1.3263891 | CZ120: 186.1459391 | DA120: 0 | DB120: -19.50120051 | DC120: 446.3570537 | DD120: 3.798647551 | DE120: 0.03360269537 | DF120: 0.687740774 | DG120: 2.376737795 | DH120: 0 | DI120: -7.744564284 | DJ120: 0.4455743327 | DK120: 0 | DL120: 0 | DM120: 2.818781706 | DN120: -0.04330101213 | DO120: -1.414112709 | DP120: -0.01322438246 | DQ120: 0 | DR120: 0 | DS120: 0 | DU120: 13343.78157 | DV120: 0 | DW120: 6.478127062 | DX120: -0.1241508884 | DY120: 2689.87498 | DZ120: 463.19688 | EA120: 70.55962 | EB120: 9.05426 | EC120: 0 | ED120: 12.84509554 | EE120: 0.01979154553 | EF120: 0.000967005739 | EG120: 0.1093160516 | EH120: 0.06839686704 | EI120: 15.7566478 | EJ120: 20.54313154 | EK120: 0 | EL120: 0 | EM120: 0 | EN120: 0.09976167984 | EO120: 0 | EP120: 165 | EQ120: 0 | ER120: 0 | ES120: 0 | EU120: 0 | EZ120: 0 | FA120: 0 | FB120: 0 | FC120: 0
A121: 3607 | B121: Regular | C121: Azul | D121: A2 | E121: Industrial | F121: Não se aplica | G121: Não se aplica | H121: Não se aplica | I121: Ponta | J121: LIVRE | K121: 2021-02-01 | L121: 39329 | M121: 39329 | N121: 0 | O121: 0 | P121: 0 | Q121: 0 | R121: 17.04 | U121: 670166.16 | W121: 670166.16 | X121: 685897.76 | Y121: 0 | Z121: 0 | AA121: 0 | AB121: 0 | AC121: 7391.505106 | AD121: 82371.33241 | AE121: 75914.5936 | AI121: 0 | AJ121: 0 | AK121: 0 | AL121: 0 | AM121: 0 | AN121: 0 | AO121: 285724.7523 | AP121: 218813.7055 | AQ121: 0 | AR121: 0 | AU121: 0 | AV121: 0 | AW121: 0 | AZ121: 0 | BB121: 0 | BC121: 206.5143963 | BD121: 0 | BE121: 0 | BG121: 0 | BH121: 0 | BI121: 0 | BJ121: 0 | BK121: 0 | BL121: 0 | BV121: 0 | CI121: 685897.76 | CJ121: 15731.57 | CO121: 15731.6 | CP121: 0 | CQ121: 29 | CR121: 15384.52357 | CS121: 8336.281289 | CT121: 6100.177628 | CU121: 0 | CV121: 0 | CZ121: 1059.00964 | DA121: 0 | DB121: -110.9449898 | DE121: 0 | DF121: 0 | DG121: 0 | DH121: 0 | DI121: 0 | DK121: 0 | DL121: 0 | DN121: 0 | DO121: 0 | DP121: 0 | DQ121: 0 | DR121: 0 | DS121: 0 | DU121: 75914.5936 | DW121: 0 | DX121: 0 | DY121: 15338.31 | EA121: 393.29 | EC121: 0 | EE121: 0 | EF121: 0 | EH121: 0 | EI121: 89.64171867 | EJ121: 116.8726776 | EK121: 0 | EL121: 0 | EO121: 0 | EP121: 165 | EU121: 0 | EZ121: 0 | FA121: 0 | FB121: 0 | FC121: 0
A122: 3703 | B122: Regular | C122: Azul | D122: A2 | E122: Industrial | F122: Não se aplica | G122: Fonte incentivada | H122: Não se aplica | I122: Ponta | J122: LIVRE | K122: 2021-02-01 | L122: 18021 | M122: 0.02018352 | N122: 0 | O122: 0 | P122: 0 | Q122: 0 | R122: 17.04 | U122: 307077.84 | W122: 307077.84 | X122: 314286.24 | Y122: 0 | Z122: 0 | AA122: 0 | AB122: 0 | AC122: 3386.872626 | AD122: 37743.49161 | AE122: 34784.93964 | AI122: 0 | AJ122: 0 | AK122: 0 | AL122: 0 | AM122: 0 | AN122: 0 | AO122: 130922.3667 | AP122: 100262.9557 | AQ122: 0 | AR122: 0 | AU122: 0 | AV122: 0 | AW122: 0 | AZ122: 0 | BB122: 0 | BC122: 94.62727085 | BD122: 0 | BE122: 0 | BG122: 0 | BH122: 0 | BI122: 0 | BJ122: 0 | BK122: 0 | BL122: 0 | BN122: 314285.888 | BV122: 0 | CI122: 0.3488 | CJ122: -0.02512718079 | CO122: 7208.4 | CP122: 0 | CQ122: 29 | CR122: 7049.365588 | CS122: 3819.779936 | CT122: 2795.171528 | CU122: 0 | CV122: 0 | CZ122: 485.2503933 | DA122: 0 | DB122: -50.83626998 | DE122: 0 | DF122: 0 | DG122: 0 | DH122: 0 | DI122: 0 | DK122: 0 | DL122: 0 | DN122: 0 | DO122: 0 | DP122: 0 | DQ122: 0 | DR122: 0 | DS122: 0 | DU122: 34784.93964 | DW122: 0 | DX122: 0 | DY122: 7028.19 | EA122: 180.21 | EC122: 0 | EE122: 0 | EF122: 0 | EH122: 0 | EI122: 41.07486618 | EJ122: 53.55240467 | EK122: 0 | EL122: 0 | EO122: 0 | EP122: 165 | EU122: 0 | EZ122: 0 | FA122: 0 | FB122: 0 | FC122: 0
A123: 1429 | B123: Regular | C123: Azul | D123: A2 | E123: Industrial | F123: Não se aplica | G123: Não se aplica | H123: Não se aplica | I123: Ponta | J123: CATIVO | K123: 2021-03-01 | L123: 3324 | M123: 3324 | N123: 45.118 | O123: 45.118 | P123: 45.118 | Q123: 45.118 | R123: 17.04 | S123: 52.66 | T123: 372.99 | U123: 56640.96 | V123: 19204.4767 | W123: 75845.4367 | X123: 77617.64428 | Y123: 0 | Z123: 1915.148591 | AA123: 0 | AB123: 0 | AC123: 624.7136457 | AD123: 6961.842633 | AE123: 6416.133365 | AF123: 15554.23258 | AG123: 497.2766871 | AH123: 304.8610938 | AI123: 0 | AJ123: 0 | AK123: 112.8030973 | AL123: 342.0751957 | AM123: 0 | AN123: 0.9510073427 | AO123: 24148.82343 | AP123: 18493.6499 | AQ123: 0 | AR123: 0 | AS123: 0 | AT123: 230.5571415 | AU123: 0 | AV123: 1.652737605 | AW123: -0.2770411309 | AX123: 0.1929518796 | AY123: -3.707889852 | AZ123: 0 | BA123: -0.4910613464 | BB123: 12.34942831 | BC123: 17.54859219 | BD123: 23.9657464 | BE123: 1.170955258 | BF123: 132.3717123 | BG123: 82.82233277 | BH123: 6.250924929 | BI123: 0 | BJ123: 0 | BK123: 0 | BL123: 0 | BU123: 1.359435818e-10 | BV123: 15794.56333 | CI123: 77618.5152 | CJ123: 1773.0485 | CM123: 0 | CN123: 1.359435818e-10 | CO123: 1325.0882 | CP123: 447.11938 | CQ123: 31 | CR123: 1733.139027 | CS123: 704.5640368 | CT123: 515.5735065 | CU123: 0 | CV123: 0 | CW123: 0 | CX123: 10.63011807 | CY123: -1.255802733 | CZ123: 89.50514996 | DA123: 0 | DB123: -9.376824894 | DC123: 422.6032977 | DD123: 3.596495157 | DE123: 0.03181446279 | DF123: 0.6511413153 | DG123: 2.250255085 | DH123: 0 | DI123: -7.332422281 | DJ123: 0.4218622307 | DK123: 0 | DL123: 0 | DM123: 2.668774773 | DN123: -0.04099666482 | DO123: -1.33885796 | DP123: -0.0125206213 | DQ123: 0 | DR123: 0 | DS123: 0 | DU123: 6416.133365 | DV123: 0 | DW123: 6.13338097 | DX123: -0.1175439582 | DY123: 1290.49466 | DZ123: 438.54696 | EA123: 34.59354 | EB123: 8.57242 | EC123: 0 | ED123: 12.16151888 | EE123: 0.01873830006 | EF123: 0.0009155446538 | EG123: 0.103498586 | EH123: 0.06475699515 | EI123: 7.576319582 | EJ123: 9.877819939 | EK123: 0 | EL123: 0 | EM123: 0 | EN123: 0.09445266863 | EO123: 0 | EP123: 165 | EQ123: 0 | ER123: 0 | ES123: 0 | EU123: 0 | EZ123: 0 | FA123: 0 | FB123: 0 | FC123: 0
A124: 3820 | B124: Regular | C124: Azul | D124: A2 | E124: Industrial | F124: Não se aplica | G124: Não se aplica | H124: Não se aplica | I124: Ponta | J124: LIVRE | K124: 2021-03-01 | L124: 39570 | M124: 39570 | N124: 0 | O124: 0 | P124: 0 | Q124: 0 | R124: 17.04 | U124: 674272.8 | W124: 674272.8 | X124: 690100.8 | Y124: 0 | Z124: 0 | AA124: 0 | AB124: 0 | AC124: 7436.798724 | AD124: 82876.08694 | AE124: 76379.78257 | AI124: 0 | AJ124: 0 | AK124: 0 | AL124: 0 | AM124: 0 | AN124: 0 | AO124: 287475.6147 | AP124: 220154.5507 | AQ124: 0 | AR124: 0 | AU124: 0 | AV124: 0 | AW124: 0 | AZ124: 0 | BB124: 0 | BC124: 207.7798739 | BD124: 0 | BE124: 0 | BG124: 0 | BH124: 0 | BI124: 0 | BJ124: 0 | BK124: 0 | BL124: 0 | BV124: 0 | CI124: 690100.8 | CJ124: 15827.97 | CO124: 15828 | CP124: 0 | CQ124: 31 | CR124: 15478.79675 | CS124: 8387.364301 | CT124: 6137.558258 | CU124: 0 | CV124: 0 | CZ124: 1065.499032 | DA124: 0 | DB124: -111.6248379 | DE124: 0 | DF124: 0 | DG124: 0 | DH124: 0 | DI124: 0 | DK124: 0 | DL124: 0 | DN124: 0 | DO124: 0 | DP124: 0 | DQ124: 0 | DR124: 0 | DS124: 0 | DU124: 76379.78257 | DW124: 0 | DX124: 0 | DY124: 15432.3 | EA124: 395.7 | EC124: 0 | EE124: 0 | EF124: 0 | EH124: 0 | EI124: 90.19102463 | EJ124: 117.5888493 | EK124: 0 | EL124: 0 | EO124: 0 | EP124: 165 | EU124: 0 | EZ124: 0 | FA124: 0 | FB124: 0 | FC124: 0
A125: 3916 | B125: Regular | C125: Azul | D125: A2 | E125: Industrial | F125: Não se aplica | G125: Fonte incentivada | H125: Não se aplica | I125: Ponta | J125: LIVRE | K125: 2021-03-01 | L125: 23491 | M125: 21504.76618 | N125: 0 | O125: 0 | P125: 0 | Q125: 0 | R125: 17.04 | U125: 400286.64 | W125: 400286.64 | X125: 409683.04 | Y125: 0 | Z125: 0 | AA125: 0 | AB125: 0 | AC125: 4414.906213 | AD125: 49199.95346 | AE125: 45343.37812 | AI125: 0 | AJ125: 0 | AK125: 0 | AL125: 0 | AM125: 0 | AN125: 0 | AO125: 170661.8566 | AP125: 130696.2485 | AQ125: 0 | AR125: 0 | AU125: 0 | AV125: 0 | AW125: 0 | AZ125: 0 | BB125: 0 | BC125: 123.3499373 | BD125: 0 | BE125: 0 | BG125: 0 | BH125: 0 | BI125: 0 | BJ125: 0 | BK125: 0 | BL125: 0 | BN125: 34639.91779 | BV125: 0 | CI125: 375043.1888 | CJ125: 8601.943063 | CO125: 9396.4 | CP125: 0 | CQ125: 31 | CR125: 9189.093115 | CS125: 4979.215941 | CT125: 3643.603261 | CU125: 0 | CV125: 0 | CZ125: 632.5407574 | DA125: 0 | DB125: -66.26684524 | DE125: 0 | DF125: 0 | DG125: 0 | DH125: 0 | DI125: 0 | DK125: 0 | DL125: 0 | DN125: 0 | DO125: 0 | DP125: 0 | DQ125: 0 | DR125: 0 | DS125: 0 | DU125: 45343.37812 | DW125: 0 | DX125: 0 | DY125: 9161.49 | EA125: 234.91 | EC125: 0 | EE125: 0 | EF125: 0 | EH125: 0 | EI125: 53.54251604 | EJ125: 69.80742123 | EK125: 0 | EL125: 0 | EO125: 0 | EP125: 165 | EU125: 0 | EZ125: 0 | FA125: 0 | FB125: 0 | FC125: 0
A126: 1613 | B126: Regular | C126: Azul | D126: A2 | E126: Industrial | F126: Não se aplica | G126: Não se aplica | H126: Não se aplica | I126: Ponta | J126: CATIVO | K126: 2021-04-01 | L126: 4247 | M126: 4247 | N126: 61.988 | O126: 61.988 | P126: 61.988 | Q126: 61.988 | R126: 17.04 | S126: 52.66 | T126: 372.99 | U126: 72368.88 | V126: 26385.1922 | W126: 98754.0722 | X126: 101060.9745 | Y126: 0 | Z126: 2631.238771 | AA126: 0 | AB126: 0 | AC126: 798.1825672 | AD126: 8894.98967 | AE126: 8197.749218 | AF126: 21370.09107 | AG126: 683.2126265 | AH126: 418.8512231 | AI126: 0 | AJ126: 0 | AK126: 154.981125 | AL126: 469.979991 | AM126: 0 | AN126: 1.306596994 | AO126: 30854.40827 | AP126: 23628.92032 | AQ126: 0 | AR126: 0 | AS126: 0 | AT126: 316.7643976 | AU126: 0 | AV126: 2.270710108 | AW126: -0.3806291419 | AX126: 0.2650982116 | AY126: -5.09430108 | AZ126: 0 | BA126: -0.6746733176 | BB126: 16.96698351 | BC126: 22.43053061 | BD126: 32.92674072 | BE126: 1.608785286 | BF126: 181.8666098 | BG126: 113.7903002 | BH126: 8.588198379 | BI126: 0 | BJ126: 0 | BK126: 0 | BL126: 0 | BU126: 1.867740314e-10 | BV126: 21700.28351 | CI126: 101061.8454 | CJ126: 2307.7432 | CM126: 0 | CN126: 1.867740314e-10 | CO126: 1692.6012 | CP126: 614.30108 | CQ126: 30 | CR126: 2256.048517 | CS126: 900.205615 | CT126: 658.7366673 | CU126: 0 | CV126: 0 | CW126: 0 | CX126: 14.60480871 | CY126: -1.725357945 | CZ126: 114.358716 | DA126: 0 | DB126: -11.98055816 | DC126: 580.6182282 | DD126: 4.941254971 | DE126: 0.04371015823 | DF126: 0.8946085344 | DG126: 3.091644404 | DH126: 0 | DI126: -10.0740767 | DJ126: 0.57960007 | DK126: 0 | DL126: 0 | DM126: 3.666652126 | DN126: -0.0563256629 | DO126: -1.839468222 | DP126: -0.01720218701 | DQ126: 0 | DR126: 0 | DS126: 0 | DU126: 8197.749218 | DV126: 0 | DW126: 8.426703746 | DX126: -0.1614946336 | DY126: 1648.27156 | DZ126: 602.52336 | EA126: 44.32964 | EB126: 11.77772 | EC126: 0 | ED126: 16.70881317 | EE126: 0.0257447082 | EF126: 0.001257874507 | EG126: 0.1421975786 | EH126: 0.08897018076 | EI126: 9.68009304 | EJ126: 12.62066825 | EK126: 0 | EL126: 0 | EM126: 0 | EN126: 0.1297693165 | EO126: 0 | EP126: 165 | EQ126: 0 | ER126: 0 | ES126: 0 | EU126: 0 | EZ126: 0 | FA126: 0 | FB126: 0 | FC126: 0
A127: 4033 | B127: Regular | C127: Azul | D127: A2 | E127: Industrial | F127: Não se aplica | G127: Não se aplica | H127: Não se aplica | I127: Ponta | J127: LIVRE | K127: 2021-04-01 | L127: 39695 | M127: 39695 | N127: 0 | O127: 0 | P127: 0 | Q127: 0 | R127: 17.04 | U127: 676402.8 | W127: 676402.8 | X127: 692280.8 | Y127: 0 | Z127: 0 | AA127: 0 | AB127: 0 | AC127: 7460.291265 | AD127: 83137.88909 | AE127: 76621.06315 | AI127: 0 | AJ127: 0 | AK127: 0 | AL127: 0 | AM127: 0 | AN127: 0 | AO127: 288383.7383 | AP127: 220850.0099 | AQ127: 0 | AR127: 0 | AU127: 0 | AV127: 0 | AW127: 0 | AZ127: 0 | BB127: 0 | BC127: 208.436242 | BD127: 0 | BE127: 0 | BG127: 0 | BH127: 0 | BI127: 0 | BJ127: 0 | BK127: 0 | BL127: 0 | BV127: 0 | CI127: 692280.8 | CJ127: 15877.97 | CO127: 15878 | CP127: 0 | CQ127: 30 | CR127: 15527.69364 | CS127: 8413.859639 | CT127: 6156.946552 | CU127: 0 | CV127: 0 | CZ127: 1068.8649 | DA127: 0 | DB127: -111.9774561 | DE127: 0 | DF127: 0 | DG127: 0 | DH127: 0 | DI127: 0 | DK127: 0 | DL127: 0 | DN127: 0 | DO127: 0 | DP127: 0 | DQ127: 0 | DR127: 0 | DS127: 0 | DU127: 76621.06315 | DW127: 0 | DX127: 0 | DY127: 15481.05 | EA127: 396.95 | EC127: 0 | EE127: 0 | EF127: 0 | EH127: 0 | EI127: 90.47593436 | EJ127: 117.9603076 | EK127: 0 | EL127: 0 | EO127: 0 | EP127: 165 | EU127: 0 | EZ127: 0 | FA127: 0 | FB127: 0 | FC127: 0
A128: 4132 | B128: Regular | C128: Azul | D128: A2 | E128: Industrial | F128: Não se aplica | G128: Fonte incentivada | H128: Não se aplica | I128: Ponta | J128: LIVRE | K128: 2021-04-01 | L128: 33056 | M128: 23831.02407 | N128: 0 | O128: 0 | P128: 0 | Q128: 0 | R128: 17.04 | U128: 563274.24 | W128: 563274.24 | X128: 576496.64 | Y128: 0 | Z128: 0 | AA128: 0 | AB128: 0 | AC128: 6212.555437 | AD128: 69233.05358 | AE128: 63806.16863 | AI128: 0 | AJ128: 0 | AK128: 0 | AL128: 0 | AM128: 0 | AN128: 0 | AO128: 240151.4763 | AP128: 183912.7832 | AQ128: 0 | AR128: 0 | AU128: 0 | AV128: 0 | AW128: 0 | AZ128: 0 | BB128: 0 | BC128: 173.5752214 | BD128: 0 | BE128: 0 | BG128: 0 | BH128: 0 | BI128: 0 | BJ128: 0 | BK128: 0 | BL128: 0 | BN128: 160883.5803 | BV128: 0 | CI128: 415612.9888 | CJ128: 9532.308722 | CO128: 13222.4 | CP128: 0 | CQ128: 30 | CR128: 12930.68247 | CS128: 7006.63923 | CT128: 5127.195496 | CU128: 0 | CV128: 0 | CZ128: 890.0969426 | DA128: 0 | DB128: -93.24919485 | DE128: 0 | DF128: 0 | DG128: 0 | DH128: 0 | DI128: 0 | DK128: 0 | DL128: 0 | DN128: 0 | DO128: 0 | DP128: 0 | DQ128: 0 | DR128: 0 | DS128: 0 | DU128: 63806.16863 | DW128: 0 | DX128: 0 | DY128: 12891.84 | EA128: 330.56 | EC128: 0 | EE128: 0 | EF128: 0 | EH128: 0 | EI128: 75.3438087 | EJ128: 98.23141272 | EK128: 0 | EL128: 0 | EO128: 0 | EP128: 165 | EU128: 0 | EZ128: 0 | FA128: 0 | FB128: 0 | FC128: 0
A129: 1799 | B129: Regular | C129: Azul | D129: A2 | E129: Industrial | F129: Não se aplica | G129: Não se aplica | H129: Não se aplica | I129: Ponta | J129: CATIVO | K129: 2021-05-01 | L129: 4753 | M129: 4753 | N129: 44.122 | O129: 44.122 | P129: 44.122 | Q129: 44.122 | R129: 17.04 | S129: 52.66 | T129: 372.99 | U129: 80991.12 | V129: 18780.5293 | W129: 99771.6493 | X129: 102105.6861 | Y129: 0 | Z129: 1872.870831 | AA129: 0 | AB129: 0 | AC129: 893.2803724 | AD129: 9954.764752 | AE129: 9174.453034 | AF129: 15210.86595 | AG129: 486.2990822 | AH129: 298.131149 | AI129: 0 | AJ129: 0 | AK129: 110.3129186 | AL129: 334.523733 | AM129: 0 | AN129: 0.9300134309 | AO129: 34530.49271 | AP129: 26444.13899 | AQ129: 0 | AR129: 0 | AS129: 0 | AT129: 225.4674897 | AU129: 0 | AV129: 1.616252684 | AW129: -0.2709253242 | AX129: 0.1886923806 | AY129: -3.626036528 | AZ129: 0 | BA129: -0.4802209479 | BB129: 12.07680916 | BC129: 25.0501068 | BD129: 23.43669184 | BE129: 1.145105898 | BF129: 129.4495476 | BG129: 80.99399278 | BH129: 6.112932969 | BI129: 0 | BJ129: 0 | BK129: 0 | BL129: 0 | BU129: 1.329425665e-10 | BV129: 15445.89129 | CI129: 102104.8152 | CJ129: 2333.1359 | CM129: 0 | CN129: 1.329425665e-10 | CO129: 1896.7878 | CP129: 437.24902 | CQ129: 31 | CR129: 2282.572306 | CS129: 1007.458745 | CT129: 737.2204802 | CU129: 0 | CV129: 0 | CW129: 0 | CX129: 10.39545347 | CY129: -1.228080326 | CZ129: 127.9837478 | DA129: 0 | DB129: -13.4079569 | DC129: 413.2741412 | DD129: 3.51710092 | DE129: 0.03111214431 | DF129: 0.63676708 | DG129: 2.200579699 | DH129: 0 | DI129: -7.170555785 | DJ129: 0.4125494336 | DK129: 0 | DL129: 0 | DM129: 2.609860378 | DN129: -0.04009164513 | DO129: -1.309302073 | DP129: -0.012244223 | DQ129: 0 | DR129: 0 | DS129: 0 | DU129: 9174.453034 | DV129: 0 | DW129: 5.997983846 | DX129: -0.1149491228 | DY129: 1847.93414 | DZ129: 428.86584 | EA129: 48.85366 | EB129: 8.38318 | EC129: 0 | ED129: 11.89304792 | EE129: 0.01832464372 | EF129: 0.0008953335966 | EG129: 0.1012138085 | EH129: 0.06332745557 | EI129: 10.83340763 | EJ129: 14.12433158 | EK129: 0 | EL129: 0 | EM129: 0 | EN129: 0.09236758379 | EO129: 0 | EP129: 165 | EQ129: 0 | ER129: 0 | ES129: 0 | EU129: 0 | EZ129: 0 | FA129: 0 | FB129: 0 | FC129: 0
A130: 4249 | B130: Regular | C130: Azul | D130: A2 | E130: Industrial | F130: Não se aplica | G130: Não se aplica | H130: Não se aplica | I130: Ponta | J130: LIVRE | K130: 2021-05-01 | L130: 39898 | M130: 39898 | N130: 0 | O130: 0 | P130: 0 | Q130: 0 | R130: 17.04 | U130: 679861.92 | W130: 679861.92 | X130: 695821.12 | Y130: 0 | Z130: 0 | AA130: 0 | AB130: 0 | AC130: 7498.443151 | AD130: 83563.05577 | AE130: 77012.90283 | AI130: 0 | AJ130: 0 | AK130: 0 | AL130: 0 | AM130: 0 | AN130: 0 | AO130: 289858.531 | AP130: 221979.4356 | AQ130: 0 | AR130: 0 | AU130: 0 | AV130: 0 | AW130: 0 | AZ130: 0 | BB130: 0 | BC130: 209.5021837 | BD130: 0 | BE130: 0 | BG130: 0 | BH130: 0 | BI130: 0 | BJ130: 0 | BK130: 0 | BL130: 0 | BV130: 0 | CI130: 695821.12 | CJ130: 15959.17 | CO130: 15959.2 | CP130: 0 | CQ130: 31 | CR130: 15607.10217 | CS130: 8456.888069 | CT130: 6188.433141 | CU130: 0 | CV130: 0 | CZ130: 1074.331069 | DA130: 0 | DB130: -112.5501082 | DE130: 0 | DF130: 0 | DG130: 0 | DH130: 0 | DI130: 0 | DK130: 0 | DL130: 0 | DN130: 0 | DO130: 0 | DP130: 0 | DQ130: 0 | DR130: 0 | DS130: 0 | DU130: 77012.90283 | DW130: 0 | DX130: 0 | DY130: 15560.22 | EA130: 398.98 | EC130: 0 | EE130: 0 | EF130: 0 | EH130: 0 | EI130: 90.93862777 | EJ130: 118.5635559 | EK130: 0 | EL130: 0 | EO130: 0 | EP130: 165 | EU130: 0 | EZ130: 0 | FA130: 0 | FB130: 0 | FC130: 0
A131: 4348 | B131: Regular | C131: Azul | D131: A2 | E131: Industrial | F131: Não se aplica | G131: Fonte incentivada | H131: Não se aplica | I131: Ponta | J131: LIVRE | K131: 2021-05-01 | L131: 27022 | M131: 39098.1318 | N131: 0 | O131: 0 | P131: 0 | Q131: 0 | R131: 17.04 | U131: 460454.88 | W131: 460454.88 | X131: 471263.68 | Y131: 0 | Z131: 0 | AA131: 0 | AB131: 0 | AC131: 5078.523506 | AD131: 56595.34045 | AE131: 52159.07214 | AI131: 0 | AJ131: 0 | AK131: 0 | AL131: 0 | AM131: 0 | AN131: 0 | AO131: 196314.5327 | AP131: 150341.5787 | AQ131: 0 | AR131: 0 | AU131: 0 | AV131: 0 | AW131: 0 | AZ131: 0 | BB131: 0 | BC131: 141.8910223 | BD131: 0 | BE131: 0 | BG131: 0 | BH131: 0 | BI131: 0 | BJ131: 0 | BK131: 0 | BL131: 0 | BN131: -210607.7386 | BV131: 0 | CI131: 681871.3872 | CJ131: 15639.19133 | CO131: 10808.8 | CP131: 0 | CQ131: 31 | CR131: 10570.33222 | CS131: 5727.656258 | CT131: 4191.283782 | CU131: 0 | CV131: 0 | CZ131: 727.6197841 | DA131: 0 | DB131: -76.22760598 | DE131: 0 | DF131: 0 | DG131: 0 | DH131: 0 | DI131: 0 | DK131: 0 | DL131: 0 | DN131: 0 | DO131: 0 | DP131: 0 | DQ131: 0 | DR131: 0 | DS131: 0 | DU131: 52159.07214 | DW131: 0 | DX131: 0 | DY131: 10538.58 | EA131: 270.22 | EC131: 0 | EE131: 0 | EF131: 0 | EH131: 0 | EI131: 61.59064613 | EJ131: 80.30037617 | EK131: 0 | EL131: 0 | EO131: 0 | EP131: 165 | EU131: 0 | EZ131: 0 | FA131: 0 | FB131: 0 | FC131: 0
A132: 4349 | B132: Refaturamento - Regular | C132: Azul | D132: A2 | E132: Industrial | F132: Não se aplica | G132: Fonte incentivada | H132: Não se aplica | I132: Ponta | J132: LIVRE | K132: 2021-05-01 | L132: -27760 | M132: -27760 | N132: 0 | O132: 0 | P132: 0 | Q132: 0 | R132: 17.04 | U132: -473030.4 | W132: -473030.4 | X132: -484134.4 | Y132: 0 | Z132: 0 | AA132: 0 | AB132: 0 | AC132: -5217.223467 | AD132: -58141.02031 | AE132: -53583.59272 | AI132: 0 | AJ132: 0 | AK132: 0 | AL132: 0 | AM132: 0 | AN132: 0 | AO132: -201676.0946 | AP132: -154447.5696 | AQ132: 0 | AR132: 0 | AU132: 0 | AV132: 0 | AW132: 0 | AZ132: 0 | BB132: 0 | BC132: -145.7662193 | BD132: 0 | BE132: 0 | BG132: 0 | BH132: 0 | BI132: 0 | BJ132: 0 | BK132: 0 | BL132: 0 | BV132: 0 | CI132: -484134.4 | CJ132: -11104.03 | CO132: -11104 | CP132: 0 | CQ132: 31 | CR132: -10859.01941 | CS132: -5884.084736 | CT132: -4305.752268 | CU132: 0 | CV132: 0 | CZ132: -747.4918661 | DA132: 0 | DB132: 78.30946421 | DE132: 0 | DF132: 0 | DG132: 0 | DH132: 0 | DI132: 0 | DK132: 0 | DL132: 0 | DN132: 0 | DO132: 0 | DP132: 0 | DQ132: 0 | DR132: 0 | DS132: 0 | DU132: -53583.59272 | DW132: 0 | DX132: 0 | DY132: -10826.4 | EA132: -277.6 | EC132: 0 | EE132: 0 | EF132: 0 | EH132: 0 | EI132: -63.27275319 | EJ132: -82.49346615 | EK132: 0 | EL132: 0 | EO132: 0 | EP132: 165 | EU132: 0 | EZ132: 0 | FA132: 0 | FB132: 0 | FC132: 0
A133: 1982 | B133: PROJETADO | C133: Azul | D133: A2 | E133: Industrial | F133: Não se aplica | G133: Não se aplica | H133: Não se aplica | I133: Ponta | J133: CATIVO | K133: 2021-06-01 | L133: 4753 | M133: 4753 | N133: 44.122 | O133: 44.122 | P133: 44.122 | Q133: 44.122 | R133: 17.04 | S133: 52.66 | T133: 372.99 | U133: 80991.12 | V133: 18780.5293 | W133: 99771.6493 | X133: 102105.6861 | Y133: 0 | Z133: 1872.870831 | AA133: 0 | AB133: 0 | AC133: 893.2803724 | AD133: 9954.764752 | AE133: 9174.453034 | AF133: 15210.86595 | AG133: 486.2990822 | AH133: 298.131149 | AI133: 0 | AJ133: 0 | AK133: 110.3129186 | AL133: 334.523733 | AM133: 0 | AN133: 0.9300134309 | AO133: 34530.49271 | AP133: 26444.13899 | AQ133: 0 | AR133: 0 | AS133: 0 | AT133: 225.4674897 | AU133: 0 | AV133: 1.616252684 | AW133: -0.2709253242 | AX133: 0.1886923806 | AY133: -3.626036528 | AZ133: 0 | BA133: -0.4802209479 | BB133: 12.07680916 | BC133: 25.0501068 | BD133: 23.43669184 | BE133: 1.145105898 | BF133: 129.4495476 | BG133: 80.99399278 | BH133: 6.112932969 | BI133: 0 | BJ133: 0 | BK133: 0 | BL133: 0 | BU133: 1.329425665e-10 | BV133: 15445.89129 | CI133: 102104.8152 | CJ133: 2333.1359 | CM133: 0 | CN133: 1.329425665e-10 | CO133: 1896.7878 | CP133: 437.24902 | CQ133: 30 | CR133: 2282.572306 | CS133: 1007.458745 | CT133: 737.2204802 | CU133: 0 | CV133: 0 | CW133: 0 | CX133: 10.39545347 | CY133: -1.228080326 | CZ133: 127.9837478 | DA133: 0 | DB133: -13.4079569 | DC133: 413.2741412 | DD133: 3.51710092 | DE133: 0.03111214431 | DF133: 0.63676708 | DG133: 2.200579699 | DH133: 0 | DI133: -7.170555785 | DJ133: 0.4125494336 | DK133: 0 | DL133: 0 | DM133: 2.609860378 | DN133: -0.04009164513 | DO133: -1.309302073 | DP133: -0.012244223 | DQ133: 0 | DR133: 0 | DS133: 0 | DU133: 9174.453034 | DV133: 0 | DW133: 5.997983846 | DX133: -0.1149491228 | DY133: 1847.93414 | DZ133: 428.86584 | EA133: 48.85366 | EB133: 8.38318 | EC133: 0 | ED133: 11.89304792 | EE133: 0.01832464372 | EF133: 0.0008953335966 | EG133: 0.1012138085 | EH133: 0.06332745557 | EI133: 10.83340763 | EJ133: 14.12433158 | EK133: 0 | EL133: 0 | EM133: 0 | EN133: 0.09236758379 | EO133: 0 | EP133: 165 | EQ133: 0 | ER133: 0 | ES133: 0 | EU133: 0 | EZ133: 0 | FA133: 0 | FB133: 0 | FC133: 0
A134: 4465 | B134: PROJETADO | C134: Azul | D134: A2 | E134: Industrial | F134: Não se aplica | G134: Não se aplica | H134: Não se aplica | I134: Ponta | J134: LIVRE | K134: 2021-06-01 | L134: 39898 | M134: 39898 | N134: 0 | O134: 0 | P134: 0 | Q134: 0 | R134: 17.04 | U134: 679861.92 | W134: 679861.92 | X134: 695821.12 | Y134: 0 | Z134: 0 | AA134: 0 | AB134: 0 | AC134: 7498.443151 | AD134: 83563.05577 | AE134: 77012.90283 | AI134: 0 | AJ134: 0 | AK134: 0 | AL134: 0 | AM134: 0 | AN134: 0 | AO134: 289858.531 | AP134: 221979.4356 | AQ134: 0 | AR134: 0 | AU134: 0 | AV134: 0 | AW134: 0 | AZ134: 0 | BB134: 0 | BC134: 209.5021837 | BD134: 0 | BE134: 0 | BG134: 0 | BH134: 0 | BI134: 0 | BJ134: 0 | BK134: 0 | BL134: 0 | BV134: 0 | CI134: 695821.12 | CJ134: 15959.17 | CO134: 15959.2 | CP134: 0 | CQ134: 30 | CR134: 15607.10217 | CS134: 8456.888069 | CT134: 6188.433141 | CU134: 0 | CV134: 0 | CZ134: 1074.331069 | DA134: 0 | DB134: -112.5501082 | DE134: 0 | DF134: 0 | DG134: 0 | DH134: 0 | DI134: 0 | DK134: 0 | DL134: 0 | DN134: 0 | DO134: 0 | DP134: 0 | DQ134: 0 | DR134: 0 | DS134: 0 | DU134: 77012.90283 | DW134: 0 | DX134: 0 | DY134: 15560.22 | EA134: 398.98 | EC134: 0 | EE134: 0 | EF134: 0 | EH134: 0 | EI134: 90.93862777 | EJ134: 118.5635559 | EK134: 0 | EL134: 0 | EO134: 0 | EP134: 165 | EU134: 0 | EZ134: 0 | FA134: 0 | FB134: 0 | FC134: 0
A135: 4564 | B135: PROJETADO | C135: Azul | D135: A2 | E135: Industrial | F135: Não se aplica | G135: Fonte incentivada | H135: Não se aplica | I135: Ponta | J135: LIVRE | K135: 2021-06-01 | L135: 27022 | M135: 39098.1318 | N135: 0 | O135: 0 | P135: 0 | Q135: 0 | R135: 17.04 | U135: 460454.88 | W135: 460454.88 | X135: 471263.68 | Y135: 0 | Z135: 0 | AA135: 0 | AB135: 0 | AC135: 5078.523506 | AD135: 56595.34045 | AE135: 52159.07214 | AI135: 0 | AJ135: 0 | AK135: 0 | AL135: 0 | AM135: 0 | AN135: 0 | AO135: 196314.5327 | AP135: 150341.5787 | AQ135: 0 | AR135: 0 | AU135: 0 | AV135: 0 | AW135: 0 | AZ135: 0 | BB135: 0 | BC135: 141.8910223 | BD135: 0 | BE135: 0 | BG135: 0 | BH135: 0 | BI135: 0 | BJ135: 0 | BK135: 0 | BL135: 0 | BN135: -210607.7386 | BV135: 0 | CI135: 681871.3872 | CJ135: 15639.19133 | CO135: 10808.8 | CP135: 0 | CQ135: 30 | CR135: 10570.33222 | CS135: 5727.656258 | CT135: 4191.283782 | CU135: 0 | CV135: 0 | CZ135: 727.6197841 | DA135: 0 | DB135: -76.22760598 | DE135: 0 | DF135: 0 | DG135: 0 | DH135: 0 | DI135: 0 | DK135: 0 | DL135: 0 | DN135: 0 | DO135: 0 | DP135: 0 | DQ135: 0 | DR135: 0 | DS135: 0 | DU135: 52159.07214 | DW135: 0 | DX135: 0 | DY135: 10538.58 | EA135: 270.22 | EC135: 0 | EE135: 0 | EF135: 0 | EH135: 0 | EI135: 61.59064613 | EJ135: 80.30037617 | EK135: 0 | EL135: 0 | EO135: 0 | EP135: 165 | EU135: 0 | EZ135: 0 | FA135: 0 | FB135: 0 | FC135: 0
A136: 4565 | B136: PROJETADO | C136: Azul | D136: A2 | E136: Industrial | F136: Não se aplica | G136: Fonte incentivada | H136: Não se aplica | I136: Ponta | J136: LIVRE | K136: 2021-06-01 | L136: -27760 | M136: -27760 | N136: 0 | O136: 0 | P136: 0 | Q136: 0 | R136: 17.04 | U136: -473030.4 | W136: -473030.4 | X136: -484134.4 | Y136: 0 | Z136: 0 | AA136: 0 | AB136: 0 | AC136: -5217.223467 | AD136: -58141.02031 | AE136: -53583.59272 | AI136: 0 | AJ136: 0 | AK136: 0 | AL136: 0 | AM136: 0 | AN136: 0 | AO136: -201676.0946 | AP136: -154447.5696 | AQ136: 0 | AR136: 0 | AU136: 0 | AV136: 0 | AW136: 0 | AZ136: 0 | BB136: 0 | BC136: -145.7662193 | BD136: 0 | BE136: 0 | BG136: 0 | BH136: 0 | BI136: 0 | BJ136: 0 | BK136: 0 | BL136: 0 | BV136: 0 | CI136: -484134.4 | CJ136: -11104.03 | CO136: -11104 | CP136: 0 | CQ136: 30 | CR136: -10859.01941 | CS136: -5884.084736 | CT136: -4305.752268 | CU136: 0 | CV136: 0 | CZ136: -747.4918661 | DA136: 0 | DB136: 78.30946421 | DE136: 0 | DF136: 0 | DG136: 0 | DH136: 0 | DI136: 0 | DK136: 0 | DL136: 0 | DN136: 0 | DO136: 0 | DP136: 0 | DQ136: 0 | DR136: 0 | DS136: 0 | DU136: -53583.59272 | DW136: 0 | DX136: 0 | DY136: -10826.4 | EA136: -277.6 | EC136: 0 | EE136: 0 | EF136: 0 | EH136: 0 | EI136: -63.27275319 | EJ136: -82.49346615 | EK136: 0 | EL136: 0 | EO136: 0 | EP136: 165 | EU136: 0 | EZ136: 0 | FA136: 0 | FB136: 0 | FC136: 0
A137: 2273 | B137: Regular | C137: Geração | D137: A2 | E137: Não se aplica | F137: Não se aplica | G137: Não se aplica | H137: UHE CANOAS I | I137: Não se aplica | J137: GERAÇÃO | K137: 2020-07-01 | L137: 81034 | M137: 81034 | N137: 0 | O137: 0 | P137: 0 | Q137: 0 | R137: 2.39 | U137: 193671.26 | W137: 193671.26 | X137: 200153.98 | Y137: 0 | Z137: 0 | AA137: 0 | AB137: 0 | AC137: 1572.0596 | AD137: 0 | AE137: 94550.4712 | AI137: 0 | AJ137: 0 | AK137: 11369.0702 | AL137: 0 | AM137: 0 | AN137: 4505.4904 | AO137: 59179.1302 | AP137: 0 | AQ137: 22260.0398 | AR137: 0 | AU137: 0 | AV137: 0 | AW137: 0 | AZ137: 0 | BB137: 0 | BC137: 34.79509184 | BD137: 0 | BE137: 0 | BG137: 0 | BH137: 0 | BI137: 12752.34 | BJ137: 0 | BK137: 0 | BL137: 0 | BV137: 0 | CI137: 200153.98 | CJ137: 6482.69 | CO137: 6482.72 | CP137: 0 | CQ137: 31 | CR137: 6357.395205 | CS137: 1726.605314 | CT137: 0 | CU137: 4717.835781 | CV137: 0 | CZ137: 0 | DA137: 0 | DB137: -23.59629519 | DE137: 0 | DF137: 0 | DG137: 0 | DH137: 0 | DI137: 0 | DK137: 0 | DL137: 0 | DN137: -4.131925198 | DO137: 0 | DP137: -59.31766933 | DQ137: 0 | DR137: 0 | DS137: 0 | DU137: 94550.4712 | DW137: 0 | DX137: 0 | DY137: 6482.72 | EA137: 0 | EC137: 0 | EE137: 0 | EF137: 0 | EH137: 0 | EI137: 0 | EJ137: 24.20659516 | EK137: 10.58849669 | EL137: 0 | EO137: 0 | EP137: 165 | EU137: 0 | EZ137: 0 | FA137: 0 | FB137: 0 | FC137: 0
